Workbook

Sheet Introduction
C4: Joint Monitoring Programme for Water Supply, Sanitation and Hygiene
C6: Estimates on household water, sanitation and hygiene by wealth quintile and sub-national region in
C7: =+Water!B5 -> State of Palestine
C9: Updated May 2021
C11: Follow the links below to find the following information:
C13: JMP Estimates
C14: WASH status and trends by wealth quintile (customized quintiles made without water and sanitation assets)
C15: Water
C16: Sanitation
C17: Hygiene
C19: Data inputs
C20: customized wealth quintiles and subnational data:
C21: =IF(INDIRECT(CONCATENATE("Water","!B105"))=0,"",INDIRECT(CONCATENATE("Water","!B105"))) -> MICS11
C22: =IF(INDIRECT(CONCATENATE("Water","!B106"))=0,"",INDIRECT(CONCATENATE("Water","!B106"))) -> MICS14
C23: =IF(INDIRECT(CONCATENATE("Water","!B107"))=0,"",INDIRECT(CONCATENATE("Water","!B107"))) -> MICS20
C24: =IF(INDIRECT(CONCATENATE("Water","!B108"))=0,"",INDIRECT(CONCATENATE("Water","!B108"))) -> 
C25: =IF(INDIRECT(CONCATENATE("Water","!B109"))=0,"",INDIRECT(CONCATENATE("Water","!B109"))) -> 
C26: =IF(INDIRECT(CONCATENATE("Water","!B110"))=0,"",INDIRECT(CONCATENATE("Water","!B110"))) -> 
C27: =IF(INDIRECT(CONCATENATE("Water","!B111"))=0,"",INDIRECT(CONCATENATE("Water","!B111"))) -> 
C28: =IF(INDIRECT(CONCATENATE("Water","!B112"))=0,"",INDIRECT(CONCATENATE("Water","!B112"))) -> 
C29: =IF(INDIRECT(CONCATENATE("Water","!B113"))=0,"",INDIRECT(CONCATENATE("Water","!B113"))) -> 
C30: =IF(INDIRECT(CONCATENATE("Water","!B114"))=0,"",INDIRECT(CONCATENATE("Water","!B114"))) -> 
C31: =IF(INDIRECT(CONCATENATE("Water","!B115"))=0,"",INDIRECT(CONCATENATE("Water","!B115"))) -> 
C32: =IF(INDIRECT(CONCATENATE("Water","!B116"))=0,"",INDIRECT(CONCATENATE("Water","!B116"))) -> 
L55: =+IF(ISNUMBER(M48), "", "Insufficient data to estimate safely managed sanitation services at national level") -> Insufficient data to estimate safely managed sanitation services at national level

Sheet Water
A1: BGD
B4: Summary of trends in use of drinking water by wealth quintile (%)
B5: =IF(ISERROR(INDIRECT(CONCATENATE($B105,"!A2"))),"",INDIRECT(CONCATENATE($B105,"!A2"))) -> State of Palestine
B7: =B118 -> National use of drinking water sources, 2005–2020 | J7: =B218 -> Urban use of drinking water sources, 2005–2020 | R7: =B318 -> Rural use of drinking water sources, 2005–2020
B31: =IF(ISERROR(INDIRECT(CONCATENATE($B105,"!A2"))),"",INDIRECT(CONCATENATE($B105,"!A2"))) -> State of Palestine | F31: Poorest | J31: Poor | N31: Middle | R31: Rich | V31: Richest
F32: Basic | G32: Limited | H32: Unimproved | I32: Surface water | J32: Basic | K32: Limited | L32: Unimproved | M32: Surface water | N32: Basic | O32: Limited | P32: Unimproved | Q32: Surface water | R32: Basic | S32: Limited | T32: Unimproved | U32: Surface water | V32: Basic | W32: Limited | X32: Unimproved | Y32: Surface water
B33: NATIONAL | D33: Estimate | E33: =C99 -> 2005 | F33: =E99 -> 97.43624746 | G33: =F99 -> 0.7669332728 | H33: 1.796819268 | I33: 0 | J33: =J99 -> 98.38700864 | K33: =K99 -> 0.8864620265 | L33: 0.7265293356 | M33: 0 | N33: =O99 -> 99.43511974 | O33: =P99 -> 0.2175997243 | P33: 0.3472805319 | Q33: 0 | R33: =T99 -> 99.40994171 | S33: =U99 -> 0.2909228976 | T33: 0.2991353891 | U33: 0 | V33: =Y99 -> 99.77280334 | W33: =Z99 -> 0.2178932949 | X33: 0.009303364054 | Y33: 0
E34: =C100 -> 2020 | F34: =E100 -> 98.90296024 | G34: 0.7784779583 | H34: 0.3185618059 | I34: 0 | J34: =J100 -> 99.08313772 | K34: 0.8927341147 | L34: 0.02412816428 | M34: 0 | N34: =O100 -> 99.78164196 | O34: 0.2183580393 | P34: 0 | Q34: 0 | R34: =T100 -> 99.66469349 | S34: 0.2916684279 | T34: 0.04363807943 | U34: 0 | V34: =Y100 -> 99.41043269 | W34: 0.2171019156 | X34: 0.3724653907 | Y34: 0
B36: URBAN | D36: Estimate | E36: =C199 -> 2005 | F36: =E199 -> 97.08612229 | G36: =F199 -> 0.6106654024 | H36: 2.303212305 | I36: 0 | J36: =J199 -> 98.4444969 | K36: =K199 -> 0.7197724196 | L36: 0.8357306773 | M36: 0 | N36: =O199 -> 98.98214782 | O36: =P199 -> 0.4347698382 | P36: 0.5830823431 | Q36: 0 | R36: =T199 -> 99.66257963 | S36: =U199 -> 0.1027464471 | T36: 0.2346739187 | U36: 0 | V36: =Y199 -> 99.8762083 | W36: =Z199 -> 0.1237917016 | X36: 0 | Y36: 0
E37: =C200 -> 2020 | F37: =E200 -> 99.24469216 | G37: 0.6242426666 | H37: 0.1310651738 | I37: 0 | J37: =J200 -> 99.22011318 | K37: 0.7254433024 | L37: 0.05444352027 | M37: 0 | N37: =O200 -> 99.56268023 | O37: 0.4373197726 | P37: 0 | Q37: 0 | R37: =T200 -> 99.89701187 | S37: 0.1029881334 | T37: 0 | U37: 0 | V37: =Y200 -> 99.50970154 | W37: 0.1233374343 | X37: 0.3669610297 | Y37: 0
B39: RURAL | D39: Estimate | E39: =C299 -> 2005 | F39: =E299 -> 98.0537246 | G39: =F299 -> 1.054822217 | H39: 0.8914531873 | I39: 0 | J39: =J299 -> 99.14502935 | K39: =K299 -> 0.5642017796 | L39: 0.2907688671 | M39: 0 | N39: =O299 -> 98.80011912 | O39: =P299 -> 0.5767527986 | P39: 0.6231280838 | Q39: 0 | R39: =T299 -> 99.18812039 | S39: =U299 -> 0.6875084522 | T39: 0.1243711558 | U39: 0 | V39: =Y299 -> 99.11664794 | W39: =Z299 -> 0.6323959767 | X39: 0.2509560814 | Y39: 0
E40: =C300 -> 2020 | F40: =E300 -> 98.8532414 | G40: 1.063423095 | H40: 0.08333550285 | I40: 0 | J40: =J300 -> 99.43415291 | K40: 0.5658470868 | L40: 0 | M40: 0 | N40: =O300 -> 99.41963076 | O40: 0.5803692424 | P40: 0 | Q40: 0 | R40: =T300 -> 98.81655585 | S40: 0.684933005 | T40: 0.4985111492 | U40: 0 | V40: =Y300 -> 98.84117413 | W40: 0.6306383655 | X40: 0.5281875035 | Y40: 0
A97: NATIONAL | D97: Poorest | I97: Poor | N97: Middle | S97: Rich | X97: Richest
D98: Improved | E98: Basic | F98: Limited | G98: Unimproved | H98: Surface water | I98: Improved | J98: Basic | K98: Limited | L98: Unimproved | M98: Surface water | N98: Improved | O98: Basic | P98: Limited | Q98: Unimproved | R98: Surface water | S98: Improved | T98: Basic | U98: Limited | V98: Unimproved | W98: Surface water | X98: Improved | Y98: Basic | Z98: Limited | AA98: Unimproved | AB98: Surface water
A99: Forecast period: | C99: 2005 | D99: =IF((D101+H101)>100,D101*100/(D101+H101),D101) -> 98.20318073 | E99: =D99*AVERAGEIF(E105:E116,">0")/100 -> 97.43624746 | F99: =D99*(100-AVERAGEIF(E105:E116,">0"))/100 -> 0.7669332728 | G99: =100-(E99+F99+H99) -> 1.796819268 | H99: =IF((D101+H101)>100,H101*100/(D101+H101),H101) -> 0 | I99: =IF((I101+M101)>100,I101*100/(I101+M101),I101) -> 99.27347066 | J99: =I99*AVERAGEIF(J105:J116,">0")/100 -> 98.38700864 | K99: =I99*(100-AVERAGEIF(J105:J116,">0"))/100 -> 0.8864620265 | L99: =100-(J99+K99+M99) -> 0.7265293356 | M99: =IF((I101+M101)>100,M101*100/(I101+M101),M101) -> 0 | N99: =IF((N101+R101)>100,N101*100/(N101+R101),N101) -> 99.65271947 | O99: =N99*AVERAGEIF(O105:O116,">0")/100 -> 99.43511974 | P99: =N99*(100-AVERAGEIF(O105:O116,">0"))/100 -> 0.2175997243 | Q99: =100-(O99+P99+R99) -> 0.3472805319 | R99: =IF((N101+R101)>100,R101*100/(N101+R101),R101) -> 0 | S99: =IF((S101+W101)>100,S101*100/(S101+W101),S101) -> 99.70086461 | T99: =S99*AVERAGEIF(T105:T116,">0")/100 -> 99.40994171 | U99: =S99*(100-AVERAGEIF(T105:T116,">0"))/100 -> 0.2909228976 | V99: =100-(T99+U99+W99) -> 0.2991353891 | W99: =IF((S101+W101)>100,W101*100/(S101+W101),W101) -> 0 | X99: =IF((X101+AB101)>100,X101*100/(X101+AB101),X101) -> 99.99069664 | Y99: =X99*AVERAGEIF(Y105:Y116,">0")/100 -> 99.77280334 | Z99: =X99*(100-AVERAGEIF(Y105:Y116,">0"))/100 -> 0.2178932949 | AA99: =100-(Y99+Z99+AB99) -> 0.009303364054 | AB99: =IF((X101+AB101)>100,AB101*100/(X101+AB101),AB101) -> 0
C100: 2020 | D100: =IF((D102+H102)>100,D102*100/(D102+H102),D102) -> 99.68143819 | E100: =D100*AVERAGEIF(E105:E116,">0")/100 -> 98.90296024 | F100: =D100*(100-AVERAGEIF(E105:E116,">0"))/100 -> 0.7784779583 | G100: =100-(E100+F100+H100) -> 0.3185618059 | H100: =IF((D102+H102)>100,H102*100/(D102+H102),H102) -> 0 | I100: =IF((I102+M102)>100,I102*100/(I102+M102),I102) -> 99.97587184 | J100: =I100*AVERAGEIF(J105:J116,">0")/100 -> 99.08313772 | K100: =I100*(100-AVERAGEIF(J105:J116,">0"))/100 -> 0.8927341147 | L100: =100-(J100+K100+M100) -> 0.02412816428 | M100: =IF((I102+M102)>100,M102*100/(I102+M102),M102) -> 0 | N100: =IF((N102+R102)>100,N102*100/(N102+R102),N102) -> 100 | O100: =N100*AVERAGEIF(O105:O116,">0")/100 -> 99.78164196 | P100: =N100*(100-AVERAGEIF(O105:O116,">0"))/100 -> 0.2183580393 | Q100: =100-(O100+P100+R100) -> 0 | R100: =IF((N102+R102)>100,R102*100/(N102+R102),R102) -> 0 | S100: =IF((S102+W102)>100,S102*100/(S102+W102),S102) -> 99.95636192 | T100: =S100*AVERAGEIF(T105:T116,">0")/100 -> 99.66469349 | U100: =S100*(100-AVERAGEIF(T105:T116,">0"))/100 -> 0.2916684279 | V100: =100-(T100+U100+W100) -> 0.04363807943 | W100: =IF((S102+W102)>100,W102*100/(S102+W102),W102) -> 0 | X100: =IF((X102+AB102)>100,X102*100/(X102+AB102),X102) -> 99.62753461 | Y100: =X100*AVERAGEIF(Y105:Y116,">0")/100 -> 99.41043269 | Z100: =X100*(100-AVERAGEIF(Y105:Y116,">0"))/100 -> 0.2171019156 | AA100: =100-(Y100+Z100+AB100) -> 0.3724653907 | AB100: =IF((X102+AB102)>100,AB102*100/(X102+AB102),AB102) -> 0
A101: Regression period: | C101: =MinRegYear(C99,C105:C116) -> 2009 | D101: =IF(MAX(C105:C116)-MIN(C105:C116)<5,AVERAGEIF(C105:C116,">0",D105:D116), IF(FORECAST($C101,D$105:D$116,$C$105:$C$116)<0,0, IF(FORECAST($C101,D$105:D$116,$C$105:$C$116)>100,100, FORECAST($C101,D$105:D$116,$C$105:$C$116)))) -> 98.20318073 | H101: =IF(MAX(C105:C116)-MIN(C105:C116)<5,AVERAGEIF(C105:C116,">0",H105:H116), IF(FORECAST($C101,H$105:H$116,$C$105:$C$116)<0,0, IF(FORECAST($C101,H$105:H$116,$C$105:$C$116)>100,100, FORECAST($C101,H$105:H$116,$C$105:$C$116)))) -> 0 | I101: =IF(MAX(C105:C116)-MIN(C105:C116)<5,AVERAGEIF(C105:C116,">0",I105:I116), IF(FORECAST($C101,I$105:I$116,$C$105:$C$116)<0,0, IF(FORECAST($C101,I$105:I$116,$C$105:$C$116)>100,100, FORECAST($C101,I$105:I$116,$C$105:$C$116)))) -> 99.27347066 | M101: =IF(MAX(C105:C116)-MIN(C105:C116)<5,AVERAGEIF(C105:C116,">0",M105:M116), IF(FORECAST($C101,M$105:M$116,$C$105:$C$116)<0,0, IF(FORECAST($C101,M$105:M$116,$C$105:$C$116)>100,100, FORECAST($C101,M$105:M$116,$C$105:$C$116)))) -> 0 | N101: =IF(MAX(C105:C116)-MIN(C105:C116)<5,AVERAGEIF(C105:C116,">0",N105:N116), IF(FORECAST($C101,N$105:N$116,$C$105:$C$116)<0,0, IF(FORECAST($C101,N$105:N$116,$C$105:$C$116)>100,100, FORECAST($C101,N$105:N$116,$C$105:$C$116)))) -> 99.65271947 | R101: =IF(MAX(C105:C116)-MIN(C105:C116)<5,AVERAGEIF(C105:C116,">0",R105:R116), IF(FORECAST($C101,R$105:R$116,$C$105:$C$116)<0,0, IF(FORECAST($C101,R$105:R$116,$C$105:$C$116)>100,100, FORECAST($C101,R$105:R$116,$C$105:$C$116)))) -> 0 | S101: =IF(MAX(C105:C116)-MIN(C105:C116)<5,AVERAGEIF(C105:C116,">0",S105:S116), IF(FORECAST($C101,S$105:S$116,$C$105:$C$116)<0,0, IF(FORECAST($C101,S$105:S$116,$C$105:$C$116)>100,100, FORECAST($C101,S$105:S$116,$C$105:$C$116)))) -> 99.70086461 | W101: =IF(MAX(C105:C116)-MIN(C105:C116)<5,AVERAGEIF(C105:C116,">0",W105:W116), IF(FORECAST($C101,W$105:W$116,$C$105:$C$116)<0,0, IF(FORECAST($C101,W$105:W$116,$C$105:$C$116)>100,100, FORECAST($C101,W$105:W$116,$C$105:$C$116)))) -> 0 | X101: =IF(MAX(C105:C116)-MIN(C105:C116)<5,AVERAGEIF(C105:C116,">0",X105:X116), IF(FORECAST($C101,X$105:X$116,$C$105:$C$116)<0,0, IF(FORECAST($C101,X$105:X$116,$C$105:$C$116)>100,100, FORECAST($C101,X$105:X$116,$C$105:$C$116)))) -> 99.99069664 | AB101: =IF(MAX(C105:C116)-MIN(C105:C116)<5,AVERAGEIF(C105:C116,">0",AB105:AB116), IF(FORECAST($C101,AB$105:AB$116,$C$105:$C$116)<0,0, IF(FORECAST($C101,AB$105:AB$116,$C$105:$C$116)>100,100, FORECAST($C101,AB$105:AB$116,$C$105:$C$116)))) -> 0
C102: =MaxRegYear(C100,C105:C116) -> 2020 | D102: =IF(MAX(C105:C116)-MIN(C105:C116)<5,AVERAGEIF(C105:C116,">0",D105:D116), IF(FORECAST($C102,D$105:D$116,$C$105:$C$116)<0,0, IF(FORECAST($C102,D$105:D$116,$C$105:$C$116)>100,100, FORECAST($C102,D$105:D$116,$C$105:$C$116)))) -> 99.68143819 | H102: =IF(MAX(C105:C116)-MIN(C105:C116)<5,AVERAGEIF(C105:C116,">0",H105:H116), IF(FORECAST($C102,H$105:H$116,$C$105:$C$116)<0,0, IF(FORECAST($C102,H$105:H$116,$C$105:$C$116)>100,100, FORECAST($C102,H$105:H$116,$C$105:$C$116)))) -> 0 | I102: =IF(MAX(C105:C116)-MIN(C105:C116)<5,AVERAGEIF(C105:C116,">0",I105:I116), IF(FORECAST($C102,I$105:I$116,$C$105:$C$116)<0,0, IF(FORECAST($C102,I$105:I$116,$C$105:$C$116)>100,100, FORECAST($C102,I$105:I$116,$C$105:$C$116)))) -> 99.97587184 | M102: =IF(MAX(C105:C116)-MIN(C105:C116)<5,AVERAGEIF(C105:C116,">0",M105:M116), IF(FORECAST($C102,M$105:M$116,$C$105:$C$116)<0,0, IF(FORECAST($C102,M$105:M$116,$C$105:$C$116)>100,100, FORECAST($C102,M$105:M$116,$C$105:$C$116)))) -> 0 | N102: =IF(MAX(C105:C116)-MIN(C105:C116)<5,AVERAGEIF(C105:C116,">0",N105:N116), IF(FORECAST($C102,N$105:N$116,$C$105:$C$116)<0,0, IF(FORECAST($C102,N$105:N$116,$C$105:$C$116)>100,100, FORECAST($C102,N$105:N$116,$C$105:$C$116)))) -> 100 | R102: =IF(MAX(C105:C116)-MIN(C105:C116)<5,AVERAGEIF(C105:C116,">0",R105:R116), IF(FORECAST($C102,R$105:R$116,$C$105:$C$116)<0,0, IF(FORECAST($C102,R$105:R$116,$C$105:$C$116)>100,100, FORECAST($C102,R$105:R$116,$C$105:$C$116)))) -> 0 | S102: =IF(MAX(C105:C116)-MIN(C105:C116)<5,AVERAGEIF(C105:C116,">0",S105:S116), IF(FORECAST($C102,S$105:S$116,$C$105:$C$116)<0,0, IF(FORECAST($C102,S$105:S$116,$C$105:$C$116)>100,100, FORECAST($C102,S$105:S$116,$C$105:$C$116)))) -> 99.95636192 | W102: =IF(MAX(C105:C116)-MIN(C105:C116)<5,AVERAGEIF(C105:C116,">0",W105:W116), IF(FORECAST($C102,W$105:W$116,$C$105:$C$116)<0,0, IF(FORECAST($C102,W$105:W$116,$C$105:$C$116)>100,100, FORECAST($C102,W$105:W$116,$C$105:$C$116)))) -> 0 | X102: =IF(MAX(C105:C116)-MIN(C105:C116)<5,AVERAGEIF(C105:C116,">0",X105:X116), IF(FORECAST($C102,X$105:X$116,$C$105:$C$116)<0,0, IF(FORECAST($C102,X$105:X$116,$C$105:$C$116)>100,100, FORECAST($C102,X$105:X$116,$C$105:$C$116)))) -> 99.62753461 | AB102: =IF(MAX(C105:C116)-MIN(C105:C116)<5,AVERAGEIF(C105:C116,">0",AB105:AB116), IF(FORECAST($C102,AB$105:AB$116,$C$105:$C$116)<0,0, IF(FORECAST($C102,AB$105:AB$116,$C$105:$C$116)>100,100, FORECAST($C102,AB$105:AB$116,$C$105:$C$116)))) -> 0
B104: Survey | C104: Year | D104: Improved | E104: % Improved < = 30min | H104: Surface water | I104: Improved | J104: % Improved < = 30min | M104: Surface water | N104: Improved | O104: % Improved < = 30min | R104: Surface water | S104: Improved | T104: % Improved < = 30min | W104: Surface water | X104: Improved | Y104: % Improved < = 30min | AB104: Surface water
B105: MICS11 | C105: 2011 | D105: =IF(ISERROR(INDIRECT(CONCATENATE($B105,"!C16"))),"",INDIRECT(CONCATENATE($B105,"!C16"))) -> 97.93002559 | E105: =IF(ISERROR(INDIRECT(CONCATENATE($B105,"!C23"))),"",INDIRECT(CONCATENATE($B105,"!C23"))) -> N/A | H105: =IF(ISERROR(INDIRECT(CONCATENATE($B105,"!C21"))),"",INDIRECT(CONCATENATE($B105,"!C21"))) -> 0 | I105: =IF(ISERROR(INDIRECT(CONCATENATE($B105,"!D16"))),"",INDIRECT(CONCATENATE($B105,"!D16"))) -> 99.24982261 | J105: =IF(ISERROR(INDIRECT(CONCATENATE($B105,"!D23"))),"",INDIRECT(CONCATENATE($B105,"!D23"))) -> N/A | M105: =IF(ISERROR(INDIRECT(CONCATENATE($B105,"!D21"))),"",INDIRECT(CONCATENATE($B105,"!D21"))) -> 0 | N105: =IF(ISERROR(INDIRECT(CONCATENATE($B105,"!E16"))),"",INDIRECT(CONCATENATE($B105,"!E16"))) -> 99.63474491 | O105: =IF(ISERROR(INDIRECT(CONCATENATE($B105,"!E23"))),"",INDIRECT(CONCATENATE($B105,"!E23"))) -> N/A | R105: =IF(ISERROR(INDIRECT(CONCATENATE($B105,"!E21"))),"",INDIRECT(CONCATENATE($B105,"!E21"))) -> 0 | S105: =IF(ISERROR(INDIRECT(CONCATENATE($B105,"!F16"))),"",INDIRECT(CONCATENATE($B105,"!F16"))) -> 99.71731297 | T105: =IF(ISERROR(INDIRECT(CONCATENATE($B105,"!F23"))),"",INDIRECT(CONCATENATE($B105,"!F23"))) -> N/A | W105: =IF(ISERROR(INDIRECT(CONCATENATE($B105,"!F21"))),"",INDIRECT(CONCATENATE($B105,"!F21"))) -> 0 | X105: =IF(ISERROR(INDIRECT(CONCATENATE($B105,"!G16"))),"",INDIRECT(CONCATENATE($B105,"!G16"))) -> 99.89709207 | Y105: =IF(ISERROR(INDIRECT(CONCATENATE($B105,"!G23"))),"",INDIRECT(CONCATENATE($B105,"!G23"))) -> N/A | AB105: =IF(ISERROR(INDIRECT(CONCATENATE($B105,"!G221"))),"",INDIRECT(CONCATENATE($B105,"!G21"))) -> 0
B106: MICS14 | C106: 2014 | D106: 99.68800979 | E106: 99.37392656 | H106: 0 | I106: 99.81977996 | J106: 99.55322653 | M106: 0 | N106: 99.96469556 | O106: 99.59863892 | R106: 0 | S106: 99.86200829 | T106: 99.62199456 | W106: 0 | X106: 99.86698565 | Y106: 99.6860482 | AB106: 0
B107: MICS20 | C107: 2020 | D107: 99.41047358 | E107: 99.06414181 | H107: N/A | I107: 99.90019316 | J107: 98.66087433 | M107: N/A | N107: 100 | O107: 99.964645 | R107: N/A | S107: 99.94135907 | T107: 99.79441392 | W107: N/A | X107: 99.61374706 | Y107: 99.87812466 | AB107: N/A
D111: =IF(ISERROR(INDIRECT(CONCATENATE($B111,"!C16"))),"",INDIRECT(CONCATENATE($B111,"!C16"))) ->  | E111: =IF(ISERROR(INDIRECT(CONCATENATE($B111,"!C23"))),"",INDIRECT(CONCATENATE($B111,"!C23"))) ->  | H111: =IF(ISERROR(INDIRECT(CONCATENATE($B111,"!C21"))),"",INDIRECT(CONCATENATE($B111,"!C21"))) ->  | I111: =IF(ISERROR(INDIRECT(CONCATENATE($B111,"!D16"))),"",INDIRECT(CONCATENATE($B111,"!D16"))) ->  | J111: =IF(ISERROR(INDIRECT(CONCATENATE($B111,"!D23"))),"",INDIRECT(CONCATENATE($B111,"!D23"))) ->  | M111: =IF(ISERROR(INDIRECT(CONCATENATE($B111,"!D21"))),"",INDIRECT(CONCATENATE($B111,"!D21"))) ->  | N111: =IF(ISERROR(INDIRECT(CONCATENATE($B111,"!E16"))),"",INDIRECT(CONCATENATE($B111,"!E16"))) ->  | O111: =IF(ISERROR(INDIRECT(CONCATENATE($B111,"!E23"))),"",INDIRECT(CONCATENATE($B111,"!E23"))) ->  | R111: =IF(ISERROR(INDIRECT(CONCATENATE($B111,"!E21"))),"",INDIRECT(CONCATENATE($B111,"!E21"))) ->  | S111: =IF(ISERROR(INDIRECT(CONCATENATE($B111,"!F16"))),"",INDIRECT(CONCATENATE($B111,"!F16"))) ->  | T111: =IF(ISERROR(INDIRECT(CONCATENATE($B111,"!F23"))),"",INDIRECT(CONCATENATE($B111,"!F23"))) ->  | W111: =IF(ISERROR(INDIRECT(CONCATENATE($B111,"!F21"))),"",INDIRECT(CONCATENATE($B111,"!F21"))) ->  | X111: =IF(ISERROR(INDIRECT(CONCATENATE($B111,"!G16"))),"",INDIRECT(CONCATENATE($B111,"!G16"))) ->  | Y111: =IF(ISERROR(INDIRECT(CONCATENATE($B111,"!G23"))),"",INDIRECT(CONCATENATE($B111,"!G23"))) ->  | AB111: =IF(ISERROR(INDIRECT(CONCATENATE($B111,"!G221"))),"",INDIRECT(CONCATENATE($B111,"!G21"))) -> 
D112: =IF(ISERROR(INDIRECT(CONCATENATE($B112,"!C16"))),"",INDIRECT(CONCATENATE($B112,"!C16"))) ->  | E112: =IF(ISERROR(INDIRECT(CONCATENATE($B112,"!C23"))),"",INDIRECT(CONCATENATE($B112,"!C23"))) ->  | H112: =IF(ISERROR(INDIRECT(CONCATENATE($B112,"!C21"))),"",INDIRECT(CONCATENATE($B112,"!C21"))) ->  | I112: =IF(ISERROR(INDIRECT(CONCATENATE($B112,"!D16"))),"",INDIRECT(CONCATENATE($B112,"!D16"))) ->  | J112: =IF(ISERROR(INDIRECT(CONCATENATE($B112,"!D23"))),"",INDIRECT(CONCATENATE($B112,"!D23"))) ->  | M112: =IF(ISERROR(INDIRECT(CONCATENATE($B112,"!D21"))),"",INDIRECT(CONCATENATE($B112,"!D21"))) ->  | N112: =IF(ISERROR(INDIRECT(CONCATENATE($B112,"!E16"))),"",INDIRECT(CONCATENATE($B112,"!E16"))) ->  | O112: =IF(ISERROR(INDIRECT(CONCATENATE($B112,"!E23"))),"",INDIRECT(CONCATENATE($B112,"!E23"))) ->  | R112: =IF(ISERROR(INDIRECT(CONCATENATE($B112,"!E21"))),"",INDIRECT(CONCATENATE($B112,"!E21"))) ->  | S112: =IF(ISERROR(INDIRECT(CONCATENATE($B112,"!F16"))),"",INDIRECT(CONCATENATE($B112,"!F16"))) ->  | T112: =IF(ISERROR(INDIRECT(CONCATENATE($B112,"!F23"))),"",INDIRECT(CONCATENATE($B112,"!F23"))) ->  | W112: =IF(ISERROR(INDIRECT(CONCATENATE($B112,"!F21"))),"",INDIRECT(CONCATENATE($B112,"!F21"))) ->  | X112: =IF(ISERROR(INDIRECT(CONCATENATE($B112,"!G16"))),"",INDIRECT(CONCATENATE($B112,"!G16"))) ->  | Y112: =IF(ISERROR(INDIRECT(CONCATENATE($B112,"!G23"))),"",INDIRECT(CONCATENATE($B112,"!G23"))) ->  | AB112: =IF(ISERROR(INDIRECT(CONCATENATE($B112,"!G221"))),"",INDIRECT(CONCATENATE($B112,"!G21"))) -> 
B118: =CONCATENATE("National use of drinking water sources, ",C99,"–",C100) -> National use of drinking water sources, 2005–2020 | S118: Data points used for regression
E153: =IF(ISERROR(INDIRECT(CONCATENATE($B153,"!M18"))),"",INDIRECT(CONCATENATE($B153,"!M18"))) ->  | F153: =IF(ISERROR(INDIRECT(CONCATENATE($B153,"!M19"))),"",INDIRECT(CONCATENATE($B153,"!M19"))) ->  | G153: =IF(ISERROR(INDIRECT(CONCATENATE($B153,"!M20"))),"",INDIRECT(CONCATENATE($B153,"!M20"))) ->  | H153: =IF(ISERROR(INDIRECT(CONCATENATE($B153,"!M21"))),"",INDIRECT(CONCATENATE($B153,"!M21"))) ->  | J153: =IF(ISERROR(INDIRECT(CONCATENATE($B153,"!N18"))),"",INDIRECT(CONCATENATE($B153,"!N18"))) ->  | K153: =IF(ISERROR(INDIRECT(CONCATENATE($B153,"!N19"))),"",INDIRECT(CONCATENATE($B153,"!N19"))) ->  | L153: =IF(ISERROR(INDIRECT(CONCATENATE($B153,"!N20"))),"",INDIRECT(CONCATENATE($B153,"!N20"))) ->  | M153: =IF(ISERROR(INDIRECT(CONCATENATE($B153,"!N21"))),"",INDIRECT(CONCATENATE($B153,"!N21"))) ->  | O153: =IF(ISERROR(INDIRECT(CONCATENATE($B153,"!O18"))),"",INDIRECT(CONCATENATE($B153,"!O18"))) ->  | P153: =IF(ISERROR(INDIRECT(CONCATENATE($B153,"!O19"))),"",INDIRECT(CONCATENATE($B153,"!O19"))) ->  | Q153: =IF(ISERROR(INDIRECT(CONCATENATE($B153,"!O20"))),"",INDIRECT(CONCATENATE($B153,"!O20"))) ->  | R153: =IF(ISERROR(INDIRECT(CONCATENATE($B153,"!O21"))),"",INDIRECT(CONCATENATE($B153,"!O21"))) ->  | T153: =IF(ISERROR(INDIRECT(CONCATENATE($B153,"!P18"))),"",INDIRECT(CONCATENATE($B153,"!P18"))) ->  | U153: =IF(ISERROR(INDIRECT(CONCATENATE($B153,"!P19"))),"",INDIRECT(CONCATENATE($B153,"!P19"))) ->  | V153: =IF(ISERROR(INDIRECT(CONCATENATE($B153,"!P20"))),"",INDIRECT(CONCATENATE($B153,"!P20"))) ->  | W153: =IF(ISERROR(INDIRECT(CONCATENATE($B153,"!P21"))),"",INDIRECT(CONCATENATE($B153,"!P21"))) ->  | Y153: =IF(ISERROR(INDIRECT(CONCATENATE($B153,"!Q18"))),"",INDIRECT(CONCATENATE($B153,"!Q18"))) ->  | Z153: =IF(ISERROR(INDIRECT(CONCATENATE($B153,"!Q19"))),"",INDIRECT(CONCATENATE($B153,"!Q19"))) ->  | AA153: =IF(ISERROR(INDIRECT(CONCATENATE($B153,"!Q20"))),"",INDIRECT(CONCATENATE($B153,"!Q20"))) ->  | AB153: =IF(ISERROR(INDIRECT(CONCATENATE($B153,"!Q21"))),"",INDIRECT(CONCATENATE($B153,"!Q1"))) -> 
A197: URBAN | D197: Poorest | I197: Poor | N197: Middle | S197: Rich | X197: Richest
D198: Improved | E198: Basic | F198: Limited | G198: Unimproved | H198: Surface water | I198: Improved | J198: Basic | K198: Limited | L198: Unimproved | M198: Surface water | N198: Improved | O198: Basic | P198: Limited | Q198: Unimproved | R198: Surface water | S198: Improved | T198: Basic | U198: Limited | V198: Unimproved | W198: Surface water | X198: Improved | Y198: Basic | Z198: Limited | AA198: Unimproved | AB198: Surface water
A199: Forecast period: | C199: 2005 | D199: =IF((D201+H201)>100,D201*100/(D201+H201),D201) -> 97.69678769 | E199: =D199*AVERAGEIF(E205:E216,">0")/100 -> 97.08612229 | F199: =D199*(100-AVERAGEIF(E205:E216,">0"))/100 -> 0.6106654024 | G199: =100-(E199+F199+H199) -> 2.303212305 | H199: =IF((D201+H201)>100,H201*100/(D201+H201),H201) -> 0 | I199: =IF((I201+M201)>100,I201*100/(I201+M201),I201) -> 99.16426932 | J199: =I199*AVERAGEIF(J205:J216,">0")/100 -> 98.4444969 | K199: =I199*(100-AVERAGEIF(J205:J216,">0"))/100 -> 0.7197724196 | L199: =100-(J199+K199+M199) -> 0.8357306773 | M199: =IF((I201+M201)>100,M201*100/(I201+M201),M201) -> 0 | N199: =IF((N201+R201)>100,N201*100/(N201+R201),N201) -> 99.41691766 | O199: =N199*AVERAGEIF(O205:O216,">0")/100 -> 98.98214782 | P199: =N199*(100-AVERAGEIF(O205:O216,">0"))/100 -> 0.4347698382 | Q199: =100-(O199+P199+R199) -> 0.5830823431 | R199: =IF((N201+R201)>100,R201*100/(N201+R201),R201) -> 0 | S199: =IF((S201+W201)>100,S201*100/(S201+W201),S201) -> 99.76532608 | T199: =S199*AVERAGEIF(T205:T216,">0")/100 -> 99.66257963 | U199: =S199*(100-AVERAGEIF(T205:T216,">0"))/100 -> 0.1027464471 | V199: =100-(T199+U199+W199) -> 0.2346739187 | W199: =IF((S201+W201)>100,W201*100/(S201+W201),W201) -> 0 | X199: =IF((X201+AB201)>100,X201*100/(X201+AB201),X201) -> 100 | Y199: =X199*AVERAGEIF(Y205:Y216,">0")/100 -> 99.8762083 | Z199: =X199*(100-AVERAGEIF(Y205:Y216,">0"))/100 -> 0.1237917016 | AA199: =100-(Y199+Z199+AB199) -> 0 | AB199: =IF((X201+AB201)>100,AB201*100/(X201+AB201),AB201) -> 0
C200: 2020 | D200: =IF((D202+H202)>100,D202*100/(D202+H202),D202) -> 99.86893483 | E200: =D200*AVERAGEIF(E205:E216,">0")/100 -> 99.24469216 | F200: =D200*(100-AVERAGEIF(E205:E216,">0"))/100 -> 0.6242426666 | G200: =100-(E200+F200+H200) -> 0.1310651738 | H200: =IF((D202+H202)>100,H202*100/(D202+H202),H202) -> 0 | I200: =IF((I202+M202)>100,I202*100/(I202+M202),I202) -> 99.94555648 | J200: =I200*AVERAGEIF(J205:J216,">0")/100 -> 99.22011318 | K200: =I200*(100-AVERAGEIF(J205:J216,">0"))/100 -> 0.7254433024 | L200: =100-(J200+K200+M200) -> 0.05444352027 | M200: =IF((I202+M202)>100,M202*100/(I202+M202),M202) -> 0 | N200: =IF((N202+R202)>100,N202*100/(N202+R202),N202) -> 100 | O200: =N200*AVERAGEIF(O205:O216,">0")/100 -> 99.56268023 | P200: =N200*(100-AVERAGEIF(O205:O216,">0"))/100 -> 0.4373197726 | Q200: =100-(O200+P200+R200) -> 0 | R200: =IF((N202+R202)>100,R202*100/(N202+R202),R202) -> 0 | S200: =IF((S202+W202)>100,S202*100/(S202+W202),S202) -> 100 | T200: =S200*AVERAGEIF(T205:T216,">0")/100 -> 99.89701187 | U200: =S200*(100-AVERAGEIF(T205:T216,">0"))/100 -> 0.1029881334 | V200: =100-(T200+U200+W200) -> 0 | W200: =IF((S202+W202)>100,W202*100/(S202+W202),W202) -> 0 | X200: =IF((X202+AB202)>100,X202*100/(X202+AB202),X202) -> 99.63303897 | Y200: =X200*AVERAGEIF(Y205:Y216,">0")/100 -> 99.50970154 | Z200: =X200*(100-AVERAGEIF(Y205:Y216,">0"))/100 -> 0.1233374343 | AA200: =100-(Y200+Z200+AB200) -> 0.3669610297 | AB200: =IF((X202+AB202)>100,AB202*100/(X202+AB202),AB202) -> 0
A201: Regression period: | C201: =MinRegYear(C199,C205:C216) -> 2009 | D201: =IF(MAX(C205:C216)-MIN(C205:C216)<5,AVERAGEIF(C205:C216,">0",D205:D216), IF(FORECAST($C201,D$205:D$216,$C$205:$C$216)<0,0, IF(FORECAST($C201,D$205:D$216,$C$205:$C$216)>100,100, FORECAST($C201,D$205:D$216,$C$205:$C$216)))) -> 97.69678769 | H201: =IF(MAX(C205:C216)-MIN(C205:C216)<5,AVERAGEIF(C205:C216,">0",H205:H216), IF(FORECAST($C201,H$205:H$216,$C$205:$C$216)<0,0, IF(FORECAST($C201,H$205:H$216,$C$205:$C$216)>100,100, FORECAST($C201,H$205:H$216,$C$205:$C$216)))) -> 0 | I201: =IF(MAX(C205:C216)-MIN(C205:C216)<5,AVERAGEIF(C205:C216,">0",I205:I216), IF(FORECAST($C201,I$205:I$216,$C$205:$C$216)<0,0, IF(FORECAST($C201,I$205:I$216,$C$205:$C$216)>100,100, FORECAST($C201,I$205:I$216,$C$205:$C$216)))) -> 99.16426932 | M201: =IF(MAX(C205:C216)-MIN(C205:C216)<5,AVERAGEIF(C205:C216,">0",M205:M216), IF(FORECAST($C201,M$205:M$216,$C$205:$C$216)<0,0, IF(FORECAST($C201,M$205:M$216,$C$205:$C$216)>100,100, FORECAST($C201,M$205:M$216,$C$205:$C$216)))) -> 0 | N201: =IF(MAX(C205:C216)-MIN(C205:C216)<5,AVERAGEIF(C205:C216,">0",N205:N216), IF(FORECAST($C201,N$205:N$216,$C$205:$C$216)<0,0, IF(FORECAST($C201,N$205:N$216,$C$205:$C$216)>100,100, FORECAST($C201,N$205:N$216,$C$205:$C$216)))) -> 99.41691766 | R201: =IF(MAX(C205:C216)-MIN(C205:C216)<5,AVERAGEIF(C205:C216,">0",R205:R216), IF(FORECAST($C201,R$205:R$216,$C$205:$C$216)<0,0, IF(FORECAST($C201,R$205:R$216,$C$205:$C$216)>100,100, FORECAST($C201,R$205:R$216,$C$205:$C$216)))) -> 0 | S201: =IF(MAX(C205:C216)-MIN(C205:C216)<5,AVERAGEIF(C205:C216,">0",S205:S216), IF(FORECAST($C201,S$205:S$216,$C$205:$C$216)<0,0, IF(FORECAST($C201,S$205:S$216,$C$205:$C$216)>100,100, FORECAST($C201,S$205:S$216,$C$205:$C$216)))) -> 99.76532608 | W201: =IF(MAX(C205:C216)-MIN(C205:C216)<5,AVERAGEIF(C205:C216,">0",W205:W216), IF(FORECAST($C201,W$205:W$216,$C$205:$C$216)<0,0, IF(FORECAST($C201,W$205:W$216,$C$205:$C$216)>100,100, FORECAST($C201,W$205:W$216,$C$205:$C$216)))) -> 0 | X201: =IF(MAX(C205:C216)-MIN(C205:C216)<5,AVERAGEIF(C205:C216,">0",X205:X216), IF(FORECAST($C201,X$205:X$216,$C$205:$C$216)<0,0, IF(FORECAST($C201,X$205:X$216,$C$205:$C$216)>100,100, FORECAST($C201,X$205:X$216,$C$205:$C$216)))) -> 100 | AB201: =IF(MAX(C205:C216)-MIN(C205:C216)<5,AVERAGEIF(C205:C216,">0",AB205:AB216), IF(FORECAST($C201,AB$205:AB$216,$C$205:$C$216)<0,0, IF(FORECAST($C201,AB$205:AB$216,$C$205:$C$216)>100,100, FORECAST($C201,AB$205:AB$216,$C$205:$C$216)))) -> 0
C202: =MaxRegYear(C200,C205:C216) -> 2020 | D202: =IF(MAX(C205:C216)-MIN(C205:C216)<5,AVERAGEIF(C205:C216,">0",D205:D216), IF(FORECAST($C202,D$205:D$216,$C$205:$C$216)<0,0, IF(FORECAST($C202,D$205:D$216,$C$205:$C$216)>100,100, FORECAST($C202,D$205:D$216,$C$205:$C$216)))) -> 99.86893483 | H202: =IF(MAX(C205:C216)-MIN(C205:C216)<5,AVERAGEIF(C205:C216,">0",H205:H216), IF(FORECAST($C202,H$205:H$216,$C$205:$C$216)<0,0, IF(FORECAST($C202,H$205:H$216,$C$205:$C$216)>100,100, FORECAST($C202,H$205:H$216,$C$205:$C$216)))) -> 0 | I202: =IF(MAX(C205:C216)-MIN(C205:C216)<5,AVERAGEIF(C205:C216,">0",I205:I216), IF(FORECAST($C202,I$205:I$216,$C$205:$C$216)<0,0, IF(FORECAST($C202,I$205:I$216,$C$205:$C$216)>100,100, FORECAST($C202,I$205:I$216,$C$205:$C$216)))) -> 99.94555648 | M202: =IF(MAX(C205:C216)-MIN(C205:C216)<5,AVERAGEIF(C205:C216,">0",M205:M216), IF(FORECAST($C202,M$205:M$216,$C$205:$C$216)<0,0, IF(FORECAST($C202,M$205:M$216,$C$205:$C$216)>100,100, FORECAST($C202,M$205:M$216,$C$205:$C$216)))) -> 0 | N202: =IF(MAX(C205:C216)-MIN(C205:C216)<5,AVERAGEIF(C205:C216,">0",N205:N216), IF(FORECAST($C202,N$205:N$216,$C$205:$C$216)<0,0, IF(FORECAST($C202,N$205:N$216,$C$205:$C$216)>100,100, FORECAST($C202,N$205:N$216,$C$205:$C$216)))) -> 100 | R202: =IF(MAX(C205:C216)-MIN(C205:C216)<5,AVERAGEIF(C205:C216,">0",R205:R216), IF(FORECAST($C202,R$205:R$216,$C$205:$C$216)<0,0, IF(FORECAST($C202,R$205:R$216,$C$205:$C$216)>100,100, FORECAST($C202,R$205:R$216,$C$205:$C$216)))) -> 0 | S202: =IF(MAX(C205:C216)-MIN(C205:C216)<5,AVERAGEIF(C205:C216,">0",S205:S216), IF(FORECAST($C202,S$205:S$216,$C$205:$C$216)<0,0, IF(FORECAST($C202,S$205:S$216,$C$205:$C$216)>100,100, FORECAST($C202,S$205:S$216,$C$205:$C$216)))) -> 100 | W202: =IF(MAX(C205:C216)-MIN(C205:C216)<5,AVERAGEIF(C205:C216,">0",W205:W216), IF(FORECAST($C202,W$205:W$216,$C$205:$C$216)<0,0, IF(FORECAST($C202,W$205:W$216,$C$205:$C$216)>100,100, FORECAST($C202,W$205:W$216,$C$205:$C$216)))) -> 0 | X202: =IF(MAX(C205:C216)-MIN(C205:C216)<5,AVERAGEIF(C205:C216,">0",X205:X216), IF(FORECAST($C202,X$205:X$216,$C$205:$C$216)<0,0, IF(FORECAST($C202,X$205:X$216,$C$205:$C$216)>100,100, FORECAST($C202,X$205:X$216,$C$205:$C$216)))) -> 99.63303897 | AB202: =IF(MAX(C205:C216)-MIN(C205:C216)<5,AVERAGEIF(C205:C216,">0",AB205:AB216), IF(FORECAST($C202,AB$205:AB$216,$C$205:$C$216)<0,0, IF(FORECAST($C202,AB$205:AB$216,$C$205:$C$216)>100,100, FORECAST($C202,AB$205:AB$216,$C$205:$C$216)))) -> 0
B204: Survey | C204: Year | D204: Improved | E204: % Improved < = 30min | H204: Surface water | I204: Improved | J204: % Improved < = 30min | M204: Surface water | N204: Improved | O204: % Improved < = 30min | R204: Surface water | S204: Improved | T204: % Improved < = 30min | W204: Surface water | X204: Improved | Y204: % Improved < = 30min | AB204: Surface water
B205: MICS11 | C205: 2011 | D205: =IF(ISERROR(INDIRECT(CONCATENATE($B205,"!H16"))),"",INDIRECT(CONCATENATE($B205,"!H16"))) -> 97.4095504 | E205: =IF(ISERROR(INDIRECT(CONCATENATE($B205,"!H23"))),"",INDIRECT(CONCATENATE($B205,"!H23"))) -> N/A | H205: =IF(ISERROR(INDIRECT(CONCATENATE($B205,"!H21"))),"",INDIRECT(CONCATENATE($B205,"!H21"))) -> 0 | I205: =IF(ISERROR(INDIRECT(CONCATENATE($B205,"!I16"))),"",INDIRECT(CONCATENATE($B205,"!I16"))) -> 99.05080162 | J205: =IF(ISERROR(INDIRECT(CONCATENATE($B205,"!I23"))),"",INDIRECT(CONCATENATE($B205,"!I23"))) -> N/A | M205: =IF(ISERROR(INDIRECT(CONCATENATE($B205,"!I21"))),"",INDIRECT(CONCATENATE($B205,"!I21"))) -> 0 | N205: =IF(ISERROR(INDIRECT(CONCATENATE($B205,"!J16"))),"",INDIRECT(CONCATENATE($B205,"!J16"))) -> 99.42483653 | O205: =IF(ISERROR(INDIRECT(CONCATENATE($B205,"!J23"))),"",INDIRECT(CONCATENATE($B205,"!J23"))) -> N/A | R205: =IF(ISERROR(INDIRECT(CONCATENATE($B205,"!J21"))),"",INDIRECT(CONCATENATE($B205,"!J21"))) -> 0 | S205: =IF(ISERROR(INDIRECT(CONCATENATE($B205,"!K16"))),"",INDIRECT(CONCATENATE($B205,"!K16"))) -> 99.7626309 | T205: =IF(ISERROR(INDIRECT(CONCATENATE($B205,"!K23"))),"",INDIRECT(CONCATENATE($B205,"!K23"))) -> N/A | W205: =IF(ISERROR(INDIRECT(CONCATENATE($B205,"!K21"))),"",INDIRECT(CONCATENATE($B205,"!K21"))) -> 0 | X205: =IF(ISERROR(INDIRECT(CONCATENATE($B205,"!L16"))),"",INDIRECT(CONCATENATE($B205,"!L16"))) -> 99.90653611 | Y205: =IF(ISERROR(INDIRECT(CONCATENATE($B205,"!L23"))),"",INDIRECT(CONCATENATE($B205,"!L23"))) -> N/A | AB205: =IF(ISERROR(INDIRECT(CONCATENATE($B205,"!L221"))),"",INDIRECT(CONCATENATE($B205,"!L21"))) -> 0
B206: MICS14 | C206: 2014 | D206: 99.707387 | E206: 99.49660076 | H206: 0 | I206: 99.90267972 | J206: 99.70930533 | M206: 0 | N206: 99.85599432 | O206: 99.62354044 | R206: 0 | S206: 99.95818606 | T206: 100 | W206: 0 | X206: 100 | Y206: 99.861595 | AB206: 0
B207: MICS20 | C207: 2020 | D207: 99.52784826 | E207: 99.25327543 | H207: N/A | I207: 99.81779652 | J207: 98.83901772 | M207: N/A | N207: 99.98457081 | O207: 99.50182002 | R207: N/A | S207: 100 | T207: 99.79402373 | W207: N/A | X207: 99.59043214 | Y207: 99.8908216 | AB207: N/A
B218: =CONCATENATE("Urban use of drinking water sources, ",C199,"–",C200) -> Urban use of drinking water sources, 2005–2020 | S218: Data points used for regression
E253: =IF(ISERROR(INDIRECT(CONCATENATE($B253,"!M18"))),"",INDIRECT(CONCATENATE($B253,"!M18"))) ->  | F253: =IF(ISERROR(INDIRECT(CONCATENATE($B253,"!M19"))),"",INDIRECT(CONCATENATE($B253,"!M19"))) ->  | G253: =IF(ISERROR(INDIRECT(CONCATENATE($B253,"!M20"))),"",INDIRECT(CONCATENATE($B253,"!M20"))) ->  | H253: =IF(ISERROR(INDIRECT(CONCATENATE($B253,"!M21"))),"",INDIRECT(CONCATENATE($B253,"!M21"))) ->  | J253: =IF(ISERROR(INDIRECT(CONCATENATE($B253,"!N18"))),"",INDIRECT(CONCATENATE($B253,"!N18"))) ->  | K253: =IF(ISERROR(INDIRECT(CONCATENATE($B253,"!N19"))),"",INDIRECT(CONCATENATE($B253,"!N19"))) ->  | L253: =IF(ISERROR(INDIRECT(CONCATENATE($B253,"!N20"))),"",INDIRECT(CONCATENATE($B253,"!N20"))) ->  | M253: =IF(ISERROR(INDIRECT(CONCATENATE($B253,"!N21"))),"",INDIRECT(CONCATENATE($B253,"!N21"))) ->  | O253: =IF(ISERROR(INDIRECT(CONCATENATE($B253,"!O18"))),"",INDIRECT(CONCATENATE($B253,"!O18"))) ->  | P253: =IF(ISERROR(INDIRECT(CONCATENATE($B253,"!O19"))),"",INDIRECT(CONCATENATE($B253,"!O19"))) ->  | Q253: =IF(ISERROR(INDIRECT(CONCATENATE($B253,"!O20"))),"",INDIRECT(CONCATENATE($B253,"!O20"))) ->  | R253: =IF(ISERROR(INDIRECT(CONCATENATE($B253,"!O21"))),"",INDIRECT(CONCATENATE($B253,"!O21"))) ->  | T253: =IF(ISERROR(INDIRECT(CONCATENATE($B253,"!P18"))),"",INDIRECT(CONCATENATE($B253,"!P18"))) ->  | U253: =IF(ISERROR(INDIRECT(CONCATENATE($B253,"!P19"))),"",INDIRECT(CONCATENATE($B253,"!P19"))) ->  | V253: =IF(ISERROR(INDIRECT(CONCATENATE($B253,"!P20"))),"",INDIRECT(CONCATENATE($B253,"!P20"))) ->  | W253: =IF(ISERROR(INDIRECT(CONCATENATE($B253,"!P21"))),"",INDIRECT(CONCATENATE($B253,"!P21"))) ->  | Y253: =IF(ISERROR(INDIRECT(CONCATENATE($B253,"!Q18"))),"",INDIRECT(CONCATENATE($B253,"!Q18"))) ->  | Z253: =IF(ISERROR(INDIRECT(CONCATENATE($B253,"!Q19"))),"",INDIRECT(CONCATENATE($B253,"!Q19"))) ->  | AA253: =IF(ISERROR(INDIRECT(CONCATENATE($B253,"!Q20"))),"",INDIRECT(CONCATENATE($B253,"!Q20"))) ->  | AB253: =IF(ISERROR(INDIRECT(CONCATENATE($B253,"!Q21"))),"",INDIRECT(CONCATENATE($B253,"!Q1"))) -> 
E254: =IF(ISERROR(INDIRECT(CONCATENATE($B254,"!M18"))),"",INDIRECT(CONCATENATE($B254,"!M18"))) ->  | F254: =IF(ISERROR(INDIRECT(CONCATENATE($B254,"!M19"))),"",INDIRECT(CONCATENATE($B254,"!M19"))) ->  | G254: =IF(ISERROR(INDIRECT(CONCATENATE($B254,"!M20"))),"",INDIRECT(CONCATENATE($B254,"!M20"))) ->  | H254: =IF(ISERROR(INDIRECT(CONCATENATE($B254,"!M21"))),"",INDIRECT(CONCATENATE($B254,"!M21"))) ->  | J254: =IF(ISERROR(INDIRECT(CONCATENATE($B254,"!N18"))),"",INDIRECT(CONCATENATE($B254,"!N18"))) ->  | K254: =IF(ISERROR(INDIRECT(CONCATENATE($B254,"!N19"))),"",INDIRECT(CONCATENATE($B254,"!N19"))) ->  | L254: =IF(ISERROR(INDIRECT(CONCATENATE($B254,"!N20"))),"",INDIRECT(CONCATENATE($B254,"!N20"))) ->  | M254: =IF(ISERROR(INDIRECT(CONCATENATE($B254,"!N21"))),"",INDIRECT(CONCATENATE($B254,"!N21"))) ->  | O254: =IF(ISERROR(INDIRECT(CONCATENATE($B254,"!O18"))),"",INDIRECT(CONCATENATE($B254,"!O18"))) ->  | P254: =IF(ISERROR(INDIRECT(CONCATENATE($B254,"!O19"))),"",INDIRECT(CONCATENATE($B254,"!O19"))) ->  | Q254: =IF(ISERROR(INDIRECT(CONCATENATE($B254,"!O20"))),"",INDIRECT(CONCATENATE($B254,"!O20"))) ->  | R254: =IF(ISERROR(INDIRECT(CONCATENATE($B254,"!O21"))),"",INDIRECT(CONCATENATE($B254,"!O21"))) ->  | T254: =IF(ISERROR(INDIRECT(CONCATENATE($B254,"!P18"))),"",INDIRECT(CONCATENATE($B254,"!P18"))) ->  | U254: =IF(ISERROR(INDIRECT(CONCATENATE($B254,"!P19"))),"",INDIRECT(CONCATENATE($B254,"!P19"))) ->  | V254: =IF(ISERROR(INDIRECT(CONCATENATE($B254,"!P20"))),"",INDIRECT(CONCATENATE($B254,"!P20"))) ->  | W254: =IF(ISERROR(INDIRECT(CONCATENATE($B254,"!P21"))),"",INDIRECT(CONCATENATE($B254,"!P21"))) ->  | Y254: =IF(ISERROR(INDIRECT(CONCATENATE($B254,"!Q18"))),"",INDIRECT(CONCATENATE($B254,"!Q18"))) ->  | Z254: =IF(ISERROR(INDIRECT(CONCATENATE($B254,"!Q19"))),"",INDIRECT(CONCATENATE($B254,"!Q19"))) ->  | AA254: =IF(ISERROR(INDIRECT(CONCATENATE($B254,"!Q20"))),"",INDIRECT(CONCATENATE($B254,"!Q20"))) ->  | AB254: =IF(ISERROR(INDIRECT(CONCATENATE($B254,"!Q21"))),"",INDIRECT(CONCATENATE($B254,"!Q1"))) -> 
E255: =IF(ISERROR(INDIRECT(CONCATENATE($B255,"!M18"))),"",INDIRECT(CONCATENATE($B255,"!M18"))) ->  | F255: =IF(ISERROR(INDIRECT(CONCATENATE($B255,"!M19"))),"",INDIRECT(CONCATENATE($B255,"!M19"))) ->  | G255: =IF(ISERROR(INDIRECT(CONCATENATE($B255,"!M20"))),"",INDIRECT(CONCATENATE($B255,"!M20"))) ->  | H255: =IF(ISERROR(INDIRECT(CONCATENATE($B255,"!M21"))),"",INDIRECT(CONCATENATE($B255,"!M21"))) ->  | J255: =IF(ISERROR(INDIRECT(CONCATENATE($B255,"!N18"))),"",INDIRECT(CONCATENATE($B255,"!N18"))) ->  | K255: =IF(ISERROR(INDIRECT(CONCATENATE($B255,"!N19"))),"",INDIRECT(CONCATENATE($B255,"!N19"))) ->  | L255: =IF(ISERROR(INDIRECT(CONCATENATE($B255,"!N20"))),"",INDIRECT(CONCATENATE($B255,"!N20"))) ->  | M255: =IF(ISERROR(INDIRECT(CONCATENATE($B255,"!N21"))),"",INDIRECT(CONCATENATE($B255,"!N21"))) ->  | O255: =IF(ISERROR(INDIRECT(CONCATENATE($B255,"!O18"))),"",INDIRECT(CONCATENATE($B255,"!O18"))) ->  | P255: =IF(ISERROR(INDIRECT(CONCATENATE($B255,"!O19"))),"",INDIRECT(CONCATENATE($B255,"!O19"))) ->  | Q255: =IF(ISERROR(INDIRECT(CONCATENATE($B255,"!O20"))),"",INDIRECT(CONCATENATE($B255,"!O20"))) ->  | R255: =IF(ISERROR(INDIRECT(CONCATENATE($B255,"!O21"))),"",INDIRECT(CONCATENATE($B255,"!O21"))) ->  | T255: =IF(ISERROR(INDIRECT(CONCATENATE($B255,"!P18"))),"",INDIRECT(CONCATENATE($B255,"!P18"))) ->  | U255: =IF(ISERROR(INDIRECT(CONCATENATE($B255,"!P19"))),"",INDIRECT(CONCATENATE($B255,"!P19"))) ->  | V255: =IF(ISERROR(INDIRECT(CONCATENATE($B255,"!P20"))),"",INDIRECT(CONCATENATE($B255,"!P20"))) ->  | W255: =IF(ISERROR(INDIRECT(CONCATENATE($B255,"!P21"))),"",INDIRECT(CONCATENATE($B255,"!P21"))) ->  | Y255: =IF(ISERROR(INDIRECT(CONCATENATE($B255,"!Q18"))),"",INDIRECT(CONCATENATE($B255,"!Q18"))) ->  | Z255: =IF(ISERROR(INDIRECT(CONCATENATE($B255,"!Q19"))),"",INDIRECT(CONCATENATE($B255,"!Q19"))) ->  | AA255: =IF(ISERROR(INDIRECT(CONCATENATE($B255,"!Q20"))),"",INDIRECT(CONCATENATE($B255,"!Q20"))) ->  | AB255: =IF(ISERROR(INDIRECT(CONCATENATE($B255,"!Q21"))),"",INDIRECT(CONCATENATE($B255,"!Q1"))) -> 
E256: =IF(ISERROR(INDIRECT(CONCATENATE($B256,"!M18"))),"",INDIRECT(CONCATENATE($B256,"!M18"))) ->  | F256: =IF(ISERROR(INDIRECT(CONCATENATE($B256,"!M19"))),"",INDIRECT(CONCATENATE($B256,"!M19"))) ->  | G256: =IF(ISERROR(INDIRECT(CONCATENATE($B256,"!M20"))),"",INDIRECT(CONCATENATE($B256,"!M20"))) ->  | H256: =IF(ISERROR(INDIRECT(CONCATENATE($B256,"!M21"))),"",INDIRECT(CONCATENATE($B256,"!M21"))) ->  | J256: =IF(ISERROR(INDIRECT(CONCATENATE($B256,"!N18"))),"",INDIRECT(CONCATENATE($B256,"!N18"))) ->  | K256: =IF(ISERROR(INDIRECT(CONCATENATE($B256,"!N19"))),"",INDIRECT(CONCATENATE($B256,"!N19"))) ->  | L256: =IF(ISERROR(INDIRECT(CONCATENATE($B256,"!N20"))),"",INDIRECT(CONCATENATE($B256,"!N20"))) ->  | M256: =IF(ISERROR(INDIRECT(CONCATENATE($B256,"!N21"))),"",INDIRECT(CONCATENATE($B256,"!N21"))) ->  | O256: =IF(ISERROR(INDIRECT(CONCATENATE($B256,"!O18"))),"",INDIRECT(CONCATENATE($B256,"!O18"))) ->  | P256: =IF(ISERROR(INDIRECT(CONCATENATE($B256,"!O19"))),"",INDIRECT(CONCATENATE($B256,"!O19"))) ->  | Q256: =IF(ISERROR(INDIRECT(CONCATENATE($B256,"!O20"))),"",INDIRECT(CONCATENATE($B256,"!O20"))) ->  | R256: =IF(ISERROR(INDIRECT(CONCATENATE($B256,"!O21"))),"",INDIRECT(CONCATENATE($B256,"!O21"))) ->  | T256: =IF(ISERROR(INDIRECT(CONCATENATE($B256,"!P18"))),"",INDIRECT(CONCATENATE($B256,"!P18"))) ->  | U256: =IF(ISERROR(INDIRECT(CONCATENATE($B256,"!P19"))),"",INDIRECT(CONCATENATE($B256,"!P19"))) ->  | V256: =IF(ISERROR(INDIRECT(CONCATENATE($B256,"!P20"))),"",INDIRECT(CONCATENATE($B256,"!P20"))) ->  | W256: =IF(ISERROR(INDIRECT(CONCATENATE($B256,"!P21"))),"",INDIRECT(CONCATENATE($B256,"!P21"))) ->  | Y256: =IF(ISERROR(INDIRECT(CONCATENATE($B256,"!Q18"))),"",INDIRECT(CONCATENATE($B256,"!Q18"))) ->  | Z256: =IF(ISERROR(INDIRECT(CONCATENATE($B256,"!Q19"))),"",INDIRECT(CONCATENATE($B256,"!Q19"))) ->  | AA256: =IF(ISERROR(INDIRECT(CONCATENATE($B256,"!Q20"))),"",INDIRECT(CONCATENATE($B256,"!Q20"))) ->  | AB256: =IF(ISERROR(INDIRECT(CONCATENATE($B256,"!Q21"))),"",INDIRECT(CONCATENATE($B256,"!Q1"))) -> 
E257: =IF(ISERROR(INDIRECT(CONCATENATE($B257,"!M18"))),"",INDIRECT(CONCATENATE($B257,"!M18"))) ->  | F257: =IF(ISERROR(INDIRECT(CONCATENATE($B257,"!M19"))),"",INDIRECT(CONCATENATE($B257,"!M19"))) ->  | G257: =IF(ISERROR(INDIRECT(CONCATENATE($B257,"!M20"))),"",INDIRECT(CONCATENATE($B257,"!M20"))) ->  | H257: =IF(ISERROR(INDIRECT(CONCATENATE($B257,"!M21"))),"",INDIRECT(CONCATENATE($B257,"!M21"))) ->  | J257: =IF(ISERROR(INDIRECT(CONCATENATE($B257,"!N18"))),"",INDIRECT(CONCATENATE($B257,"!N18"))) ->  | K257: =IF(ISERROR(INDIRECT(CONCATENATE($B257,"!N19"))),"",INDIRECT(CONCATENATE($B257,"!N19"))) ->  | L257: =IF(ISERROR(INDIRECT(CONCATENATE($B257,"!N20"))),"",INDIRECT(CONCATENATE($B257,"!N20"))) ->  | M257: =IF(ISERROR(INDIRECT(CONCATENATE($B257,"!N21"))),"",INDIRECT(CONCATENATE($B257,"!N21"))) ->  | O257: =IF(ISERROR(INDIRECT(CONCATENATE($B257,"!O18"))),"",INDIRECT(CONCATENATE($B257,"!O18"))) ->  | P257: =IF(ISERROR(INDIRECT(CONCATENATE($B257,"!O19"))),"",INDIRECT(CONCATENATE($B257,"!O19"))) ->  | Q257: =IF(ISERROR(INDIRECT(CONCATENATE($B257,"!O20"))),"",INDIRECT(CONCATENATE($B257,"!O20"))) ->  | R257: =IF(ISERROR(INDIRECT(CONCATENATE($B257,"!O21"))),"",INDIRECT(CONCATENATE($B257,"!O21"))) ->  | T257: =IF(ISERROR(INDIRECT(CONCATENATE($B257,"!P18"))),"",INDIRECT(CONCATENATE($B257,"!P18"))) ->  | U257: =IF(ISERROR(INDIRECT(CONCATENATE($B257,"!P19"))),"",INDIRECT(CONCATENATE($B257,"!P19"))) ->  | V257: =IF(ISERROR(INDIRECT(CONCATENATE($B257,"!P20"))),"",INDIRECT(CONCATENATE($B257,"!P20"))) ->  | W257: =IF(ISERROR(INDIRECT(CONCATENATE($B257,"!P21"))),"",INDIRECT(CONCATENATE($B257,"!P21"))) ->  | Y257: =IF(ISERROR(INDIRECT(CONCATENATE($B257,"!Q18"))),"",INDIRECT(CONCATENATE($B257,"!Q18"))) ->  | Z257: =IF(ISERROR(INDIRECT(CONCATENATE($B257,"!Q19"))),"",INDIRECT(CONCATENATE($B257,"!Q19"))) ->  | AA257: =IF(ISERROR(INDIRECT(CONCATENATE($B257,"!Q20"))),"",INDIRECT(CONCATENATE($B257,"!Q20"))) ->  | AB257: =IF(ISERROR(INDIRECT(CONCATENATE($B257,"!Q21"))),"",INDIRECT(CONCATENATE($B257,"!Q1"))) -> 
A297: RURAL | D297: Poorest | I297: Poor | N297: Middle | S297: Rich | X297: Richest
D298: Improved | E298: Basic | F298: Limited | G298: Unimproved | H298: Surface water | I298: Improved | J298: Basic | K298: Limited | L298: Unimproved | M298: Surface water | N298: Improved | O298: Basic | P298: Limited | Q298: Unimproved | R298: Surface water | S298: Improved | T298: Basic | U298: Limited | V298: Unimproved | W298: Surface water | X298: Improved | Y298: Basic | Z298: Limited | AA298: Unimproved | AB298: Surface water
A299: Forecast period: | C299: 2005 | D299: =IF((D301+H301)>100,D301*100/(D301+H301),D301) -> 99.10854681 | E299: =D299*AVERAGEIF(E305:E316,">0")/100 -> 98.0537246 | F299: =D299*(100-AVERAGEIF(E305:E316,">0"))/100 -> 1.054822217 | G299: =100-(E299+F299+H299) -> 0.8914531873 | H299: =IF((D301+H301)>100,H301*100/(D301+H301),H301) -> 0 | I299: =IF((I301+M301)>100,I301*100/(I301+M301),I301) -> 99.70923113 | J299: =I299*AVERAGEIF(J305:J316,">0")/100 -> 99.14502935 | K299: =I299*(100-AVERAGEIF(J305:J316,">0"))/100 -> 0.5642017796 | L299: =100-(J299+K299+M299) -> 0.2907688671 | M299: =IF((I301+M301)>100,M301*100/(I301+M301),M301) -> 0 | N299: =IF((N301+R301)>100,N301*100/(N301+R301),N301) -> 99.37687192 | O299: =N299*AVERAGEIF(O305:O316,">0")/100 -> 98.80011912 | P299: =N299*(100-AVERAGEIF(O305:O316,">0"))/100 -> 0.5767527986 | Q299: =100-(O299+P299+R299) -> 0.6231280838 | R299: =IF((N301+R301)>100,R301*100/(N301+R301),R301) -> 0 | S299: =IF((S301+W301)>100,S301*100/(S301+W301),S301) -> 99.87562884 | T299: =S299*AVERAGEIF(T305:T316,">0")/100 -> 99.18812039 | U299: =S299*(100-AVERAGEIF(T305:T316,">0"))/100 -> 0.6875084522 | V299: =100-(T299+U299+W299) -> 0.1243711558 | W299: =IF((S301+W301)>100,W301*100/(S301+W301),W301) -> 0 | X299: =IF((X301+AB301)>100,X301*100/(X301+AB301),X301) -> 99.74904392 | Y299: =X299*AVERAGEIF(Y305:Y316,">0")/100 -> 99.11664794 | Z299: =X299*(100-AVERAGEIF(Y305:Y316,">0"))/100 -> 0.6323959767 | AA299: =100-(Y299+Z299+AB299) -> 0.2509560814 | AB299: =IF((X301+AB301)>100,AB301*100/(X301+AB301),AB301) -> 0
C300: 2020 | D300: =IF((D302+H302)>100,D302*100/(D302+H302),D302) -> 99.9166645 | E300: =D300*AVERAGEIF(E305:E316,">0")/100 -> 98.8532414 | F300: =D300*(100-AVERAGEIF(E305:E316,">0"))/100 -> 1.063423095 | G300: =100-(E300+F300+H300) -> 0.08333550285 | H300: =IF((D302+H302)>100,H302*100/(D302+H302),H302) -> 0 | I300: =IF((I302+M302)>100,I302*100/(I302+M302),I302) -> 100 | J300: =I300*AVERAGEIF(J305:J316,">0")/100 -> 99.43415291 | K300: =I300*(100-AVERAGEIF(J305:J316,">0"))/100 -> 0.5658470868 | L300: =100-(J300+K300+M300) -> 0 | M300: =IF((I302+M302)>100,M302*100/(I302+M302),M302) -> 0 | N300: =IF((N302+R302)>100,N302*100/(N302+R302),N302) -> 100 | O300: =N300*AVERAGEIF(O305:O316,">0")/100 -> 99.41963076 | P300: =N300*(100-AVERAGEIF(O305:O316,">0"))/100 -> 0.5803692424 | Q300: =100-(O300+P300+R300) -> 0 | R300: =IF((N302+R302)>100,R302*100/(N302+R302),R302) -> 0 | S300: =IF((S302+W302)>100,S302*100/(S302+W302),S302) -> 99.50148885 | T300: =S300*AVERAGEIF(T305:T316,">0")/100 -> 98.81655585 | U300: =S300*(100-AVERAGEIF(T305:T316,">0"))/100 -> 0.684933005 | V300: =100-(T300+U300+W300) -> 0.4985111492 | W300: =IF((S302+W302)>100,W302*100/(S302+W302),W302) -> 0 | X300: =IF((X302+AB302)>100,X302*100/(X302+AB302),X302) -> 99.4718125 | Y300: =X300*AVERAGEIF(Y305:Y316,">0")/100 -> 98.84117413 | Z300: =X300*(100-AVERAGEIF(Y305:Y316,">0"))/100 -> 0.6306383655 | AA300: =100-(Y300+Z300+AB300) -> 0.5281875035 | AB300: =IF((X302+AB302)>100,AB302*100/(X302+AB302),AB302) -> 0
A301: Regression period: | C301: =MinRegYear(C299,C305:C316) -> 2009 | D301: =IF(MAX(C305:C316)-MIN(C305:C316)<5,AVERAGEIF(C305:C316,">0",D305:D316), IF(FORECAST($C301,D$305:D$316,$C$305:$C$316)<0,0, IF(FORECAST($C301,D$305:D$316,$C$305:$C$316)>100,100, FORECAST($C301,D$305:D$316,$C$305:$C$316)))) -> 99.10854681 | H301: =IF(MAX(C305:C316)-MIN(C305:C316)<5,AVERAGEIF(C305:C316,">0",H305:H316), IF(FORECAST($C301,H$305:H$316,$C$305:$C$316)<0,0, IF(FORECAST($C301,H$305:H$316,$C$305:$C$316)>100,100, FORECAST($C301,H$305:H$316,$C$305:$C$316)))) -> 0 | I301: =IF(MAX(C305:C316)-MIN(C305:C316)<5,AVERAGEIF(C305:C316,">0",I305:I316), IF(FORECAST($C301,I$305:I$316,$C$305:$C$316)<0,0, IF(FORECAST($C301,I$305:I$316,$C$305:$C$316)>100,100, FORECAST($C301,I$305:I$316,$C$305:$C$316)))) -> 99.70923113 | M301: =IF(MAX(C305:C316)-MIN(C305:C316)<5,AVERAGEIF(C305:C316,">0",M305:M316), IF(FORECAST($C301,M$305:M$316,$C$305:$C$316)<0,0, IF(FORECAST($C301,M$305:M$316,$C$305:$C$316)>100,100, FORECAST($C301,M$305:M$316,$C$305:$C$316)))) -> 0 | N301: =IF(MAX(C305:C316)-MIN(C305:C316)<5,AVERAGEIF(C305:C316,">0",N305:N316), IF(FORECAST($C301,N$305:N$316,$C$305:$C$316)<0,0, IF(FORECAST($C301,N$305:N$316,$C$305:$C$316)>100,100, FORECAST($C301,N$305:N$316,$C$305:$C$316)))) -> 99.37687192 | R301: =IF(MAX(C305:C316)-MIN(C305:C316)<5,AVERAGEIF(C305:C316,">0",R305:R316), IF(FORECAST($C301,R$305:R$316,$C$305:$C$316)<0,0, IF(FORECAST($C301,R$305:R$316,$C$305:$C$316)>100,100, FORECAST($C301,R$305:R$316,$C$305:$C$316)))) -> 0 | S301: =IF(MAX(C305:C316)-MIN(C305:C316)<5,AVERAGEIF(C305:C316,">0",S305:S316), IF(FORECAST($C301,S$305:S$316,$C$305:$C$316)<0,0, IF(FORECAST($C301,S$305:S$316,$C$305:$C$316)>100,100, FORECAST($C301,S$305:S$316,$C$305:$C$316)))) -> 99.87562884 | W301: =IF(MAX(C305:C316)-MIN(C305:C316)<5,AVERAGEIF(C305:C316,">0",W305:W316), IF(FORECAST($C301,W$305:W$316,$C$305:$C$316)<0,0, IF(FORECAST($C301,W$305:W$316,$C$305:$C$316)>100,100, FORECAST($C301,W$305:W$316,$C$305:$C$316)))) -> 0 | X301: =IF(MAX(C305:C316)-MIN(C305:C316)<5,AVERAGEIF(C305:C316,">0",X305:X316), IF(FORECAST($C301,X$305:X$316,$C$305:$C$316)<0,0, IF(FORECAST($C301,X$305:X$316,$C$305:$C$316)>100,100, FORECAST($C301,X$305:X$316,$C$305:$C$316)))) -> 99.74904392 | AB301: =IF(MAX(C305:C316)-MIN(C305:C316)<5,AVERAGEIF(C305:C316,">0",AB305:AB316), IF(FORECAST($C301,AB$305:AB$316,$C$305:$C$316)<0,0, IF(FORECAST($C301,AB$305:AB$316,$C$305:$C$316)>100,100, FORECAST($C301,AB$305:AB$316,$C$305:$C$316)))) -> 0
C302: =MaxRegYear(C300,C305:C316) -> 2020 | D302: =IF(MAX(C305:C316)-MIN(C305:C316)<5,AVERAGEIF(C305:C316,">0",D305:D316), IF(FORECAST($C302,D$305:D$316,$C$305:$C$316)<0,0, IF(FORECAST($C302,D$305:D$316,$C$305:$C$316)>100,100, FORECAST($C302,D$305:D$316,$C$305:$C$316)))) -> 99.9166645 | H302: =IF(MAX(C305:C316)-MIN(C305:C316)<5,AVERAGEIF(C305:C316,">0",H305:H316), IF(FORECAST($C302,H$305:H$316,$C$305:$C$316)<0,0, IF(FORECAST($C302,H$305:H$316,$C$305:$C$316)>100,100, FORECAST($C302,H$305:H$316,$C$305:$C$316)))) -> 0 | I302: =IF(MAX(C305:C316)-MIN(C305:C316)<5,AVERAGEIF(C305:C316,">0",I305:I316), IF(FORECAST($C302,I$305:I$316,$C$305:$C$316)<0,0, IF(FORECAST($C302,I$305:I$316,$C$305:$C$316)>100,100, FORECAST($C302,I$305:I$316,$C$305:$C$316)))) -> 100 | M302: =IF(MAX(C305:C316)-MIN(C305:C316)<5,AVERAGEIF(C305:C316,">0",M305:M316), IF(FORECAST($C302,M$305:M$316,$C$305:$C$316)<0,0, IF(FORECAST($C302,M$305:M$316,$C$305:$C$316)>100,100, FORECAST($C302,M$305:M$316,$C$305:$C$316)))) -> 0 | N302: =IF(MAX(C305:C316)-MIN(C305:C316)<5,AVERAGEIF(C305:C316,">0",N305:N316), IF(FORECAST($C302,N$305:N$316,$C$305:$C$316)<0,0, IF(FORECAST($C302,N$305:N$316,$C$305:$C$316)>100,100, FORECAST($C302,N$305:N$316,$C$305:$C$316)))) -> 100 | R302: =IF(MAX(C305:C316)-MIN(C305:C316)<5,AVERAGEIF(C305:C316,">0",R305:R316), IF(FORECAST($C302,R$305:R$316,$C$305:$C$316)<0,0, IF(FORECAST($C302,R$305:R$316,$C$305:$C$316)>100,100, FORECAST($C302,R$305:R$316,$C$305:$C$316)))) -> 0 | S302: =IF(MAX(C305:C316)-MIN(C305:C316)<5,AVERAGEIF(C305:C316,">0",S305:S316), IF(FORECAST($C302,S$305:S$316,$C$305:$C$316)<0,0, IF(FORECAST($C302,S$305:S$316,$C$305:$C$316)>100,100, FORECAST($C302,S$305:S$316,$C$305:$C$316)))) -> 99.50148885 | W302: =IF(MAX(C305:C316)-MIN(C305:C316)<5,AVERAGEIF(C305:C316,">0",W305:W316), IF(FORECAST($C302,W$305:W$316,$C$305:$C$316)<0,0, IF(FORECAST($C302,W$305:W$316,$C$305:$C$316)>100,100, FORECAST($C302,W$305:W$316,$C$305:$C$316)))) -> 0 | X302: =IF(MAX(C305:C316)-MIN(C305:C316)<5,AVERAGEIF(C305:C316,">0",X305:X316), IF(FORECAST($C302,X$305:X$316,$C$305:$C$316)<0,0, IF(FORECAST($C302,X$305:X$316,$C$305:$C$316)>100,100, FORECAST($C302,X$305:X$316,$C$305:$C$316)))) -> 99.4718125 | AB302: =IF(MAX(C305:C316)-MIN(C305:C316)<5,AVERAGEIF(C305:C316,">0",AB305:AB316), IF(FORECAST($C302,AB$305:AB$316,$C$305:$C$316)<0,0, IF(FORECAST($C302,AB$305:AB$316,$C$305:$C$316)>100,100, FORECAST($C302,AB$305:AB$316,$C$305:$C$316)))) -> 0
B304: Survey | C304: Year | D304: Improved | E304: % Improved < = 30min | H304: Surface water | I304: Improved | J304: % Improved < = 30min | M304: Surface water | N304: Improved | O304: % Improved < = 30min | R304: Surface water | S304: Improved | T304: % Improved < = 30min | W304: Surface water | X304: Improved | Y304: % Improved < = 30min | AB304: Surface water
B305: MICS11 | C305: 2011 | D305: =IF(ISERROR(INDIRECT(CONCATENATE($B305,"!M16"))),"",INDIRECT(CONCATENATE($B305,"!M16"))) -> 99.42214831 | E305: =IF(ISERROR(INDIRECT(CONCATENATE($B305,"!M23"))),"",INDIRECT(CONCATENATE($B305,"!M23"))) -> N/A | H305: =IF(ISERROR(INDIRECT(CONCATENATE($B305,"!M21"))),"",INDIRECT(CONCATENATE($B305,"!M21"))) -> 0 | I305: =IF(ISERROR(INDIRECT(CONCATENATE($B305,"!N16"))),"",INDIRECT(CONCATENATE($B305,"!N16"))) -> 99.67862388 | J305: =IF(ISERROR(INDIRECT(CONCATENATE($B305,"!N23"))),"",INDIRECT(CONCATENATE($B305,"!N23"))) -> N/A | M305: =IF(ISERROR(INDIRECT(CONCATENATE($B305,"!N21"))),"",INDIRECT(CONCATENATE($B305,"!N21"))) -> 0 | N305: =IF(ISERROR(INDIRECT(CONCATENATE($B305,"!O16"))),"",INDIRECT(CONCATENATE($B305,"!O16"))) -> 99.48024416 | O305: =IF(ISERROR(INDIRECT(CONCATENATE($B305,"!O23"))),"",INDIRECT(CONCATENATE($B305,"!O23"))) -> N/A | R305: =IF(ISERROR(INDIRECT(CONCATENATE($B305,"!O21"))),"",INDIRECT(CONCATENATE($B305,"!O21"))) -> 0 | S305: =IF(ISERROR(INDIRECT(CONCATENATE($B305,"!P16"))),"",INDIRECT(CONCATENATE($B305,"!P16"))) -> 100 | T305: =IF(ISERROR(INDIRECT(CONCATENATE($B305,"!P23"))),"",INDIRECT(CONCATENATE($B305,"!P23"))) -> N/A | W305: =IF(ISERROR(INDIRECT(CONCATENATE($B305,"!P21"))),"",INDIRECT(CONCATENATE($B305,"!P21"))) -> 0 | X305: =IF(ISERROR(INDIRECT(CONCATENATE($B305,"!Q16"))),"",INDIRECT(CONCATENATE($B305,"!Q16"))) -> 99.79994648 | Y305: =IF(ISERROR(INDIRECT(CONCATENATE($B305,"!Q23"))),"",INDIRECT(CONCATENATE($B305,"!Q23"))) -> N/A | AB305: =IF(ISERROR(INDIRECT(CONCATENATE($B305,"!Q221"))),"",INDIRECT(CONCATENATE($B305,"!Q21"))) -> 0
B306: MICS14 | C306: 2014 | D306: 99.22586652 | E306: 98.53499749 | H306: 0 | I306: 100 | J306: 98.86830583 | M306: 0 | N306: 99.67896711 | O306: 98.83926152 | R306: 0 | S306: 99.4169703 | T306: 98.9422028 | W306: 0 | X306: 99.47106723 | Y306: 98.95451665 | AB306: 0
B307: MICS20 | C307: 2020 | D307: 100 | E307: 99.33638242 | H307: N/A | I307: 100 | J307: 100 | M307: N/A | N307: 100 | O307: 100 | R307: N/A | S307: 99.59768716 | T307: 99.68106804 | W307: N/A | X307: 99.52246663 | Y307: 99.77750934 | AB307: N/A
B318: =CONCATENATE("Rural use of drinking water sources, ",C299,"–",C300) -> Rural use of drinking water sources, 2005–2020 | S318: Data points used for regression

Sheet Sanitation
B4: Summary of trends in use of sanitation facilities by wealth quintile (%)
B5: =IF(ISERROR(INDIRECT(CONCATENATE($B105,"!A2"))),"",INDIRECT(CONCATENATE($B105,"!A2"))) -> State of Palestine
B7: =B118 -> National use of sanitation facilities, 2005–2020 | J7: =B218 -> Urban use of sanitation facilities, 2005–2020 | R7: =B318 -> Rural use of sanitation facilities, 2005–2020
B31: =IF(ISERROR(INDIRECT(CONCATENATE($B105,"!A2"))),"",INDIRECT(CONCATENATE($B105,"!A2"))) -> State of Palestine | F31: Poorest | J31: Poor | N31: Middle | R31: Rich | V31: Richest
F32: Basic | G32: Limited | H32: Unimproved | I32: Open defecation | J32: Basic | K32: Limited | L32: Unimproved | M32: Open defecation | N32: Basic | O32: Limited | P32: Unimproved | Q32: Open defecation | R32: Basic | S32: Limited | T32: Unimproved | U32: Open defecation | V32: Basic | W32: Limited | X32: Unimproved | Y32: Open defecation
B33: NATIONAL | D33: Estimate | E33: =C99 -> 2005 | F33: =E99 -> 91.13088522 | G33: =F99 -> 4.589826635 | H33: 2.135292576 | I33: 2.143995568 | J33: =J99 -> 96.26383462 | K33: =K99 -> 3.559354192 | L33: 0.1601431215 | M33: 0.01666807092 | N33: =O99 -> 96.78152838 | O33: =P99 -> 3.218471619 | P33: 0 | Q33: 0 | R33: =T99 -> 96.71527908 | S33: =U99 -> 3.196948507 | T33: 0.007412563232 | U33: 0.08035985286 | V33: =Y99 -> 97.56341013 | W33: =Z99 -> 2.405160838 | X33: 0.03142903353 | Y33: 0
E34: =C100 -> 2020 | F34: =E100 -> 94.47245652 | G34: 4.758125593 | H34: 0.7694178842 | I34: 0 | J34: =J100 -> 95.6008212 | K34: 3.534839279 | L34: 0.8463380128 | M34: 0.01800151188 | N34: =O100 -> 95.59553861 | O34: 3.179031506 | P34: 1.191681357 | Q34: 0.03374852221 | R34: =T100 -> 95.46381434 | S34: 3.155581017 | T34: 1.380604639 | U34: 0 | V34: =Y100 -> 96.75565399 | W34: 2.385247804 | X34: 0.8590982076 | Y34: 0
B36: URBAN | D36: Estimate | E36: =C199 -> 2005 | F36: =E199 -> 93.77323339 | G36: =F199 -> 5.025583005 | H36: 0.9056410226 | I36: 0.295542583 | J36: =J199 -> 95.97137683 | K36: =K199 -> 3.890379412 | L36: 0.1382437599 | M36: 0 | N36: =O199 -> 96.60357144 | O36: =P199 -> 3.311189657 | P36: 0.05517083807 | Q36: 0.0300680626 | R36: =T199 -> 96.89057357 | S36: =U199 -> 3.081277643 | T36: 0 | U36: 0.02814878978 | V36: =Y199 -> 97.63458406 | W36: =Z199 -> 2.291159658 | X36: 0.07425628311 | Y36: 0
E37: =C200 -> 2020 | F37: =E200 -> 94.02668437 | G37: 5.039166188 | H37: 0.9341494407 | I37: 0 | J37: =J200 -> 95.63965198 | K37: 3.876932325 | L37: 0.4834156931 | M37: 0 | N37: =O200 -> 95.6228131 | O37: 3.277573127 | P37: 1.092669768 | Q37: 0.00694400664 | R37: =T200 -> 95.85246762 | S37: 3.048264188 | T37: 1.099268195 | U37: 0 | V37: =Y200 -> 97.02921054 | W37: 2.276953551 | X37: 0.69383591 | Y37: 0
B39: RURAL | D39: Estimate | E39: =C299 -> 2005 | F39: =E299 -> 79.25892447 | G39: =F299 -> 3.23228265 | H39: 6.85443738 | I39: 10.6543555 | J39: =J299 -> 96.76644189 | K39: =K299 -> 2.534745577 | L39: 0.4143617089 | M39: 0.2844508209 | N39: =O299 -> 96.93885341 | O39: =P299 -> 3.061146586 | P39: 0 | Q39: 0 | R39: =T299 -> 95.96943259 | S39: =U299 -> 2.984651571 | T39: 0.7008489435 | U39: 0.3450668996 | V39: =Y299 -> 97.03461484 | W39: =Z299 -> 2.518117708 | X39: 0.4472674557 | Y39: 0
E40: =C300 -> 2020 | F40: =E300 -> 92.02082608 | G40: 3.752729696 | H40: 4.226444228 | I40: 0 | J40: =J300 -> 95.8400175 | K40: 2.510478382 | L40: 1.540507297 | M40: 0.1089968248 | N40: =O300 -> 95.09498431 | O40: 3.00292067 | P40: 1.902095018 | Q40: 0 | R40: =T300 -> 95.30704565 | S40: 2.964051322 | T40: 1.728903029 | U40: 0 | V40: =Y300 -> 95.98844804 | W40: 2.490968931 | X40: 1.520583025 | Y40: 0
A97: NATIONAL | D97: Poorest | I97: Poor | N97: Middle | S97: Rich | X97: Richest
D98: Improved | E98: Basic | F98: Limited | G98: Unimproved | H98: Open defecation | I98: Improved | J98: Basic | K98: Limited | L98: Unimproved | M98: Open defecation | N98: Improved | O98: Basic | P98: Limited | Q98: Unimproved | R98: Open defecation | S98: Improved | T98: Basic | U98: Limited | V98: Unimproved | W98: Open defecation | X98: Improved | Y98: Basic | Z98: Limited | AA98: Unimproved | AB98: Open defecation
A99: Forecast period: | C99: 2005 | D99: =IF((D101+H101)>100,D101*100/(D101+H101),D101) -> 95.72071186 | E99: =D99*AVERAGEIF(E105:E116,">0")/100 -> 91.13088522 | F99: =D99*(100-AVERAGEIF(E105:E116,">0"))/100 -> 4.589826635 | G99: =100-(E99+F99+H99) -> 2.135292576 | H99: =IF((D101+H101)>100,H101*100/(D101+H101),H101) -> 2.143995568 | I99: =IF((I101+M101)>100,I101*100/(I101+M101),I101) -> 99.82318881 | J99: =I99*AVERAGEIF(J105:J116,">0")/100 -> 96.26383462 | K99: =I99*(100-AVERAGEIF(J105:J116,">0"))/100 -> 3.559354192 | L99: =100-(J99+K99+M99) -> 0.1601431215 | M99: =IF((I101+M101)>100,M101*100/(I101+M101),M101) -> 0.01666807092 | N99: =IF((N101+R101)>100,N101*100/(N101+R101),N101) -> 100 | O99: =N99*AVERAGEIF(O105:O116,">0")/100 -> 96.78152838 | P99: =N99*(100-AVERAGEIF(O105:O116,">0"))/100 -> 3.218471619 | Q99: =100-(O99+P99+R99) -> 0 | R99: =IF((N101+R101)>100,R101*100/(N101+R101),R101) -> 0 | S99: =IF((S101+W101)>100,S101*100/(S101+W101),S101) -> 99.91222758 | T99: =S99*AVERAGEIF(T105:T116,">0")/100 -> 96.71527908 | U99: =S99*(100-AVERAGEIF(T105:T116,">0"))/100 -> 3.196948507 | V99: =100-(T99+U99+W99) -> 0.007412563232 | W99: =IF((S101+W101)>100,W101*100/(S101+W101),W101) -> 0.08035985286 | X99: =IF((X101+AB101)>100,X101*100/(X101+AB101),X101) -> 99.96857097 | Y99: =X99*AVERAGEIF(Y105:Y116,">0")/100 -> 97.56341013 | Z99: =X99*(100-AVERAGEIF(Y105:Y116,">0"))/100 -> 2.405160838 | AA99: =100-(Y99+Z99+AB99) -> 0.03142903353 | AB99: =IF((X101+AB101)>100,AB101*100/(X101+AB101),AB101) -> 0
C100: 2020 | D100: =IF((D102+H102)>100,D102*100/(D102+H102),D102) -> 99.23058212 | E100: =D100*AVERAGEIF(E105:E116,">0")/100 -> 94.47245652 | F100: =D100*(100-AVERAGEIF(E105:E116,">0"))/100 -> 4.758125593 | G100: =100-(E100+F100+H100) -> 0.7694178842 | H100: =IF((D102+H102)>100,H102*100/(D102+H102),H102) -> 0 | I100: =IF((I102+M102)>100,I102*100/(I102+M102),I102) -> 99.13566048 | J100: =I100*AVERAGEIF(J105:J116,">0")/100 -> 95.6008212 | K100: =I100*(100-AVERAGEIF(J105:J116,">0"))/100 -> 3.534839279 | L100: =100-(J100+K100+M100) -> 0.8463380128 | M100: =IF((I102+M102)>100,M102*100/(I102+M102),M102) -> 0.01800151188 | N100: =IF((N102+R102)>100,N102*100/(N102+R102),N102) -> 98.77457012 | O100: =N100*AVERAGEIF(O105:O116,">0")/100 -> 95.59553861 | P100: =N100*(100-AVERAGEIF(O105:O116,">0"))/100 -> 3.179031506 | Q100: =100-(O100+P100+R100) -> 1.191681357 | R100: =IF((N102+R102)>100,R102*100/(N102+R102),R102) -> 0.03374852221 | S100: =IF((S102+W102)>100,S102*100/(S102+W102),S102) -> 98.61939536 | T100: =S100*AVERAGEIF(T105:T116,">0")/100 -> 95.46381434 | U100: =S100*(100-AVERAGEIF(T105:T116,">0"))/100 -> 3.155581017 | V100: =100-(T100+U100+W100) -> 1.380604639 | W100: =IF((S102+W102)>100,W102*100/(S102+W102),W102) -> 0 | X100: =IF((X102+AB102)>100,X102*100/(X102+AB102),X102) -> 99.14090179 | Y100: =X100*AVERAGEIF(Y105:Y116,">0")/100 -> 96.75565399 | Z100: =X100*(100-AVERAGEIF(Y105:Y116,">0"))/100 -> 2.385247804 | AA100: =100-(Y100+Z100+AB100) -> 0.8590982076 | AB100: =IF((X102+AB102)>100,AB102*100/(X102+AB102),AB102) -> 0
A101: Regression period: | C101: =MinRegYear(C99,C105:C116) -> 2009 | D101: =IF(MAX(C105:C116)-MIN(C105:C116)<5,AVERAGEIF(C105:C116,">0",D105:D116), IF(FORECAST($C101,D$105:D$116,$C$105:$C$116)<0,0, IF(FORECAST($C101,D$105:D$116,$C$105:$C$116)>100,100, FORECAST($C101,D$105:D$116,$C$105:$C$116)))) -> 95.72071186 | H101: =IF(MAX(C105:C116)-MIN(C105:C116)<5,AVERAGEIF(C105:C116,">0",H105:H116), IF(FORECAST($C101,H$105:H$116,$C$105:$C$116)<0,0, IF(FORECAST($C101,H$105:H$116,$C$105:$C$116)>100,100, FORECAST($C101,H$105:H$116,$C$105:$C$116)))) -> 2.143995568 | I101: =IF(MAX(C105:C116)-MIN(C105:C116)<5,AVERAGEIF(C105:C116,">0",I105:I116), IF(FORECAST($C101,I$105:I$116,$C$105:$C$116)<0,0, IF(FORECAST($C101,I$105:I$116,$C$105:$C$116)>100,100, FORECAST($C101,I$105:I$116,$C$105:$C$116)))) -> 99.82318881 | M101: =IF(MAX(C105:C116)-MIN(C105:C116)<5,AVERAGEIF(C105:C116,">0",M105:M116), IF(FORECAST($C101,M$105:M$116,$C$105:$C$116)<0,0, IF(FORECAST($C101,M$105:M$116,$C$105:$C$116)>100,100, FORECAST($C101,M$105:M$116,$C$105:$C$116)))) -> 0.01666807092 | N101: =IF(MAX(C105:C116)-MIN(C105:C116)<5,AVERAGEIF(C105:C116,">0",N105:N116), IF(FORECAST($C101,N$105:N$116,$C$105:$C$116)<0,0, IF(FORECAST($C101,N$105:N$116,$C$105:$C$116)>100,100, FORECAST($C101,N$105:N$116,$C$105:$C$116)))) -> 100 | R101: =IF(MAX(C105:C116)-MIN(C105:C116)<5,AVERAGEIF(C105:C116,">0",R105:R116), IF(FORECAST($C101,R$105:R$116,$C$105:$C$116)<0,0, IF(FORECAST($C101,R$105:R$116,$C$105:$C$116)>100,100, FORECAST($C101,R$105:R$116,$C$105:$C$116)))) -> 0 | S101: =IF(MAX(C105:C116)-MIN(C105:C116)<5,AVERAGEIF(C105:C116,">0",S105:S116), IF(FORECAST($C101,S$105:S$116,$C$105:$C$116)<0,0, IF(FORECAST($C101,S$105:S$116,$C$105:$C$116)>100,100, FORECAST($C101,S$105:S$116,$C$105:$C$116)))) -> 99.91222758 | W101: =IF(MAX(C105:C116)-MIN(C105:C116)<5,AVERAGEIF(C105:C116,">0",W105:W116), IF(FORECAST($C101,W$105:W$116,$C$105:$C$116)<0,0, IF(FORECAST($C101,W$105:W$116,$C$105:$C$116)>100,100, FORECAST($C101,W$105:W$116,$C$105:$C$116)))) -> 0.08035985286 | X101: =IF(MAX(C105:C116)-MIN(C105:C116)<5,AVERAGEIF(C105:C116,">0",X105:X116), IF(FORECAST($C101,X$105:X$116,$C$105:$C$116)<0,0, IF(FORECAST($C101,X$105:X$116,$C$105:$C$116)>100,100, FORECAST($C101,X$105:X$116,$C$105:$C$116)))) -> 99.96857097 | AB101: =IF(MAX(C105:C116)-MIN(C105:C116)<5,AVERAGEIF(C105:C116,">0",AB105:AB116), IF(FORECAST($C101,AB$105:AB$116,$C$105:$C$116)<0,0, IF(FORECAST($C101,AB$105:AB$116,$C$105:$C$116)>100,100, FORECAST($C101,AB$105:AB$116,$C$105:$C$116)))) -> 0
C102: =MaxRegYear(C100,C105:C116) -> 2020 | D102: =IF(MAX(C105:C116)-MIN(C105:C116)<5,AVERAGEIF(C105:C116,">0",D105:D116), IF(FORECAST($C102,D$105:D$116,$C$105:$C$116)<0,0, IF(FORECAST($C102,D$105:D$116,$C$105:$C$116)>100,100, FORECAST($C102,D$105:D$116,$C$105:$C$116)))) -> 99.23058212 | H102: =IF(MAX(C105:C116)-MIN(C105:C116)<5,AVERAGEIF(C105:C116,">0",H105:H116), IF(FORECAST($C102,H$105:H$116,$C$105:$C$116)<0,0, IF(FORECAST($C102,H$105:H$116,$C$105:$C$116)>100,100, FORECAST($C102,H$105:H$116,$C$105:$C$116)))) -> 0 | I102: =IF(MAX(C105:C116)-MIN(C105:C116)<5,AVERAGEIF(C105:C116,">0",I105:I116), IF(FORECAST($C102,I$105:I$116,$C$105:$C$116)<0,0, IF(FORECAST($C102,I$105:I$116,$C$105:$C$116)>100,100, FORECAST($C102,I$105:I$116,$C$105:$C$116)))) -> 99.13566048 | M102: =IF(MAX(C105:C116)-MIN(C105:C116)<5,AVERAGEIF(C105:C116,">0",M105:M116), IF(FORECAST($C102,M$105:M$116,$C$105:$C$116)<0,0, IF(FORECAST($C102,M$105:M$116,$C$105:$C$116)>100,100, FORECAST($C102,M$105:M$116,$C$105:$C$116)))) -> 0.01800151188 | N102: =IF(MAX(C105:C116)-MIN(C105:C116)<5,AVERAGEIF(C105:C116,">0",N105:N116), IF(FORECAST($C102,N$105:N$116,$C$105:$C$116)<0,0, IF(FORECAST($C102,N$105:N$116,$C$105:$C$116)>100,100, FORECAST($C102,N$105:N$116,$C$105:$C$116)))) -> 98.77457012 | R102: =IF(MAX(C105:C116)-MIN(C105:C116)<5,AVERAGEIF(C105:C116,">0",R105:R116), IF(FORECAST($C102,R$105:R$116,$C$105:$C$116)<0,0, IF(FORECAST($C102,R$105:R$116,$C$105:$C$116)>100,100, FORECAST($C102,R$105:R$116,$C$105:$C$116)))) -> 0.03374852221 | S102: =IF(MAX(C105:C116)-MIN(C105:C116)<5,AVERAGEIF(C105:C116,">0",S105:S116), IF(FORECAST($C102,S$105:S$116,$C$105:$C$116)<0,0, IF(FORECAST($C102,S$105:S$116,$C$105:$C$116)>100,100, FORECAST($C102,S$105:S$116,$C$105:$C$116)))) -> 98.61939536 | W102: =IF(MAX(C105:C116)-MIN(C105:C116)<5,AVERAGEIF(C105:C116,">0",W105:W116), IF(FORECAST($C102,W$105:W$116,$C$105:$C$116)<0,0, IF(FORECAST($C102,W$105:W$116,$C$105:$C$116)>100,100, FORECAST($C102,W$105:W$116,$C$105:$C$116)))) -> 0 | X102: =IF(MAX(C105:C116)-MIN(C105:C116)<5,AVERAGEIF(C105:C116,">0",X105:X116), IF(FORECAST($C102,X$105:X$116,$C$105:$C$116)<0,0, IF(FORECAST($C102,X$105:X$116,$C$105:$C$116)>100,100, FORECAST($C102,X$105:X$116,$C$105:$C$116)))) -> 99.14090179 | AB102: =IF(MAX(C105:C116)-MIN(C105:C116)<5,AVERAGEIF(C105:C116,">0",AB105:AB116), IF(FORECAST($C102,AB$105:AB$116,$C$105:$C$116)<0,0, IF(FORECAST($C102,AB$105:AB$116,$C$105:$C$116)>100,100, FORECAST($C102,AB$105:AB$116,$C$105:$C$116)))) -> 0
B104: Survey | C104: Year | D104: Improved | E104: Not shared | H104: Open defecation | I104: Improved | J104: Not shared | M104: Open defecation | N104: Improved | O104: Not shared | R104: Open defecation | S104: Improved | T104: Not shared | W104: Open defecation | X104: Improved | Y104: Not shared | AB104: Open defecation
B105: MICS11 | C105: 2011 | D105: =IF(ISERROR(INDIRECT(CONCATENATE($B105,"!C122"))),"",INDIRECT(CONCATENATE($B105,"!C122"))) -> 94.97335715 | E105: =IF(ISERROR(INDIRECT(CONCATENATE($B105,"!C129"))),"",INDIRECT(CONCATENATE($B105,"!C129"))) -> 91.15685577 | H105: =IF(ISERROR(INDIRECT(CONCATENATE($B105,"!C127"))),"",INDIRECT(CONCATENATE($B105,"!C127"))) -> 2.416768436 | I105: =IF(ISERROR(INDIRECT(CONCATENATE($B105,"!D122"))),"",INDIRECT(CONCATENATE($B105,"!D122"))) -> 99.58664532 | J105: =IF(ISERROR(INDIRECT(CONCATENATE($B105,"!D129"))),"",INDIRECT(CONCATENATE($B105,"!D129"))) -> 92.40584385 | M105: =IF(ISERROR(INDIRECT(CONCATENATE($B105,"!D127"))),"",INDIRECT(CONCATENATE($B105,"!D127"))) -> 0.02842663503 | N105: =IF(ISERROR(INDIRECT(CONCATENATE($B105,"!E122"))),"",INDIRECT(CONCATENATE($B105,"!E122"))) -> 99.79231433 | O105: =IF(ISERROR(INDIRECT(CONCATENATE($B105,"!E129"))),"",INDIRECT(CONCATENATE($B105,"!E129"))) -> 91.89721671 | R105: =IF(ISERROR(INDIRECT(CONCATENATE($B105,"!E127"))),"",INDIRECT(CONCATENATE($B105,"!E127"))) -> 0 | S105: =IF(ISERROR(INDIRECT(CONCATENATE($B105,"!F122"))),"",INDIRECT(CONCATENATE($B105,"!F122"))) -> 99.36630684 | T105: =IF(ISERROR(INDIRECT(CONCATENATE($B105,"!F129"))),"",INDIRECT(CONCATENATE($B105,"!F129"))) -> 91.29099317 | W105: =IF(ISERROR(INDIRECT(CONCATENATE($B105,"!F127"))),"",INDIRECT(CONCATENATE($B105,"!F127"))) -> 0.08881878474 | X105: =IF(ISERROR(INDIRECT(CONCATENATE($B105,"!G122"))),"",INDIRECT(CONCATENATE($B105,"!G122"))) -> 99.73523187 | Y105: =IF(ISERROR(INDIRECT(CONCATENATE($B105,"!G129"))),"",INDIRECT(CONCATENATE($B105,"!G129"))) -> 93.00524244 | AB105: =IF(ISERROR(INDIRECT(CONCATENATE($B105,"!G2127"))),"",INDIRECT(CONCATENATE($B105,"!G127"))) -> 0
B106: MICS14 | C106: 2014 | D106: 99.39437684 | E106: 97.30139706 | H106: 0.03781329188 | I106: 99.67798343 | J106: 98.95694122 | M106: 0 | N106: 99.79754884 | O106: 98.98838552 | R106: 0 | S106: 99.79086708 | T106: 99.65538638 | W106: 0 | X106: 99.7166384 | Y106: 99.93980863 | AB106: 0
B107: MICS20 | C107: 2020 | D107: 98.53782565 | E107: 97.15668919 | H107: 0.1591032839 | I107: 99.07989131 | J107: 97.94023891 | M107: 0.02375957202 | N107: 98.69507414 | O107: 99.45898291 | R107: 0.03634456238 | S107: 98.46396519 | T107: 99.45434942 | W107: 0 | X107: 99.09947489 | Y107: 99.83719795 | AB107: 0
B118: =CONCATENATE("National use of sanitation facilities, ",C99,"–",C100) -> National use of sanitation facilities, 2005–2020 | S118: Data points used for regression
A197: URBAN | D197: Poorest | I197: Poor | N197: Middle | S197: Rich | X197: Richest
D198: Improved | E198: Basic | F198: Limited | G198: Unimproved | H198: Open defecation | I198: Improved | J198: Basic | K198: Limited | L198: Unimproved | M198: Open defecation | N198: Improved | O198: Basic | P198: Limited | Q198: Unimproved | R198: Open defecation | S198: Improved | T198: Basic | U198: Limited | V198: Unimproved | W198: Open defecation | X198: Improved | Y198: Basic | Z198: Limited | AA198: Unimproved | AB198: Open defecation
A199: Forecast period: | C199: 2005 | D199: =IF((D201+H201)>100,D201*100/(D201+H201),D201) -> 98.79881639 | E199: =D199*AVERAGEIF(E205:E216,">0")/100 -> 93.77323339 | F199: =D199*(100-AVERAGEIF(E205:E216,">0"))/100 -> 5.025583005 | G199: =100-(E199+F199+H199) -> 0.9056410226 | H199: =IF((D201+H201)>100,H201*100/(D201+H201),H201) -> 0.295542583 | I199: =IF((I201+M201)>100,I201*100/(I201+M201),I201) -> 99.86175624 | J199: =I199*AVERAGEIF(J205:J216,">0")/100 -> 95.97137683 | K199: =I199*(100-AVERAGEIF(J205:J216,">0"))/100 -> 3.890379412 | L199: =100-(J199+K199+M199) -> 0.1382437599 | M199: =IF((I201+M201)>100,M201*100/(I201+M201),M201) -> 0 | N199: =IF((N201+R201)>100,N201*100/(N201+R201),N201) -> 99.9147611 | O199: =N199*AVERAGEIF(O205:O216,">0")/100 -> 96.60357144 | P199: =N199*(100-AVERAGEIF(O205:O216,">0"))/100 -> 3.311189657 | Q199: =100-(O199+P199+R199) -> 0.05517083807 | R199: =IF((N201+R201)>100,R201*100/(N201+R201),R201) -> 0.0300680626 | S199: =IF((S201+W201)>100,S201*100/(S201+W201),S201) -> 99.97185121 | T199: =S199*AVERAGEIF(T205:T216,">0")/100 -> 96.89057357 | U199: =S199*(100-AVERAGEIF(T205:T216,">0"))/100 -> 3.081277643 | V199: =100-(T199+U199+W199) -> 0 | W199: =IF((S201+W201)>100,W201*100/(S201+W201),W201) -> 0.02814878978 | X199: =IF((X201+AB201)>100,X201*100/(X201+AB201),X201) -> 99.92574372 | Y199: =X199*AVERAGEIF(Y205:Y216,">0")/100 -> 97.63458406 | Z199: =X199*(100-AVERAGEIF(Y205:Y216,">0"))/100 -> 2.291159658 | AA199: =100-(Y199+Z199+AB199) -> 0.07425628311 | AB199: =IF((X201+AB201)>100,AB201*100/(X201+AB201),AB201) -> 0
C200: 2020 | D200: =IF((D202+H202)>100,D202*100/(D202+H202),D202) -> 99.06585056 | E200: =D200*AVERAGEIF(E205:E216,">0")/100 -> 94.02668437 | F200: =D200*(100-AVERAGEIF(E205:E216,">0"))/100 -> 5.039166188 | G200: =100-(E200+F200+H200) -> 0.9341494407 | H200: =IF((D202+H202)>100,H202*100/(D202+H202),H202) -> 0 | I200: =IF((I202+M202)>100,I202*100/(I202+M202),I202) -> 99.51658431 | J200: =I200*AVERAGEIF(J205:J216,">0")/100 -> 95.63965198 | K200: =I200*(100-AVERAGEIF(J205:J216,">0"))/100 -> 3.876932325 | L200: =100-(J200+K200+M200) -> 0.4834156931 | M200: =IF((I202+M202)>100,M202*100/(I202+M202),M202) -> 0 | N200: =IF((N202+R202)>100,N202*100/(N202+R202),N202) -> 98.90038623 | O200: =N200*AVERAGEIF(O205:O216,">0")/100 -> 95.6228131 | P200: =N200*(100-AVERAGEIF(O205:O216,">0"))/100 -> 3.277573127 | Q200: =100-(O200+P200+R200) -> 1.092669768 | R200: =IF((N202+R202)>100,R202*100/(N202+R202),R202) -> 0.00694400664 | S200: =IF((S202+W202)>100,S202*100/(S202+W202),S202) -> 98.90073181 | T200: =S200*AVERAGEIF(T205:T216,">0")/100 -> 95.85246762 | U200: =S200*(100-AVERAGEIF(T205:T216,">0"))/100 -> 3.048264188 | V200: =100-(T200+U200+W200) -> 1.099268195 | W200: =IF((S202+W202)>100,W202*100/(S202+W202),W202) -> 0 | X200: =IF((X202+AB202)>100,X202*100/(X202+AB202),X202) -> 99.30616409 | Y200: =X200*AVERAGEIF(Y205:Y216,">0")/100 -> 97.02921054 | Z200: =X200*(100-AVERAGEIF(Y205:Y216,">0"))/100 -> 2.276953551 | AA200: =100-(Y200+Z200+AB200) -> 0.69383591 | AB200: =IF((X202+AB202)>100,AB202*100/(X202+AB202),AB202) -> 0
A201: Regression period: | C201: =MinRegYear(C199,C205:C216) -> 2009 | D201: =IF(MAX(C205:C216)-MIN(C205:C216)<5,AVERAGEIF(C205:C216,">0",D205:D216), IF(FORECAST($C201,D$205:D$216,$C$205:$C$216)<0,0, IF(FORECAST($C201,D$205:D$216,$C$205:$C$216)>100,100, FORECAST($C201,D$205:D$216,$C$205:$C$216)))) -> 98.79881639 | H201: =IF(MAX(C205:C216)-MIN(C205:C216)<5,AVERAGEIF(C205:C216,">0",H205:H216), IF(FORECAST($C201,H$205:H$216,$C$205:$C$216)<0,0, IF(FORECAST($C201,H$205:H$216,$C$205:$C$216)>100,100, FORECAST($C201,H$205:H$216,$C$205:$C$216)))) -> 0.295542583 | I201: =IF(MAX(C205:C216)-MIN(C205:C216)<5,AVERAGEIF(C205:C216,">0",I205:I216), IF(FORECAST($C201,I$205:I$216,$C$205:$C$216)<0,0, IF(FORECAST($C201,I$205:I$216,$C$205:$C$216)>100,100, FORECAST($C201,I$205:I$216,$C$205:$C$216)))) -> 99.86175624 | M201: =IF(MAX(C205:C216)-MIN(C205:C216)<5,AVERAGEIF(C205:C216,">0",M205:M216), IF(FORECAST($C201,M$205:M$216,$C$205:$C$216)<0,0, IF(FORECAST($C201,M$205:M$216,$C$205:$C$216)>100,100, FORECAST($C201,M$205:M$216,$C$205:$C$216)))) -> 0 | N201: =IF(MAX(C205:C216)-MIN(C205:C216)<5,AVERAGEIF(C205:C216,">0",N205:N216), IF(FORECAST($C201,N$205:N$216,$C$205:$C$216)<0,0, IF(FORECAST($C201,N$205:N$216,$C$205:$C$216)>100,100, FORECAST($C201,N$205:N$216,$C$205:$C$216)))) -> 99.9147611 | R201: =IF(MAX(C205:C216)-MIN(C205:C216)<5,AVERAGEIF(C205:C216,">0",R205:R216), IF(FORECAST($C201,R$205:R$216,$C$205:$C$216)<0,0, IF(FORECAST($C201,R$205:R$216,$C$205:$C$216)>100,100, FORECAST($C201,R$205:R$216,$C$205:$C$216)))) -> 0.0300680626 | S201: =IF(MAX(C205:C216)-MIN(C205:C216)<5,AVERAGEIF(C205:C216,">0",S205:S216), IF(FORECAST($C201,S$205:S$216,$C$205:$C$216)<0,0, IF(FORECAST($C201,S$205:S$216,$C$205:$C$216)>100,100, FORECAST($C201,S$205:S$216,$C$205:$C$216)))) -> 100 | W201: =IF(MAX(C205:C216)-MIN(C205:C216)<5,AVERAGEIF(C205:C216,">0",W205:W216), IF(FORECAST($C201,W$205:W$216,$C$205:$C$216)<0,0, IF(FORECAST($C201,W$205:W$216,$C$205:$C$216)>100,100, FORECAST($C201,W$205:W$216,$C$205:$C$216)))) -> 0.02815671556 | X201: =IF(MAX(C205:C216)-MIN(C205:C216)<5,AVERAGEIF(C205:C216,">0",X205:X216), IF(FORECAST($C201,X$205:X$216,$C$205:$C$216)<0,0, IF(FORECAST($C201,X$205:X$216,$C$205:$C$216)>100,100, FORECAST($C201,X$205:X$216,$C$205:$C$216)))) -> 99.92574372 | AB201: =IF(MAX(C205:C216)-MIN(C205:C216)<5,AVERAGEIF(C205:C216,">0",AB205:AB216), IF(FORECAST($C201,AB$205:AB$216,$C$205:$C$216)<0,0, IF(FORECAST($C201,AB$205:AB$216,$C$205:$C$216)>100,100, FORECAST($C201,AB$205:AB$216,$C$205:$C$216)))) -> 0
C202: =MaxRegYear(C200,C205:C216) -> 2020 | D202: =IF(MAX(C205:C216)-MIN(C205:C216)<5,AVERAGEIF(C205:C216,">0",D205:D216), IF(FORECAST($C202,D$205:D$216,$C$205:$C$216)<0,0, IF(FORECAST($C202,D$205:D$216,$C$205:$C$216)>100,100, FORECAST($C202,D$205:D$216,$C$205:$C$216)))) -> 99.06585056 | H202: =IF(MAX(C205:C216)-MIN(C205:C216)<5,AVERAGEIF(C205:C216,">0",H205:H216), IF(FORECAST($C202,H$205:H$216,$C$205:$C$216)<0,0, IF(FORECAST($C202,H$205:H$216,$C$205:$C$216)>100,100, FORECAST($C202,H$205:H$216,$C$205:$C$216)))) -> 0 | I202: =IF(MAX(C205:C216)-MIN(C205:C216)<5,AVERAGEIF(C205:C216,">0",I205:I216), IF(FORECAST($C202,I$205:I$216,$C$205:$C$216)<0,0, IF(FORECAST($C202,I$205:I$216,$C$205:$C$216)>100,100, FORECAST($C202,I$205:I$216,$C$205:$C$216)))) -> 99.51658431 | M202: =IF(MAX(C205:C216)-MIN(C205:C216)<5,AVERAGEIF(C205:C216,">0",M205:M216), IF(FORECAST($C202,M$205:M$216,$C$205:$C$216)<0,0, IF(FORECAST($C202,M$205:M$216,$C$205:$C$216)>100,100, FORECAST($C202,M$205:M$216,$C$205:$C$216)))) -> 0 | N202: =IF(MAX(C205:C216)-MIN(C205:C216)<5,AVERAGEIF(C205:C216,">0",N205:N216), IF(FORECAST($C202,N$205:N$216,$C$205:$C$216)<0,0, IF(FORECAST($C202,N$205:N$216,$C$205:$C$216)>100,100, FORECAST($C202,N$205:N$216,$C$205:$C$216)))) -> 98.90038623 | R202: =IF(MAX(C205:C216)-MIN(C205:C216)<5,AVERAGEIF(C205:C216,">0",R205:R216), IF(FORECAST($C202,R$205:R$216,$C$205:$C$216)<0,0, IF(FORECAST($C202,R$205:R$216,$C$205:$C$216)>100,100, FORECAST($C202,R$205:R$216,$C$205:$C$216)))) -> 0.00694400664 | S202: =IF(MAX(C205:C216)-MIN(C205:C216)<5,AVERAGEIF(C205:C216,">0",S205:S216), IF(FORECAST($C202,S$205:S$216,$C$205:$C$216)<0,0, IF(FORECAST($C202,S$205:S$216,$C$205:$C$216)>100,100, FORECAST($C202,S$205:S$216,$C$205:$C$216)))) -> 98.90073181 | W202: =IF(MAX(C205:C216)-MIN(C205:C216)<5,AVERAGEIF(C205:C216,">0",W205:W216), IF(FORECAST($C202,W$205:W$216,$C$205:$C$216)<0,0, IF(FORECAST($C202,W$205:W$216,$C$205:$C$216)>100,100, FORECAST($C202,W$205:W$216,$C$205:$C$216)))) -> 0 | X202: =IF(MAX(C205:C216)-MIN(C205:C216)<5,AVERAGEIF(C205:C216,">0",X205:X216), IF(FORECAST($C202,X$205:X$216,$C$205:$C$216)<0,0, IF(FORECAST($C202,X$205:X$216,$C$205:$C$216)>100,100, FORECAST($C202,X$205:X$216,$C$205:$C$216)))) -> 99.30616409 | AB202: =IF(MAX(C205:C216)-MIN(C205:C216)<5,AVERAGEIF(C205:C216,">0",AB205:AB216), IF(FORECAST($C202,AB$205:AB$216,$C$205:$C$216)<0,0, IF(FORECAST($C202,AB$205:AB$216,$C$205:$C$216)>100,100, FORECAST($C202,AB$205:AB$216,$C$205:$C$216)))) -> 0
B204: Survey | C204: Year | D204: Improved | E204: Not shared | H204: Open defecation | I204: Improved | J204: Not shared | M204: Open defecation | N204: Improved | O204: Not shared | R204: Open defecation | S204: Improved | T204: Not shared | W204: Open defecation | X204: Improved | Y204: Not shared | AB204: Open defecation
B205: MICS11 | C205: 2011 | D205: =IF(ISERROR(INDIRECT(CONCATENATE($B205,"!H122"))),"",INDIRECT(CONCATENATE($B205,"!H122"))) -> 98.33857143 | E205: =IF(ISERROR(INDIRECT(CONCATENATE($B205,"!H129"))),"",INDIRECT(CONCATENATE($B205,"!H129"))) -> 90.58250008 | H205: =IF(ISERROR(INDIRECT(CONCATENATE($B205,"!H127"))),"",INDIRECT(CONCATENATE($B205,"!H127"))) -> 0.3266523286 | I205: =IF(ISERROR(INDIRECT(CONCATENATE($B205,"!I122"))),"",INDIRECT(CONCATENATE($B205,"!I122"))) -> 99.71571196 | J205: =IF(ISERROR(INDIRECT(CONCATENATE($B205,"!I129"))),"",INDIRECT(CONCATENATE($B205,"!I129"))) -> 91.91234003 | M205: =IF(ISERROR(INDIRECT(CONCATENATE($B205,"!I127"))),"",INDIRECT(CONCATENATE($B205,"!I127"))) -> 0 | N205: =IF(ISERROR(INDIRECT(CONCATENATE($B205,"!J122"))),"",INDIRECT(CONCATENATE($B205,"!J122"))) -> 99.711731 | O205: =IF(ISERROR(INDIRECT(CONCATENATE($B205,"!J129"))),"",INDIRECT(CONCATENATE($B205,"!J129"))) -> 91.39124599 | R205: =IF(ISERROR(INDIRECT(CONCATENATE($B205,"!J127"))),"",INDIRECT(CONCATENATE($B205,"!J127"))) -> 0.03890177417 | S205: =IF(ISERROR(INDIRECT(CONCATENATE($B205,"!K122"))),"",INDIRECT(CONCATENATE($B205,"!K122"))) -> 99.79116767 | T205: =IF(ISERROR(INDIRECT(CONCATENATE($B205,"!K129"))),"",INDIRECT(CONCATENATE($B205,"!K129"))) -> 91.71206058 | W205: =IF(ISERROR(INDIRECT(CONCATENATE($B205,"!K127"))),"",INDIRECT(CONCATENATE($B205,"!K127"))) -> 0.03112058035 | X205: =IF(ISERROR(INDIRECT(CONCATENATE($B205,"!L122"))),"",INDIRECT(CONCATENATE($B205,"!L122"))) -> 99.82931467 | Y205: =IF(ISERROR(INDIRECT(CONCATENATE($B205,"!L129"))),"",INDIRECT(CONCATENATE($B205,"!L129"))) -> 93.31235329 | AB205: =IF(ISERROR(INDIRECT(CONCATENATE($B205,"!L2127"))),"",INDIRECT(CONCATENATE($B205,"!L127"))) -> 0
B206: MICS14 | C206: 2014 | D206: 99.68339051 | E206: 96.90299309 | H206: 0 | I206: 99.82978852 | J206: 98.87931178 | M206: 0 | N206: 99.48157906 | O206: 99.29407817 | R206: 0 | S206: 99.84848565 | T206: 99.6981961 | W206: 0 | X206: 99.61978393 | Y206: 100 | AB206: 0
B207: MICS20 | C207: 2020 | D207: 98.81145224 | E207: 97.2544566 | H207: 0 | I207: 99.47494143 | J207: 97.521053 | M207: 0 | N207: 98.89108707 | O207: 99.37263238 | R207: 0.01346304933 | S207: 98.81900951 | T207: 99.34330763 | W207: 0 | X207: 99.31427499 | Y207: 99.80905995 | AB207: 0
B218: =CONCATENATE("Urban use of sanitation facilities, ",C199,"–",C200) -> Urban use of sanitation facilities, 2005–2020 | S218: Data points used for regression
A297: RURAL | D297: Poorest | I297: Poor | N297: Middle | S297: Rich | X297: Richest
D298: Improved | E298: Basic | F298: Limited | G298: Unimproved | H298: Open defecation | I298: Improved | J298: Basic | K298: Limited | L298: Unimproved | M298: Open defecation | N298: Improved | O298: Basic | P298: Limited | Q298: Unimproved | R298: Open defecation | S298: Improved | T298: Basic | U298: Limited | V298: Unimproved | W298: Open defecation | X298: Improved | Y298: Basic | Z298: Limited | AA298: Unimproved | AB298: Open defecation
A299: Forecast period: | C299: 2005 | D299: =IF((D301+H301)>100,D301*100/(D301+H301),D301) -> 82.49120712 | E299: =D299*AVERAGEIF(E305:E316,">0")/100 -> 79.25892447 | F299: =D299*(100-AVERAGEIF(E305:E316,">0"))/100 -> 3.23228265 | G299: =100-(E299+F299+H299) -> 6.85443738 | H299: =IF((D301+H301)>100,H301*100/(D301+H301),H301) -> 10.6543555 | I299: =IF((I301+M301)>100,I301*100/(I301+M301),I301) -> 99.30118747 | J299: =I299*AVERAGEIF(J305:J316,">0")/100 -> 96.76644189 | K299: =I299*(100-AVERAGEIF(J305:J316,">0"))/100 -> 2.534745577 | L299: =100-(J299+K299+M299) -> 0.4143617089 | M299: =IF((I301+M301)>100,M301*100/(I301+M301),M301) -> 0.2844508209 | N299: =IF((N301+R301)>100,N301*100/(N301+R301),N301) -> 100 | O299: =N299*AVERAGEIF(O305:O316,">0")/100 -> 96.93885341 | P299: =N299*(100-AVERAGEIF(O305:O316,">0"))/100 -> 3.061146586 | Q299: =100-(O299+P299+R299) -> 0 | R299: =IF((N301+R301)>100,R301*100/(N301+R301),R301) -> 0 | S299: =IF((S301+W301)>100,S301*100/(S301+W301),S301) -> 98.95408416 | T299: =S299*AVERAGEIF(T305:T316,">0")/100 -> 95.96943259 | U299: =S299*(100-AVERAGEIF(T305:T316,">0"))/100 -> 2.984651571 | V299: =100-(T299+U299+W299) -> 0.7008489435 | W299: =IF((S301+W301)>100,W301*100/(S301+W301),W301) -> 0.3450668996 | X299: =IF((X301+AB301)>100,X301*100/(X301+AB301),X301) -> 99.55273254 | Y299: =X299*AVERAGEIF(Y305:Y316,">0")/100 -> 97.03461484 | Z299: =X299*(100-AVERAGEIF(Y305:Y316,">0"))/100 -> 2.518117708 | AA299: =100-(Y299+Z299+AB299) -> 0.4472674557 | AB299: =IF((X301+AB301)>100,AB301*100/(X301+AB301),AB301) -> 0
C300: 2020 | D300: =IF((D302+H302)>100,D302*100/(D302+H302),D302) -> 95.77355577 | E300: =D300*AVERAGEIF(E305:E316,">0")/100 -> 92.02082608 | F300: =D300*(100-AVERAGEIF(E305:E316,">0"))/100 -> 3.752729696 | G300: =100-(E300+F300+H300) -> 4.226444228 | H300: =IF((D302+H302)>100,H302*100/(D302+H302),H302) -> 0 | I300: =IF((I302+M302)>100,I302*100/(I302+M302),I302) -> 98.35049588 | J300: =I300*AVERAGEIF(J305:J316,">0")/100 -> 95.8400175 | K300: =I300*(100-AVERAGEIF(J305:J316,">0"))/100 -> 2.510478382 | L300: =100-(J300+K300+M300) -> 1.540507297 | M300: =IF((I302+M302)>100,M302*100/(I302+M302),M302) -> 0.1089968248 | N300: =IF((N302+R302)>100,N302*100/(N302+R302),N302) -> 98.09790498 | O300: =N300*AVERAGEIF(O305:O316,">0")/100 -> 95.09498431 | P300: =N300*(100-AVERAGEIF(O305:O316,">0"))/100 -> 3.00292067 | Q300: =100-(O300+P300+R300) -> 1.902095018 | R300: =IF((N302+R302)>100,R302*100/(N302+R302),R302) -> 0 | S300: =IF((S302+W302)>100,S302*100/(S302+W302),S302) -> 98.27109697 | T300: =S300*AVERAGEIF(T305:T316,">0")/100 -> 95.30704565 | U300: =S300*(100-AVERAGEIF(T305:T316,">0"))/100 -> 2.964051322 | V300: =100-(T300+U300+W300) -> 1.728903029 | W300: =IF((S302+W302)>100,W302*100/(S302+W302),W302) -> 0 | X300: =IF((X302+AB302)>100,X302*100/(X302+AB302),X302) -> 98.47941697 | Y300: =X300*AVERAGEIF(Y305:Y316,">0")/100 -> 95.98844804 | Z300: =X300*(100-AVERAGEIF(Y305:Y316,">0"))/100 -> 2.490968931 | AA300: =100-(Y300+Z300+AB300) -> 1.520583025 | AB300: =IF((X302+AB302)>100,AB302*100/(X302+AB302),AB302) -> 0
A301: Regression period: | C301: =MinRegYear(C299,C305:C316) -> 2009 | D301: =IF(MAX(C305:C316)-MIN(C305:C316)<5,AVERAGEIF(C305:C316,">0",D305:D316), IF(FORECAST($C301,D$305:D$316,$C$305:$C$316)<0,0, IF(FORECAST($C301,D$305:D$316,$C$305:$C$316)>100,100, FORECAST($C301,D$305:D$316,$C$305:$C$316)))) -> 82.49120712 | H301: =IF(MAX(C305:C316)-MIN(C305:C316)<5,AVERAGEIF(C305:C316,">0",H305:H316), IF(FORECAST($C301,H$305:H$316,$C$305:$C$316)<0,0, IF(FORECAST($C301,H$305:H$316,$C$305:$C$316)>100,100, FORECAST($C301,H$305:H$316,$C$305:$C$316)))) -> 10.6543555 | I301: =IF(MAX(C305:C316)-MIN(C305:C316)<5,AVERAGEIF(C305:C316,">0",I305:I316), IF(FORECAST($C301,I$305:I$316,$C$305:$C$316)<0,0, IF(FORECAST($C301,I$305:I$316,$C$305:$C$316)>100,100, FORECAST($C301,I$305:I$316,$C$305:$C$316)))) -> 99.30118747 | M301: =IF(MAX(C305:C316)-MIN(C305:C316)<5,AVERAGEIF(C305:C316,">0",M305:M316), IF(FORECAST($C301,M$305:M$316,$C$305:$C$316)<0,0, IF(FORECAST($C301,M$305:M$316,$C$305:$C$316)>100,100, FORECAST($C301,M$305:M$316,$C$305:$C$316)))) -> 0.2844508209 | N301: =IF(MAX(C305:C316)-MIN(C305:C316)<5,AVERAGEIF(C305:C316,">0",N305:N316), IF(FORECAST($C301,N$305:N$316,$C$305:$C$316)<0,0, IF(FORECAST($C301,N$305:N$316,$C$305:$C$316)>100,100, FORECAST($C301,N$305:N$316,$C$305:$C$316)))) -> 100 | R301: =IF(MAX(C305:C316)-MIN(C305:C316)<5,AVERAGEIF(C305:C316,">0",R305:R316), IF(FORECAST($C301,R$305:R$316,$C$305:$C$316)<0,0, IF(FORECAST($C301,R$305:R$316,$C$305:$C$316)>100,100, FORECAST($C301,R$305:R$316,$C$305:$C$316)))) -> 0 | S301: =IF(MAX(C305:C316)-MIN(C305:C316)<5,AVERAGEIF(C305:C316,">0",S305:S316), IF(FORECAST($C301,S$305:S$316,$C$305:$C$316)<0,0, IF(FORECAST($C301,S$305:S$316,$C$305:$C$316)>100,100, FORECAST($C301,S$305:S$316,$C$305:$C$316)))) -> 98.95408416 | W301: =IF(MAX(C305:C316)-MIN(C305:C316)<5,AVERAGEIF(C305:C316,">0",W305:W316), IF(FORECAST($C301,W$305:W$316,$C$305:$C$316)<0,0, IF(FORECAST($C301,W$305:W$316,$C$305:$C$316)>100,100, FORECAST($C301,W$305:W$316,$C$305:$C$316)))) -> 0.3450668996 | X301: =IF(MAX(C305:C316)-MIN(C305:C316)<5,AVERAGEIF(C305:C316,">0",X305:X316), IF(FORECAST($C301,X$305:X$316,$C$305:$C$316)<0,0, IF(FORECAST($C301,X$305:X$316,$C$305:$C$316)>100,100, FORECAST($C301,X$305:X$316,$C$305:$C$316)))) -> 99.55273254 | AB301: =IF(MAX(C305:C316)-MIN(C305:C316)<5,AVERAGEIF(C305:C316,">0",AB305:AB316), IF(FORECAST($C301,AB$305:AB$316,$C$305:$C$316)<0,0, IF(FORECAST($C301,AB$305:AB$316,$C$305:$C$316)>100,100, FORECAST($C301,AB$305:AB$316,$C$305:$C$316)))) -> 0
C302: =MaxRegYear(C300,C305:C316) -> 2020 | D302: =IF(MAX(C305:C316)-MIN(C305:C316)<5,AVERAGEIF(C305:C316,">0",D305:D316), IF(FORECAST($C302,D$305:D$316,$C$305:$C$316)<0,0, IF(FORECAST($C302,D$305:D$316,$C$305:$C$316)>100,100, FORECAST($C302,D$305:D$316,$C$305:$C$316)))) -> 95.77355577 | H302: =IF(MAX(C305:C316)-MIN(C305:C316)<5,AVERAGEIF(C305:C316,">0",H305:H316), IF(FORECAST($C302,H$305:H$316,$C$305:$C$316)<0,0, IF(FORECAST($C302,H$305:H$316,$C$305:$C$316)>100,100, FORECAST($C302,H$305:H$316,$C$305:$C$316)))) -> 0 | I302: =IF(MAX(C305:C316)-MIN(C305:C316)<5,AVERAGEIF(C305:C316,">0",I305:I316), IF(FORECAST($C302,I$305:I$316,$C$305:$C$316)<0,0, IF(FORECAST($C302,I$305:I$316,$C$305:$C$316)>100,100, FORECAST($C302,I$305:I$316,$C$305:$C$316)))) -> 98.35049588 | M302: =IF(MAX(C305:C316)-MIN(C305:C316)<5,AVERAGEIF(C305:C316,">0",M305:M316), IF(FORECAST($C302,M$305:M$316,$C$305:$C$316)<0,0, IF(FORECAST($C302,M$305:M$316,$C$305:$C$316)>100,100, FORECAST($C302,M$305:M$316,$C$305:$C$316)))) -> 0.1089968248 | N302: =IF(MAX(C305:C316)-MIN(C305:C316)<5,AVERAGEIF(C305:C316,">0",N305:N316), IF(FORECAST($C302,N$305:N$316,$C$305:$C$316)<0,0, IF(FORECAST($C302,N$305:N$316,$C$305:$C$316)>100,100, FORECAST($C302,N$305:N$316,$C$305:$C$316)))) -> 98.09790498 | R302: =IF(MAX(C305:C316)-MIN(C305:C316)<5,AVERAGEIF(C305:C316,">0",R305:R316), IF(FORECAST($C302,R$305:R$316,$C$305:$C$316)<0,0, IF(FORECAST($C302,R$305:R$316,$C$305:$C$316)>100,100, FORECAST($C302,R$305:R$316,$C$305:$C$316)))) -> 0 | S302: =IF(MAX(C305:C316)-MIN(C305:C316)<5,AVERAGEIF(C305:C316,">0",S305:S316), IF(FORECAST($C302,S$305:S$316,$C$305:$C$316)<0,0, IF(FORECAST($C302,S$305:S$316,$C$305:$C$316)>100,100, FORECAST($C302,S$305:S$316,$C$305:$C$316)))) -> 98.27109697 | W302: =IF(MAX(C305:C316)-MIN(C305:C316)<5,AVERAGEIF(C305:C316,">0",W305:W316), IF(FORECAST($C302,W$305:W$316,$C$305:$C$316)<0,0, IF(FORECAST($C302,W$305:W$316,$C$305:$C$316)>100,100, FORECAST($C302,W$305:W$316,$C$305:$C$316)))) -> 0 | X302: =IF(MAX(C305:C316)-MIN(C305:C316)<5,AVERAGEIF(C305:C316,">0",X305:X316), IF(FORECAST($C302,X$305:X$316,$C$305:$C$316)<0,0, IF(FORECAST($C302,X$305:X$316,$C$305:$C$316)>100,100, FORECAST($C302,X$305:X$316,$C$305:$C$316)))) -> 98.47941697 | AB302: =IF(MAX(C305:C316)-MIN(C305:C316)<5,AVERAGEIF(C305:C316,">0",AB305:AB316), IF(FORECAST($C302,AB$305:AB$316,$C$305:$C$316)<0,0, IF(FORECAST($C302,AB$305:AB$316,$C$305:$C$316)>100,100, FORECAST($C302,AB$305:AB$316,$C$305:$C$316)))) -> 0
B304: Survey | C304: Year | D304: Improved | E304: Not shared | H304: Open defecation | I304: Improved | J304: Not shared | M304: Open defecation | N304: Improved | O304: Not shared | R304: Open defecation | S304: Improved | T304: Not shared | W304: Open defecation | X304: Improved | Y304: Not shared | AB304: Open defecation
B305: MICS11 | C305: 2011 | D305: =IF(ISERROR(INDIRECT(CONCATENATE($B305,"!M122"))),"",INDIRECT(CONCATENATE($B305,"!M122"))) -> 78.66281877 | E305: =IF(ISERROR(INDIRECT(CONCATENATE($B305,"!M129"))),"",INDIRECT(CONCATENATE($B305,"!M129"))) -> 92.0077954 | H305: =IF(ISERROR(INDIRECT(CONCATENATE($B305,"!M127"))),"",INDIRECT(CONCATENATE($B305,"!M127"))) -> 12.18193644 | I305: =IF(ISERROR(INDIRECT(CONCATENATE($B305,"!N122"))),"",INDIRECT(CONCATENATE($B305,"!N122"))) -> 98.64329212 | J305: =IF(ISERROR(INDIRECT(CONCATENATE($B305,"!N129"))),"",INDIRECT(CONCATENATE($B305,"!N129"))) -> 93.4103431 | M305: =IF(ISERROR(INDIRECT(CONCATENATE($B305,"!N127"))),"",INDIRECT(CONCATENATE($B305,"!N127"))) -> 0.3890160974 | N305: =IF(ISERROR(INDIRECT(CONCATENATE($B305,"!O122"))),"",INDIRECT(CONCATENATE($B305,"!O122"))) -> 99.22179962 | O305: =IF(ISERROR(INDIRECT(CONCATENATE($B305,"!O129"))),"",INDIRECT(CONCATENATE($B305,"!O129"))) -> 91.75473654 | R305: =IF(ISERROR(INDIRECT(CONCATENATE($B305,"!O127"))),"",INDIRECT(CONCATENATE($B305,"!O127"))) -> 0 | S305: =IF(ISERROR(INDIRECT(CONCATENATE($B305,"!P122"))),"",INDIRECT(CONCATENATE($B305,"!P122"))) -> 98.06014807 | T305: =IF(ISERROR(INDIRECT(CONCATENATE($B305,"!P129"))),"",INDIRECT(CONCATENATE($B305,"!P129"))) -> 92.11560026 | W305: =IF(ISERROR(INDIRECT(CONCATENATE($B305,"!P127"))),"",INDIRECT(CONCATENATE($B305,"!P127"))) -> 0.3813897312 | X305: =IF(ISERROR(INDIRECT(CONCATENATE($B305,"!Q122"))),"",INDIRECT(CONCATENATE($B305,"!Q122"))) -> 98.73415881 | Y305: =IF(ISERROR(INDIRECT(CONCATENATE($B305,"!Q129"))),"",INDIRECT(CONCATENATE($B305,"!Q129"))) -> 92.87296061 | AB305: =IF(ISERROR(INDIRECT(CONCATENATE($B305,"!Q2127"))),"",INDIRECT(CONCATENATE($B305,"!Q127"))) -> 0
B306: MICS14 | C306: 2014 | D306: 97.89367957 | E306: 98.80934929 | H306: 0.2257239632 | I306: 99.59661842 | J306: 99.53255564 | M306: 0 | N306: 99.86037647 | O306: 99.49444745 | R306: 0 | S306: 99.79827033 | T306: 99.3863672 | W306: 0 | X306: 100 | Y306: 99.64258044 | AB306: 0
B307: MICS20 | C307: 2020 | D307: 92.65187536 | E307: 97.42784736 | H307: 1.246570798 | I307: 98.10797471 | J307: 99.39935121 | M307: 0.1772298263 | N307: 97.86408766 | O307: 99.56737625 | R307: 0 | S307: 97.88621867 | T307: 99.44943713 | W307: 0 | X307: 98.16770425 | Y307: 99.89616586 | AB307: 0
B318: =CONCATENATE("Rural use of sanitation facilities, ",C299,"–",C300) -> Rural use of sanitation facilities, 2005–2020 | S318: Data points used for regression

Sheet Hygiene
B4: Access to hygiene facilities by wealth quintile (%)
B5: =IF(ISERROR(INDIRECT(CONCATENATE($E$32,"!A2"))),"",INDIRECT(CONCATENATE($E$32,"!A2"))) -> State of Palestine
B7: =CONCATENATE("National ",IF(ISERROR(INDIRECT(CONCATENATE($E$32,"!A2"))),"",INDIRECT(CONCATENATE($E$32,"!A210")))) -> National Access to hygiene facilities | K7: =CONCATENATE("Urban ",IF(ISERROR(INDIRECT(CONCATENATE($E$32,"!A2"))),"",INDIRECT(CONCATENATE($E$32,"!A210")))) -> Urban Access to hygiene facilities | S7: =CONCATENATE("Rural ",IF(ISERROR(INDIRECT(CONCATENATE($E$32,"!A2"))),"",INDIRECT(CONCATENATE($E$32,"!A210")))) -> Rural Access to hygiene facilities
E32: =INDEX(B88:B100,A88) -> MICS20 | G32: =IF(ISERROR(INDIRECT(CONCATENATE($E$32,"!A2"))),"",INDIRECT(CONCATENATE($E$32,"!A2"))) -> State of Palestine | K32: Poorest | N32: Poor | Q32: Middle | T32: Rich | W32: Richest
K33: Basic | L33: Limited | M33: No facility | N33: Basic | O33: Limited | P33: No facility | Q33: Basic | R33: Limited | S33: No facility | T33: Basic | U33: Limited | V33: No facility | W33: Basic | X33: Limited | Y33: No facility
B34: >>> Select Survey : | G34: NATIONAL | J34: =IF(ISERROR(INDIRECT(CONCATENATE(#REF!,"!A2"))),"",INDIRECT(CONCATENATE(#REF!,"!A210"))) ->  | K34: =IF(ISERROR(INDIRECT(CONCATENATE($E$32,"!C222"))),"",INDIRECT(CONCATENATE($E$32,"!C222"))) -> 84.47872515 | L34: =IF(ISERROR(INDIRECT(CONCATENATE($E$32,"!C223"))),"",INDIRECT(CONCATENATE($E$32,"!C223"))) -> 13.33640579 | M34: =IF(ISERROR(INDIRECT(CONCATENATE($E$32,"!C224"))),"",INDIRECT(CONCATENATE($E$32,"!C224"))) -> 2.184869062 | N34: =IF(ISERROR(INDIRECT(CONCATENATE($E$32,"!D222"))),"",INDIRECT(CONCATENATE($E$32,"!D222"))) -> 91.98470385 | O34: =IF(ISERROR(INDIRECT(CONCATENATE($E$32,"!D223"))),"",INDIRECT(CONCATENATE($E$32,"!D223"))) -> 6.981701613 | P34: =IF(ISERROR(INDIRECT(CONCATENATE($E$32,"!D224"))),"",INDIRECT(CONCATENATE($E$32,"!D224"))) -> 1.033594542 | Q34: =IF(ISERROR(INDIRECT(CONCATENATE($E$32,"!E222"))),"",INDIRECT(CONCATENATE($E$32,"!E222"))) -> 94.16540592 | R34: =IF(ISERROR(INDIRECT(CONCATENATE($E$32,"!E223"))),"",INDIRECT(CONCATENATE($E$32,"!E223"))) -> 5.269692735 | S34: =IF(ISERROR(INDIRECT(CONCATENATE($E$32,"!E224"))),"",INDIRECT(CONCATENATE($E$32,"!E224"))) -> 0.5649013475 | T34: =IF(ISERROR(INDIRECT(CONCATENATE($E$32,"!F222"))),"",INDIRECT(CONCATENATE($E$32,"!F222"))) -> 93.70832122 | U34: =IF(ISERROR(INDIRECT(CONCATENATE($E$32,"!F223"))),"",INDIRECT(CONCATENATE($E$32,"!F223"))) -> 5.619020926 | V34: =IF(ISERROR(INDIRECT(CONCATENATE($E$32,"!F224"))),"",INDIRECT(CONCATENATE($E$32,"!F224"))) -> 0.6726578582 | W34: =IF(ISERROR(INDIRECT(CONCATENATE($E$32,"!G222"))),"",INDIRECT(CONCATENATE($E$32,"!G222"))) -> 97.62958099 | X34: =IF(ISERROR(INDIRECT(CONCATENATE($E$32,"!G223"))),"",INDIRECT(CONCATENATE($E$32,"!G223"))) -> 2.168656752 | Y34: =IF(ISERROR(INDIRECT(CONCATENATE($E$32,"!G224"))),"",INDIRECT(CONCATENATE($E$32,"!G224"))) -> 0.2017622622
G37: URBAN | J37: =IF(ISERROR(INDIRECT(CONCATENATE(#REF!,"!A2"))),"",INDIRECT(CONCATENATE(#REF!,"!A210"))) ->  | K37: =IF(ISERROR(INDIRECT(CONCATENATE($E$32,"!H222"))),"",INDIRECT(CONCATENATE($E$32,"!H222"))) -> 84.64778082 | L37: =IF(ISERROR(INDIRECT(CONCATENATE($E$32,"!H223"))),"",INDIRECT(CONCATENATE($E$32,"!H223"))) -> 14.1316083 | M37: =IF(ISERROR(INDIRECT(CONCATENATE($E$32,"!H224"))),"",INDIRECT(CONCATENATE($E$32,"!H224"))) -> 1.220610878 | N37: =IF(ISERROR(INDIRECT(CONCATENATE($E$32,"!I222"))),"",INDIRECT(CONCATENATE($E$32,"!I222"))) -> 93.22112884 | O37: =IF(ISERROR(INDIRECT(CONCATENATE($E$32,"!I223"))),"",INDIRECT(CONCATENATE($E$32,"!I223"))) -> 5.93936378 | P37: =IF(ISERROR(INDIRECT(CONCATENATE($E$32,"!I224"))),"",INDIRECT(CONCATENATE($E$32,"!I224"))) -> 0.8395073761 | Q37: =IF(ISERROR(INDIRECT(CONCATENATE($E$32,"!J222"))),"",INDIRECT(CONCATENATE($E$32,"!J222"))) -> 93.90460307 | R37: =IF(ISERROR(INDIRECT(CONCATENATE($E$32,"!J223"))),"",INDIRECT(CONCATENATE($E$32,"!J223"))) -> 5.770299894 | S37: =IF(ISERROR(INDIRECT(CONCATENATE($E$32,"!J224"))),"",INDIRECT(CONCATENATE($E$32,"!J224"))) -> 0.3250970361 | T37: =IF(ISERROR(INDIRECT(CONCATENATE($E$32,"!K222"))),"",INDIRECT(CONCATENATE($E$32,"!K222"))) -> 93.40767122 | U37: =IF(ISERROR(INDIRECT(CONCATENATE($E$32,"!K223"))),"",INDIRECT(CONCATENATE($E$32,"!K223"))) -> 5.892001534 | V37: =IF(ISERROR(INDIRECT(CONCATENATE($E$32,"!K224"))),"",INDIRECT(CONCATENATE($E$32,"!K224"))) -> 0.7003272505 | W37: =IF(ISERROR(INDIRECT(CONCATENATE($E$32,"!L222"))),"",INDIRECT(CONCATENATE($E$32,"!L222"))) -> 97.74331563 | X37: =IF(ISERROR(INDIRECT(CONCATENATE($E$32,"!L223"))),"",INDIRECT(CONCATENATE($E$32,"!L223"))) -> 2.180953502 | Y37: =IF(ISERROR(INDIRECT(CONCATENATE($E$32,"!L224"))),"",INDIRECT(CONCATENATE($E$32,"!L224"))) -> 0.07573087208
G40: RURAL | J40: =IF(ISERROR(INDIRECT(CONCATENATE(#REF!,"!A2"))),"",INDIRECT(CONCATENATE(#REF!,"!A210"))) ->  | K40: =IF(ISERROR(INDIRECT(CONCATENATE($E$32,"!M222"))),"",INDIRECT(CONCATENATE($E$32,"!M222"))) -> 79.03978365 | L40: =IF(ISERROR(INDIRECT(CONCATENATE($E$32,"!M223"))),"",INDIRECT(CONCATENATE($E$32,"!M223"))) -> 12.25973341 | M40: =IF(ISERROR(INDIRECT(CONCATENATE($E$32,"!M224"))),"",INDIRECT(CONCATENATE($E$32,"!M224"))) -> 8.70048294 | N40: =IF(ISERROR(INDIRECT(CONCATENATE($E$32,"!N222"))),"",INDIRECT(CONCATENATE($E$32,"!N222"))) -> 92.12983443 | O40: =IF(ISERROR(INDIRECT(CONCATENATE($E$32,"!N223"))),"",INDIRECT(CONCATENATE($E$32,"!N223"))) -> 5.758313412 | P40: =IF(ISERROR(INDIRECT(CONCATENATE($E$32,"!N224"))),"",INDIRECT(CONCATENATE($E$32,"!N224"))) -> 2.111852158 | Q40: =IF(ISERROR(INDIRECT(CONCATENATE($E$32,"!O222"))),"",INDIRECT(CONCATENATE($E$32,"!O222"))) -> 95.53345031 | R40: =IF(ISERROR(INDIRECT(CONCATENATE($E$32,"!O223"))),"",INDIRECT(CONCATENATE($E$32,"!O223"))) -> 4.365631095 | S40: =IF(ISERROR(INDIRECT(CONCATENATE($E$32,"!O224"))),"",INDIRECT(CONCATENATE($E$32,"!O224"))) -> 0.1009185941 | T40: =IF(ISERROR(INDIRECT(CONCATENATE($E$32,"!P222"))),"",INDIRECT(CONCATENATE($E$32,"!P222"))) -> 96.09366947 | U40: =IF(ISERROR(INDIRECT(CONCATENATE($E$32,"!P223"))),"",INDIRECT(CONCATENATE($E$32,"!P223"))) -> 3.906330533 | V40: =IF(ISERROR(INDIRECT(CONCATENATE($E$32,"!P224"))),"",INDIRECT(CONCATENATE($E$32,"!P224"))) -> 0 | W40: =IF(ISERROR(INDIRECT(CONCATENATE($E$32,"!Q222"))),"",INDIRECT(CONCATENATE($E$32,"!Q222"))) -> 96.95564604 | X40: =IF(ISERROR(INDIRECT(CONCATENATE($E$32,"!Q223"))),"",INDIRECT(CONCATENATE($E$32,"!Q223"))) -> 2.087547549 | Y40: =IF(ISERROR(INDIRECT(CONCATENATE($E$32,"!Q224"))),"",INDIRECT(CONCATENATE($E$32,"!Q224"))) -> 0.9568064094
A88: 3 | B88: MICS11
B89: MICS14
B90: MICS20
B91: data_summary

Sheet MICS11
A2: =A1026 -> State of Palestine
A3: =A1035 -> 2011
A4: Use of drinking water sources
A5: by wealth quintile and sub-national region
A6: Notes:
A7: WHO/UNICEF JMP customised wealth index excludes water,
A8: sanitation and hygiene assets.
A9: Survey used for analysis: | B9: =A1025 -> MICS11
A10: =B1028 -> 
A11: =B1027 -> Time to improved source based on: | B11: MICS14
A14: Use of drinking water sources | C14: NATIONAL wealth index quintile | H14: URBAN wealth index quintile | M14: RURAL wealth index quintile | R14: SUB-REGIONS: | BA14: Raw numbers of respondents: | BB14: Use of drinking water sources | BC14: NATIONAL wealth index quintile | BH14: URBAN wealth index quintile | BM14: RURAL wealth index quintile | BR14: SUB-REGIONS:
A15: Weighted percentage (used in graphs) | C15: Poorest | D15: Poor | E15: Middle | F15: Rich | G15: Richest | H15: Poorest | I15: Poor | J15: Middle | K15: Rich | L15: Richest | M15: Poorest | N15: Poor | O15: Middle | P15: Rich | Q15: Richest | R15: Bethlehem | S15: Dier El-Balah | T15: Gaza | U15: Hebron | V15: Jenin | W15: Jericho | X15: Jerusalem | Y15: Khan Yunis | Z15: Nablus | AA15: North Gaza | AB15: Qalqiliya | AC15: Rafah | AD15: Ramallah & Al-Bireh | AE15: Salfit | AF15: Tubas | AG15: Tulkarm | BA15: Water data, raw numbers (weighted) | BC15: Poorest | BD15: Poor | BE15: Middle | BF15: Rich | BG15: Richest | BH15: Poorest | BI15: Poor | BJ15: Middle | BK15: Rich | BL15: Richest | BM15: Poorest | BN15: Poor | BO15: Middle | BP15: Rich | BQ15: Richest | BR15: Bethlehem | BS15: Dier El-Balah | BT15: Gaza | BU15: Hebron | BV15: Jenin | BW15: Jericho | BX15: Jerusalem | BY15: Khan Yunis | BZ15: Nablus | CA15: North Gaza | CB15: Qalqiliya | CC15: Rafah | CD15: Ramallah & Al-Bireh | CE15: Salfit | CF15: Tubas | CG15: Tulkarm
A16: Water | B16: Improved | C16: 97.93002559 | D16: 99.24982261 | E16: 99.63474491 | F16: 99.71731297 | G16: 99.89709207 | H16: 97.4095504 | I16: 99.05080162 | J16: 99.42483653 | K16: 99.7626309 | L16: 99.90653611 | M16: 99.42214831 | N16: 99.67862388 | O16: 99.48024416 | P16: 100 | Q16: 99.79994648 | R16: 99.76058314 | S16: 99.97778248 | T16: 99.94613252 | U16: 99.80266383 | V16: 99.89763054 | W16: 99.00709576 | X16: 99.52858042 | Y16: 92.30795218 | Z16: 99.76624382 | AA16: 99.77997749 | AB16: 100 | AC16: 99.66826546 | AD16: 100 | AE16: 100 | AF16: 100 | AG16: 99.91467453 | BA16: Water | BB16: Improved | BC16: N/A | BD16: N/A | BE16: N/A | BF16: N/A | BG16: N/A | BH16: N/A | BI16: N/A | BJ16: N/A | BK16: N/A | BL16: N/A | BM16: N/A | BN16: N/A | BO16: N/A | BP16: N/A | BQ16: N/A | BR16: N/A | BS16: N/A | BT16: N/A | BU16: N/A | BV16: N/A | BW16: N/A | BX16: N/A | BY16: N/A | BZ16: N/A | CA16: N/A | CB16: N/A | CC16: N/A | CD16: N/A | CE16: N/A | CF16: N/A | CG16: N/A
B17: Not Improved | C17: 2.069974415 | D17: 0.7501773889 | E17: 0.3652550936 | F17: 0.282687025 | G17: 0.1029079302 | H17: 2.590449596 | I17: 0.949198382 | J17: 0.5751634695 | K17: 0.2373690979 | L17: 0.0934638857 | M17: 0.5778516935 | N17: 0.3213761163 | O17: 0.5197558367 | P17: 0 | Q17: 0.2000535211 | R17: 0.2394168559 | S17: 0.02221751604 | T17: 0.05386747955 | U17: 0.1973361687 | V17: 0.1023694566 | W17: 0.9929042382 | X17: 0.4714195781 | Y17: 7.692047821 | Z17: 0.2337561824 | AA17: 0.2200225099 | AB17: 0 | AC17: 0.3317345368 | AD17: 0 | AE17: 0 | AF17: 0 | AG17: 0.08532546917 | BB17: Not Improved | BC17: N/A | BD17: N/A | BE17: N/A | BF17: N/A | BG17: N/A | BH17: N/A | BI17: N/A | BJ17: N/A | BK17: N/A | BL17: N/A | BM17: N/A | BN17: N/A | BO17: N/A | BP17: N/A | BQ17: N/A | BR17: N/A | BS17: N/A | BT17: N/A | BU17: N/A | BV17: N/A | BW17: N/A | BX17: N/A | BY17: N/A | BZ17: N/A | CA17: N/A | CB17: N/A | CC17: N/A | CD17: N/A | CE17: N/A | CF17: N/A | CG17: N/A
A18: Water ladder | B18: Basic | C18: =C16*MICS14!C23/100 -> 97.3169117 | D18: =D16*MICS14!D23/100 -> 98.80640074 | E18: =E16*MICS14!E23/100 -> 99.23484982 | F18: =F16*MICS14!F23/100 -> 99.34037611 | G18: =G16*MICS14!G23/100 -> 99.58346335 | H18: =H16*MICS14!H23/100 -> 96.91919147 | I18: =I16*MICS14!I23/100 -> 98.76286622 | J18: =J16*MICS14!J23/100 -> 99.05054223 | K18: =K16*MICS14!K23/100 -> 99.7626309 | L18: =L16*MICS14!L23/100 -> 99.76826047 | M18: =M16*MICS14!M23/100 -> 97.96561134 | N18: =N16*MICS14!N23/100 -> 98.5505667 | O18: =O16*MICS14!O23/100 -> 98.32553868 | P18: =P16*MICS14!P23/100 -> 98.9422028 | Q18: =Q16*MICS14!Q23/100 -> 98.75655466 | R18: N/A | S18: N/A | T18: N/A | U18: N/A | V18: N/A | W18: N/A | X18: N/A | Y18: N/A | Z18: N/A | AA18: N/A | AB18: N/A | AC18: N/A | AD18: N/A | AE18: N/A | AF18: N/A | AG18: N/A | BA18: Water ladder | BB18: Basic | BC18: N/A | BD18: N/A | BE18: N/A | BF18: N/A | BG18: N/A | BH18: N/A | BI18: N/A | BJ18: N/A | BK18: N/A | BL18: N/A | BM18: N/A | BN18: N/A | BO18: N/A | BP18: N/A | BQ18: N/A | BR18: N/A | BS18: N/A | BT18: N/A | BU18: N/A | BV18: N/A | BW18: N/A | BX18: N/A | BY18: N/A | BZ18: N/A | CA18: N/A | CB18: N/A | CC18: N/A | CD18: N/A | CE18: N/A | CF18: N/A | CG18: N/A
B19: Limited | C19: =C16*MICS14!C22/100 -> 0.6131138833 | D19: =D16*MICS14!D22/100 -> 0.4434218738 | E19: =E16*MICS14!E22/100 -> 0.3998950912 | F19: =F16*MICS14!F22/100 -> 0.3769368678 | G19: =G16*MICS14!G22/100 -> 0.3136287177 | H19: =H16*MICS14!H22/100 -> 0.4903589343 | I19: =I16*MICS14!I22/100 -> 0.2879354029 | J19: =J16*MICS14!J22/100 -> 0.3742943038 | K19: =K16*MICS14!K22/100 -> 0 | L19: =L16*MICS14!L22/100 -> 0.1382756459 | M19: =M16*MICS14!M22/100 -> 1.456536967 | N19: =N16*MICS14!N22/100 -> 1.128057179 | O19: =O16*MICS14!O22/100 -> 1.154705479 | P19: =P16*MICS14!P22/100 -> 1.0577972 | Q19: =Q16*MICS14!Q22/100 -> 1.043391823 | R19: N/A | S19: N/A | T19: N/A | U19: N/A | V19: N/A | W19: N/A | X19: N/A | Y19: N/A | Z19: N/A | AA19: N/A | AB19: N/A | AC19: N/A | AD19: N/A | AE19: N/A | AF19: N/A | AG19: N/A | BB19: Limited | BC19: N/A | BD19: N/A | BE19: N/A | BF19: N/A | BG19: N/A | BH19: N/A | BI19: N/A | BJ19: N/A | BK19: N/A | BL19: N/A | BM19: N/A | BN19: N/A | BO19: N/A | BP19: N/A | BQ19: N/A | BR19: N/A | BS19: N/A | BT19: N/A | BU19: N/A | BV19: N/A | BW19: N/A | BX19: N/A | BY19: N/A | BZ19: N/A | CA19: N/A | CB19: N/A | CC19: N/A | CD19: N/A | CE19: N/A | CF19: N/A | CG19: N/A
B20: Unimproved | C20: =100-C18-C19-C21 -> 2.069974415 | D20: =100-D18-D19-D21 -> 0.7501773889 | E20: 0.3652550936 | F20: 0.282687025 | G20: 0.1029079302 | H20: 2.590449596 | I20: 0.949198382 | J20: 0.5751634695 | K20: 0.2373690979 | L20: 0.0934638857 | M20: 0.5778516935 | N20: 0.3213761163 | O20: 0.5197558367 | P20: 2.70894418e-14 | Q20: 0.2000535211 | R20: N/A | S20: N/A | T20: N/A | U20: N/A | V20: N/A | W20: N/A | X20: N/A | Y20: N/A | Z20: N/A | AA20: N/A | AB20: N/A | AC20: N/A | AD20: N/A | AE20: N/A | AF20: N/A | AG20: N/A | BB20: Unimproved | BC20: N/A | BD20: N/A | BE20: N/A | BF20: N/A | BG20: N/A | BH20: N/A | BI20: N/A | BJ20: N/A | BK20: N/A | BL20: N/A | BM20: N/A | BN20: N/A | BO20: N/A | BP20: N/A | BQ20: N/A | BR20: N/A | BS20: N/A | BT20: N/A | BU20: N/A | BV20: N/A | BW20: N/A | BX20: N/A | BY20: N/A | BZ20: N/A | CA20: N/A | CB20: N/A | CC20: N/A | CD20: N/A | CE20: N/A | CF20: N/A | CG20: N/A
B21: Surface water | C21: =0 -> 0 | D21: =0 -> 0 | E21: =0 -> 0 | F21: =0 -> 0 | G21: =0 -> 0 | H21: =0 -> 0 | I21: =0 -> 0 | J21: =0 -> 0 | K21: =0 -> 0 | L21: =0 -> 0 | M21: =0 -> 0 | N21: =0 -> 0 | O21: =0 -> 0 | P21: =0 -> 0 | Q21: =0 -> 0 | R21: N/A | S21: N/A | T21: N/A | U21: N/A | V21: N/A | W21: N/A | X21: N/A | Y21: N/A | Z21: N/A | AA21: N/A | AB21: N/A | AC21: N/A | AD21: N/A | AE21: N/A | AF21: N/A | AG21: N/A | BB21: Surface water | BC21: N/A | BD21: N/A | BE21: N/A | BF21: N/A | BG21: N/A | BH21: N/A | BI21: N/A | BJ21: N/A | BK21: N/A | BL21: N/A | BM21: N/A | BN21: N/A | BO21: N/A | BP21: N/A | BQ21: N/A | BR21: N/A | BS21: N/A | BT21: N/A | BU21: N/A | BV21: N/A | BW21: N/A | BX21: N/A | BY21: N/A | BZ21: N/A | CA21: N/A | CB21: N/A | CC21: N/A | CD21: N/A | CE21: N/A | CF21: N/A | CG21: N/A
A22: Improved water point at more than 30 minutes | B22: Yes | C22: N/A | D22: N/A | E22: N/A | F22: N/A | G22: N/A | H22: N/A | I22: N/A | J22: N/A | K22: N/A | L22: N/A | M22: N/A | N22: N/A | O22: N/A | P22: N/A | Q22: N/A | R22: N/A | S22: N/A | T22: N/A | U22: N/A | V22: N/A | W22: N/A | X22: N/A | Y22: N/A | Z22: N/A | AA22: N/A | AB22: N/A | AC22: N/A | AD22: N/A | AE22: N/A | AF22: N/A | AG22: N/A | BA22: Improved water point at more than 30 minutes | BB22: Yes | BC22: N/A | BD22: N/A | BE22: N/A | BF22: N/A | BG22: N/A | BH22: N/A | BI22: N/A | BJ22: N/A | BK22: N/A | BL22: N/A | BM22: N/A | BN22: N/A | BO22: N/A | BP22: N/A | BQ22: N/A | BR22: N/A | BS22: N/A | BT22: N/A | BU22: N/A | BV22: N/A | BW22: N/A | BX22: N/A | BY22: N/A | BZ22: N/A | CA22: N/A | CB22: N/A | CC22: N/A | CD22: N/A | CE22: N/A | CF22: N/A | CG22: N/A
B23: No | C23: N/A | D23: N/A | E23: N/A | F23: N/A | G23: N/A | H23: N/A | I23: N/A | J23: N/A | K23: N/A | L23: N/A | M23: N/A | N23: N/A | O23: N/A | P23: N/A | Q23: N/A | R23: N/A | S23: N/A | T23: N/A | U23: N/A | V23: N/A | W23: N/A | X23: N/A | Y23: N/A | Z23: N/A | AA23: N/A | AB23: N/A | AC23: N/A | AD23: N/A | AE23: N/A | AF23: N/A | AG23: N/A | BB23: No | BC23: N/A | BD23: N/A | BE23: N/A | BF23: N/A | BG23: N/A | BH23: N/A | BI23: N/A | BJ23: N/A | BK23: N/A | BL23: N/A | BM23: N/A | BN23: N/A | BO23: N/A | BP23: N/A | BQ23: N/A | BR23: N/A | BS23: N/A | BT23: N/A | BU23: N/A | BV23: N/A | BW23: N/A | BX23: N/A | BY23: N/A | BZ23: N/A | CA23: N/A | CB23: N/A | CC23: N/A | CD23: N/A | CE23: N/A | CF23: N/A | CG23: N/A
A24: Manually calculated ratios | B24: Improved wells
B25: Improved springs
B26: Other
C27: NATIONAL wealth index quintile | H27: URBAN wealth index quintile | M27: RURAL wealth index quintile | R27: SUB-REGIONS: | BA27: Raw numbers of respondents: | BB27: Use of drinking water sources | BC27: NATIONAL wealth index quintile | BH27: URBAN wealth index quintile | BM27: RURAL wealth index quintile | BR27: SUB-REGIONS:
A28: Percentage based on weighted population | C28: Poorest | D28: Poor | E28: Middle | F28: Rich | G28: Richest | H28: Poorest | I28: Poor | J28: Middle | K28: Rich | L28: Richest | M28: Poorest | N28: Poor | O28: Middle | P28: Rich | Q28: Richest | R28: Bethlehem | S28: Dier El-Balah | T28: Gaza | U28: Hebron | V28: Jenin | W28: Jericho | X28: Jerusalem | Y28: Khan Yunis | Z28: Nablus | AA28: North Gaza | AB28: Qalqiliya | AC28: Rafah | AD28: Ramallah & Al-Bireh | AE28: Salfit | AF28: Tubas | AG28: Tulkarm | BA28: Water data, raw numbers (weighted) | BC28: Poorest | BD28: Poor | BE28: Middle | BF28: Rich | BG28: Richest | BH28: Poorest | BI28: Poor | BJ28: Middle | BK28: Rich | BL28: Richest | BM28: Poorest | BN28: Poor | BO28: Middle | BP28: Rich | BQ28: Richest | BR28: Bethlehem | BS28: Dier El-Balah | BT28: Gaza | BU28: Hebron | BV28: Jenin | BW28: Jericho | BX28: Jerusalem | BY28: Khan Yunis | BZ28: Nablus | CA28: North Gaza | CB28: Qalqiliya | CC28: Rafah | CD28: Ramallah & Al-Bireh | CE28: Salfit | CF28: Tubas | CG28: Tulkarm
A29: Piped water | B29: Yes | C29: 53.11477186 | D29: 59.65639899 | E29: 63.78686393 | F29: 68.34596385 | G29: 81.31321191 | H29: 53.5934757 | I29: 57.93226424 | J29: 62.60644745 | K29: 69.47446162 | L29: 83.25202988 | M29: 46.01801174 | N29: 64.87587496 | O29: 67.27507301 | P29: 75.59823255 | Q29: 75.16913544 | R29: 95.29374805 | S29: 20.54585911 | T29: 26.75791653 | U29: 65.26605982 | V29: 55.48441337 | W29: 86.72257497 | X29: 96.72492801 | Y29: 29.48844795 | Z29: 84.01316493 | AA29: 71.57649718 | AB29: 97.64746704 | AC29: 44.98740487 | AD29: 93.17063574 | AE29: 97.94290331 | AF29: 50.81124455 | AG29: 97.05292893 | BA29: Piped water | BB29: Yes | BC29: N/A | BD29: N/A | BE29: N/A | BF29: N/A | BG29: N/A | BH29: N/A | BI29: N/A | BJ29: N/A | BK29: N/A | BL29: N/A | BM29: N/A | BN29: N/A | BO29: N/A | BP29: N/A | BQ29: N/A | BR29: N/A | BS29: N/A | BT29: N/A | BU29: N/A | BV29: N/A | BW29: N/A | BX29: N/A | BY29: N/A | BZ29: N/A | CA29: N/A | CB29: N/A | CC29: N/A | CD29: N/A | CE29: N/A | CF29: N/A | CG29: N/A
B30: No | C30: 46.88522814 | D30: 40.34360101 | E30: 36.21313607 | F30: 31.65403615 | G30: 18.68678809 | H30: 46.4065243 | I30: 42.06773576 | J30: 37.39355255 | K30: 30.52553838 | L30: 16.74797012 | M30: 53.98198826 | N30: 35.12412504 | O30: 32.72492699 | P30: 24.40176745 | Q30: 24.83086456 | R30: 4.70625195 | S30: 79.45414089 | T30: 73.24208347 | U30: 34.73394018 | V30: 44.51558663 | W30: 13.27742503 | X30: 3.275071994 | Y30: 70.51155205 | Z30: 15.98683507 | AA30: 28.42350282 | AB30: 2.352532965 | AC30: 55.01259513 | AD30: 6.829364258 | AE30: 2.057096685 | AF30: 49.18875545 | AG30: 2.947071067 | BB30: No | BC30: N/A | BD30: N/A | BE30: N/A | BF30: N/A | BG30: N/A | BH30: N/A | BI30: N/A | BJ30: N/A | BK30: N/A | BL30: N/A | BM30: N/A | BN30: N/A | BO30: N/A | BP30: N/A | BQ30: N/A | BR30: N/A | BS30: N/A | BT30: N/A | BU30: N/A | BV30: N/A | BW30: N/A | BX30: N/A | BY30: N/A | BZ30: N/A | CA30: N/A | CB30: N/A | CC30: N/A | CD30: N/A | CE30: N/A | CF30: N/A | CG30: N/A
A31: Piped water on premises | B31: Yes | C31: 53.11477186 | D31: 59.65639899 | E31: 63.78686393 | F31: 68.34596385 | G31: 81.31321191 | H31: 53.5934757 | I31: 57.93226424 | J31: 62.60644745 | K31: 69.47446162 | L31: 83.25202988 | M31: 46.01801174 | N31: 64.87587496 | O31: 67.27507301 | P31: 75.59823255 | Q31: 75.16913544 | R31: 95.29374805 | S31: 20.54585911 | T31: 26.75791653 | U31: 65.26605982 | V31: 55.48441337 | W31: 86.72257497 | X31: 96.72492801 | Y31: 29.48844795 | Z31: 84.01316493 | AA31: 71.57649718 | AB31: 97.64746704 | AC31: 44.98740487 | AD31: 93.17063574 | AE31: 97.94290331 | AF31: 50.81124455 | AG31: 97.05292893 | BA31: Piped water on premises | BB31: Yes | BC31: N/A | BD31: N/A | BE31: N/A | BF31: N/A | BG31: N/A | BH31: N/A | BI31: N/A | BJ31: N/A | BK31: N/A | BL31: N/A | BM31: N/A | BN31: N/A | BO31: N/A | BP31: N/A | BQ31: N/A | BR31: N/A | BS31: N/A | BT31: N/A | BU31: N/A | BV31: N/A | BW31: N/A | BX31: N/A | BY31: N/A | BZ31: N/A | CA31: N/A | CB31: N/A | CC31: N/A | CD31: N/A | CE31: N/A | CF31: N/A | CG31: N/A
B32: No | C32: 46.88522814 | D32: 40.34360101 | E32: 36.21313607 | F32: 31.65403615 | G32: 18.68678809 | H32: 46.4065243 | I32: 42.06773576 | J32: 37.39355255 | K32: 30.52553838 | L32: 16.74797012 | M32: 53.98198826 | N32: 35.12412504 | O32: 32.72492699 | P32: 24.40176745 | Q32: 24.83086456 | R32: 4.70625195 | S32: 79.45414089 | T32: 73.24208347 | U32: 34.73394018 | V32: 44.51558663 | W32: 13.27742503 | X32: 3.275071994 | Y32: 70.51155205 | Z32: 15.98683507 | AA32: 28.42350282 | AB32: 2.352532965 | AC32: 55.01259513 | AD32: 6.829364258 | AE32: 2.057096685 | AF32: 49.18875545 | AG32: 2.947071067 | BB32: No | BC32: N/A | BD32: N/A | BE32: N/A | BF32: N/A | BG32: N/A | BH32: N/A | BI32: N/A | BJ32: N/A | BK32: N/A | BL32: N/A | BM32: N/A | BN32: N/A | BO32: N/A | BP32: N/A | BQ32: N/A | BR32: N/A | BS32: N/A | BT32: N/A | BU32: N/A | BV32: N/A | BW32: N/A | BX32: N/A | BY32: N/A | BZ32: N/A | CA32: N/A | CB32: N/A | CC32: N/A | CD32: N/A | CE32: N/A | CF32: N/A | CG32: N/A
A33: Piped water into dwelling | B33: Yes | C33: N/A | D33: N/A | E33: N/A | F33: N/A | G33: N/A | H33: N/A | I33: N/A | J33: N/A | K33: N/A | L33: N/A | M33: N/A | N33: N/A | O33: N/A | P33: N/A | Q33: N/A | R33: N/A | S33: N/A | T33: N/A | U33: N/A | V33: N/A | W33: N/A | X33: N/A | Y33: N/A | Z33: N/A | AA33: N/A | AB33: N/A | AC33: N/A | AD33: N/A | AE33: N/A | AF33: N/A | AG33: N/A | BA33: Piped water into dwelling | BB33: Yes | BC33: N/A | BD33: N/A | BE33: N/A | BF33: N/A | BG33: N/A | BH33: N/A | BI33: N/A | BJ33: N/A | BK33: N/A | BL33: N/A | BM33: N/A | BN33: N/A | BO33: N/A | BP33: N/A | BQ33: N/A | BR33: N/A | BS33: N/A | BT33: N/A | BU33: N/A | BV33: N/A | BW33: N/A | BX33: N/A | BY33: N/A | BZ33: N/A | CA33: N/A | CB33: N/A | CC33: N/A | CD33: N/A | CE33: N/A | CF33: N/A | CG33: N/A
B34: No | C34: N/A | D34: N/A | E34: N/A | F34: N/A | G34: N/A | H34: N/A | I34: N/A | J34: N/A | K34: N/A | L34: N/A | M34: N/A | N34: N/A | O34: N/A | P34: N/A | Q34: N/A | R34: N/A | S34: N/A | T34: N/A | U34: N/A | V34: N/A | W34: N/A | X34: N/A | Y34: N/A | Z34: N/A | AA34: N/A | AB34: N/A | AC34: N/A | AD34: N/A | AE34: N/A | AF34: N/A | AG34: N/A | BB34: No | BC34: N/A | BD34: N/A | BE34: N/A | BF34: N/A | BG34: N/A | BH34: N/A | BI34: N/A | BJ34: N/A | BK34: N/A | BL34: N/A | BM34: N/A | BN34: N/A | BO34: N/A | BP34: N/A | BQ34: N/A | BR34: N/A | BS34: N/A | BT34: N/A | BU34: N/A | BV34: N/A | BW34: N/A | BX34: N/A | BY34: N/A | BZ34: N/A | CA34: N/A | CB34: N/A | CC34: N/A | CD34: N/A | CE34: N/A | CF34: N/A | CG34: N/A
A35: Water source on premises | B35: Yes | C35: N/A | D35: N/A | E35: N/A | F35: N/A | G35: N/A | H35: N/A | I35: N/A | J35: N/A | K35: N/A | L35: N/A | M35: N/A | N35: N/A | O35: N/A | P35: N/A | Q35: N/A | R35: N/A | S35: N/A | T35: N/A | U35: N/A | V35: N/A | W35: N/A | X35: N/A | Y35: N/A | Z35: N/A | AA35: N/A | AB35: N/A | AC35: N/A | AD35: N/A | AE35: N/A | AF35: N/A | AG35: N/A | BA35: Water source on premises | BB35: Yes | BC35: N/A | BD35: N/A | BE35: N/A | BF35: N/A | BG35: N/A | BH35: N/A | BI35: N/A | BJ35: N/A | BK35: N/A | BL35: N/A | BM35: N/A | BN35: N/A | BO35: N/A | BP35: N/A | BQ35: N/A | BR35: N/A | BS35: N/A | BT35: N/A | BU35: N/A | BV35: N/A | BW35: N/A | BX35: N/A | BY35: N/A | BZ35: N/A | CA35: N/A | CB35: N/A | CC35: N/A | CD35: N/A | CE35: N/A | CF35: N/A | CG35: N/A
B36: No | C36: N/A | D36: N/A | E36: N/A | F36: N/A | G36: N/A | H36: N/A | I36: N/A | J36: N/A | K36: N/A | L36: N/A | M36: N/A | N36: N/A | O36: N/A | P36: N/A | Q36: N/A | R36: N/A | S36: N/A | T36: N/A | U36: N/A | V36: N/A | W36: N/A | X36: N/A | Y36: N/A | Z36: N/A | AA36: N/A | AB36: N/A | AC36: N/A | AD36: N/A | AE36: N/A | AF36: N/A | AG36: N/A | BB36: No | BC36: N/A | BD36: N/A | BE36: N/A | BF36: N/A | BG36: N/A | BH36: N/A | BI36: N/A | BJ36: N/A | BK36: N/A | BL36: N/A | BM36: N/A | BN36: N/A | BO36: N/A | BP36: N/A | BQ36: N/A | BR36: N/A | BS36: N/A | BT36: N/A | BU36: N/A | BV36: N/A | BW36: N/A | BX36: N/A | BY36: N/A | BZ36: N/A | CA36: N/A | CB36: N/A | CC36: N/A | CD36: N/A | CE36: N/A | CF36: N/A | CG36: N/A
A37: Improved Water source on premises | B37: Yes | C37: N/A | D37: N/A | E37: N/A | F37: N/A | G37: N/A | H37: N/A | I37: N/A | J37: N/A | K37: N/A | L37: N/A | M37: N/A | N37: N/A | O37: N/A | P37: N/A | Q37: N/A | R37: N/A | S37: N/A | T37: N/A | U37: N/A | V37: N/A | W37: N/A | X37: N/A | Y37: N/A | Z37: N/A | AA37: N/A | AB37: N/A | AC37: N/A | AD37: N/A | AE37: N/A | AF37: N/A | AG37: N/A | BA37: Improved water source on premises | BB37: Yes | BC37: N/A | BD37: N/A | BE37: N/A | BF37: N/A | BG37: N/A | BH37: N/A | BI37: N/A | BJ37: N/A | BK37: N/A | BL37: N/A | BM37: N/A | BN37: N/A | BO37: N/A | BP37: N/A | BQ37: N/A | BR37: N/A | BS37: N/A | BT37: N/A | BU37: N/A | BV37: N/A | BW37: N/A | BX37: N/A | BY37: N/A | BZ37: N/A | CA37: N/A | CB37: N/A | CC37: N/A | CD37: N/A | CE37: N/A | CF37: N/A | CG37: N/A
B38: No | C38: N/A | D38: N/A | E38: N/A | F38: N/A | G38: N/A | H38: N/A | I38: N/A | J38: N/A | K38: N/A | L38: N/A | M38: N/A | N38: N/A | O38: N/A | P38: N/A | Q38: N/A | R38: N/A | S38: N/A | T38: N/A | U38: N/A | V38: N/A | W38: N/A | X38: N/A | Y38: N/A | Z38: N/A | AA38: N/A | AB38: N/A | AC38: N/A | AD38: N/A | AE38: N/A | AF38: N/A | AG38: N/A | BB38: No | BC38: N/A | BD38: N/A | BE38: N/A | BF38: N/A | BG38: N/A | BH38: N/A | BI38: N/A | BJ38: N/A | BK38: N/A | BL38: N/A | BM38: N/A | BN38: N/A | BO38: N/A | BP38: N/A | BQ38: N/A | BR38: N/A | BS38: N/A | BT38: N/A | BU38: N/A | BV38: N/A | BW38: N/A | BX38: N/A | BY38: N/A | BZ38: N/A | CA38: N/A | CB38: N/A | CC38: N/A | CD38: N/A | CE38: N/A | CF38: N/A | CG38: N/A
A39: Piped water on premises available when needed | B39: Yes | C39: N/A | D39: N/A | E39: N/A | F39: N/A | G39: N/A | H39: N/A | I39: N/A | J39: N/A | K39: N/A | L39: N/A | M39: N/A | N39: N/A | O39: N/A | P39: N/A | Q39: N/A | R39: N/A | S39: N/A | T39: N/A | U39: N/A | V39: N/A | W39: N/A | X39: N/A | Y39: N/A | Z39: N/A | AA39: N/A | AB39: N/A | AC39: N/A | AD39: N/A | AE39: N/A | AF39: N/A | AG39: N/A | BA39: Piped water on premises available when needed | BB39: Yes | BC39: N/A | BD39: N/A | BE39: N/A | BF39: N/A | BG39: N/A | BH39: N/A | BI39: N/A | BJ39: N/A | BK39: N/A | BL39: N/A | BM39: N/A | BN39: N/A | BO39: N/A | BP39: N/A | BQ39: N/A | BR39: N/A | BS39: N/A | BT39: N/A | BU39: N/A | BV39: N/A | BW39: N/A | BX39: N/A | BY39: N/A | BZ39: N/A | CA39: N/A | CB39: N/A | CC39: N/A | CD39: N/A | CE39: N/A | CF39: N/A | CG39: N/A
B40: No | C40: N/A | D40: N/A | E40: N/A | F40: N/A | G40: N/A | H40: N/A | I40: N/A | J40: N/A | K40: N/A | L40: N/A | M40: N/A | N40: N/A | O40: N/A | P40: N/A | Q40: N/A | R40: N/A | S40: N/A | T40: N/A | U40: N/A | V40: N/A | W40: N/A | X40: N/A | Y40: N/A | Z40: N/A | AA40: N/A | AB40: N/A | AC40: N/A | AD40: N/A | AE40: N/A | AF40: N/A | AG40: N/A | BB40: No | BC40: N/A | BD40: N/A | BE40: N/A | BF40: N/A | BG40: N/A | BH40: N/A | BI40: N/A | BJ40: N/A | BK40: N/A | BL40: N/A | BM40: N/A | BN40: N/A | BO40: N/A | BP40: N/A | BQ40: N/A | BR40: N/A | BS40: N/A | BT40: N/A | BU40: N/A | BV40: N/A | BW40: N/A | BX40: N/A | BY40: N/A | BZ40: N/A | CA40: N/A | CB40: N/A | CC40: N/A | CD40: N/A | CE40: N/A | CF40: N/A | CG40: N/A
A41: Water point at more than 30 minutes | B41: Yes | C41: N/A | D41: N/A | E41: N/A | F41: N/A | G41: N/A | H41: N/A | I41: N/A | J41: N/A | K41: N/A | L41: N/A | M41: N/A | N41: N/A | O41: N/A | P41: N/A | Q41: N/A | R41: N/A | S41: N/A | T41: N/A | U41: N/A | V41: N/A | W41: N/A | X41: N/A | Y41: N/A | Z41: N/A | AA41: N/A | AB41: N/A | AC41: N/A | AD41: N/A | AE41: N/A | AF41: N/A | AG41: N/A | BA41: Water point at more than 30 minutes | BB41: Yes | BC41: N/A | BD41: N/A | BE41: N/A | BF41: N/A | BG41: N/A | BH41: N/A | BI41: N/A | BJ41: N/A | BK41: N/A | BL41: N/A | BM41: N/A | BN41: N/A | BO41: N/A | BP41: N/A | BQ41: N/A | BR41: N/A | BS41: N/A | BT41: N/A | BU41: N/A | BV41: N/A | BW41: N/A | BX41: N/A | BY41: N/A | BZ41: N/A | CA41: N/A | CB41: N/A | CC41: N/A | CD41: N/A | CE41: N/A | CF41: N/A | CG41: N/A
B42: No | C42: N/A | D42: N/A | E42: N/A | F42: N/A | G42: N/A | H42: N/A | I42: N/A | J42: N/A | K42: N/A | L42: N/A | M42: N/A | N42: N/A | O42: N/A | P42: N/A | Q42: N/A | R42: N/A | S42: N/A | T42: N/A | U42: N/A | V42: N/A | W42: N/A | X42: N/A | Y42: N/A | Z42: N/A | AA42: N/A | AB42: N/A | AC42: N/A | AD42: N/A | AE42: N/A | AF42: N/A | AG42: N/A | BB42: No | BC42: N/A | BD42: N/A | BE42: N/A | BF42: N/A | BG42: N/A | BH42: N/A | BI42: N/A | BJ42: N/A | BK42: N/A | BL42: N/A | BM42: N/A | BN42: N/A | BO42: N/A | BP42: N/A | BQ42: N/A | BR42: N/A | BS42: N/A | BT42: N/A | BU42: N/A | BV42: N/A | BW42: N/A | BX42: N/A | BY42: N/A | BZ42: N/A | CA42: N/A | CB42: N/A | CC42: N/A | CD42: N/A | CE42: N/A | CF42: N/A | CG42: N/A
A43: Water source available when needed | B43: Yes | C43: N/A | D43: N/A | E43: N/A | F43: N/A | G43: N/A | H43: N/A | I43: N/A | J43: N/A | K43: N/A | L43: N/A | M43: N/A | N43: N/A | O43: N/A | P43: N/A | Q43: N/A | R43: N/A | S43: N/A | T43: N/A | U43: N/A | V43: N/A | W43: N/A | X43: N/A | Y43: N/A | Z43: N/A | AA43: N/A | AB43: N/A | AC43: N/A | AD43: N/A | AE43: N/A | AF43: N/A | AG43: N/A | BA43: Water source available when needed | BB43: Yes | BC43: N/A | BD43: N/A | BE43: N/A | BF43: N/A | BG43: N/A | BH43: N/A | BI43: N/A | BJ43: N/A | BK43: N/A | BL43: N/A | BM43: N/A | BN43: N/A | BO43: N/A | BP43: N/A | BQ43: N/A | BR43: N/A | BS43: N/A | BT43: N/A | BU43: N/A | BV43: N/A | BW43: N/A | BX43: N/A | BY43: N/A | BZ43: N/A | CA43: N/A | CB43: N/A | CC43: N/A | CD43: N/A | CE43: N/A | CF43: N/A | CG43: N/A
B44: No | C44: N/A | D44: N/A | E44: N/A | F44: N/A | G44: N/A | H44: N/A | I44: N/A | J44: N/A | K44: N/A | L44: N/A | M44: N/A | N44: N/A | O44: N/A | P44: N/A | Q44: N/A | R44: N/A | S44: N/A | T44: N/A | U44: N/A | V44: N/A | W44: N/A | X44: N/A | Y44: N/A | Z44: N/A | AA44: N/A | AB44: N/A | AC44: N/A | AD44: N/A | AE44: N/A | AF44: N/A | AG44: N/A | BB44: No | BC44: N/A | BD44: N/A | BE44: N/A | BF44: N/A | BG44: N/A | BH44: N/A | BI44: N/A | BJ44: N/A | BK44: N/A | BL44: N/A | BM44: N/A | BN44: N/A | BO44: N/A | BP44: N/A | BQ44: N/A | BR44: N/A | BS44: N/A | BT44: N/A | BU44: N/A | BV44: N/A | BW44: N/A | BX44: N/A | BY44: N/A | BZ44: N/A | CA44: N/A | CB44: N/A | CC44: N/A | CD44: N/A | CE44: N/A | CF44: N/A | CG44: N/A
A45: Improved water source available when needed | B45: Yes | C45: N/A | D45: N/A | E45: N/A | F45: N/A | G45: N/A | H45: N/A | I45: N/A | J45: N/A | K45: N/A | L45: N/A | M45: N/A | N45: N/A | O45: N/A | P45: N/A | Q45: N/A | R45: N/A | S45: N/A | T45: N/A | U45: N/A | V45: N/A | W45: N/A | X45: N/A | Y45: N/A | Z45: N/A | AA45: N/A | AB45: N/A | AC45: N/A | AD45: N/A | AE45: N/A | AF45: N/A | AG45: N/A | BA45: Improved water source available when needed | BB45: Yes | BC45: N/A | BD45: N/A | BE45: N/A | BF45: N/A | BG45: N/A | BH45: N/A | BI45: N/A | BJ45: N/A | BK45: N/A | BL45: N/A | BM45: N/A | BN45: N/A | BO45: N/A | BP45: N/A | BQ45: N/A | BR45: N/A | BS45: N/A | BT45: N/A | BU45: N/A | BV45: N/A | BW45: N/A | BX45: N/A | BY45: N/A | BZ45: N/A | CA45: N/A | CB45: N/A | CC45: N/A | CD45: N/A | CE45: N/A | CF45: N/A | CG45: N/A
B46: No | C46: N/A | D46: N/A | E46: N/A | F46: N/A | G46: N/A | H46: N/A | I46: N/A | J46: N/A | K46: N/A | L46: N/A | M46: N/A | N46: N/A | O46: N/A | P46: N/A | Q46: N/A | R46: N/A | S46: N/A | T46: N/A | U46: N/A | V46: N/A | W46: N/A | X46: N/A | Y46: N/A | Z46: N/A | AA46: N/A | AB46: N/A | AC46: N/A | AD46: N/A | AE46: N/A | AF46: N/A | AG46: N/A | BB46: No | BC46: N/A | BD46: N/A | BE46: N/A | BF46: N/A | BG46: N/A | BH46: N/A | BI46: N/A | BJ46: N/A | BK46: N/A | BL46: N/A | BM46: N/A | BN46: N/A | BO46: N/A | BP46: N/A | BQ46: N/A | BR46: N/A | BS46: N/A | BT46: N/A | BU46: N/A | BV46: N/A | BW46: N/A | BX46: N/A | BY46: N/A | BZ46: N/A | CA46: N/A | CB46: N/A | CC46: N/A | CD46: N/A | CE46: N/A | CF46: N/A | CG46: N/A
A47: Microbiological quality at point of collection | B47: Not contaminated (No E. coli in 100 mL) | C47: N/A | D47: N/A | E47: N/A | F47: N/A | G47: N/A | H47: N/A | I47: N/A | J47: N/A | K47: N/A | L47: N/A | M47: N/A | N47: N/A | O47: N/A | P47: N/A | Q47: N/A | R47: N/A | S47: N/A | T47: N/A | U47: N/A | V47: N/A | W47: N/A | X47: N/A | Y47: N/A | Z47: N/A | AA47: N/A | AB47: N/A | AC47: N/A | AD47: N/A | AE47: N/A | AF47: N/A | AG47: N/A | BA47: Microbiological quality at point of collection | BB47: Not contaminated (No E. coli in 100 mL) | BC47: N/A | BD47: N/A | BE47: N/A | BF47: N/A | BG47: N/A | BH47: N/A | BI47: N/A | BJ47: N/A | BK47: N/A | BL47: N/A | BM47: N/A | BN47: N/A | BO47: N/A | BP47: N/A | BQ47: N/A | BR47: N/A | BS47: N/A | BT47: N/A | BU47: N/A | BV47: N/A | BW47: N/A | BX47: N/A | BY47: N/A | BZ47: N/A | CA47: N/A | CB47: N/A | CC47: N/A | CD47: N/A | CE47: N/A | CF47: N/A | CG47: N/A
B48: Contaminated (E. coli detected in 100 mL) | C48: N/A | D48: N/A | E48: N/A | F48: N/A | G48: N/A | H48: N/A | I48: N/A | J48: N/A | K48: N/A | L48: N/A | M48: N/A | N48: N/A | O48: N/A | P48: N/A | Q48: N/A | R48: N/A | S48: N/A | T48: N/A | U48: N/A | V48: N/A | W48: N/A | X48: N/A | Y48: N/A | Z48: N/A | AA48: N/A | AB48: N/A | AC48: N/A | AD48: N/A | AE48: N/A | AF48: N/A | AG48: N/A | BB48: Contaminated (E. coli detected in 100 mL) | BC48: N/A | BD48: N/A | BE48: N/A | BF48: N/A | BG48: N/A | BH48: N/A | BI48: N/A | BJ48: N/A | BK48: N/A | BL48: N/A | BM48: N/A | BN48: N/A | BO48: N/A | BP48: N/A | BQ48: N/A | BR48: N/A | BS48: N/A | BT48: N/A | BU48: N/A | BV48: N/A | BW48: N/A | BX48: N/A | BY48: N/A | BZ48: N/A | CA48: N/A | CB48: N/A | CC48: N/A | CD48: N/A | CE48: N/A | CF48: N/A | CG48: N/A
B49: Highly contaminated (>100 CFU/100 mL) | C49: N/A | D49: N/A | E49: N/A | F49: N/A | G49: N/A | H49: N/A | I49: N/A | J49: N/A | K49: N/A | L49: N/A | M49: N/A | N49: N/A | O49: N/A | P49: N/A | Q49: N/A | R49: N/A | S49: N/A | T49: N/A | U49: N/A | V49: N/A | W49: N/A | X49: N/A | Y49: N/A | Z49: N/A | AA49: N/A | AB49: N/A | AC49: N/A | AD49: N/A | AE49: N/A | AF49: N/A | AG49: N/A | BB49: Highly contaminated (>100 CFU/100 mL) | BC49: N/A | BD49: N/A | BE49: N/A | BF49: N/A | BG49: N/A | BH49: N/A | BI49: N/A | BJ49: N/A | BK49: N/A | BL49: N/A | BM49: N/A | BN49: N/A | BO49: N/A | BP49: N/A | BQ49: N/A | BR49: N/A | BS49: N/A | BT49: N/A | BU49: N/A | BV49: N/A | BW49: N/A | BX49: N/A | BY49: N/A | BZ49: N/A | CA49: N/A | CB49: N/A | CC49: N/A | CD49: N/A | CE49: N/A | CF49: N/A | CG49: N/A
A50: Microbiological quality of improved water sources at point of collection | B50: Not contaminated (No E. coli in 100 mL) | C50: N/A | D50: N/A | E50: N/A | F50: N/A | G50: N/A | H50: N/A | I50: N/A | J50: N/A | K50: N/A | L50: N/A | M50: N/A | N50: N/A | O50: N/A | P50: N/A | Q50: N/A | R50: N/A | S50: N/A | T50: N/A | U50: N/A | V50: N/A | W50: N/A | X50: N/A | Y50: N/A | Z50: N/A | AA50: N/A | AB50: N/A | AC50: N/A | AD50: N/A | AE50: N/A | AF50: N/A | AG50: N/A | BA50: Microbiological quality of improved water sources at point of collection | BB50: Not contaminated (No E. coli in 100 mL) | BC50: N/A | BD50: N/A | BE50: N/A | BF50: N/A | BG50: N/A | BH50: N/A | BI50: N/A | BJ50: N/A | BK50: N/A | BL50: N/A | BM50: N/A | BN50: N/A | BO50: N/A | BP50: N/A | BQ50: N/A | BR50: N/A | BS50: N/A | BT50: N/A | BU50: N/A | BV50: N/A | BW50: N/A | BX50: N/A | BY50: N/A | BZ50: N/A | CA50: N/A | CB50: N/A | CC50: N/A | CD50: N/A | CE50: N/A | CF50: N/A | CG50: N/A
B51: Contaminated (E. coli detected in 100 mL) | C51: N/A | D51: N/A | E51: N/A | F51: N/A | G51: N/A | H51: N/A | I51: N/A | J51: N/A | K51: N/A | L51: N/A | M51: N/A | N51: N/A | O51: N/A | P51: N/A | Q51: N/A | R51: N/A | S51: N/A | T51: N/A | U51: N/A | V51: N/A | W51: N/A | X51: N/A | Y51: N/A | Z51: N/A | AA51: N/A | AB51: N/A | AC51: N/A | AD51: N/A | AE51: N/A | AF51: N/A | AG51: N/A | BB51: Contaminated (E. coli detected in 100 mL) | BC51: N/A | BD51: N/A | BE51: N/A | BF51: N/A | BG51: N/A | BH51: N/A | BI51: N/A | BJ51: N/A | BK51: N/A | BL51: N/A | BM51: N/A | BN51: N/A | BO51: N/A | BP51: N/A | BQ51: N/A | BR51: N/A | BS51: N/A | BT51: N/A | BU51: N/A | BV51: N/A | BW51: N/A | BX51: N/A | BY51: N/A | BZ51: N/A | CA51: N/A | CB51: N/A | CC51: N/A | CD51: N/A | CE51: N/A | CF51: N/A | CG51: N/A
B52: Highly contaminated (>100 CFU/100 mL) | C52: N/A | D52: N/A | E52: N/A | F52: N/A | G52: N/A | H52: N/A | I52: N/A | J52: N/A | K52: N/A | L52: N/A | M52: N/A | N52: N/A | O52: N/A | P52: N/A | Q52: N/A | R52: N/A | S52: N/A | T52: N/A | U52: N/A | V52: N/A | W52: N/A | X52: N/A | Y52: N/A | Z52: N/A | AA52: N/A | AB52: N/A | AC52: N/A | AD52: N/A | AE52: N/A | AF52: N/A | AG52: N/A | BB52: Highly contaminated (>100 CFU/100 mL) | BC52: N/A | BD52: N/A | BE52: N/A | BF52: N/A | BG52: N/A | BH52: N/A | BI52: N/A | BJ52: N/A | BK52: N/A | BL52: N/A | BM52: N/A | BN52: N/A | BO52: N/A | BP52: N/A | BQ52: N/A | BR52: N/A | BS52: N/A | BT52: N/A | BU52: N/A | BV52: N/A | BW52: N/A | BX52: N/A | BY52: N/A | BZ52: N/A | CA52: N/A | CB52: N/A | CC52: N/A | CD52: N/A | CE52: N/A | CF52: N/A | CG52: N/A
A53: Microbiological quality of piped on premises at point of collection | B53: Not contaminated (No E. coli in 100 mL) | C53: N/A | D53: N/A | E53: N/A | F53: N/A | G53: N/A | H53: N/A | I53: N/A | J53: N/A | K53: N/A | L53: N/A | M53: N/A | N53: N/A | O53: N/A | P53: N/A | Q53: N/A | R53: N/A | S53: N/A | T53: N/A | U53: N/A | V53: N/A | W53: N/A | X53: N/A | Y53: N/A | Z53: N/A | AA53: N/A | AB53: N/A | AC53: N/A | AD53: N/A | AE53: N/A | AF53: N/A | AG53: N/A | BA53: Microbiological quality of piped on premises at point of collection | BB53: Not contaminated (No E. coli in 100 mL) | BC53: N/A | BD53: N/A | BE53: N/A | BF53: N/A | BG53: N/A | BH53: N/A | BI53: N/A | BJ53: N/A | BK53: N/A | BL53: N/A | BM53: N/A | BN53: N/A | BO53: N/A | BP53: N/A | BQ53: N/A | BR53: N/A | BS53: N/A | BT53: N/A | BU53: N/A | BV53: N/A | BW53: N/A | BX53: N/A | BY53: N/A | BZ53: N/A | CA53: N/A | CB53: N/A | CC53: N/A | CD53: N/A | CE53: N/A | CF53: N/A | CG53: N/A
B54: Contaminated (E. coli detected in 100 mL) | C54: N/A | D54: N/A | E54: N/A | F54: N/A | G54: N/A | H54: N/A | I54: N/A | J54: N/A | K54: N/A | L54: N/A | M54: N/A | N54: N/A | O54: N/A | P54: N/A | Q54: N/A | R54: N/A | S54: N/A | T54: N/A | U54: N/A | V54: N/A | W54: N/A | X54: N/A | Y54: N/A | Z54: N/A | AA54: N/A | AB54: N/A | AC54: N/A | AD54: N/A | AE54: N/A | AF54: N/A | AG54: N/A | BB54: Contaminated (E. coli detected in 100 mL) | BC54: N/A | BD54: N/A | BE54: N/A | BF54: N/A | BG54: N/A | BH54: N/A | BI54: N/A | BJ54: N/A | BK54: N/A | BL54: N/A | BM54: N/A | BN54: N/A | BO54: N/A | BP54: N/A | BQ54: N/A | BR54: N/A | BS54: N/A | BT54: N/A | BU54: N/A | BV54: N/A | BW54: N/A | BX54: N/A | BY54: N/A | BZ54: N/A | CA54: N/A | CB54: N/A | CC54: N/A | CD54: N/A | CE54: N/A | CF54: N/A | CG54: N/A
B55: Highly contaminated (>100 CFU/100 mL) | C55: N/A | D55: N/A | E55: N/A | F55: N/A | G55: N/A | H55: N/A | I55: N/A | J55: N/A | K55: N/A | L55: N/A | M55: N/A | N55: N/A | O55: N/A | P55: N/A | Q55: N/A | R55: N/A | S55: N/A | T55: N/A | U55: N/A | V55: N/A | W55: N/A | X55: N/A | Y55: N/A | Z55: N/A | AA55: N/A | AB55: N/A | AC55: N/A | AD55: N/A | AE55: N/A | AF55: N/A | AG55: N/A | BB55: Highly contaminated (>100 CFU/100 mL) | BC55: N/A | BD55: N/A | BE55: N/A | BF55: N/A | BG55: N/A | BH55: N/A | BI55: N/A | BJ55: N/A | BK55: N/A | BL55: N/A | BM55: N/A | BN55: N/A | BO55: N/A | BP55: N/A | BQ55: N/A | BR55: N/A | BS55: N/A | BT55: N/A | BU55: N/A | BV55: N/A | BW55: N/A | BX55: N/A | BY55: N/A | BZ55: N/A | CA55: N/A | CB55: N/A | CC55: N/A | CD55: N/A | CE55: N/A | CF55: N/A | CG55: N/A
C56: NATIONAL wealth index quintile | H56: URBAN wealth index quintile | M56: RURAL wealth index quintile | R56: SUB-REGIONS: | BA56: Raw numbers of respondents: | BB56: Use of drinking water sources | BC56: NATIONAL wealth index quintile | BH56: URBAN wealth index quintile | BM56: RURAL wealth index quintile | BR56: SUB-REGIONS:
A57: Percentage based on weighted population | C57: Poorest | D57: Poor | E57: Middle | F57: Rich | G57: Richest | H57: Poorest | I57: Poor | J57: Middle | K57: Rich | L57: Richest | M57: Poorest | N57: Poor | O57: Middle | P57: Rich | Q57: Richest | R57: Bethlehem | S57: Dier El-Balah | T57: Gaza | U57: Hebron | V57: Jenin | W57: Jericho | X57: Jerusalem | Y57: Khan Yunis | Z57: Nablus | AA57: North Gaza | AB57: Qalqiliya | AC57: Rafah | AD57: Ramallah & Al-Bireh | AE57: Salfit | AF57: Tubas | AG57: Tulkarm | BA57: Water data, raw numbers (weighted) | BC57: Poorest | BD57: Poor | BE57: Middle | BF57: Rich | BG57: Richest | BH57: Poorest | BI57: Poor | BJ57: Middle | BK57: Rich | BL57: Richest | BM57: Poorest | BN57: Poor | BO57: Middle | BP57: Rich | BQ57: Richest | BR57: Bethlehem | BS57: Dier El-Balah | BT57: Gaza | BU57: Hebron | BV57: Jenin | BW57: Jericho | BX57: Jerusalem | BY57: Khan Yunis | BZ57: Nablus | CA57: North Gaza | CB57: Qalqiliya | CC57: Rafah | CD57: Ramallah & Al-Bireh | CE57: Salfit | CF57: Tubas | CG57: Tulkarm
A58: Main source of drinking water | B58: Public water network connected to the house | C58: 36.74756931 | D58: 47.99590085 | E58: 52.02636273 | F58: 62.72401507 | G58: 77.47666569 | H58: 32.38156551 | I58: 43.53924064 | J58: 53.66546737 | K58: 63.0389119 | L58: 79.03684146 | M58: 44.14836589 | N58: 63.49029844 | O58: 66.58924994 | P58: 74.27643731 | Q58: 74.74585577 | R58: 93.42808388 | S58: 4.16046286 | T58: 7.494383219 | U58: 64.9443453 | V58: 54.91969129 | W58: 83.51391354 | X58: 95.16363124 | Y58: 16.46090266 | Z58: 83.47731358 | AA58: 19.05573697 | AB58: 97.64746704 | AC58: 15.8137173 | AD58: 93.00429123 | AE58: 97.94290331 | AF58: 50.03107214 | AG58: 96.96760346
B59: Tube well | C59: 4.563879869 | D59: 2.544306472 | E59: 1.010008614 | F59: 2.390209389 | G59: 0.9590233344 | H59: 3.490748737 | I59: 2.336669199 | J59: 2.137400308 | K59: 1.989166265 | L59: 0.8050588505 | M59: 9.738588534 | N59: 3.029131686 | O59: 3.239831409 | P59: 2.390043207 | Q59: 2.403038376 | R59: 1.3538452 | S59: 0.1446098259 | T59: 0.1482445735 | U59: 6.500437527 | V59: 1.802439367 | W59: 2.763873786 | X59: 1.690382139 | Y59: 3.894609055 | Z59: 1.700974948 | AA59: 0.1106435869 | AB59: 1.726371138 | AC59: 2.844236617 | AD59: 2.392312308 | AE59: 0 | AF59: 5.459256903 | AG59: 1.212617929
B60: Protected spring | C60: 0.4550900242 | D60: 0.2825438129 | E60: 0.2034041081 | F60: 0.28048653 | G60: 0.2281553059 | H60: 0 | I60: 0.1128509648 | J60: 0 | K60: 0.1670504049 | L60: 0.2228523916 | M60: 2.35361538 | N60: 1.153013493 | O60: 0.5386718149 | P60: 0.5433960822 | Q60: 0.749684124 | R60: 0.1362522612 | S60: 0 | T60: 0 | U60: 0 | V60: 1.151848884 | W60: 0.3948391123 | X60: 0.0125903098 | Y60: 0 | Z60: 1.489247458 | AA60: 0 | AB60: 0 | AC60: 0 | AD60: 0.638611365 | AE60: 0 | AF60: 1.76030284 | AG60: 0
B61: Rain - fed cistern with internal pipes | C61: 4.889881295 | D61: 4.148128414 | E61: 2.340236144 | F61: 4.005024391 | G61: 2.966402216 | H61: 3.007537078 | I61: 2.57234511 | J61: 2.451000768 | K61: 2.460655297 | L61: 2.018664931 | M61: 9.72073586 | N61: 11.5065755 | O61: 11.22682249 | P61: 8.165451765 | Q61: 11.76240141 | R61: 1.143101815 | S61: 0 | T61: 0.1033016485 | U61: 10.92316342 | V61: 13.12887279 | W61: 0.5303653781 | X61: 0.6635262138 | Y61: 0.09620287544 | Z61: 8.743312506 | AA61: 0.2989362545 | AB61: 0.08076590118 | AC61: 0.1133254629 | AD61: 1.319554016 | AE61: 2.057096685 | AF61: 2.862125914 | AG61: 1.461411637
B62: Tankers | C62: 28.12646783 | D62: 25.89336829 | E62: 26.15826893 | F62: 20.55279344 | G62: 12.55138931 | H62: 28.53307284 | I62: 28.3268331 | J62: 26.47106639 | K62: 21.21761751 | L62: 11.79730956 | M62: 30.80332404 | N62: 17.39785145 | O62: 16.36843289 | P62: 11.62453651 | Q62: 9.507226227 | R62: 1.83455103 | S62: 67.93818328 | T62: 61.95881951 | U62: 17.10375187 | V62: 28.2711327 | W62: 4.647051395 | X62: 0.4504333216 | Y62: 30.01327422 | Z62: 2.88827504 | AA62: 23.47483486 | AB62: 0.5453959261 | AC62: 37.53659684 | AD62: 2.478886569 | AE62: 0 | AF62: 39.10706979 | AG62: 0.1877160322
B63: Bottled mineral water | C63: 0.1288253352 | D63: 0.340481668 | E63: 0.2288814724 | F63: 0.2634543714 | G63: 1.872053351 | H63: 0.1260452718 | I63: 0.3349551318 | J63: 0.2346765365 | K63: 0.2656881916 | L63: 2.407950328 | M63: 0.2125618475 | N63: 0.3343972282 | O63: 0.3095795671 | P63: 0.6435645181 | Q63: 0.3161251298 | R63: 1.885188966 | S63: 0.1110875802 | T63: 0.5897514512 | U63: 0.3872483154 | V63: 0.6215793808 | W63: 3.208661424 | X63: 1.940644796 | Y63: 0.05028786671 | Z63: 0.3658540873 | AA63: 0.2435990973 | AB63: 0 | AC63: 0 | AD63: 0.1663445112 | AE63: 0 | AF63: 0.7801724128 | AG63: 0.08532546917
B64: Purchased gallons (quest. code 98) | C64: 23.39572379 | D64: 18.04982901 | E64: 17.71169604 | F64: 9.50132978 | G64: 3.878056341 | H64: 30.38575222 | I64: 21.82790747 | J64: 14.46522516 | K64: 10.62354133 | L64: 3.6178586 | M64: 2.444956754 | N64: 2.794772682 | O64: 1.207656051 | P64: 2.35657061 | Q64: 0.5156689619 | R64: 0 | S64: 27.62343893 | T64: 29.7054996 | U64: 0.04392947346 | V64: 0.1044355954 | W64: 3.948391123 | X64: 0.0787919783 | Y64: 41.7926755 | Z64: 1.252575246 | AA64: 56.67804209 | AB64: 0 | AC64: 43.36038925 | AD64: 0 | AE64: 0 | AF64: 0 | AG64: 0
B65: Other | C65: 1.692562543 | D65: 0.7454414814 | E65: 0.3211419606 | F65: 0.282687025 | G65: 0.06825445467 | H65: 2.075278345 | I65: 0.949198382 | J65: 0.5751634695 | K65: 0.2373690979 | L65: 0.0934638857 | M65: 0.5778516935 | N65: 0.2939595259 | O65: 0.5197558367 | P65: 0 | Q65: 0 | R65: 0.2189768484 | S65: 0.02221751604 | T65: 0 | U65: 0.09712408938 | V65: 0 | W65: 0.9929042382 | X65: 0 | Y65: 7.692047821 | Z65: 0.08244713515 | AA65: 0.1382071368 | AB65: 0 | AC65: 0.3317345368 | AD65: 0 | AE65: 0 | AF65: 0 | AG65: 0.08532546917
A108: =A1026 -> State of Palestine
A109: =A1035 -> 2011
A110: Use of sanitation facilities
A111: by wealth quintile and sub-national region
A112: Notes:
A113: WHO/UNICEF JMP customised wealth index excludes water,
A114: sanitation and hygiene assets.
A115: Survey used for analysis: | B115: =A1025 -> MICS11
A116: =B1030 -> 
A117: =B1029 -> 
A120: Use of sanitation facilities | C120: NATIONAL wealth index quintile | H120: URBAN wealth index quintile | M120: RURAL wealth index quintile | R120: SUB-REGIONS: | BA120: Raw numbers of respondents: | BB120: Use of sanitation facilities | BC120: NATIONAL wealth index quintile | BH120: URBAN wealth index quintile | BM120: RURAL wealth index quintile | BR120: SUB-REGIONS:
A121: Weighted percentage (used in graphs) | C121: Poorest | D121: Poor | E121: Middle | F121: Rich | G121: Richest | H121: Poorest | I121: Poor | J121: Middle | K121: Rich | L121: Richest | M121: Poorest | N121: Poor | O121: Middle | P121: Rich | Q121: Richest | R121: Bethlehem | S121: Dier El-Balah | T121: Gaza | U121: Hebron | V121: Jenin | W121: Jericho | X121: Jerusalem | Y121: Khan Yunis | Z121: Nablus | AA121: North Gaza | AB121: Qalqiliya | AC121: Rafah | AD121: Ramallah & Al-Bireh | AE121: Salfit | AF121: Tubas | AG121: Tulkarm | BA121: Sanitation data, raw numbers (weighted) | BC121: Poorest | BD121: Poor | BE121: Middle | BF121: Rich | BG121: Richest | BH121: Poorest | BI121: Poor | BJ121: Middle | BK121: Rich | BL121: Richest | BM121: Poorest | BN121: Poor | BO121: Middle | BP121: Rich | BQ121: Richest | BR121: Bethlehem | BS121: Dier El-Balah | BT121: Gaza | BU121: Hebron | BV121: Jenin | BW121: Jericho | BX121: Jerusalem | BY121: Khan Yunis | BZ121: Nablus | CA121: North Gaza | CB121: Qalqiliya | CC121: Rafah | CD121: Ramallah & Al-Bireh | CE121: Salfit | CF121: Tubas | CG121: Tulkarm
A122: Sanitation | B122: Improved | C122: 94.97335715 | D122: 99.58664532 | E122: 99.79231433 | F122: 99.36630684 | G122: 99.73523187 | H122: 98.33857143 | I122: 99.71571196 | J122: 99.711731 | K122: 99.79116767 | L122: 99.82931467 | M122: 78.66281877 | N122: 98.64329212 | O122: 99.22179962 | P122: 98.06014807 | Q122: 98.73415881 | R122: 96.01267311 | S122: 99.64914839 | T122: 99.94613252 | U122: 98.51477128 | V122: 99.69590149 | W122: 98.12451422 | X122: 97.66058175 | Y122: 99.71795066 | Z122: 98.73838775 | AA122: 99.93862493 | AB122: 100 | AC122: 99.55853657 | AD122: 96.52362075 | AE122: 99.74068832 | AF122: 87.47593567 | AG122: 99.61990248 | BA122: Sanitation | BB122: Improved | BC122: 15358.33895 | BD122: 16088.16656 | BE122: 16129.26678 | BF122: 16059.75967 | BG122: 16121.4224 | BH122: 11604.7626 | BI122: 11777.86359 | BJ122: 11770.848 | BK122: 11780.54299 | BL122: 11780.11111 | BM122: 2204.325344 | BN122: 2765.246047 | BO122: 2781.824142 | BP122: 2746.273537 | BQ122: 2766.427615 | BR122: 3612.881009 | BS122: 4182.670169 | BT122: 10242.62063 | BU122: 11855.22928 | BV122: 5458.898096 | BW122: 845.8839989 | BX122: 7556.075904 | BY122: 5739.580399 | BZ122: 6792.078966 | CA122: 5797.949737 | CB122: 2015.758167 | CC122: 3853.126445 | CD122: 5994.830361 | CE122: 1314.462011 | CF122: 971.9600442 | CG122: 3522.949138
B123: Not Improved | C123: 5.026642853 | D123: 0.4133546799 | E123: 0.2076856664 | F123: 0.6336931567 | G123: 0.2647681349 | H123: 1.66142857 | I123: 0.2842880377 | J123: 0.2882689982 | K123: 0.2088323319 | L123: 0.1706853325 | M123: 21.33718123 | N123: 1.356707876 | O123: 0.7782003806 | P123: 1.939851925 | Q123: 1.265841187 | R123: 3.987326887 | S123: 0.3508516074 | T123: 0.05386747955 | U123: 1.485228722 | V123: 0.3040985131 | W123: 1.875485783 | X123: 2.33941825 | Y123: 0.2820493393 | Z123: 1.261612245 | AA123: 0.06137506916 | AB123: 0 | AC123: 0.4414634319 | AD123: 3.476379247 | AE123: 0.2593116781 | AF123: 12.52406433 | AG123: 0.3800975213 | BB123: Not Improved | BC123: 812.8688615 | BD123: 66.77721613 | BE123: 33.56789091 | BF123: 102.4186178 | BG123: 42.79770409 | BH123: 196.0622759 | BI123: 33.57851699 | BJ123: 34.02980299 | BK123: 24.65306621 | BL123: 20.14130006 | BM123: 597.9202132 | BN123: 38.03229808 | BO123: 21.81795346 | BP123: 54.32751341 | BQ123: 35.46754293 | BR123: 150.0399595 | BS123: 14.72663415 | BT123: 5.520415284 | BU123: 178.7318471 | BV123: 16.65106358 | BW123: 16.16765624 | BX123: 181.0026271 | BY123: 16.23423716 | BZ123: 86.78458488 | CA123: 3.560681031 | CB123: 0 | CC123: 17.08557079 | CD123: 215.908849 | CE123: 3.417415254 | CF123: 139.1570153 | CG123: 13.44173405
A124: Sanitation ladder | B124: Basic | C124: =C122*C129/100 -> 86.57472619 | D124: =D122*D129/100 -> 92.02387997 | E124: =E122*E129/100 -> 91.70635937 | F124: 90.71248839 | G124: 92.7589942 | H124: 89.07753654 | I124: 91.65104424 | J124: 91.12779336 | K124: 91.52053615 | L124: 93.15308279 | M124: 72.37592535 | N124: 92.14303762 | O124: 91.04070083 | P124: 90.32869402 | Q124: 91.69733642 | R124: 90.8630091 | S124: 98.86936769 | T124: 95.63663036 | U124: 85.08148538 | V124: 85.76150413 | W124: 95.46285944 | X124: 88.32353064 | Y124: 94.58964064 | Z124: 97.32295758 | AA124: 92.83605167 | AB124: 95.31830098 | AC124: 96.64076478 | AD124: 80.09045589 | AE124: 66.53304375 | AF124: 78.44155312 | AG124: 98.21867452 | BA124: Sanitation ladder | BB124: Basic | BC124: 14000.17888 | BD124: 14866.40607 | BE124: 14822.34725 | BF124: 14661.1141 | BG124: 14993.76799 | BH124: 10511.88409 | BI124: 10825.31003 | BJ124: 10757.52465 | BK124: 10804.17873 | BL124: 10992.29889 | BM124: 2028.151153 | BN124: 2583.02582 | BO124: 2552.455413 | BP124: 2529.746354 | BQ124: 2569.263229 | BR124: 3419.103222 | BS124: 4149.939678 | BT124: 9800.976773 | BU124: 10238.67288 | BV124: 4695.913319 | BW124: 822.9391599 | BX124: 6833.660926 | BY124: 5444.404381 | BZ124: 6694.713455 | CA124: 5385.893209 | CB124: 1921.386437 | CC124: 3740.202491 | CD124: 4974.209348 | CE124: 876.825295 | CF124: 871.5774784 | CG124: 3473.39624
B125: Limited | C125: =C122*C128/100 -> 8.398630957 | D125: =D122*D128/100 -> 7.562765353 | E125: =E122*E128/100 -> 8.085954967 | F125: 8.653818451 | G125: 6.976237669 | H125: 9.261034889 | I125: 8.06466772 | J125: 8.583937641 | K125: 8.270631518 | L125: 6.67623188 | M125: 6.286893421 | N125: 6.500254504 | O125: 8.181098785 | P125: 7.731454059 | Q125: 7.03682239 | R125: 5.149664012 | S125: 0.7797807058 | T125: 4.30950216 | U125: 13.43328589 | V125: 13.93439735 | W125: 2.661654773 | X125: 9.337051115 | Y125: 5.128310016 | Z125: 1.41543018 | AA125: 7.10257326 | AB125: 4.681699022 | AC125: 2.917771785 | AD125: 16.43316486 | AE125: 33.20764458 | AF125: 9.03438255 | AG125: 1.401227963 | BB125: Limited | BC125: 1358.160065 | BD125: 1221.760491 | BE125: 1306.919533 | BF125: 1398.645567 | BG125: 1127.654412 | BH125: 1092.878509 | BI125: 952.5535588 | BJ125: 1013.32335 | BK125: 976.3642659 | BL125: 787.8122132 | BM125: 176.1741916 | BN125: 182.2202269 | BO125: 229.3687294 | BP125: 216.5271836 | BQ125: 197.1643858 | BR125: 193.7777869 | BS125: 32.73049041 | BT125: 441.6438598 | BU125: 1616.556402 | BV125: 762.9847771 | BW125: 22.94483902 | BX125: 722.4149773 | BY125: 295.1760185 | BZ125: 97.36551072 | CA125: 412.0565276 | CB125: 94.3717304 | CC125: 112.9239542 | CD125: 1020.621014 | CE125: 437.6367157 | CF125: 100.3825657 | CG125: 49.55289778
B126: Unimproved | C126: =100-C124-C125-C127 -> 2.609874418 | D126: =100-D124-D125-D127 -> 0.3849280449 | E126: =100-E124-E125-E127 -> 0.2076856664 | F126: 0.544874372 | G126: 0.2647681349 | H126: 1.334776241 | I126: 0.2842880377 | J126: 0.249367224 | K126: 0.1777117515 | L126: 0.1706853325 | M126: 9.155244793 | N126: 0.9676917781 | O126: 0.7782003806 | P126: 1.558462194 | Q126: 1.265841187 | R126: 0.7278221096 | S126: 0.2443926764 | T126: 0.05386747955 | U126: 0.7922308062 | V126: 0.2488483934 | W126: 1.875485783 | X126: 1.747018626 | Y126: 0.2652867171 | Z126: 0.9201749461 | AA126: 4.472117121e-14 | AB126: 3.552713679e-15 | AC126: 0.3956088886 | AD126: 3.170196924 | AE126: 0.2593116781 | AF126: 3.464102899 | AG126: 0.3540258502 | BB126: Unimproved | BC126: 422.0482155 | BD126: 62.18490923 | BE126: 33.56789091 | BF126: 88.06356745 | BG126: 42.79770409 | BH126: 157.5146067 | BI126: 33.57851699 | BJ126: 29.43749609 | BK126: 20.97922068 | BL126: 20.14130006 | BM126: 256.5524405 | BN126: 27.12709406 | BO126: 21.81795346 | BP126: 43.64630859 | BQ126: 35.46754293 | BR126: 27.38737077 | BS126: 10.25813039 | BT126: 5.520415284 | BU126: 95.33674726 | BV126: 13.62581611 | BW126: 16.16765624 | BX126: 135.168203 | BY126: 15.26941169 | BZ126: 63.29757897 | CA126: 0 | CB126: 0 | CC126: 15.31090274 | CD126: 196.8926634 | CE126: 3.417415254 | CF126: 38.49023826 | CG126: 12.51973785
B127: Open defecation | C127: 2.416768436 | D127: 0.02842663503 | E127: 0 | F127: 0.08881878474 | G127: 0 | H127: 0.3266523286 | I127: 0 | J127: 0.03890177417 | K127: 0.03112058035 | L127: 0 | M127: 12.18193644 | N127: 0.3890160974 | O127: 0 | P127: 0.3813897312 | Q127: 0 | R127: 3.259504778 | S127: 0.106458931 | T127: 0 | U127: 0.6929979162 | V127: 0.05525011974 | W127: 0 | X127: 0.592399624 | Y127: 0.01676262224 | Z127: 0.341437299 | AA127: 0.06137506916 | AB127: 0 | AC127: 0.04585454331 | AD127: 0.306182323 | AE127: 0 | AF127: 9.059961427 | AG127: 0.02607167114 | BB127: Open defecation | BC127: 390.8206459 | BD127: 4.592306906 | BE127: 0 | BF127: 14.35505034 | BG127: 0 | BH127: 38.54766924 | BI127: 0 | BJ127: 4.592306906 | BK127: 3.673845525 | BL127: 0 | BM127: 341.3677727 | BN127: 10.90520402 | BO127: 0 | BP127: 10.68120482 | BQ127: 0 | BR127: 122.6525887 | BS127: 4.468503766 | BT127: 0 | BU127: 83.39509985 | BV127: 3.025247467 | BW127: 0 | BX127: 45.83442413 | BY127: 0.9648254641 | BZ127: 23.48700591 | CA127: 3.560681031 | CB127: 0 | CC127: 1.774668045 | CD127: 19.01618559 | CE127: 0 | CF127: 100.666777 | CG127: 0.9219961982
A128: Shared among Improved Sanitation | B128: Yes | C128: 8.843144235 | D128: 7.594156153 | E128: 8.102783286 | F128: 8.709006831 | G128: 6.994757558 | H128: 9.417499923 | I128: 8.08765997 | J128: 8.60875401 | K128: 8.287939415 | L128: 6.687646712 | M128: 7.992204601 | N128: 6.589656898 | O128: 8.245263457 | P128: 7.884399739 | Q128: 7.12703939 | R128: 5.363525298 | S128: 0.7825262116 | T128: 4.311824831 | U128: 13.63580884 | V128: 13.9769009 | W128: 2.712527847 | X128: 9.560716256 | Y128: 5.142815293 | Z128: 1.433515588 | AA128: 7.106935146 | AB128: 4.681699022 | AC128: 2.930709797 | AD128: 17.02501909 | AE128: 33.29397975 | AF128: 10.327849 | AG128: 1.406574317 | BA128: Shared among improved sanitation facilities | BB128: Yes | BC128: N/A | BD128: N/A | BE128: N/A | BF128: N/A | BG128: N/A | BH128: N/A | BI128: N/A | BJ128: N/A | BK128: N/A | BL128: N/A | BM128: N/A | BN128: N/A | BO128: N/A | BP128: N/A | BQ128: N/A | BR128: N/A | BS128: N/A | BT128: N/A | BU128: N/A | BV128: N/A | BW128: N/A | BX128: N/A | BY128: N/A | BZ128: N/A | CA128: N/A | CB128: N/A | CC128: N/A | CD128: N/A | CE128: N/A | CF128: N/A | CG128: N/A
B129: No | C129: 91.15685577 | D129: 92.40584385 | E129: 91.89721671 | F129: 91.29099317 | G129: 93.00524244 | H129: 90.58250008 | I129: 91.91234003 | J129: 91.39124599 | K129: 91.71206058 | L129: 93.31235329 | M129: 92.0077954 | N129: 93.4103431 | O129: 91.75473654 | P129: 92.11560026 | Q129: 92.87296061 | R129: 94.6364747 | S129: 99.21747379 | T129: 95.68817517 | U129: 86.36419116 | V129: 86.0230991 | W129: 97.28747215 | X129: 90.43928374 | Y129: 94.85718471 | Z129: 98.56648441 | AA129: 92.89306485 | AB129: 95.31830098 | AC129: 97.0692902 | AD129: 82.97498091 | AE129: 66.70602025 | AF129: 89.672151 | AG129: 98.59342568 | BB129: No | BC129: N/A | BD129: N/A | BE129: N/A | BF129: N/A | BG129: N/A | BH129: N/A | BI129: N/A | BJ129: N/A | BK129: N/A | BL129: N/A | BM129: N/A | BN129: N/A | BO129: N/A | BP129: N/A | BQ129: N/A | BR129: N/A | BS129: N/A | BT129: N/A | BU129: N/A | BV129: N/A | BW129: N/A | BX129: N/A | BY129: N/A | BZ129: N/A | CA129: N/A | CB129: N/A | CC129: N/A | CD129: N/A | CE129: N/A | CF129: N/A | CG129: N/A
A130: Manually calculated ratios | B130: Improved latrines
B131: Other
B132: Other
C133: NATIONAL wealth index quintile | H133: URBAN wealth index quintile | M133: RURAL wealth index quintile | R133: SUB-REGIONS: | BA133: Raw numbers of respondents: | BB133: Use of sanitation facilities | BC133: NATIONAL wealth index quintile | BH133: URBAN wealth index quintile | BM133: RURAL wealth index quintile | BR133: SUB-REGIONS:
A134: Percentage based on weighted population | C134: Poorest | D134: Poor | E134: Middle | F134: Rich | G134: Richest | H134: Poorest | I134: Poor | J134: Middle | K134: Rich | L134: Richest | M134: Poorest | N134: Poor | O134: Middle | P134: Rich | Q134: Richest | R134: Bethlehem | S134: Dier El-Balah | T134: Gaza | U134: Hebron | V134: Jenin | W134: Jericho | X134: Jerusalem | Y134: Khan Yunis | Z134: Nablus | AA134: North Gaza | AB134: Qalqiliya | AC134: Rafah | AD134: Ramallah & Al-Bireh | AE134: Salfit | AF134: Tubas | AG134: Tulkarm | BA134: Sanitation data, raw numbers (weighted) | BC134: Poorest | BD134: Poor | BE134: Middle | BF134: Rich | BG134: Richest | BH134: Poorest | BI134: Poor | BJ134: Middle | BK134: Rich | BL134: Richest | BM134: Poorest | BN134: Poor | BO134: Middle | BP134: Rich | BQ134: Richest | BR134: Bethlehem | BS134: Dier El-Balah | BT134: Gaza | BU134: Hebron | BV134: Jenin | BW134: Jericho | BX134: Jerusalem | BY134: Khan Yunis | BZ134: Nablus | CA134: North Gaza | CB134: Qalqiliya | CC134: Rafah | CD134: Ramallah & Al-Bireh | CE134: Salfit | CF134: Tubas | CG134: Tulkarm
A135: Sanitation type | B135: Sewer connection | C135: 41.87470059 | D135: 50.28352294 | E135: 67.60241343 | F135: 53.27986717 | G135: 62.98171062 | H135: 54.23379704 | I135: 59.37744911 | J135: 60.75591364 | K135: 65.22391562 | L135: 70.48310204 | M135: 3.279086511 | N135: 7.444482349 | O135: 7.210508828 | P135: 10.75453647 | Q135: 11.99579385 | R135: 39.50054602 | S135: 90.01286411 | T135: 96.4660471 | U135: 28.19097894 | V135: 11.12514477 | W135: 16.84075519 | X135: 73.17107495 | Y135: 45.44599101 | Z135: 56.2606937 | AA135: 93.12243659 | AB135: 52.97657693 | AC135: 77.18194219 | AD135: 29.98876277 | AE135: 19.21387815 | AF135: 9.398476081 | AG135: 42.15739828 | BA135: Sanitation type | BB135: Sewer connection | BC135: N/A | BD135: N/A | BE135: N/A | BF135: N/A | BG135: N/A | BH135: N/A | BI135: N/A | BJ135: N/A | BK135: N/A | BL135: N/A | BM135: N/A | BN135: N/A | BO135: N/A | BP135: N/A | BQ135: N/A | BR135: N/A | BS135: N/A | BT135: N/A | BU135: N/A | BV135: N/A | BW135: N/A | BX135: N/A | BY135: N/A | BZ135: N/A | CA135: N/A | CB135: N/A | CC135: N/A | CD135: N/A | CE135: N/A | CF135: N/A | CG135: N/A
B136: Septic tank connection | C136: 34.53814877 | D136: 32.71792823 | E136: 22.28309843 | F136: 32.81904155 | G136: 26.68211557 | H136: 26.86639272 | I136: 26.75796495 | J136: 26.52754386 | K136: 24.55892487 | L136: 21.55013829 | M136: 54.39410422 | N136: 62.2990966 | O136: 61.10199434 | P136: 62.88181547 | Q136: 61.75978313 | R136: 36.94201114 | S136: 2.680708432 | T136: 1.283078257 | U136: 54.72815154 | V136: 50.97090146 | W136: 74.67937586 | X136: 18.53043801 | Y136: 37.59133542 | Z136: 28.09527971 | AA136: 1.004195453 | AB136: 39.90039162 | AC136: 7.738235546 | AD136: 51.33587364 | AE136: 51.23037427 | AF136: 38.78954977 | AG136: 40.9528655 | BB136: Septic tank connection | BC136: N/A | BD136: N/A | BE136: N/A | BF136: N/A | BG136: N/A | BH136: N/A | BI136: N/A | BJ136: N/A | BK136: N/A | BL136: N/A | BM136: N/A | BN136: N/A | BO136: N/A | BP136: N/A | BQ136: N/A | BR136: N/A | BS136: N/A | BT136: N/A | BU136: N/A | BV136: N/A | BW136: N/A | BX136: N/A | BY136: N/A | BZ136: N/A | CA136: N/A | CB136: N/A | CC136: N/A | CD136: N/A | CE136: N/A | CF136: N/A | CG136: N/A
B137: Improved latrines | C137: 18.56050779 | D137: 16.58519415 | E137: 9.906802472 | F137: 13.26739812 | G137: 10.07140568 | H137: 17.23838166 | I137: 13.5802979 | J137: 12.42827351 | K137: 10.00832718 | L137: 7.796074342 | M137: 20.98962804 | N137: 28.89971318 | O137: 30.90929645 | P137: 24.42379613 | Q137: 24.97858183 | R137: 19.57011595 | S137: 6.95557585 | T137: 2.197007161 | U137: 15.5956408 | V137: 37.59985525 | W137: 6.604383164 | X137: 5.959068789 | Y137: 16.68062423 | Z137: 14.38241435 | AA137: 5.811992887 | AB137: 7.123031455 | AC137: 14.63835883 | AD137: 15.19898435 | AE137: 29.2964359 | AF137: 39.28790982 | AG137: 16.50963869 | BB137: Improved latrines | BC137: N/A | BD137: N/A | BE137: N/A | BF137: N/A | BG137: N/A | BH137: N/A | BI137: N/A | BJ137: N/A | BK137: N/A | BL137: N/A | BM137: N/A | BN137: N/A | BO137: N/A | BP137: N/A | BQ137: N/A | BR137: N/A | BS137: N/A | BT137: N/A | BU137: N/A | BV137: N/A | BW137: N/A | BX137: N/A | BY137: N/A | BZ137: N/A | CA137: N/A | CB137: N/A | CC137: N/A | CD137: N/A | CE137: N/A | CF137: N/A | CG137: N/A
B138: Unimproved facilities | C138: 2.609874418 | D138: 0.3849280449 | E138: 0.2076856664 | F138: 0.544874372 | G138: 0.2647681349 | H138: 1.334776241 | I138: 0.2842880377 | J138: 0.249367224 | K138: 0.1777117515 | L138: 0.1706853325 | M138: 9.155244793 | N138: 0.9676917781 | O138: 0.7782003806 | P138: 1.558462194 | Q138: 1.265841187 | R138: 0.7278221096 | S138: 0.2443926764 | T138: 0.05386747955 | U138: 0.7922308062 | V138: 0.2488483934 | W138: 1.875485783 | X138: 1.747018626 | Y138: 0.2652867171 | Z138: 0.9201749461 | AA138: 0 | AB138: 0 | AC138: 0.3956088886 | AD138: 3.170196924 | AE138: 0.2593116781 | AF138: 3.464102899 | AG138: 0.3540258502 | BB138: Unimproved facilities | BC138: N/A | BD138: N/A | BE138: N/A | BF138: N/A | BG138: N/A | BH138: N/A | BI138: N/A | BJ138: N/A | BK138: N/A | BL138: N/A | BM138: N/A | BN138: N/A | BO138: N/A | BP138: N/A | BQ138: N/A | BR138: N/A | BS138: N/A | BT138: N/A | BU138: N/A | BV138: N/A | BW138: N/A | BX138: N/A | BY138: N/A | BZ138: N/A | CA138: N/A | CB138: N/A | CC138: N/A | CD138: N/A | CE138: N/A | CF138: N/A | CG138: N/A
B139: Open defecation | C139: 2.416768436 | D139: 0.02842663503 | E139: 0 | F139: 0.08881878474 | G139: 0 | H139: 0.3266523286 | I139: 0 | J139: 0.03890177417 | K139: 0.03112058035 | L139: 0 | M139: 12.18193644 | N139: 0.3890160974 | O139: 0 | P139: 0.3813897312 | Q139: 0 | R139: 3.259504778 | S139: 0.106458931 | T139: 0 | U139: 0.6929979162 | V139: 0.05525011974 | W139: 0 | X139: 0.592399624 | Y139: 0.01676262224 | Z139: 0.341437299 | AA139: 0.06137506916 | AB139: 0 | AC139: 0.04585454331 | AD139: 0.306182323 | AE139: 0 | AF139: 9.059961427 | AG139: 0.02607167114 | BB139: Open defecation | BC139: N/A | BD139: N/A | BE139: N/A | BF139: N/A | BG139: N/A | BH139: N/A | BI139: N/A | BJ139: N/A | BK139: N/A | BL139: N/A | BM139: N/A | BN139: N/A | BO139: N/A | BP139: N/A | BQ139: N/A | BR139: N/A | BS139: N/A | BT139: N/A | BU139: N/A | BV139: N/A | BW139: N/A | BX139: N/A | BY139: N/A | BZ139: N/A | CA139: N/A | CB139: N/A | CC139: N/A | CD139: N/A | CE139: N/A | CF139: N/A | CG139: N/A
A140: Septic tank emptying practices | B140: Not emptied/treated and disposed in situ | C140: N/A | D140: N/A | E140: N/A | F140: N/A | G140: N/A | H140: N/A | I140: N/A | J140: N/A | K140: N/A | L140: N/A | M140: N/A | N140: N/A | O140: N/A | P140: N/A | Q140: N/A | R140: N/A | S140: N/A | T140: N/A | U140: N/A | V140: N/A | W140: N/A | X140: N/A | Y140: N/A | Z140: N/A | AA140: N/A | AB140: N/A | AC140: N/A | AD140: N/A | AE140: N/A | AF140: N/A | AG140: N/A | BA140: Septic tank emptying practices | BB140: Not emptied/treated and disposed in situ | BC140: N/A | BD140: N/A | BE140: N/A | BF140: N/A | BG140: N/A | BH140: N/A | BI140: N/A | BJ140: N/A | BK140: N/A | BL140: N/A | BM140: N/A | BN140: N/A | BO140: N/A | BP140: N/A | BQ140: N/A | BR140: N/A | BS140: N/A | BT140: N/A | BU140: N/A | BV140: N/A | BW140: N/A | BX140: N/A | BY140: N/A | BZ140: N/A | CA140: N/A | CB140: N/A | CC140: N/A | CD140: N/A | CE140: N/A | CF140: N/A | CG140: N/A
B141: Emptied and buried on site | C141: N/A | D141: N/A | E141: N/A | F141: N/A | G141: N/A | H141: N/A | I141: N/A | J141: N/A | K141: N/A | L141: N/A | M141: N/A | N141: N/A | O141: N/A | P141: N/A | Q141: N/A | R141: N/A | S141: N/A | T141: N/A | U141: N/A | V141: N/A | W141: N/A | X141: N/A | Y141: N/A | Z141: N/A | AA141: N/A | AB141: N/A | AC141: N/A | AD141: N/A | AE141: N/A | AF141: N/A | AG141: N/A | BB141: Emptied and buried on site | BC141: N/A | BD141: N/A | BE141: N/A | BF141: N/A | BG141: N/A | BH141: N/A | BI141: N/A | BJ141: N/A | BK141: N/A | BL141: N/A | BM141: N/A | BN141: N/A | BO141: N/A | BP141: N/A | BQ141: N/A | BR141: N/A | BS141: N/A | BT141: N/A | BU141: N/A | BV141: N/A | BW141: N/A | BX141: N/A | BY141: N/A | BZ141: N/A | CA141: N/A | CB141: N/A | CC141: N/A | CD141: N/A | CE141: N/A | CF141: N/A | CG141: N/A
B142: Emptied and discharged locally | C142: N/A | D142: N/A | E142: N/A | F142: N/A | G142: N/A | H142: N/A | I142: N/A | J142: N/A | K142: N/A | L142: N/A | M142: N/A | N142: N/A | O142: N/A | P142: N/A | Q142: N/A | R142: N/A | S142: N/A | T142: N/A | U142: N/A | V142: N/A | W142: N/A | X142: N/A | Y142: N/A | Z142: N/A | AA142: N/A | AB142: N/A | AC142: N/A | AD142: N/A | AE142: N/A | AF142: N/A | AG142: N/A | BB142: Emptied and discharged locally | BC142: N/A | BD142: N/A | BE142: N/A | BF142: N/A | BG142: N/A | BH142: N/A | BI142: N/A | BJ142: N/A | BK142: N/A | BL142: N/A | BM142: N/A | BN142: N/A | BO142: N/A | BP142: N/A | BQ142: N/A | BR142: N/A | BS142: N/A | BT142: N/A | BU142: N/A | BV142: N/A | BW142: N/A | BX142: N/A | BY142: N/A | BZ142: N/A | CA142: N/A | CB142: N/A | CC142: N/A | CD142: N/A | CE142: N/A | CF142: N/A | CG142: N/A
B143: Emptied and removed offsite | C143: N/A | D143: N/A | E143: N/A | F143: N/A | G143: N/A | H143: N/A | I143: N/A | J143: N/A | K143: N/A | L143: N/A | M143: N/A | N143: N/A | O143: N/A | P143: N/A | Q143: N/A | R143: N/A | S143: N/A | T143: N/A | U143: N/A | V143: N/A | W143: N/A | X143: N/A | Y143: N/A | Z143: N/A | AA143: N/A | AB143: N/A | AC143: N/A | AD143: N/A | AE143: N/A | AF143: N/A | AG143: N/A | BB143: Emptied and removed offsite | BC143: N/A | BD143: N/A | BE143: N/A | BF143: N/A | BG143: N/A | BH143: N/A | BI143: N/A | BJ143: N/A | BK143: N/A | BL143: N/A | BM143: N/A | BN143: N/A | BO143: N/A | BP143: N/A | BQ143: N/A | BR143: N/A | BS143: N/A | BT143: N/A | BU143: N/A | BV143: N/A | BW143: N/A | BX143: N/A | BY143: N/A | BZ143: N/A | CA143: N/A | CB143: N/A | CC143: N/A | CD143: N/A | CE143: N/A | CF143: N/A | CG143: N/A
A144: Latrine emptying practices | B144: Not emptied/treated and disposed in situ | C144: N/A | D144: N/A | E144: N/A | F144: N/A | G144: N/A | H144: N/A | I144: N/A | J144: N/A | K144: N/A | L144: N/A | M144: N/A | N144: N/A | O144: N/A | P144: N/A | Q144: N/A | R144: N/A | S144: N/A | T144: N/A | U144: N/A | V144: N/A | W144: N/A | X144: N/A | Y144: N/A | Z144: N/A | AA144: N/A | AB144: N/A | AC144: N/A | AD144: N/A | AE144: N/A | AF144: N/A | AG144: N/A | BA144: Latrine emptying practices | BB144: Not emptied/treated and disposed in situ | BC144: N/A | BD144: N/A | BE144: N/A | BF144: N/A | BG144: N/A | BH144: N/A | BI144: N/A | BJ144: N/A | BK144: N/A | BL144: N/A | BM144: N/A | BN144: N/A | BO144: N/A | BP144: N/A | BQ144: N/A | BR144: N/A | BS144: N/A | BT144: N/A | BU144: N/A | BV144: N/A | BW144: N/A | BX144: N/A | BY144: N/A | BZ144: N/A | CA144: N/A | CB144: N/A | CC144: N/A | CD144: N/A | CE144: N/A | CF144: N/A | CG144: N/A
B145: Emptied and buried on site | C145: N/A | D145: N/A | E145: N/A | F145: N/A | G145: N/A | H145: N/A | I145: N/A | J145: N/A | K145: N/A | L145: N/A | M145: N/A | N145: N/A | O145: N/A | P145: N/A | Q145: N/A | R145: N/A | S145: N/A | T145: N/A | U145: N/A | V145: N/A | W145: N/A | X145: N/A | Y145: N/A | Z145: N/A | AA145: N/A | AB145: N/A | AC145: N/A | AD145: N/A | AE145: N/A | AF145: N/A | AG145: N/A | BB145: Emptied and buried on site | BC145: N/A | BD145: N/A | BE145: N/A | BF145: N/A | BG145: N/A | BH145: N/A | BI145: N/A | BJ145: N/A | BK145: N/A | BL145: N/A | BM145: N/A | BN145: N/A | BO145: N/A | BP145: N/A | BQ145: N/A | BR145: N/A | BS145: N/A | BT145: N/A | BU145: N/A | BV145: N/A | BW145: N/A | BX145: N/A | BY145: N/A | BZ145: N/A | CA145: N/A | CB145: N/A | CC145: N/A | CD145: N/A | CE145: N/A | CF145: N/A | CG145: N/A
B146: Emptied and discharged locally | C146: N/A | D146: N/A | E146: N/A | F146: N/A | G146: N/A | H146: N/A | I146: N/A | J146: N/A | K146: N/A | L146: N/A | M146: N/A | N146: N/A | O146: N/A | P146: N/A | Q146: N/A | R146: N/A | S146: N/A | T146: N/A | U146: N/A | V146: N/A | W146: N/A | X146: N/A | Y146: N/A | Z146: N/A | AA146: N/A | AB146: N/A | AC146: N/A | AD146: N/A | AE146: N/A | AF146: N/A | AG146: N/A | BB146: Emptied and discharged locally | BC146: N/A | BD146: N/A | BE146: N/A | BF146: N/A | BG146: N/A | BH146: N/A | BI146: N/A | BJ146: N/A | BK146: N/A | BL146: N/A | BM146: N/A | BN146: N/A | BO146: N/A | BP146: N/A | BQ146: N/A | BR146: N/A | BS146: N/A | BT146: N/A | BU146: N/A | BV146: N/A | BW146: N/A | BX146: N/A | BY146: N/A | BZ146: N/A | CA146: N/A | CB146: N/A | CC146: N/A | CD146: N/A | CE146: N/A | CF146: N/A | CG146: N/A
B147: Emptied and removed offsite | C147: N/A | D147: N/A | E147: N/A | F147: N/A | G147: N/A | H147: N/A | I147: N/A | J147: N/A | K147: N/A | L147: N/A | M147: N/A | N147: N/A | O147: N/A | P147: N/A | Q147: N/A | R147: N/A | S147: N/A | T147: N/A | U147: N/A | V147: N/A | W147: N/A | X147: N/A | Y147: N/A | Z147: N/A | AA147: N/A | AB147: N/A | AC147: N/A | AD147: N/A | AE147: N/A | AF147: N/A | AG147: N/A | BB147: Emptied and removed offsite | BC147: N/A | BD147: N/A | BE147: N/A | BF147: N/A | BG147: N/A | BH147: N/A | BI147: N/A | BJ147: N/A | BK147: N/A | BL147: N/A | BM147: N/A | BN147: N/A | BO147: N/A | BP147: N/A | BQ147: N/A | BR147: N/A | BS147: N/A | BT147: N/A | BU147: N/A | BV147: N/A | BW147: N/A | BX147: N/A | BY147: N/A | BZ147: N/A | CA147: N/A | CB147: N/A | CC147: N/A | CD147: N/A | CE147: N/A | CF147: N/A | CG147: N/A
A148: Shared among improved sanitation facilities | B148: Yes | C148: 8.398630957 | D148: 7.562765353 | E148: 8.085954967 | F148: 8.653818451 | G148: 6.976237669 | H148: 9.261034889 | I148: 8.06466772 | J148: 8.583937641 | K148: 8.270631518 | L148: 6.67623188 | M148: 6.286893421 | N148: 6.500254504 | O148: 8.181098785 | P148: 7.731454059 | Q148: 7.03682239 | R148: 5.149664012 | S148: 0.7797807058 | T148: 4.30950216 | U148: 13.43328589 | V148: 13.93439735 | W148: 2.661654773 | X148: 9.337051115 | Y148: 5.128310016 | Z148: 1.41543018 | AA148: 7.10257326 | AB148: 4.681699022 | AC148: 2.917771785 | AD148: 16.43316486 | AE148: 33.20764458 | AF148: 9.03438255 | AG148: 1.401227963 | BA148: Shared among improved sanitation facilities | BB148: Yes | BC148: N/A | BD148: N/A | BE148: N/A | BF148: N/A | BG148: N/A | BH148: N/A | BI148: N/A | BJ148: N/A | BK148: N/A | BL148: N/A | BM148: N/A | BN148: N/A | BO148: N/A | BP148: N/A | BQ148: N/A | BR148: N/A | BS148: N/A | BT148: N/A | BU148: N/A | BV148: N/A | BW148: N/A | BX148: N/A | BY148: N/A | BZ148: N/A | CA148: N/A | CB148: N/A | CC148: N/A | CD148: N/A | CE148: N/A | CF148: N/A | CG148: N/A
B149: No | C149: 86.57472619 | D149: 92.02387997 | E149: 91.70635937 | F149: 90.71248839 | G149: 92.7589942 | H149: 89.07753654 | I149: 91.65104424 | J149: 91.12779336 | K149: 91.52053615 | L149: 93.15308279 | M149: 72.37592535 | N149: 92.14303762 | O149: 91.04070083 | P149: 90.32869402 | Q149: 91.69733642 | R149: 90.8630091 | S149: 98.86936769 | T149: 95.63663036 | U149: 85.08148538 | V149: 85.76150413 | W149: 95.46285944 | X149: 88.32353064 | Y149: 94.58964064 | Z149: 97.32295758 | AA149: 92.83605167 | AB149: 95.31830098 | AC149: 96.64076478 | AD149: 80.09045589 | AE149: 66.53304375 | AF149: 78.44155312 | AG149: 98.21867452 | BB149: No | BC149: N/A | BD149: N/A | BE149: N/A | BF149: N/A | BG149: N/A | BH149: N/A | BI149: N/A | BJ149: N/A | BK149: N/A | BL149: N/A | BM149: N/A | BN149: N/A | BO149: N/A | BP149: N/A | BQ149: N/A | BR149: N/A | BS149: N/A | BT149: N/A | BU149: N/A | BV149: N/A | BW149: N/A | BX149: N/A | BY149: N/A | BZ149: N/A | CA149: N/A | CB149: N/A | CC149: N/A | CD149: N/A | CE149: N/A | CF149: N/A | CG149: N/A
B150: DK/missing | C150: 5.026642853 | D150: 0.4133546799 | E150: 0.2076856664 | F150: 0.6336931567 | G150: 0.2647681349 | H150: 1.66142857 | I150: 0.2842880377 | J150: 0.2882689982 | K150: 0.2088323319 | L150: 0.1706853325 | M150: 21.33718123 | N150: 1.356707876 | O150: 0.7782003806 | P150: 1.939851925 | Q150: 1.265841187 | R150: 3.987326887 | S150: 0.3508516074 | T150: 0.05386747955 | U150: 1.485228722 | V150: 0.3040985131 | W150: 1.875485783 | X150: 2.33941825 | Y150: 0.2820493393 | Z150: 1.261612245 | AA150: 0.06137506916 | AB150: 0 | AC150: 0.4414634319 | AD150: 3.476379247 | AE150: 0.2593116781 | AF150: 12.52406433 | AG150: 0.3800975213 | BB150: DK/missing | BC150: N/A | BD150: N/A | BE150: N/A | BF150: N/A | BG150: N/A | BH150: N/A | BI150: N/A | BJ150: N/A | BK150: N/A | BL150: N/A | BM150: N/A | BN150: N/A | BO150: N/A | BP150: N/A | BQ150: N/A | BR150: N/A | BS150: N/A | BT150: N/A | BU150: N/A | BV150: N/A | BW150: N/A | BX150: N/A | BY150: N/A | BZ150: N/A | CA150: N/A | CB150: N/A | CC150: N/A | CD150: N/A | CE150: N/A | CF150: N/A | CG150: N/A
A151: Shared among all sanitation facilities | B151: Yes | C151: 8.933547063 | D151: 7.564915804 | E151: 8.087155722 | F151: 8.6615115 | G151: 6.976237669 | H151: 9.408929498 | I151: 8.06466772 | J151: 8.587278244 | K151: 8.273206188 | L151: 6.67623188 | M151: 8.701177573 | N151: 6.525640295 | O151: 8.181098785 | P151: 7.761053921 | Q151: 7.03682239 | R151: 5.317824342 | S151: 1.024173382 | T151: 4.311824831 | U151: 13.54070531 | V151: 13.93725085 | W151: 2.661654773 | X151: 9.732795707 | Y151: 5.129169799 | Z151: 1.627431143 | AA151: 7.106935146 | AB151: 4.681699022 | AC151: 2.91911033 | AD151: 16.48085843 | AE151: 33.20764458 | AF151: 9.934438881 | AG151: 1.401593382 | BA151: Shared among all sanitation facilities | BB151: Yes | BC151: N/A | BD151: N/A | BE151: N/A | BF151: N/A | BG151: N/A | BH151: N/A | BI151: N/A | BJ151: N/A | BK151: N/A | BL151: N/A | BM151: N/A | BN151: N/A | BO151: N/A | BP151: N/A | BQ151: N/A | BR151: N/A | BS151: N/A | BT151: N/A | BU151: N/A | BV151: N/A | BW151: N/A | BX151: N/A | BY151: N/A | BZ151: N/A | CA151: N/A | CB151: N/A | CC151: N/A | CD151: N/A | CE151: N/A | CF151: N/A | CG151: N/A
B152: No | C152: 91.06645294 | D152: 92.4350842 | E152: 91.91284428 | F152: 91.3384885 | G152: 93.02376233 | H152: 90.5910705 | I152: 91.93533228 | J152: 91.41272176 | K152: 91.72679381 | L152: 93.32376812 | M152: 91.29882243 | N152: 93.4743597 | O152: 91.81890121 | P152: 92.23894608 | Q152: 92.96317761 | R152: 94.68217566 | S152: 98.97582662 | T152: 95.68817517 | U152: 86.45929469 | V152: 86.06274915 | W152: 97.33834523 | X152: 90.26720429 | Y152: 94.8708302 | Z152: 98.37256886 | AA152: 92.89306485 | AB152: 95.31830098 | AC152: 97.08088967 | AD152: 83.51914157 | AE152: 66.79235542 | AF152: 90.06556112 | AG152: 98.59840662 | BB152: No | BC152: N/A | BD152: N/A | BE152: N/A | BF152: N/A | BG152: N/A | BH152: N/A | BI152: N/A | BJ152: N/A | BK152: N/A | BL152: N/A | BM152: N/A | BN152: N/A | BO152: N/A | BP152: N/A | BQ152: N/A | BR152: N/A | BS152: N/A | BT152: N/A | BU152: N/A | BV152: N/A | BW152: N/A | BX152: N/A | BY152: N/A | BZ152: N/A | CA152: N/A | CB152: N/A | CC152: N/A | CD152: N/A | CE152: N/A | CF152: N/A | CG152: N/A
A153: Type of toilet facility | B153: Flush to piped sewer system | C153: 42.03608122 | D153: 50.28352294 | E153: 67.61245232 | F153: 53.27986717 | G153: 62.98171062 | H153: 54.52062408 | I153: 59.37744911 | J153: 60.75591364 | K153: 65.22391562 | L153: 70.48310204 | M153: 3.279086511 | N153: 7.444482349 | O153: 7.210508828 | P153: 10.75453647 | Q153: 11.99579385 | R153: 39.50054602 | S153: 90.01286411 | T153: 96.51803894 | U153: 28.21928557 | V153: 11.12514477 | W153: 16.84075519 | X153: 73.51765156 | Y153: 45.44599101 | Z153: 56.34602068 | AA153: 93.12243659 | AB153: 52.97657693 | AC153: 77.18194219 | AD153: 29.98876277 | AE153: 19.21387815 | AF153: 9.398476081 | AG153: 42.15739828 | BA153: Type of toilet facility | BB153: Flush to piped sewer system | BC153: 6771.64485 | BD153: 8123.274859 | BE153: 10926.46632 | BF153: 8611.187124 | BG153: 10180.50233 | BH153: 6400.035411 | BI153: 7013.333025 | BJ153: 7172.161365 | BK153: 7699.811115 | BL153: 8317.183945 | BM153: 91.88805607 | BN153: 208.6895616 | BO153: 202.1568608 | BP153: 301.1916615 | BQ153: 336.1095671 | BR153: 1486.374329 | BS153: 3778.19708 | BT153: 9885.976571 | BU153: 3392.491447 | BV153: 609.1627711 | BW153: 145.1760089 | BX153: 5661.303531 | BY153: 2615.787003 | BZ153: 3870.096353 | CA153: 5402.50786 | CB153: 1067.879676 | CC153: 2987.104801 | CD153: 1862.523848 | CE153: 253.2157471 | CF153: 104.4280711 | CG153: 1490.850385
B154: Flush to septic tank | C154: 34.67125511 | D154: 32.71792823 | E154: 22.28640744 | F154: 32.81904155 | G154: 26.68211557 | H154: 27.00848139 | I154: 26.75796495 | J154: 26.52754386 | K154: 24.55892487 | L154: 21.55013829 | M154: 54.39410422 | N154: 62.2990966 | O154: 61.10199434 | P154: 62.88181547 | Q154: 61.75978313 | R154: 36.94201114 | S154: 2.680708432 | T154: 1.283769791 | U154: 54.7831042 | V154: 50.97090146 | W154: 74.67937586 | X154: 18.61820788 | Y154: 37.59133542 | Z154: 28.13789001 | AA154: 1.004195453 | AB154: 39.90039162 | AC154: 7.738235546 | AD154: 51.33587364 | AE154: 51.23037427 | AF154: 38.78954977 | AG154: 40.9528655 | BB154: Flush to septic tank | BC154: 5585.23581 | BD154: 5285.56291 | BE154: 3601.580359 | BF154: 5304.272008 | BG154: 4312.955889 | BH154: 3170.455955 | BI154: 3160.501539 | BJ154: 3131.544138 | BK154: 2899.229231 | BL154: 2542.970712 | BM154: 1524.256369 | BN154: 1746.417084 | BO154: 1713.081235 | BP154: 1761.068785 | BQ154: 1730.444373 | BR154: 1390.098683 | BS154: 112.51997 | BT154: 131.4916695 | BU154: 6585.964482 | BV154: 2790.936766 | BW154: 643.7747956 | BX154: 1433.714541 | BY154: 2163.687586 | BZ154: 1932.635955 | CA154: 58.25850382 | CB154: 804.2954028 | CC154: 299.4861219 | CD154: 3188.337233 | CE154: 675.1545623 | CF154: 430.9973048 | CG154: 1448.253397
B155: Flush to pit (latrine) | C155: 18.63203801 | D155: 16.58519415 | E155: 9.908273621 | F155: 13.26739812 | G155: 10.07140568 | H155: 17.32955053 | I155: 13.5802979 | J155: 12.42827351 | K155: 10.00832718 | L155: 7.796074342 | M155: 20.98962804 | N155: 28.89971318 | O155: 30.90929645 | P155: 24.42379613 | Q155: 24.97858183 | R155: 19.57011595 | S155: 6.95557585 | T155: 2.198191272 | U155: 15.61130041 | V155: 37.59985525 | W155: 6.604383164 | X155: 5.987294065 | Y155: 16.68062423 | Z155: 14.40422723 | AA155: 5.811992887 | AB155: 7.123031455 | AC155: 14.63835883 | AD155: 15.19898435 | AE155: 29.2964359 | AF155: 39.28790982 | AG155: 16.50963869 | BB155: Flush to pit (latrine) | BC155: 3001.458285 | BD155: 2679.328791 | BE155: 1601.220105 | BF155: 2144.300539 | BG155: 1627.964182 | BH155: 2034.271231 | BI155: 1604.029024 | BJ155: 1467.142501 | BK155: 1181.502645 | BL155: 919.9564503 | BM155: 588.1809192 | BN155: 810.1394012 | BO155: 866.5860468 | BP155: 684.0130909 | BQ155: 699.8736748 | BR155: 736.4079967 | BS155: 291.9531184 | BT155: 225.1523927 | BU155: 1876.773351 | BV155: 2058.798558 | BW155: 56.93319437 | BX155: 461.0578319 | BY155: 960.1058109 | BZ155: 989.3466583 | CA155: 337.1833728 | CB155: 143.5830883 | CC155: 566.5355224 | CD155: 943.9692805 | CE155: 386.0917013 | CF155: 436.5346683 | CG155: 583.8453556
B156: Flush to somewhere else | C156: 2.073458757 | D156: 0.3144215808 | E156: 0.1638965531 | F156: 0.4351410953 | G156: 0.2647681349 | H156: 0.7241007642 | I156: 0.2374522903 | J156: 0.249367224 | K156: 0.1185195058 | L156: 0.1706853325 | M156: 8.601479351 | N156: 0.7587113731 | O156: 0.7782003806 | P156: 1.007537059 | Q156: 1.265841187 | R156: 0.3775309236 | S156: 0.2443926764 | T156: 0 | U156: 0.6686545309 | V156: 0.2488483934 | W156: 1.875485783 | X156: 1.281640954 | Y156: 0.1341009779 | Z156: 0.4259542901 | AA156: 0 | AB156: 0 | AC156: 0.3956088886 | AD156: 3.170196924 | AE156: 0.2593116781 | AF156: 3.464102899 | AG156: 0 | BB156: Flush to somewhere else | BC156: 334.0160621 | BD156: 50.7946296 | BE156: 26.48639571 | BF156: 70.32827964 | BG156: 42.79770409 | BH156: 85.0003207 | BI156: 28.0465398 | BJ156: 29.43749609 | BK156: 13.99146002 | BL156: 20.14130006 | BM156: 241.034573 | BN156: 21.26879162 | BO156: 21.81795346 | BP156: 28.21709347 | BQ156: 35.46754293 | BR156: 14.20619029 | BS156: 10.25813039 | BT156: 0 | BU156: 80.38491166 | BV156: 13.62581611 | BW156: 16.16765624 | BX156: 98.69410004 | BY156: 7.718603713 | BZ156: 29.25644304 | CA156: 0 | CB156: 0 | CC156: 15.31090274 | CD156: 196.8926634 | CE156: 3.417415254 | CF156: 38.49023826 | CG156: 0
B157: No facility, Bush, Field | C157: 2.426082403 | D157: 0.02842663503 | E157: 0 | F157: 0.08881878474 | G157: 0 | H157: 0.3283798993 | I157: 0 | J157: 0.03890177417 | K157: 0.03112058035 | L157: 0 | M157: 12.18193644 | N157: 0.3890160974 | O157: 0 | P157: 0.3813897312 | Q157: 0 | R157: 3.259504778 | S157: 0.106458931 | T157: 0 | U157: 0.693693757 | V157: 0.05525011974 | W157: 0 | X157: 0.5952055395 | Y157: 0.01676262224 | Z157: 0.341955135 | AA157: 0.06137506916 | AB157: 0 | AC157: 0.04585454331 | AD157: 0.306182323 | AE157: 0 | AF157: 9.059961427 | AG157: 0.02607167114 | BB157: No facility, Bush, Field | BC157: 390.8206459 | BD157: 4.592306906 | BE157: 0 | BF157: 14.35505034 | BG157: 0 | BH157: 38.54766924 | BI157: 0 | BJ157: 4.592306906 | BK157: 3.673845525 | BL157: 0 | BM157: 341.3677727 | BN157: 10.90520402 | BO157: 0 | BP157: 10.68120482 | BQ157: 0 | BR157: 122.6525887 | BS157: 4.468503766 | BT157: 0 | BU157: 83.39509985 | BV157: 3.025247467 | BW157: 0 | BX157: 45.83442413 | BY157: 0.9648254641 | BZ157: 23.48700591 | CA157: 3.560681031 | CB157: 0 | CC157: 1.774668045 | CD157: 19.01618559 | CE157: 0 | CF157: 100.666777 | CG157: 0.9219961982
B158: Other | C158: 0.161084506 | D158: 0.07050646406 | E158: 0.02897006178 | F158: 0.1097332766 | G158: 0 | H158: 0.08886332825 | I158: 0.0468357474 | J158: 0 | K158: 0.05919224574 | L158: 0 | M158: 0.5537654422 | N158: 0.208980405 | O158: 0 | P158: 0.550925135 | Q158: 0 | R158: 0.350291186 | S158: 0 | T158: 0 | U158: 0.02396153098 | V158: 0 | W158: 0 | X158: 0 | Y158: 0.1311857392 | Z158: 0.343952656 | AA158: 0 | AB158: 0 | AC158: 0 | AD158: 0 | AE158: 0 | AF158: 0 | AG158: 0.3540258502 | BB158: Other | BC158: 25.94930436 | BD158: 11.39027963 | BE158: 4.681687965 | BF158: 17.73528781 | BG158: 0 | BH158: 10.43143686 | BI158: 5.531977189 | BJ158: 0 | BK158: 6.98776066 | BL158: 0 | BM158: 15.5178675 | BN158: 5.858302439 | BO158: 0 | BP158: 15.42921512 | BQ158: 0 | BR158: 13.18118049 | BS158: 0 | BT158: 0 | BU158: 2.880628877 | BV158: 0 | BW158: 0 | BX158: 0 | BY158: 7.55080798 | BZ158: 23.62420457 | CA158: 0 | CB158: 0 | CC158: 0 | CD158: 0 | CE158: 0 | CF158: 0 | CG158: 12.51973785
BB159: Total | BC159: 16109.12496 | BD159: 16154.94378 | BE159: 16160.43487 | BF159: 16162.17829 | BG159: 16164.2201 | BH159: 11738.74202 | BI159: 11811.44211 | BJ159: 11804.87781 | BK159: 11805.19606 | BL159: 11800.25241 | BM159: 2802.245557 | BN159: 2803.278345 | BO159: 2803.642096 | BP159: 2800.601051 | BQ159: 2801.895158 | BR159: 3762.920968 | BS159: 4197.396803 | BT159: 10242.62063 | BU159: 12021.88992 | BV159: 5475.549159 | BW159: 862.0516551 | BX159: 7700.604428 | BY159: 5755.814637 | BZ159: 6868.44662 | CA159: 5801.510418 | CB159: 2015.758167 | CC159: 3870.212016 | CD159: 6210.73921 | CE159: 1317.879426 | CF159: 1111.117059 | CG159: 3536.390872
A208: =A1026 -> State of Palestine
A209: =A1035 -> 2011
A210: Access to hygiene facilities
A211: by wealth quintile and sub-national region
A212: Notes:
A213: WHO/UNICEF JMP customised wealth index excludes water,
A214: sanitation and hygiene assets.
A215: Survey used for analysis: | B215: =A1025 -> MICS11
A220: Access to handwashing | C220: NATIONAL wealth index quintile | H220: URBAN wealth index quintile | M220: RURAL wealth index quintile | R220: SUB-REGIONS: | BA220: Raw numbers of respondents: | BB220: Access to handwashing | BC220: NATIONAL wealth index quintile | BH220: URBAN wealth index quintile | BM220: RURAL wealth index quintile | BR220: SUB-REGIONS:
A221: Weighted percentage (used in graphs) | C221: Poorest | D221: Poor | E221: Middle | F221: Rich | G221: Richest | H221: Poorest | I221: Poor | J221: Middle | K221: Rich | L221: Richest | M221: Poorest | N221: Poor | O221: Middle | P221: Rich | Q221: Richest | R221: Bethlehem | S221: Dier El-Balah | T221: Gaza | U221: Hebron | V221: Jenin | W221: Jericho | X221: Jerusalem | Y221: Khan Yunis | Z221: Nablus | AA221: North Gaza | AB221: Qalqiliya | AC221: Rafah | AD221: Ramallah & Al-Bireh | AE221: Salfit | AF221: Tubas | AG221: Tulkarm | BA221: Hygiene data, raw numbers (weighted) | BC221: Poorest | BD221: Poor | BE221: Middle | BF221: Rich | BG221: Richest | BH221: Poorest | BI221: Poor | BJ221: Middle | BK221: Rich | BL221: Richest | BM221: Poorest | BN221: Poor | BO221: Middle | BP221: Rich | BQ221: Richest | BR221: Bethlehem | BS221: Dier El-Balah | BT221: Gaza | BU221: Hebron | BV221: Jenin | BW221: Jericho | BX221: Jerusalem | BY221: Khan Yunis | BZ221: Nablus | CA221: North Gaza | CB221: Qalqiliya | CC221: Rafah | CD221: Ramallah & Al-Bireh | CE221: Salfit | CF221: Tubas | CG221: Tulkarm
A222: Hygiene ladder | B222: Basic | C222: N/A | D222: N/A | E222: N/A | F222: N/A | G222: N/A | H222: N/A | I222: N/A | J222: N/A | K222: N/A | L222: N/A | M222: N/A | N222: N/A | O222: N/A | P222: N/A | Q222: N/A | R222: N/A | S222: N/A | T222: N/A | U222: N/A | V222: N/A | W222: N/A | X222: N/A | Y222: N/A | Z222: N/A | AA222: N/A | AB222: N/A | AC222: N/A | AD222: N/A | AE222: N/A | AF222: N/A | AG222: N/A | BA222: Hygiene ladder | BB222: Basic | BC222: N/A | BD222: N/A | BE222: N/A | BF222: N/A | BG222: N/A | BH222: N/A | BI222: N/A | BJ222: N/A | BK222: N/A | BL222: N/A | BM222: N/A | BN222: N/A | BO222: N/A | BP222: N/A | BQ222: N/A | BR222: N/A | BS222: N/A | BT222: N/A | BU222: N/A | BV222: N/A | BW222: N/A | BX222: N/A | BY222: N/A | BZ222: N/A | CA222: N/A | CB222: N/A | CC222: N/A | CD222: N/A | CE222: N/A | CF222: N/A | CG222: N/A
B223: Limited | C223: N/A | D223: N/A | E223: N/A | F223: N/A | G223: N/A | H223: N/A | I223: N/A | J223: N/A | K223: N/A | L223: N/A | M223: N/A | N223: N/A | O223: N/A | P223: N/A | Q223: N/A | R223: N/A | S223: N/A | T223: N/A | U223: N/A | V223: N/A | W223: N/A | X223: N/A | Y223: N/A | Z223: N/A | AA223: N/A | AB223: N/A | AC223: N/A | AD223: N/A | AE223: N/A | AF223: N/A | AG223: N/A | BB223: Limited | BC223: N/A | BD223: N/A | BE223: N/A | BF223: N/A | BG223: N/A | BH223: N/A | BI223: N/A | BJ223: N/A | BK223: N/A | BL223: N/A | BM223: N/A | BN223: N/A | BO223: N/A | BP223: N/A | BQ223: N/A | BR223: N/A | BS223: N/A | BT223: N/A | BU223: N/A | BV223: N/A | BW223: N/A | BX223: N/A | BY223: N/A | BZ223: N/A | CA223: N/A | CB223: N/A | CC223: N/A | CD223: N/A | CE223: N/A | CF223: N/A | CG223: N/A
B224: No facility | C224: N/A | D224: N/A | E224: N/A | F224: N/A | G224: N/A | H224: N/A | I224: N/A | J224: N/A | K224: N/A | L224: N/A | M224: N/A | N224: N/A | O224: N/A | P224: N/A | Q224: N/A | R224: N/A | S224: N/A | T224: N/A | U224: N/A | V224: N/A | W224: N/A | X224: N/A | Y224: N/A | Z224: N/A | AA224: N/A | AB224: N/A | AC224: N/A | AD224: N/A | AE224: N/A | AF224: N/A | AG224: N/A | BB224: No facility | BC224: N/A | BD224: N/A | BE224: N/A | BF224: N/A | BG224: N/A | BH224: N/A | BI224: N/A | BJ224: N/A | BK224: N/A | BL224: N/A | BM224: N/A | BN224: N/A | BO224: N/A | BP224: N/A | BQ224: N/A | BR224: N/A | BS224: N/A | BT224: N/A | BU224: N/A | BV224: N/A | BW224: N/A | BX224: N/A | BY224: N/A | BZ224: N/A | CA224: N/A | CB224: N/A | CC224: N/A | CD224: N/A | CE224: N/A | CF224: N/A | CG224: N/A
BA225: Observed handwashing place | BB225: Fixed | BC225: N/A | BD225: N/A | BE225: N/A | BF225: N/A | BG225: N/A | BH225: N/A | BI225: N/A | BJ225: N/A | BK225: N/A | BL225: N/A | BM225: N/A | BN225: N/A | BO225: N/A | BP225: N/A | BQ225: N/A | BR225: N/A | BS225: N/A | BT225: N/A | BU225: N/A | BV225: N/A | BW225: N/A | BX225: N/A | BY225: N/A | BZ225: N/A | CA225: N/A | CB225: N/A | CC225: N/A | CD225: N/A | CE225: N/A | CF225: N/A | CG225: N/A
BB226: Mobile | BC226: N/A | BD226: N/A | BE226: N/A | BF226: N/A | BG226: N/A | BH226: N/A | BI226: N/A | BJ226: N/A | BK226: N/A | BL226: N/A | BM226: N/A | BN226: N/A | BO226: N/A | BP226: N/A | BQ226: N/A | BR226: N/A | BS226: N/A | BT226: N/A | BU226: N/A | BV226: N/A | BW226: N/A | BX226: N/A | BY226: N/A | BZ226: N/A | CA226: N/A | CB226: N/A | CC226: N/A | CD226: N/A | CE226: N/A | CF226: N/A | CG226: N/A
BA227: Water / Soap | BB227: Water and soap | BC227: N/A | BD227: N/A | BE227: N/A | BF227: N/A | BG227: N/A | BH227: N/A | BI227: N/A | BJ227: N/A | BK227: N/A | BL227: N/A | BM227: N/A | BN227: N/A | BO227: N/A | BP227: N/A | BQ227: N/A | BR227: N/A | BS227: N/A | BT227: N/A | BU227: N/A | BV227: N/A | BW227: N/A | BX227: N/A | BY227: N/A | BZ227: N/A | CA227: N/A | CB227: N/A | CC227: N/A | CD227: N/A | CE227: N/A | CF227: N/A | CG227: N/A
BB228: Water only | BC228: N/A | BD228: N/A | BE228: N/A | BF228: N/A | BG228: N/A | BH228: N/A | BI228: N/A | BJ228: N/A | BK228: N/A | BL228: N/A | BM228: N/A | BN228: N/A | BO228: N/A | BP228: N/A | BQ228: N/A | BR228: N/A | BS228: N/A | BT228: N/A | BU228: N/A | BV228: N/A | BW228: N/A | BX228: N/A | BY228: N/A | BZ228: N/A | CA228: N/A | CB228: N/A | CC228: N/A | CD228: N/A | CE228: N/A | CF228: N/A | CG228: N/A
BB229: Soap only | BC229: N/A | BD229: N/A | BE229: N/A | BF229: N/A | BG229: N/A | BH229: N/A | BI229: N/A | BJ229: N/A | BK229: N/A | BL229: N/A | BM229: N/A | BN229: N/A | BO229: N/A | BP229: N/A | BQ229: N/A | BR229: N/A | BS229: N/A | BT229: N/A | BU229: N/A | BV229: N/A | BW229: N/A | BX229: N/A | BY229: N/A | BZ229: N/A | CA229: N/A | CB229: N/A | CC229: N/A | CD229: N/A | CE229: N/A | CF229: N/A | CG229: N/A
BB230: Neither | BC230: N/A | BD230: N/A | BE230: N/A | BF230: N/A | BG230: N/A | BH230: N/A | BI230: N/A | BJ230: N/A | BK230: N/A | BL230: N/A | BM230: N/A | BN230: N/A | BO230: N/A | BP230: N/A | BQ230: N/A | BR230: N/A | BS230: N/A | BT230: N/A | BU230: N/A | BV230: N/A | BW230: N/A | BX230: N/A | BY230: N/A | BZ230: N/A | CA230: N/A | CB230: N/A | CC230: N/A | CD230: N/A | CE230: N/A | CF230: N/A | CG230: N/A
BA259: Raw numbers of respondents: | BB259: Menstrual health and hygiene | BC259: NATIONAL wealth index quintile | BH259: URBAN wealth index quintile | BM259: RURAL wealth index quintile | BR259: SUB-REGIONS:
BA260: MHH data, raw numbers (weighted) | BC260: Poorest | BD260: Poor | BE260: Middle | BF260: Rich | BG260: Richest | BH260: Poorest | BI260: Poor | BJ260: Middle | BK260: Rich | BL260: Richest | BM260: Poorest | BN260: Poor | BO260: Middle | BP260: Rich | BQ260: Richest | BR260: Bethlehem | BS260: Dier El-Balah | BT260: Gaza | BU260: Hebron | BV260: Jenin | BW260: Jericho | BX260: Jerusalem | BY260: Khan Yunis | BZ260: Nablus | CA260: North Gaza | CB260: Qalqiliya | CC260: Rafah | CD260: Ramallah & Al-Bireh | CE260: Salfit | CF260: Tubas | CG260: Tulkarm
BA261: Private place to wash and change | BB261: Yes | BC261: N/A | BD261: N/A | BE261: N/A | BF261: N/A | BG261: N/A | BH261: N/A | BI261: N/A | BJ261: N/A | BK261: N/A | BL261: N/A | BM261: N/A | BN261: N/A | BO261: N/A | BP261: N/A | BQ261: N/A | BR261: N/A | BS261: N/A | BT261: N/A | BU261: N/A | BV261: N/A | BW261: N/A | BX261: N/A | BY261: N/A | BZ261: N/A | CA261: N/A | CB261: N/A | CC261: N/A | CD261: N/A | CE261: N/A | CF261: N/A | CG261: N/A
BB262: No | BC262: N/A | BD262: N/A | BE262: N/A | BF262: N/A | BG262: N/A | BH262: N/A | BI262: N/A | BJ262: N/A | BK262: N/A | BL262: N/A | BM262: N/A | BN262: N/A | BO262: N/A | BP262: N/A | BQ262: N/A | BR262: N/A | BS262: N/A | BT262: N/A | BU262: N/A | BV262: N/A | BW262: N/A | BX262: N/A | BY262: N/A | BZ262: N/A | CA262: N/A | CB262: N/A | CC262: N/A | CD262: N/A | CE262: N/A | CF262: N/A | CG262: N/A
BB263: DK/not sure/missing | BC263: N/A | BD263: N/A | BE263: N/A | BF263: N/A | BG263: N/A | BH263: N/A | BI263: N/A | BJ263: N/A | BK263: N/A | BL263: N/A | BM263: N/A | BN263: N/A | BO263: N/A | BP263: N/A | BQ263: N/A | BR263: N/A | BS263: N/A | BT263: N/A | BU263: N/A | BV263: N/A | BW263: N/A | BX263: N/A | BY263: N/A | BZ263: N/A | CA263: N/A | CB263: N/A | CC263: N/A | CD263: N/A | CE263: N/A | CF263: N/A | CG263: N/A
BA264: Use of menstrual materials | BB264: Materials reusable | BC264: N/A | BD264: N/A | BE264: N/A | BF264: N/A | BG264: N/A | BH264: N/A | BI264: N/A | BJ264: N/A | BK264: N/A | BL264: N/A | BM264: N/A | BN264: N/A | BO264: N/A | BP264: N/A | BQ264: N/A | BR264: N/A | BS264: N/A | BT264: N/A | BU264: N/A | BV264: N/A | BW264: N/A | BX264: N/A | BY264: N/A | BZ264: N/A | CA264: N/A | CB264: N/A | CC264: N/A | CD264: N/A | CE264: N/A | CF264: N/A | CG264: N/A
BB265: Materials not reusable | BC265: N/A | BD265: N/A | BE265: N/A | BF265: N/A | BG265: N/A | BH265: N/A | BI265: N/A | BJ265: N/A | BK265: N/A | BL265: N/A | BM265: N/A | BN265: N/A | BO265: N/A | BP265: N/A | BQ265: N/A | BR265: N/A | BS265: N/A | BT265: N/A | BU265: N/A | BV265: N/A | BW265: N/A | BX265: N/A | BY265: N/A | BZ265: N/A | CA265: N/A | CB265: N/A | CC265: N/A | CD265: N/A | CE265: N/A | CF265: N/A | CG265: N/A
BB266: No materials used | BC266: N/A | BD266: N/A | BE266: N/A | BF266: N/A | BG266: N/A | BH266: N/A | BI266: N/A | BJ266: N/A | BK266: N/A | BL266: N/A | BM266: N/A | BN266: N/A | BO266: N/A | BP266: N/A | BQ266: N/A | BR266: N/A | BS266: N/A | BT266: N/A | BU266: N/A | BV266: N/A | BW266: N/A | BX266: N/A | BY266: N/A | BZ266: N/A | CA266: N/A | CB266: N/A | CC266: N/A | CD266: N/A | CE266: N/A | CF266: N/A | CG266: N/A
BB267: DK/not sure/missing | BC267: N/A | BD267: N/A | BE267: N/A | BF267: N/A | BG267: N/A | BH267: N/A | BI267: N/A | BJ267: N/A | BK267: N/A | BL267: N/A | BM267: N/A | BN267: N/A | BO267: N/A | BP267: N/A | BQ267: N/A | BR267: N/A | BS267: N/A | BT267: N/A | BU267: N/A | BV267: N/A | BW267: N/A | BX267: N/A | BY267: N/A | BZ267: N/A | CA267: N/A | CB267: N/A | CC267: N/A | CD267: N/A | CE267: N/A | CF267: N/A | CG267: N/A
BA268: Use of menstrual materials with private place to wash and change | BB268: Materials reusable | BC268: N/A | BD268: N/A | BE268: N/A | BF268: N/A | BG268: N/A | BH268: N/A | BI268: N/A | BJ268: N/A | BK268: N/A | BL268: N/A | BM268: N/A | BN268: N/A | BO268: N/A | BP268: N/A | BQ268: N/A | BR268: N/A | BS268: N/A | BT268: N/A | BU268: N/A | BV268: N/A | BW268: N/A | BX268: N/A | BY268: N/A | BZ268: N/A | CA268: N/A | CB268: N/A | CC268: N/A | CD268: N/A | CE268: N/A | CF268: N/A | CG268: N/A
BB269: Materials not reusable | BC269: N/A | BD269: N/A | BE269: N/A | BF269: N/A | BG269: N/A | BH269: N/A | BI269: N/A | BJ269: N/A | BK269: N/A | BL269: N/A | BM269: N/A | BN269: N/A | BO269: N/A | BP269: N/A | BQ269: N/A | BR269: N/A | BS269: N/A | BT269: N/A | BU269: N/A | BV269: N/A | BW269: N/A | BX269: N/A | BY269: N/A | BZ269: N/A | CA269: N/A | CB269: N/A | CC269: N/A | CD269: N/A | CE269: N/A | CF269: N/A | CG269: N/A
BB270: No materials used | BC270: N/A | BD270: N/A | BE270: N/A | BF270: N/A | BG270: N/A | BH270: N/A | BI270: N/A | BJ270: N/A | BK270: N/A | BL270: N/A | BM270: N/A | BN270: N/A | BO270: N/A | BP270: N/A | BQ270: N/A | BR270: N/A | BS270: N/A | BT270: N/A | BU270: N/A | BV270: N/A | BW270: N/A | BX270: N/A | BY270: N/A | BZ270: N/A | CA270: N/A | CB270: N/A | CC270: N/A | CD270: N/A | CE270: N/A | CF270: N/A | CG270: N/A
BA271: Awareness of menstruation before menarche | BB271: Yes | BC271: N/A | BD271: N/A | BE271: N/A | BF271: N/A | BG271: N/A | BH271: N/A | BI271: N/A | BJ271: N/A | BK271: N/A | BL271: N/A | BM271: N/A | BN271: N/A | BO271: N/A | BP271: N/A | BQ271: N/A | BR271: N/A | BS271: N/A | BT271: N/A | BU271: N/A | BV271: N/A | BW271: N/A | BX271: N/A | BY271: N/A | BZ271: N/A | CA271: N/A | CB271: N/A | CC271: N/A | CD271: N/A | CE271: N/A | CF271: N/A | CG271: N/A
BB272: No | BC272: N/A | BD272: N/A | BE272: N/A | BF272: N/A | BG272: N/A | BH272: N/A | BI272: N/A | BJ272: N/A | BK272: N/A | BL272: N/A | BM272: N/A | BN272: N/A | BO272: N/A | BP272: N/A | BQ272: N/A | BR272: N/A | BS272: N/A | BT272: N/A | BU272: N/A | BV272: N/A | BW272: N/A | BX272: N/A | BY272: N/A | BZ272: N/A | CA272: N/A | CB272: N/A | CC272: N/A | CD272: N/A | CE272: N/A | CF272: N/A | CG272: N/A
BB273: DK/not sure/missing | BC273: N/A | BD273: N/A | BE273: N/A | BF273: N/A | BG273: N/A | BH273: N/A | BI273: N/A | BJ273: N/A | BK273: N/A | BL273: N/A | BM273: N/A | BN273: N/A | BO273: N/A | BP273: N/A | BQ273: N/A | BR273: N/A | BS273: N/A | BT273: N/A | BU273: N/A | BV273: N/A | BW273: N/A | BX273: N/A | BY273: N/A | BZ273: N/A | CA273: N/A | CB273: N/A | CC273: N/A | CD273: N/A | CE273: N/A | CF273: N/A | CG273: N/A
BA274: Participation in (all) activities during menstruation | BB274: Yes | BC274: N/A | BD274: N/A | BE274: N/A | BF274: N/A | BG274: N/A | BH274: N/A | BI274: N/A | BJ274: N/A | BK274: N/A | BL274: N/A | BM274: N/A | BN274: N/A | BO274: N/A | BP274: N/A | BQ274: N/A | BR274: N/A | BS274: N/A | BT274: N/A | BU274: N/A | BV274: N/A | BW274: N/A | BX274: N/A | BY274: N/A | BZ274: N/A | CA274: N/A | CB274: N/A | CC274: N/A | CD274: N/A | CE274: N/A | CF274: N/A | CG274: N/A
BB275: No | BC275: N/A | BD275: N/A | BE275: N/A | BF275: N/A | BG275: N/A | BH275: N/A | BI275: N/A | BJ275: N/A | BK275: N/A | BL275: N/A | BM275: N/A | BN275: N/A | BO275: N/A | BP275: N/A | BQ275: N/A | BR275: N/A | BS275: N/A | BT275: N/A | BU275: N/A | BV275: N/A | BW275: N/A | BX275: N/A | BY275: N/A | BZ275: N/A | CA275: N/A | CB275: N/A | CC275: N/A | CD275: N/A | CE275: N/A | CF275: N/A | CG275: N/A
BB276: DK/not sure/missing/no such activity | BC276: N/A | BD276: N/A | BE276: N/A | BF276: N/A | BG276: N/A | BH276: N/A | BI276: N/A | BJ276: N/A | BK276: N/A | BL276: N/A | BM276: N/A | BN276: N/A | BO276: N/A | BP276: N/A | BQ276: N/A | BR276: N/A | BS276: N/A | BT276: N/A | BU276: N/A | BV276: N/A | BW276: N/A | BX276: N/A | BY276: N/A | BZ276: N/A | CA276: N/A | CB276: N/A | CC276: N/A | CD276: N/A | CE276: N/A | CF276: N/A | CG276: N/A
BA277: Participation in specific activities during menstruation | BB277: Did not go to school (amongst those usually attending school) | BC277: N/A | BD277: N/A | BE277: N/A | BF277: N/A | BG277: N/A | BH277: N/A | BI277: N/A | BJ277: N/A | BK277: N/A | BL277: N/A | BM277: N/A | BN277: N/A | BO277: N/A | BP277: N/A | BQ277: N/A | BR277: N/A | BS277: N/A | BT277: N/A | BU277: N/A | BV277: N/A | BW277: N/A | BX277: N/A | BY277: N/A | BZ277: N/A | CA277: N/A | CB277: N/A | CC277: N/A | CD277: N/A | CE277: N/A | CF277: N/A | CG277: N/A
BB278: Did not go to work (amongst those who usually work) | BC278: N/A | BD278: N/A | BE278: N/A | BF278: N/A | BG278: N/A | BH278: N/A | BI278: N/A | BJ278: N/A | BK278: N/A | BL278: N/A | BM278: N/A | BN278: N/A | BO278: N/A | BP278: N/A | BQ278: N/A | BR278: N/A | BS278: N/A | BT278: N/A | BU278: N/A | BV278: N/A | BW278: N/A | BX278: N/A | BY278: N/A | BZ278: N/A | CA278: N/A | CB278: N/A | CC278: N/A | CD278: N/A | CE278: N/A | CF278: N/A | CG278: N/A
BB279: Did not participate in social activities | BC279: N/A | BD279: N/A | BE279: N/A | BF279: N/A | BG279: N/A | BH279: N/A | BI279: N/A | BJ279: N/A | BK279: N/A | BL279: N/A | BM279: N/A | BN279: N/A | BO279: N/A | BP279: N/A | BQ279: N/A | BR279: N/A | BS279: N/A | BT279: N/A | BU279: N/A | BV279: N/A | BW279: N/A | BX279: N/A | BY279: N/A | BZ279: N/A | CA279: N/A | CB279: N/A | CC279: N/A | CD279: N/A | CE279: N/A | CF279: N/A | CG279: N/A
BB280: Did not cook food | BC280: N/A | BD280: N/A | BE280: N/A | BF280: N/A | BG280: N/A | BH280: N/A | BI280: N/A | BJ280: N/A | BK280: N/A | BL280: N/A | BM280: N/A | BN280: N/A | BO280: N/A | BP280: N/A | BQ280: N/A | BR280: N/A | BS280: N/A | BT280: N/A | BU280: N/A | BV280: N/A | BW280: N/A | BX280: N/A | BY280: N/A | BZ280: N/A | CA280: N/A | CB280: N/A | CC280: N/A | CD280: N/A | CE280: N/A | CF280: N/A | CG280: N/A
BB281: Did not eat with others | BC281: N/A | BD281: N/A | BE281: N/A | BF281: N/A | BG281: N/A | BH281: N/A | BI281: N/A | BJ281: N/A | BK281: N/A | BL281: N/A | BM281: N/A | BN281: N/A | BO281: N/A | BP281: N/A | BQ281: N/A | BR281: N/A | BS281: N/A | BT281: N/A | BU281: N/A | BV281: N/A | BW281: N/A | BX281: N/A | BY281: N/A | BZ281: N/A | CA281: N/A | CB281: N/A | CC281: N/A | CD281: N/A | CE281: N/A | CF281: N/A | CG281: N/A
BB282: Did not bathe in regular place | BC282: N/A | BD282: N/A | BE282: N/A | BF282: N/A | BG282: N/A | BH282: N/A | BI282: N/A | BJ282: N/A | BK282: N/A | BL282: N/A | BM282: N/A | BN282: N/A | BO282: N/A | BP282: N/A | BQ282: N/A | BR282: N/A | BS282: N/A | BT282: N/A | BU282: N/A | BV282: N/A | BW282: N/A | BX282: N/A | BY282: N/A | BZ282: N/A | CA282: N/A | CB282: N/A | CC282: N/A | CD282: N/A | CE282: N/A | CF282: N/A | CG282: N/A
BB283: Did not participate in other activities | BC283: N/A | BD283: N/A | BE283: N/A | BF283: N/A | BG283: N/A | BH283: N/A | BI283: N/A | BJ283: N/A | BK283: N/A | BL283: N/A | BM283: N/A | BN283: N/A | BO283: N/A | BP283: N/A | BQ283: N/A | BR283: N/A | BS283: N/A | BT283: N/A | BU283: N/A | BV283: N/A | BW283: N/A | BX283: N/A | BY283: N/A | BZ283: N/A | CA283: N/A | CB283: N/A | CC283: N/A | CD283: N/A | CE283: N/A | CF283: N/A | CG283: N/A
BB284: DK/not sure/missing/no such activity | BC284: N/A | BD284: N/A | BE284: N/A | BF284: N/A | BG284: N/A | BH284: N/A | BI284: N/A | BJ284: N/A | BK284: N/A | BL284: N/A | BM284: N/A | BN284: N/A | BO284: N/A | BP284: N/A | BQ284: N/A | BR284: N/A | BS284: N/A | BT284: N/A | BU284: N/A | BV284: N/A | BW284: N/A | BX284: N/A | BY284: N/A | BZ284: N/A | CA284: N/A | CB284: N/A | CC284: N/A | CD284: N/A | CE284: N/A | CF284: N/A | CG284: N/A
BA339: Raw numbers of respondents: | BB339: Basic water, sanitation and hygiene | BC339: NATIONAL wealth index quintile | BH339: URBAN wealth index quintile | BM339: RURAL wealth index quintile | BR339: SUB-REGIONS:
BA340: WatSan data, raw numbers (weighted) | BC340: Poorest | BD340: Poor | BE340: Middle | BF340: Rich | BG340: Richest | BH340: Poorest | BI340: Poor | BJ340: Middle | BK340: Rich | BL340: Richest | BM340: Poorest | BN340: Poor | BO340: Middle | BP340: Rich | BQ340: Richest | BR340: Bethlehem | BS340: Dier El-Balah | BT340: Gaza | BU340: Hebron | BV340: Jenin | BW340: Jericho | BX340: Jerusalem | BY340: Khan Yunis | BZ340: Nablus | CA340: North Gaza | CB340: Qalqiliya | CC340: Rafah | CD340: Ramallah & Al-Bireh | CE340: Salfit | CF340: Tubas | CG340: Tulkarm
BA341: Use of Basic Water Sanitation and Hygiene | BB341: Yes | BC341: N/A | BD341: N/A | BE341: N/A | BF341: N/A | BG341: N/A | BH341: N/A | BI341: N/A | BJ341: N/A | BK341: N/A | BL341: N/A | BM341: N/A | BN341: N/A | BO341: N/A | BP341: N/A | BQ341: N/A | BR341: N/A | BS341: N/A | BT341: N/A | BU341: N/A | BV341: N/A | BW341: N/A | BX341: N/A | BY341: N/A | BZ341: N/A | CA341: N/A | CB341: N/A | CC341: N/A | CD341: N/A | CE341: N/A | CF341: N/A | CG341: N/A
BB342: No | BC342: N/A | BD342: N/A | BE342: N/A | BF342: N/A | BG342: N/A | BH342: N/A | BI342: N/A | BJ342: N/A | BK342: N/A | BL342: N/A | BM342: N/A | BN342: N/A | BO342: N/A | BP342: N/A | BQ342: N/A | BR342: N/A | BS342: N/A | BT342: N/A | BU342: N/A | BV342: N/A | BW342: N/A | BX342: N/A | BY342: N/A | BZ342: N/A | CA342: N/A | CB342: N/A | CC342: N/A | CD342: N/A | CE342: N/A | CF342: N/A | CG342: N/A
BA343: Use of Basic Water and Sanitation | BB343: Yes | BC343: N/A | BD343: N/A | BE343: N/A | BF343: N/A | BG343: N/A | BH343: N/A | BI343: N/A | BJ343: N/A | BK343: N/A | BL343: N/A | BM343: N/A | BN343: N/A | BO343: N/A | BP343: N/A | BQ343: N/A | BR343: N/A | BS343: N/A | BT343: N/A | BU343: N/A | BV343: N/A | BW343: N/A | BX343: N/A | BY343: N/A | BZ343: N/A | CA343: N/A | CB343: N/A | CC343: N/A | CD343: N/A | CE343: N/A | CF343: N/A | CG343: N/A
BB344: No | BC344: N/A | BD344: N/A | BE344: N/A | BF344: N/A | BG344: N/A | BH344: N/A | BI344: N/A | BJ344: N/A | BK344: N/A | BL344: N/A | BM344: N/A | BN344: N/A | BO344: N/A | BP344: N/A | BQ344: N/A | BR344: N/A | BS344: N/A | BT344: N/A | BU344: N/A | BV344: N/A | BW344: N/A | BX344: N/A | BY344: N/A | BZ344: N/A | CA344: N/A | CB344: N/A | CC344: N/A | CD344: N/A | CE344: N/A | CF344: N/A | CG344: N/A
BA345: Use of Basic Water and Hygiene | BB345: Yes | BC345: N/A | BD345: N/A | BE345: N/A | BF345: N/A | BG345: N/A | BH345: N/A | BI345: N/A | BJ345: N/A | BK345: N/A | BL345: N/A | BM345: N/A | BN345: N/A | BO345: N/A | BP345: N/A | BQ345: N/A | BR345: N/A | BS345: N/A | BT345: N/A | BU345: N/A | BV345: N/A | BW345: N/A | BX345: N/A | BY345: N/A | BZ345: N/A | CA345: N/A | CB345: N/A | CC345: N/A | CD345: N/A | CE345: N/A | CF345: N/A | CG345: N/A
BB346: No | BC346: N/A | BD346: N/A | BE346: N/A | BF346: N/A | BG346: N/A | BH346: N/A | BI346: N/A | BJ346: N/A | BK346: N/A | BL346: N/A | BM346: N/A | BN346: N/A | BO346: N/A | BP346: N/A | BQ346: N/A | BR346: N/A | BS346: N/A | BT346: N/A | BU346: N/A | BV346: N/A | BW346: N/A | BX346: N/A | BY346: N/A | BZ346: N/A | CA346: N/A | CB346: N/A | CC346: N/A | CD346: N/A | CE346: N/A | CF346: N/A | CG346: N/A
BA347: Use of Basic Sanitation and Hygiene | BB347: Yes | BC347: N/A | BD347: N/A | BE347: N/A | BF347: N/A | BG347: N/A | BH347: N/A | BI347: N/A | BJ347: N/A | BK347: N/A | BL347: N/A | BM347: N/A | BN347: N/A | BO347: N/A | BP347: N/A | BQ347: N/A | BR347: N/A | BS347: N/A | BT347: N/A | BU347: N/A | BV347: N/A | BW347: N/A | BX347: N/A | BY347: N/A | BZ347: N/A | CA347: N/A | CB347: N/A | CC347: N/A | CD347: N/A | CE347: N/A | CF347: N/A | CG347: N/A
BB348: No | BC348: N/A | BD348: N/A | BE348: N/A | BF348: N/A | BG348: N/A | BH348: N/A | BI348: N/A | BJ348: N/A | BK348: N/A | BL348: N/A | BM348: N/A | BN348: N/A | BO348: N/A | BP348: N/A | BQ348: N/A | BR348: N/A | BS348: N/A | BT348: N/A | BU348: N/A | BV348: N/A | BW348: N/A | BX348: N/A | BY348: N/A | BZ348: N/A | CA348: N/A | CB348: N/A | CC348: N/A | CD348: N/A | CE348: N/A | CF348: N/A | CG348: N/A
BA349: Use of Basic Water | BB349: Yes | BC349: N/A | BD349: N/A | BE349: N/A | BF349: N/A | BG349: N/A | BH349: N/A | BI349: N/A | BJ349: N/A | BK349: N/A | BL349: N/A | BM349: N/A | BN349: N/A | BO349: N/A | BP349: N/A | BQ349: N/A | BR349: N/A | BS349: N/A | BT349: N/A | BU349: N/A | BV349: N/A | BW349: N/A | BX349: N/A | BY349: N/A | BZ349: N/A | CA349: N/A | CB349: N/A | CC349: N/A | CD349: N/A | CE349: N/A | CF349: N/A | CG349: N/A
BB350: No | BC350: N/A | BD350: N/A | BE350: N/A | BF350: N/A | BG350: N/A | BH350: N/A | BI350: N/A | BJ350: N/A | BK350: N/A | BL350: N/A | BM350: N/A | BN350: N/A | BO350: N/A | BP350: N/A | BQ350: N/A | BR350: N/A | BS350: N/A | BT350: N/A | BU350: N/A | BV350: N/A | BW350: N/A | BX350: N/A | BY350: N/A | BZ350: N/A | CA350: N/A | CB350: N/A | CC350: N/A | CD350: N/A | CE350: N/A | CF350: N/A | CG350: N/A
BA351: Use of Basic Sanitation | BB351: Yes | BC351: N/A | BD351: N/A | BE351: N/A | BF351: N/A | BG351: N/A | BH351: N/A | BI351: N/A | BJ351: N/A | BK351: N/A | BL351: N/A | BM351: N/A | BN351: N/A | BO351: N/A | BP351: N/A | BQ351: N/A | BR351: N/A | BS351: N/A | BT351: N/A | BU351: N/A | BV351: N/A | BW351: N/A | BX351: N/A | BY351: N/A | BZ351: N/A | CA351: N/A | CB351: N/A | CC351: N/A | CD351: N/A | CE351: N/A | CF351: N/A | CG351: N/A
BB352: No | BC352: N/A | BD352: N/A | BE352: N/A | BF352: N/A | BG352: N/A | BH352: N/A | BI352: N/A | BJ352: N/A | BK352: N/A | BL352: N/A | BM352: N/A | BN352: N/A | BO352: N/A | BP352: N/A | BQ352: N/A | BR352: N/A | BS352: N/A | BT352: N/A | BU352: N/A | BV352: N/A | BW352: N/A | BX352: N/A | BY352: N/A | BZ352: N/A | CA352: N/A | CB352: N/A | CC352: N/A | CD352: N/A | CE352: N/A | CF352: N/A | CG352: N/A
BA353: Access to Basic Hygiene | BB353: Yes | BC353: N/A | BD353: N/A | BE353: N/A | BF353: N/A | BG353: N/A | BH353: N/A | BI353: N/A | BJ353: N/A | BK353: N/A | BL353: N/A | BM353: N/A | BN353: N/A | BO353: N/A | BP353: N/A | BQ353: N/A | BR353: N/A | BS353: N/A | BT353: N/A | BU353: N/A | BV353: N/A | BW353: N/A | BX353: N/A | BY353: N/A | BZ353: N/A | CA353: N/A | CB353: N/A | CC353: N/A | CD353: N/A | CE353: N/A | CF353: N/A | CG353: N/A
BB354: No | BC354: N/A | BD354: N/A | BE354: N/A | BF354: N/A | BG354: N/A | BH354: N/A | BI354: N/A | BJ354: N/A | BK354: N/A | BL354: N/A | BM354: N/A | BN354: N/A | BO354: N/A | BP354: N/A | BQ354: N/A | BR354: N/A | BS354: N/A | BT354: N/A | BU354: N/A | BV354: N/A | BW354: N/A | BX354: N/A | BY354: N/A | BZ354: N/A | CA354: N/A | CB354: N/A | CC354: N/A | CD354: N/A | CE354: N/A | CF354: N/A | CG354: N/A
C399: INITIAL (national) Wealth Index | H399: URBAN Wealth Index | M399: RURAL Wealth Index
C400: Component Matrix | H400: Component Matrix | M400: Component Matrix
E401: Component | J401: Component | O401: Component
B402: Note: The INITIAL (national) Wealth Index is based on the first component of the Principal Component Analysis (PCA) which has been obtained at national level. The final national-level (NATIONAL) Wealth Index is based on the URBAN and RURAL specific wealth indexes. Regression procedures are used to establish the relationships between the two sets of scores (urban and rural) and the initial (national) wealth factors. This allows best use of the available information for each area and a better precision of the FINAL (NATIONAL) Wealth Index. For dependency reasons, all WASH variables (contained in the generic MICS and DHS scripts) have been excluded from the sets of asset variables used in the PCAs. The PCA can extracts as many components as there are asset variables in the input. Only the first of the components is used to represent the Wealth Index. The scores represent the weights of the asset variables on the Wealth Index (correlations between the variables and the component). The communalities are the proportion of each variable's variance that can be explained by the component. Proportion of explained variance is the part of the model's total variance that is explained by the component. For more information on the procedure used: The DHS Wealth Index, DHS Comparative Reports No. 6, Shea Oscar Rutstein, Kiersten Johnson, ORC Macro International Inc., 2004. The DHS Wealth Index: Approaches for Rural and Urban Areas, Shea O. Rutstein, ORC Macro International Inc., 2008. MICS Methodological Paper No. 4, Review of options for reporting water, sanitation and hygiene coverage by wealth quintile, UNICEF, 2016. | E402: 1 | J402: 1 | O402: 1
C403: Does your household have Computer | E403: 0.5711867018 | H403: Does your household have Computer | J403: 0.6306930178 | M403: Does your household have Refrigerator | O403: 0.6859483938
C404: hc3_33 | E404: 0.5512395243 | H404: Does your household have Vacuum cleaner | J404: 0.6210324543 | M404: Does your household have Washing machine | O404: 0.6759701681
C405: Does your household have Satellite dish | E405: 0.5436277233 | H405: Does your household have Internet services | J405: 0.6030951809 | M405: Does your household have Satellite dish | O405: 0.6575080074
C406: Does your household have Washing machine | E406: 0.5357803615 | H406: Does your household have Telephone line | J406: 0.5875793699 | M406: Does your household have Television | O406: 0.6533813232
C407: Does your household have Vacuum cleaner | E407: 0.5287957093 | H407: Does your household have Home library | J407: 0.5330187023 | M407: hc3_33 | O407: 0.638335511
C408: Does your household have Telephone line | E408: 0.5281250177 | H408: Does your household have Private car | J408: 0.5230254056 | M408: Does your household have Electricity | O408: 0.6378551217
C409: Does your household have Internet services | E409: 0.5198439032 | H409: Does your household have VCR/DVD | J409: 0.5090806163 | M409: hc6_8 | O409: -0.5997722962
C410: Does your household have Refrigerator | E410: 0.5045190561 | H410: Does your household have Solar heater | J410: 0.4643578191 | M410: hc3_34 | O410: -0.5350286297
C411: Does your household have Television | E411: 0.4986325977 | H411: Does your household have Satellite dish | J411: 0.4635240064 | M411: Does your household have Solar heater | O411: 0.5094095116
C412: hc3_34 | E412: -0.4902349154 | H412: hc3_33 | J412: 0.4600299805 | M412: phc1_5 | O412: -0.4958745212
C413: Does your household have Solar heater | E413: 0.4595469071 | H413: Does your household have Radio / recorder | J413: 0.440741112 | M413: Does your household have Computer | O413: 0.4792526911
C414: Does your household have Home library | E414: 0.4463355475 | H414: Does your household have Washing machine | J414: 0.4298081245 | M414: hc6_2 | O414: 0.4756708368
C415: Does your household have VCR/DVD | E415: 0.4162414599 | H415: hc3_34 | J415: -0.4293339162 | M415: Does your household have Telephone line | O415: 0.4371850216
C416: Does your household have Private car | E416: 0.4032959624 | H416: Does your household have Refrigerator | J416: 0.3913867874 | M416: Persons per sleeping rooms | O416: -0.4308499704
C417: Does your household have Electricity | E417: 0.4002503672 | H417: Does your household have Television | J417: 0.3775260657 | M417: Does your household have Jawwal (Palestinian) | O417: 0.41930238
C418: Does your household have Radio / recorder | E418: 0.3788910674 | H418: Does your household have Central heating | J418: 0.3300376455 | M418: Does your household have Gas stove | O418: 0.4133604112
C419: hc6_8 | E419: -0.3761597155 | H419: Does your household have Cellular (Israeli) | J419: 0.319100897 | M419: Floor material | O419: -0.4066853434
C420: Persons per sleeping rooms | E420: -0.3066985957 | H420: Does your household have Dishwasher | J420: 0.3108061349 | M420: phc1_6 | O420: -0.3955441852
C421: phc1_5 | E421: -0.3031162607 | H421: Persons per sleeping rooms | J421: -0.2692197555 | M421: Does your household have Vacuum cleaner | O421: 0.3754380084
C422: hc6_2 | E422: 0.2830304056 | H422: phc1_4 | J422: -0.1750480025 | M422: Does your household have Internet services | O422: 0.3718838971
C423: Floor material | E423: -0.278559337 | H423: hc6_8 | J423: -0.1596597305 | M423: Does your household have VCR/DVD | O423: 0.332557011
C424: phc1_6 | E424: -0.2636066265 | H424: Does your household have Electricity | J424: 0.1596409308 | M424: Does your household have Home library | O424: 0.3190459945
C425: Does your household have Central heating | E425: 0.2477105471 | H425: Floor material | J425: -0.1531444335 | M425: Does your household have Radio / recorder | O425: 0.2828703179
... 141 more rows

Sheet MICS14
A2: =A1026 -> State of Palestine
A3: =A1034 -> 2014
A4: Use of drinking water sources
A5: by wealth quintile and sub-national region
A6: Notes:
A7: WHO/UNICEF JMP customised wealth index excludes water,
A8: sanitation and hygiene assets.
A9: Survey used for analysis: | B9: =A1025 -> MICS14
A10: =B1028 -> 
A11: =B1027 -> 
A14: Use of drinking water sources | C14: NATIONAL wealth index quintile | H14: URBAN wealth index quintile | M14: RURAL wealth index quintile | R14: SUB-REGIONS: | BA14: Raw numbers of respondents: | BB14: Use of drinking water sources | BC14: NATIONAL wealth index quintile | BH14: URBAN wealth index quintile | BM14: RURAL wealth index quintile | BR14: SUB-REGIONS:
A15: Weighted percentage (used in graphs) | C15: Poorest | D15: Poor | E15: Middle | F15: Rich | G15: Richest | H15: Poorest | I15: Poor | J15: Middle | K15: Rich | L15: Richest | M15: Poorest | N15: Poor | O15: Middle | P15: Rich | Q15: Richest | R15: Gaza Strip | S15: West Bank | BA15: Water data, raw numbers (weighted) | BC15: Poorest | BD15: Poor | BE15: Middle | BF15: Rich | BG15: Richest | BH15: Poorest | BI15: Poor | BJ15: Middle | BK15: Rich | BL15: Richest | BM15: Poorest | BN15: Poor | BO15: Middle | BP15: Rich | BQ15: Richest | BR15: Gaza Strip | BS15: West Bank
A16: Water | B16: Improved | C16: 99.68800979 | D16: 99.81977996 | E16: 99.96469556 | F16: 99.86200829 | G16: 99.86698565 | H16: 99.707387 | I16: 99.90267972 | J16: 99.85599432 | K16: 99.95818606 | L16: 100 | M16: 99.22586652 | N16: 100 | O16: 99.67896711 | P16: 99.4169703 | Q16: 99.47106723 | R16: 99.89155327 | S16: 99.80488698 | BA16: Water | BB16: Improved | BC16: N/A | BD16: N/A | BE16: N/A | BF16: N/A | BG16: N/A | BH16: N/A | BI16: N/A | BJ16: N/A | BK16: N/A | BL16: N/A | BM16: N/A | BN16: N/A | BO16: N/A | BP16: N/A | BQ16: N/A | BR16: N/A | BS16: N/A
B17: Not Improved | C17: 0.3119902121 | D17: 0.1802200402 | E17: 0.03530443899 | F17: 0.1379917101 | G17: 0.1330143523 | H17: 0.292613 | I17: 0.09732027884 | J17: 0.1440056842 | K17: 0.04181394316 | L17: 0 | M17: 0.7741334756 | N17: 0 | O17: 0.3210328863 | P17: 0.5830297029 | Q17: 0.5289327742 | R17: 0.1084467315 | S17: 0.195113018 | BB17: Not Improved | BC17: N/A | BD17: N/A | BE17: N/A | BF17: N/A | BG17: N/A | BH17: N/A | BI17: N/A | BJ17: N/A | BK17: N/A | BL17: N/A | BM17: N/A | BN17: N/A | BO17: N/A | BP17: N/A | BQ17: N/A | BR17: N/A | BS17: N/A
A18: Water ladder | B18: Basic | C18: =C16*C23/100 -> 99.06388963 | D18: =D16*D23/100 -> 99.37381167 | E18: =E16*E23/100 -> 99.56347618 | F18: 99.48452447 | G18: 99.55345145 | H18: 99.20546077 | I18: 99.61226795 | J18: 99.48007688 | K18: 99.95818606 | L18: 99.861595 | M18: 97.77220509 | N18: 98.86830583 | O18: 98.52195498 | P18: 98.36534037 | Q18: 98.43111378 | R18: 99.46051503 | S18: 99.37144008 | BA18: Water ladder | BB18: Basic | BC18: N/A | BD18: N/A | BE18: N/A | BF18: N/A | BG18: N/A | BH18: N/A | BI18: N/A | BJ18: N/A | BK18: N/A | BL18: N/A | BM18: N/A | BN18: N/A | BO18: N/A | BP18: N/A | BQ18: N/A | BR18: N/A | BS18: N/A
B19: Limited | C19: =C16*C22/100 -> 0.6241201555 | D19: =D16*D22/100 -> 0.445968292 | E19: =E16*E22/100 -> 0.4012193847 | F19: 0.377483824 | G19: 0.3135341981 | H19: 0.5019262262 | I19: 0.2904117672 | J19: 0.3759174385 | K19: 0 | L19: 0.1384050046 | M19: 1.453661434 | N19: 1.131694174 | O19: 1.157012132 | P19: 1.051629928 | Q19: 1.039953445 | R19: 0.4310382389 | S19: 0.4334469036 | BB19: Limited | BC19: N/A | BD19: N/A | BE19: N/A | BF19: N/A | BG19: N/A | BH19: N/A | BI19: N/A | BJ19: N/A | BK19: N/A | BL19: N/A | BM19: N/A | BN19: N/A | BO19: N/A | BP19: N/A | BQ19: N/A | BR19: N/A | BS19: N/A
B20: Unimproved | C20: =100-C18-C19-C21 -> 0.3119902121 | D20: =100-D18-D19-D21 -> 0.1802200402 | E20: =100-E18-E19-E21 -> 0.03530443899 | F20: 0.1379917101 | G20: 0.1330143523 | H20: 0.292613 | I20: 0.09732027884 | J20: 0.1440056842 | K20: 0.04181394316 | L20: 2.170486013e-14 | M20: 0.7741334756 | N20: 9.547918012e-15 | O20: 0.3210328863 | P20: 0.5830297029 | Q20: 0.5289327742 | R20: 0.1084467315 | S20: 0.195113018 | BB20: Unimproved | BC20: N/A | BD20: N/A | BE20: N/A | BF20: N/A | BG20: N/A | BH20: N/A | BI20: N/A | BJ20: N/A | BK20: N/A | BL20: N/A | BM20: N/A | BN20: N/A | BO20: N/A | BP20: N/A | BQ20: N/A | BR20: N/A | BS20: N/A
B21: Surface water | C21: 0 | D21: 0 | E21: 0 | F21: 0 | G21: 0 | H21: 0 | I21: 0 | J21: 0 | K21: 0 | L21: 0 | M21: 0 | N21: 0 | O21: 0 | P21: 0 | Q21: 0 | R21: 0 | S21: 0 | BB21: Surface water | BC21: N/A | BD21: N/A | BE21: N/A | BF21: N/A | BG21: N/A | BH21: N/A | BI21: N/A | BJ21: N/A | BK21: N/A | BL21: N/A | BM21: N/A | BN21: N/A | BO21: N/A | BP21: N/A | BQ21: N/A | BR21: N/A | BS21: N/A
A22: Improved water point at more than 30 minutes | B22: Yes | C22: 0.6260734434 | D22: 0.4467734674 | E22: 0.401361083 | F22: 0.3780054401 | G22: 0.313951799 | H22: 0.5033992378 | I22: 0.290694672 | J22: 0.3764595617 | K22: 0 | L22: 0.1384050046 | M22: 1.465002509 | N22: 1.131694174 | O22: 1.160738485 | P22: 1.0577972 | Q22: 1.045483349 | R22: 0.4315061933 | S22: 0.4342942682 | BA22: Improved water point at more than 30 minutes | BB22: Yes | BC22: N/A | BD22: N/A | BE22: N/A | BF22: N/A | BG22: N/A | BH22: N/A | BI22: N/A | BJ22: N/A | BK22: N/A | BL22: N/A | BM22: N/A | BN22: N/A | BO22: N/A | BP22: N/A | BQ22: N/A | BR22: N/A | BS22: N/A
B23: No | C23: 99.37392656 | D23: 99.55322653 | E23: 99.59863892 | F23: 99.62199456 | G23: 99.6860482 | H23: 99.49660076 | I23: 99.70930533 | J23: 99.62354044 | K23: 100 | L23: 99.861595 | M23: 98.53499749 | N23: 98.86830583 | O23: 98.83926152 | P23: 98.9422028 | Q23: 98.95451665 | R23: 99.56849381 | S23: 99.56570573 | BB23: No | BC23: N/A | BD23: N/A | BE23: N/A | BF23: N/A | BG23: N/A | BH23: N/A | BI23: N/A | BJ23: N/A | BK23: N/A | BL23: N/A | BM23: N/A | BN23: N/A | BO23: N/A | BP23: N/A | BQ23: N/A | BR23: N/A | BS23: N/A
A24: Manually calculated ratios | B24: Improved wells
B25: Improved springs
B26: Other
C27: NATIONAL wealth index quintile | H27: URBAN wealth index quintile | M27: RURAL wealth index quintile | R27: SUB-REGIONS: | BA27: Raw numbers of respondents: | BB27: Use of drinking water sources | BC27: NATIONAL wealth index quintile | BH27: URBAN wealth index quintile | BM27: RURAL wealth index quintile | BR27: SUB-REGIONS:
A28: Percentage based on weighted population | C28: Poorest | D28: Poor | E28: Middle | F28: Rich | G28: Richest | H28: Poorest | I28: Poor | J28: Middle | K28: Rich | L28: Richest | M28: Poorest | N28: Poor | O28: Middle | P28: Rich | Q28: Richest | R28: Gaza Strip | S28: West Bank | BA28: Water data, raw numbers (weighted) | BC28: Poorest | BD28: Poor | BE28: Middle | BF28: Rich | BG28: Richest | BH28: Poorest | BI28: Poor | BJ28: Middle | BK28: Rich | BL28: Richest | BM28: Poorest | BN28: Poor | BO28: Middle | BP28: Rich | BQ28: Richest | BR28: Gaza Strip | BS28: West Bank
A29: Piped water | B29: Yes | C29: 26.68948905 | D29: 47.69029694 | E29: 54.75456081 | F29: 75.15482026 | G29: 87.43644768 | H29: 22.27841231 | I29: 36.25281504 | J29: 57.37091605 | K29: 74.30946513 | L29: 88.52174262 | M29: 66.14921912 | N29: 76.58119243 | O29: 80.25443314 | P29: 83.3493242 | Q29: 85.71084218 | R29: 10.33002327 | S29: 91.52785486 | BA29: Piped water | BB29: Yes | BC29: N/A | BD29: N/A | BE29: N/A | BF29: N/A | BG29: N/A | BH29: N/A | BI29: N/A | BJ29: N/A | BK29: N/A | BL29: N/A | BM29: N/A | BN29: N/A | BO29: N/A | BP29: N/A | BQ29: N/A | BR29: N/A | BS29: N/A
B30: No | C30: 73.31051095 | D30: 52.30970306 | E30: 45.24543919 | F30: 24.84517974 | G30: 12.56355232 | H30: 77.72158769 | I30: 63.74718496 | J30: 42.62908395 | K30: 25.69053487 | L30: 11.47825738 | M30: 33.85078088 | N30: 23.41880757 | O30: 19.74556686 | P30: 16.6506758 | Q30: 14.28915782 | R30: 89.66997673 | S30: 8.472145142 | BB30: No | BC30: N/A | BD30: N/A | BE30: N/A | BF30: N/A | BG30: N/A | BH30: N/A | BI30: N/A | BJ30: N/A | BK30: N/A | BL30: N/A | BM30: N/A | BN30: N/A | BO30: N/A | BP30: N/A | BQ30: N/A | BR30: N/A | BS30: N/A
A31: Piped water on premises | B31: Yes | C31: 26.25563573 | D31: 47.51878013 | E31: 54.46281056 | F31: 75.07931104 | G31: 87.39231189 | H31: 22.01523954 | I31: 36.11304316 | J31: 57.30789566 | K31: 74.23412033 | L31: 88.46252098 | M31: 65.07247239 | N31: 75.67959658 | O31: 80.13833249 | P31: 83.3493242 | Q31: 85.71084218 | R31: 10.17008564 | S31: 91.29452814 | BA31: Piped water on premises | BB31: Yes | BC31: N/A | BD31: N/A | BE31: N/A | BF31: N/A | BG31: N/A | BH31: N/A | BI31: N/A | BJ31: N/A | BK31: N/A | BL31: N/A | BM31: N/A | BN31: N/A | BO31: N/A | BP31: N/A | BQ31: N/A | BR31: N/A | BS31: N/A
B32: No | C32: 73.74436427 | D32: 52.48121987 | E32: 45.53718944 | F32: 24.92068896 | G32: 12.60768811 | H32: 77.98476046 | I32: 63.88695684 | J32: 42.69210434 | K32: 25.76587967 | L32: 11.53747902 | M32: 34.92752761 | N32: 24.32040342 | O32: 19.86166751 | P32: 16.6506758 | Q32: 14.28915782 | R32: 89.82991436 | S32: 8.705471864 | BB32: No | BC32: N/A | BD32: N/A | BE32: N/A | BF32: N/A | BG32: N/A | BH32: N/A | BI32: N/A | BJ32: N/A | BK32: N/A | BL32: N/A | BM32: N/A | BN32: N/A | BO32: N/A | BP32: N/A | BQ32: N/A | BR32: N/A | BS32: N/A
A33: Piped water into dwelling | B33: Yes | C33: N/A | D33: N/A | E33: N/A | F33: N/A | G33: N/A | H33: N/A | I33: N/A | J33: N/A | K33: N/A | L33: N/A | M33: N/A | N33: N/A | O33: N/A | P33: N/A | Q33: N/A | R33: N/A | S33: N/A | BA33: Piped water into dwelling | BB33: Yes | BC33: N/A | BD33: N/A | BE33: N/A | BF33: N/A | BG33: N/A | BH33: N/A | BI33: N/A | BJ33: N/A | BK33: N/A | BL33: N/A | BM33: N/A | BN33: N/A | BO33: N/A | BP33: N/A | BQ33: N/A | BR33: N/A | BS33: N/A
B34: No | C34: N/A | D34: N/A | E34: N/A | F34: N/A | G34: N/A | H34: N/A | I34: N/A | J34: N/A | K34: N/A | L34: N/A | M34: N/A | N34: N/A | O34: N/A | P34: N/A | Q34: N/A | R34: N/A | S34: N/A | BB34: No | BC34: N/A | BD34: N/A | BE34: N/A | BF34: N/A | BG34: N/A | BH34: N/A | BI34: N/A | BJ34: N/A | BK34: N/A | BL34: N/A | BM34: N/A | BN34: N/A | BO34: N/A | BP34: N/A | BQ34: N/A | BR34: N/A | BS34: N/A
A35: Water source on premises | B35: Yes | C35: 77.81802548 | D35: 90.61475789 | E35: 89.44634115 | F35: 96.77702987 | G35: 98.40737983 | H35: 76.4923374 | I35: 86.24752452 | J35: 93.58767171 | K35: 97.41887861 | L35: 98.93256998 | M35: 90.9330743 | N35: 92.59459506 | O35: 96.18152681 | P35: 96.11450304 | Q35: 96.30724321 | R35: 78.66850855 | S35: 98.86784632 | BA35: Water source on premises | BB35: Yes | BC35: N/A | BD35: N/A | BE35: N/A | BF35: N/A | BG35: N/A | BH35: N/A | BI35: N/A | BJ35: N/A | BK35: N/A | BL35: N/A | BM35: N/A | BN35: N/A | BO35: N/A | BP35: N/A | BQ35: N/A | BR35: N/A | BS35: N/A
B36: No | C36: 22.18197452 | D36: 9.385242114 | E36: 10.55365885 | F36: 3.222970126 | G36: 1.592620174 | H36: 23.5076626 | I36: 13.75247548 | J36: 6.412328286 | K36: 2.581121385 | L36: 1.06743002 | M36: 9.066925702 | N36: 7.405404945 | O36: 3.81847319 | P36: 3.885496962 | Q36: 3.692756789 | R36: 21.33149145 | S36: 1.132153681 | BB36: No | BC36: N/A | BD36: N/A | BE36: N/A | BF36: N/A | BG36: N/A | BH36: N/A | BI36: N/A | BJ36: N/A | BK36: N/A | BL36: N/A | BM36: N/A | BN36: N/A | BO36: N/A | BP36: N/A | BQ36: N/A | BR36: N/A | BS36: N/A
A37: Improved Water source on premises | B37: Yes | C37: 77.71249894 | D37: 90.50643615 | E37: 89.44634115 | F37: 96.74589939 | G37: 98.40737983 | H37: 76.35070317 | I37: 86.15020424 | J37: 93.58767171 | K37: 97.37706467 | L37: 98.93256998 | M37: 90.71946725 | N37: 92.59459506 | O37: 96.18152681 | P37: 96.11450304 | Q37: 96.30724321 | R37: 78.63301565 | S37: 98.80952283 | BA37: Improved water source on premises | BB37: Yes | BC37: N/A | BD37: N/A | BE37: N/A | BF37: N/A | BG37: N/A | BH37: N/A | BI37: N/A | BJ37: N/A | BK37: N/A | BL37: N/A | BM37: N/A | BN37: N/A | BO37: N/A | BP37: N/A | BQ37: N/A | BR37: N/A | BS37: N/A
B38: No | C38: 22.28750106 | D38: 9.493563855 | E38: 10.55365885 | F38: 3.254100613 | G38: 1.592620174 | H38: 23.64929683 | I38: 13.84979576 | J38: 6.412328286 | K38: 2.622935328 | L38: 1.06743002 | M38: 9.280532753 | N38: 7.405404945 | O38: 3.81847319 | P38: 3.885496962 | Q38: 3.692756789 | R38: 21.36698435 | S38: 1.190477166 | BB38: No | BC38: N/A | BD38: N/A | BE38: N/A | BF38: N/A | BG38: N/A | BH38: N/A | BI38: N/A | BJ38: N/A | BK38: N/A | BL38: N/A | BM38: N/A | BN38: N/A | BO38: N/A | BP38: N/A | BQ38: N/A | BR38: N/A | BS38: N/A
A39: Piped water on premises available when needed | B39: Yes | C39: N/A | D39: N/A | E39: N/A | F39: N/A | G39: N/A | H39: N/A | I39: N/A | J39: N/A | K39: N/A | L39: N/A | M39: N/A | N39: N/A | O39: N/A | P39: N/A | Q39: N/A | R39: N/A | S39: N/A | BA39: Piped water on premises available when needed | BB39: Yes | BC39: N/A | BD39: N/A | BE39: N/A | BF39: N/A | BG39: N/A | BH39: N/A | BI39: N/A | BJ39: N/A | BK39: N/A | BL39: N/A | BM39: N/A | BN39: N/A | BO39: N/A | BP39: N/A | BQ39: N/A | BR39: N/A | BS39: N/A
B40: No | C40: N/A | D40: N/A | E40: N/A | F40: N/A | G40: N/A | H40: N/A | I40: N/A | J40: N/A | K40: N/A | L40: N/A | M40: N/A | N40: N/A | O40: N/A | P40: N/A | Q40: N/A | R40: N/A | S40: N/A | BB40: No | BC40: N/A | BD40: N/A | BE40: N/A | BF40: N/A | BG40: N/A | BH40: N/A | BI40: N/A | BJ40: N/A | BK40: N/A | BL40: N/A | BM40: N/A | BN40: N/A | BO40: N/A | BP40: N/A | BQ40: N/A | BR40: N/A | BS40: N/A
A41: Water point at more than 30 minutes | B41: Yes | C41: 0.6950658915 | D41: 0.4461257853 | E41: 0.401361083 | F41: 0.3776865849 | G41: 0.3135341981 | H41: 0.5019262262 | I41: 0.2904117672 | J41: 0.3762743177 | K41: 0 | L41: 0.1384050046 | M41: 1.876827411 | N41: 1.131694174 | O41: 1.160738485 | P41: 1.051629928 | Q41: 1.039953445 | R41: 0.4310380539 | S41: 0.457629963 | BA41: Water point at more than 30 minutes | BB41: Yes | BC41: N/A | BD41: N/A | BE41: N/A | BF41: N/A | BG41: N/A | BH41: N/A | BI41: N/A | BJ41: N/A | BK41: N/A | BL41: N/A | BM41: N/A | BN41: N/A | BO41: N/A | BP41: N/A | BQ41: N/A | BR41: N/A | BS41: N/A
B42: No | C42: 99.30493411 | D42: 99.55387421 | E42: 99.59863892 | F42: 99.62231342 | G42: 99.6864658 | H42: 99.49807377 | I42: 99.70958823 | J42: 99.62372568 | K42: 100 | L42: 99.861595 | M42: 98.12317259 | N42: 98.86830583 | O42: 98.83926152 | P42: 98.94837007 | Q42: 98.96004655 | R42: 99.56896195 | S42: 99.54237004 | BB42: No | BC42: N/A | BD42: N/A | BE42: N/A | BF42: N/A | BG42: N/A | BH42: N/A | BI42: N/A | BJ42: N/A | BK42: N/A | BL42: N/A | BM42: N/A | BN42: N/A | BO42: N/A | BP42: N/A | BQ42: N/A | BR42: N/A | BS42: N/A
A43: Water source available when needed | B43: Yes | C43: N/A | D43: N/A | E43: N/A | F43: N/A | G43: N/A | H43: N/A | I43: N/A | J43: N/A | K43: N/A | L43: N/A | M43: N/A | N43: N/A | O43: N/A | P43: N/A | Q43: N/A | R43: N/A | S43: N/A | BA43: Water source available when needed | BB43: Yes | BC43: N/A | BD43: N/A | BE43: N/A | BF43: N/A | BG43: N/A | BH43: N/A | BI43: N/A | BJ43: N/A | BK43: N/A | BL43: N/A | BM43: N/A | BN43: N/A | BO43: N/A | BP43: N/A | BQ43: N/A | BR43: N/A | BS43: N/A
B44: No | C44: N/A | D44: N/A | E44: N/A | F44: N/A | G44: N/A | H44: N/A | I44: N/A | J44: N/A | K44: N/A | L44: N/A | M44: N/A | N44: N/A | O44: N/A | P44: N/A | Q44: N/A | R44: N/A | S44: N/A | BB44: No | BC44: N/A | BD44: N/A | BE44: N/A | BF44: N/A | BG44: N/A | BH44: N/A | BI44: N/A | BJ44: N/A | BK44: N/A | BL44: N/A | BM44: N/A | BN44: N/A | BO44: N/A | BP44: N/A | BQ44: N/A | BR44: N/A | BS44: N/A
A45: Improved water source available when needed | B45: Yes | C45: N/A | D45: N/A | E45: N/A | F45: N/A | G45: N/A | H45: N/A | I45: N/A | J45: N/A | K45: N/A | L45: N/A | M45: N/A | N45: N/A | O45: N/A | P45: N/A | Q45: N/A | R45: N/A | S45: N/A | BA45: Improved water source available when needed | BB45: Yes | BC45: N/A | BD45: N/A | BE45: N/A | BF45: N/A | BG45: N/A | BH45: N/A | BI45: N/A | BJ45: N/A | BK45: N/A | BL45: N/A | BM45: N/A | BN45: N/A | BO45: N/A | BP45: N/A | BQ45: N/A | BR45: N/A | BS45: N/A
B46: No | C46: N/A | D46: N/A | E46: N/A | F46: N/A | G46: N/A | H46: N/A | I46: N/A | J46: N/A | K46: N/A | L46: N/A | M46: N/A | N46: N/A | O46: N/A | P46: N/A | Q46: N/A | R46: N/A | S46: N/A | BB46: No | BC46: N/A | BD46: N/A | BE46: N/A | BF46: N/A | BG46: N/A | BH46: N/A | BI46: N/A | BJ46: N/A | BK46: N/A | BL46: N/A | BM46: N/A | BN46: N/A | BO46: N/A | BP46: N/A | BQ46: N/A | BR46: N/A | BS46: N/A
A47: Microbiological quality at point of collection | B47: Not contaminated (No E. coli in 100 mL) | C47: N/A | D47: N/A | E47: N/A | F47: N/A | G47: N/A | H47: N/A | I47: N/A | J47: N/A | K47: N/A | L47: N/A | M47: N/A | N47: N/A | O47: N/A | P47: N/A | Q47: N/A | R47: N/A | S47: N/A | BA47: Microbiological quality at point of collection | BB47: Not contaminated (No E. coli in 100 mL) | BC47: N/A | BD47: N/A | BE47: N/A | BF47: N/A | BG47: N/A | BH47: N/A | BI47: N/A | BJ47: N/A | BK47: N/A | BL47: N/A | BM47: N/A | BN47: N/A | BO47: N/A | BP47: N/A | BQ47: N/A | BR47: N/A | BS47: N/A
B48: Contaminated (E. coli detected in 100 mL) | C48: N/A | D48: N/A | E48: N/A | F48: N/A | G48: N/A | H48: N/A | I48: N/A | J48: N/A | K48: N/A | L48: N/A | M48: N/A | N48: N/A | O48: N/A | P48: N/A | Q48: N/A | R48: N/A | S48: N/A | BB48: Contaminated (E. coli detected in 100 mL) | BC48: N/A | BD48: N/A | BE48: N/A | BF48: N/A | BG48: N/A | BH48: N/A | BI48: N/A | BJ48: N/A | BK48: N/A | BL48: N/A | BM48: N/A | BN48: N/A | BO48: N/A | BP48: N/A | BQ48: N/A | BR48: N/A | BS48: N/A
B49: Highly contaminated (>100 CFU/100 mL) | C49: N/A | D49: N/A | E49: N/A | F49: N/A | G49: N/A | H49: N/A | I49: N/A | J49: N/A | K49: N/A | L49: N/A | M49: N/A | N49: N/A | O49: N/A | P49: N/A | Q49: N/A | R49: N/A | S49: N/A | BB49: Highly contaminated (>100 CFU/100 mL) | BC49: N/A | BD49: N/A | BE49: N/A | BF49: N/A | BG49: N/A | BH49: N/A | BI49: N/A | BJ49: N/A | BK49: N/A | BL49: N/A | BM49: N/A | BN49: N/A | BO49: N/A | BP49: N/A | BQ49: N/A | BR49: N/A | BS49: N/A
A50: Microbiological quality of improved water sources at point of collection | B50: Not contaminated (No E. coli in 100 mL) | C50: N/A | D50: N/A | E50: N/A | F50: N/A | G50: N/A | H50: N/A | I50: N/A | J50: N/A | K50: N/A | L50: N/A | M50: N/A | N50: N/A | O50: N/A | P50: N/A | Q50: N/A | R50: N/A | S50: N/A | BA50: Microbiological quality of improved water sources at point of collection | BB50: Not contaminated (No E. coli in 100 mL) | BC50: N/A | BD50: N/A | BE50: N/A | BF50: N/A | BG50: N/A | BH50: N/A | BI50: N/A | BJ50: N/A | BK50: N/A | BL50: N/A | BM50: N/A | BN50: N/A | BO50: N/A | BP50: N/A | BQ50: N/A | BR50: N/A | BS50: N/A
B51: Contaminated (E. coli detected in 100 mL) | C51: N/A | D51: N/A | E51: N/A | F51: N/A | G51: N/A | H51: N/A | I51: N/A | J51: N/A | K51: N/A | L51: N/A | M51: N/A | N51: N/A | O51: N/A | P51: N/A | Q51: N/A | R51: N/A | S51: N/A | BB51: Contaminated (E. coli detected in 100 mL) | BC51: N/A | BD51: N/A | BE51: N/A | BF51: N/A | BG51: N/A | BH51: N/A | BI51: N/A | BJ51: N/A | BK51: N/A | BL51: N/A | BM51: N/A | BN51: N/A | BO51: N/A | BP51: N/A | BQ51: N/A | BR51: N/A | BS51: N/A
B52: Highly contaminated (>100 CFU/100 mL) | C52: N/A | D52: N/A | E52: N/A | F52: N/A | G52: N/A | H52: N/A | I52: N/A | J52: N/A | K52: N/A | L52: N/A | M52: N/A | N52: N/A | O52: N/A | P52: N/A | Q52: N/A | R52: N/A | S52: N/A | BB52: Highly contaminated (>100 CFU/100 mL) | BC52: N/A | BD52: N/A | BE52: N/A | BF52: N/A | BG52: N/A | BH52: N/A | BI52: N/A | BJ52: N/A | BK52: N/A | BL52: N/A | BM52: N/A | BN52: N/A | BO52: N/A | BP52: N/A | BQ52: N/A | BR52: N/A | BS52: N/A
A53: Microbiological quality of piped on premises at point of collection | B53: Not contaminated (No E. coli in 100 mL) | C53: N/A | D53: N/A | E53: N/A | F53: N/A | G53: N/A | H53: N/A | I53: N/A | J53: N/A | K53: N/A | L53: N/A | M53: N/A | N53: N/A | O53: N/A | P53: N/A | Q53: N/A | R53: N/A | S53: N/A | BA53: Microbiological quality of piped on premises at point of collection | BB53: Not contaminated (No E. coli in 100 mL) | BC53: N/A | BD53: N/A | BE53: N/A | BF53: N/A | BG53: N/A | BH53: N/A | BI53: N/A | BJ53: N/A | BK53: N/A | BL53: N/A | BM53: N/A | BN53: N/A | BO53: N/A | BP53: N/A | BQ53: N/A | BR53: N/A | BS53: N/A
B54: Contaminated (E. coli detected in 100 mL) | C54: N/A | D54: N/A | E54: N/A | F54: N/A | G54: N/A | H54: N/A | I54: N/A | J54: N/A | K54: N/A | L54: N/A | M54: N/A | N54: N/A | O54: N/A | P54: N/A | Q54: N/A | R54: N/A | S54: N/A | BB54: Contaminated (E. coli detected in 100 mL) | BC54: N/A | BD54: N/A | BE54: N/A | BF54: N/A | BG54: N/A | BH54: N/A | BI54: N/A | BJ54: N/A | BK54: N/A | BL54: N/A | BM54: N/A | BN54: N/A | BO54: N/A | BP54: N/A | BQ54: N/A | BR54: N/A | BS54: N/A
B55: Highly contaminated (>100 CFU/100 mL) | C55: N/A | D55: N/A | E55: N/A | F55: N/A | G55: N/A | H55: N/A | I55: N/A | J55: N/A | K55: N/A | L55: N/A | M55: N/A | N55: N/A | O55: N/A | P55: N/A | Q55: N/A | R55: N/A | S55: N/A | BB55: Highly contaminated (>100 CFU/100 mL) | BC55: N/A | BD55: N/A | BE55: N/A | BF55: N/A | BG55: N/A | BH55: N/A | BI55: N/A | BJ55: N/A | BK55: N/A | BL55: N/A | BM55: N/A | BN55: N/A | BO55: N/A | BP55: N/A | BQ55: N/A | BR55: N/A | BS55: N/A
C56: NATIONAL wealth index quintile | H56: URBAN wealth index quintile | M56: RURAL wealth index quintile | R56: SUB-REGIONS: | BA56: Raw numbers of respondents: | BB56: Use of drinking water sources | BC56: NATIONAL wealth index quintile | BH56: URBAN wealth index quintile | BM56: RURAL wealth index quintile | BR56: SUB-REGIONS:
A57: Percentage based on weighted population | C57: Poorest | D57: Poor | E57: Middle | F57: Rich | G57: Richest | H57: Poorest | I57: Poor | J57: Middle | K57: Rich | L57: Richest | M57: Poorest | N57: Poor | O57: Middle | P57: Rich | Q57: Richest | R57: Gaza Strip | S57: West Bank | BA57: Water data, raw numbers (weighted) | BC57: Poorest | BD57: Poor | BE57: Middle | BF57: Rich | BG57: Richest | BH57: Poorest | BI57: Poor | BJ57: Middle | BK57: Rich | BL57: Richest | BM57: Poorest | BN57: Poor | BO57: Middle | BP57: Rich | BQ57: Richest | BR57: Gaza Strip | BS57: West Bank
A58: Main source of drinking water | B58: Piped into dwelling | C58: 25.88199166 | D58: 47.26698708 | E58: 53.86012406 | F58: 73.79670545 | G58: 82.6645153 | H58: 21.7069854 | I58: 35.83556863 | J58: 56.80154254 | K58: 72.49023028 | L58: 83.28952446 | M58: 64.63513568 | N58: 75.25241639 | O58: 79.77572133 | P58: 82.76151074 | Q58: 81.92336662 | R58: 10.06433583 | S58: 88.91960958
B59: Piped into compound, yard or plot | C59: 0.2275160328 | D59: 0.2076650014 | E59: 0.06382389736 | F59: 0.2998652315 | G59: 0.06702145198 | H59: 0.2069547621 | I59: 0.182679612 | J59: 0.09188310327 | K59: 0.3440234801 | L59: 0.08992973446 | M59: 0.4373367177 | N59: 0.4271801985 | O59: 0 | P59: 0.05297532381 | Q59: 0 | R59: 0.03775462544 | S59: 0.2667796708
B60: Public tap / standpipe | C60: 0.4338533132 | D60: 0.1715168056 | E60: 0.2917502483 | F60: 0.07550922627 | G60: 0.04413579051 | H60: 0.2631727734 | I60: 0.1397718826 | J60: 0.06302039124 | K60: 0.07534479381 | L60: 0.05922163432 | M60: 1.07674673 | N60: 0.9015958461 | O60: 0.1161006456 | P60: 0 | Q60: 0 | R60: 0.1599376319 | S60: 0.2333267216
B61: Tube well, Borehole | C61: 0.1776804308 | D61: 0.05367641391 | E61: 0.06004513824 | F61: 0.06532824296 | G61: 0.2476860122 | H61: 0.2085924806 | I61: 0.07203437765 | J61: 0.01978604523 | K61: 0.08408159131 | L61: 0.07926741059 | M61: 0.1328070648 | N61: 0 | O61: 0.6615231076 | P61: 0 | Q61: 0.7514251282 | R61: 0.07154409156 | S61: 0.1549597173
B62: Protected well | C62: 1.73907003 | D62: 2.609441258 | E62: 2.407922379 | F62: 3.122971606 | G62: 2.039884888 | H62: 1.013046074 | I62: 1.818454867 | J62: 2.343395426 | K62: 2.256578857 | L62: 1.545718629 | M62: 7.310911727 | N62: 6.930136732 | O62: 7.096821383 | P62: 4.829029569 | Q62: 4.804749834 | R62: 0 | S62: 4.031331304
B63: Unprotected well | C63: 0.0523159248 | D63: 0.07251820227 | E63: 0 | F63: 0.03113048692 | G63: 0 | H63: 0.07021670241 | I63: 0.09732027884 | J63: 0 | K63: 0.04181394316 | L63: 0 | M63: 0 | N63: 0 | O63: 0 | P63: 0 | Q63: 0 | R63: 0.03549290047 | S63: 0.02822223703
B64: Protected spring | C64: 0 | D64: 0.05785585243 | E64: 0.02659971098 | F64: 0.1811327358 | G64: 0.4730720674 | H64: 0 | I64: 0 | J64: 0 | K64: 0.07095174906 | L64: 0.176323106 | M64: 0 | N64: 0.5042836085 | O64: 0.2046459843 | P64: 0.5626798913 | Q64: 2.03794909 | R64: 0 | S64: 0.2498180595
B65: Unprotected spring | C65: 0.07094573599 | D65: 0 | E65: 0 | F65: 0.0531762621 | G65: 0.1330143523 | H65: 0 | I65: 0 | J65: 0 | K65: 0 | L65: 0 | M65: 0.4231659769 | N65: 0 | O65: 0 | P65: 0.5830297029 | Q65: 0.5289327742 | R65: 0 | S65: 0.08695957803
B66: Rainwater collection | C66: 0.5116037171 | D66: 0.3490020642 | E66: 0.5756594251 | F66: 0.4690661667 | G66: 0.6624324921 | H66: 0.2889682981 | I66: 0.2090508409 | J66: 0.5893607454 | K66: 0.3030528484 | L66: 0.5468035133 | M66: 1.930625847 | N66: 1.128912691 | O66: 1.025844342 | P66: 1.364484523 | Q66: 1.266208664 | R66: 0 | S66: 0.868415087
B67: Tanker-truck | C67: 48.7552802 | D67: 39.89084796 | E67: 32.28053916 | F67: 18.30198667 | G67: 8.019625055 | H67: 52.33017232 | I67: 47.95261871 | J67: 33.2843827 | K67: 20.2540715 | L67: 8.007177573 | M67: 16.34421548 | N67: 11.09834151 | O67: 8.320258528 | P67: 8.338581661 | Q67: 4.581987487 | R67: 67.9708599 | S67: 2.828741975
B68: Cart with small tank / drum | C68: 21.80695405 | D68: 9.168659476 | E68: 9.813542418 | F68: 2.466554086 | G68: 0.9031528564 | H68: 23.57754903 | I68: 13.59770589 | J68: 6.248153347 | K68: 2.635879355 | L68: 1.080851303 | M68: 7.358087277 | N68: 3.757133029 | O68: 1.712916948 | P68: 0.9728704533 | Q68: 0 | R68: 21.51912601 | S68: 0.0630651622
B69: Bottled water | C69: 0.1540603531 | D69: 0.04412805561 | E69: 0.5846891216 | F69: 1.082888876 | G69: 4.745459729 | H69: 0.1119458651 | I69: 0.09479491689 | J69: 0.4144700157 | K69: 1.443971607 | L69: 5.125182635 | M69: 0 | N69: 0 | O69: 0.7651348475 | P69: 0.534838135 | Q69: 4.105380405 | R69: 0.06799517883 | S69: 2.188839707
B70: Other | C70: 0.1887285513 | D70: 0.07239939341 | E70: 0 | F70: 0.05368496107 | G70: 0 | H70: 0.2223962976 | I70: 0 | J70: 0.04916021011 | K70: 0 | L70: 0 | M70: 0.3509674987 | N70: 0 | O70: 0.3210328863 | P70: 0 | Q70: 0 | R70: 0.07295383105 | S70: 0.05605182152
B71: Missing | C71: 0 | D71: 0.03530244449 | E71: 0.03530443899 | F71: 0 | G71: 0 | H71: 0 | I71: 0 | J71: 0.09484547409 | K71: 0 | L71: 0 | M71: 0 | N71: 0 | O71: 0 | P71: 0 | Q71: 0 | R71: 0 | S71: 0.02387938145
A108: =A1026 -> State of Palestine
A109: =A1034 -> 2014
A110: Use of sanitation facilities
A111: by wealth quintile and sub-national region
A112: Notes:
A113: WHO/UNICEF JMP customised wealth index excludes water,
A114: sanitation and hygiene assets.
A115: Survey used for analysis: | B115: =A1025 -> MICS14
A116: =B1030 -> 
A117: =B1029 -> 
A120: Use of sanitation facilities | C120: NATIONAL wealth index quintile | H120: URBAN wealth index quintile | M120: RURAL wealth index quintile | R120: SUB-REGIONS: | BA120: Raw numbers of respondents: | BB120: Use of sanitation facilities | BC120: NATIONAL wealth index quintile | BH120: URBAN wealth index quintile | BM120: RURAL wealth index quintile | BR120: SUB-REGIONS:
A121: Weighted percentage (used in graphs) | C121: Poorest | D121: Poor | E121: Middle | F121: Rich | G121: Richest | H121: Poorest | I121: Poor | J121: Middle | K121: Rich | L121: Richest | M121: Poorest | N121: Poor | O121: Middle | P121: Rich | Q121: Richest | R121: Gaza Strip | S121: West Bank | BA121: Sanitation data, raw numbers (weighted) | BC121: Poorest | BD121: Poor | BE121: Middle | BF121: Rich | BG121: Richest | BH121: Poorest | BI121: Poor | BJ121: Middle | BK121: Rich | BL121: Richest | BM121: Poorest | BN121: Poor | BO121: Middle | BP121: Rich | BQ121: Richest | BR121: Gaza Strip | BS121: West Bank
A122: Sanitation | B122: Improved | C122: 99.39437684 | D122: 99.67798343 | E122: 99.79754884 | F122: 99.79086708 | G122: 99.7166384 | H122: 99.68339051 | I122: 99.82978852 | J122: 99.48157906 | K122: 99.84848565 | L122: 99.61978393 | M122: 97.89367957 | N122: 99.59661842 | O122: 99.86037647 | P122: 99.79827033 | Q122: 100 | R122: 99.97408006 | S122: 99.46917783 | BA122: Sanitation | BB122: Improved | BC122: 11202.49725 | BD122: 11237.18312 | BE122: 11250.02671 | BF122: 11254.17288 | BG122: 11239.57078 | BH122: 8370.845164 | BI122: 8386.13889 | BJ122: 8348.703697 | BK122: 8383.571215 | BL122: 8368.318744 | BM122: 1849.793459 | BN122: 1880.392422 | BO122: 1883.298256 | BP122: 1881.977214 | BQ122: 1889.6826 | BR122: 23027.73217 | BS122: 33155.71857
B123: Not Improved | C123: 0.605623164 | D123: 0.3220165665 | E123: 0.2024511608 | F123: 0.2091329219 | G123: 0.283361599 | H123: 0.316609494 | I123: 0.1702114764 | J123: 0.5184209357 | K123: 0.1515143492 | L123: 0.380216074 | M123: 2.106320431 | N123: 0.403381578 | O123: 0.1396235312 | P123: 0.201729673 | Q123: 0 | R123: 0.02591993589 | S123: 0.5308221698 | BB123: Not Improved | BC123: 68.2583064 | BD123: 36.30249129 | BE123: 22.8220131 | BF123: 23.58550564 | BG123: 31.9391307 | BH123: 26.5870677 | BI123: 14.29850852 | BJ123: 43.5069771 | BK123: 12.7215884 | BL123: 31.9391307 | BM123: 39.8009123 | BN123: 7.61587767 | BO123: 2.6332041 | BP123: 3.80418064 | BQ123: 0 | BR123: 5.97032092 | BS123: 176.9371262
A124: Sanitation ladder | B124: Basic | C124: =C122*C129/100 -> 96.71211726 | D124: =D122*D129/100 -> 98.63828347 | E124: =E122*E129/100 -> 98.78798239 | F124: 99.44697416 | G124: 99.65661759 | H124: 96.59618902 | I124: 98.71100785 | J124: 98.77931688 | K124: 99.54713903 | L124: 99.61978393 | M124: 96.72810778 | N124: 99.13105964 | O124: 99.35552979 | P124: 99.1858754 | Q124: 99.64258044 | R124: 98.3602262 | S124: 98.84855523 | BA124: Sanitation ladder | BB124: Basic | BC124: 10884.42262 | BD124: 11107.71167 | BE124: 11132.49977 | BF124: 11207.71547 | BG124: 11214.28189 | BH124: 8095.90035 | BI124: 8292.156419 | BJ124: 8281.666407 | BK124: 8350.591974 | BL124: 8349.783952 | BM124: 1823.588554 | BN124: 1871.602633 | BO124: 1873.777193 | BP124: 1870.428784 | BQ124: 1882.928505 | BR124: 22656.00187 | BS124: 32890.62954
B125: Limited | C125: =C122*C128/100 -> 2.682259576 | D125: =D122*D128/100 -> 1.03969996 | E125: =E122*E128/100 -> 1.009566453 | F125: 0.3438929186 | G125: 0.06002081044 | H125: 3.087201491 | I125: 1.118780678 | J125: 0.7022621846 | K125: 0.3013466239 | L125: 0 | M125: 1.165571788 | N125: 0.4655587798 | O125: 0.5048466767 | P125: 0.612394922 | Q125: 0.3574195608 | R125: 1.613853865 | S125: 0.620622598 | BB125: Limited | BC125: 301.8737221 | BD125: 117.0811876 | BE125: 113.768882 | BF125: 38.75687538 | BG125: 6.75409525 | BH125: 258.7439099 | BI125: 93.98247051 | BJ125: 58.87772184 | BK125: 25.27870438 | BL125: 0 | BM125: 21.97420604 | BN125: 8.7897884 | BO125: 9.5210623 | BP125: 11.5484295 | BQ125: 6.75409525 | BR125: 371.730298 | BS125: 206.5044644
B126: Unimproved | C126: =100-C124-C125-C127 -> 0.5678098721 | D126: =100-D124-D125-D127 -> 0.3220165665 | E126: =100-E124-E125-E127 -> 0.2024511608 | F126: 0.2091329219 | G126: 0.283361599 | H126: 0.316609494 | I126: 0.1702114764 | J126: 0.5184209357 | K126: 0.1515143492 | L126: 0.380216074 | M126: 1.880596468 | N126: 0.403381578 | O126: 0.1396235312 | P126: 0.201729673 | Q126: -5.551115123e-16 | R126: 0.02591993589 | S126: 0.5180322783 | BB126: Unimproved | BC126: 64.0025888 | BD126: 36.30249129 | BE126: 22.8220131 | BF126: 23.58550564 | BG126: 31.9391307 | BH126: 26.5870677 | BI126: 14.29850852 | BJ126: 43.5069771 | BK126: 12.7215884 | BL126: 31.9391307 | BM126: 35.5451947 | BN126: 7.61587767 | BO126: 2.6332041 | BP126: 3.80418064 | BQ126: 0 | BR126: 5.97032092 | BS126: 172.6814086
B127: Open defecation | C127: 0.03781329188 | D127: 0 | E127: 0 | F127: 0 | G127: 0 | H127: 0 | I127: 0 | J127: 0 | K127: 0 | L127: 0 | M127: 0.2257239632 | N127: 0 | O127: 0 | P127: 0 | Q127: 0 | R127: 0 | S127: 0.01278989151 | BB127: Open defecation | BC127: 4.2557176 | BD127: 0 | BE127: 0 | BF127: 0 | BG127: 0 | BH127: 0 | BI127: 0 | BJ127: 0 | BK127: 0 | BL127: 0 | BM127: 4.2557176 | BN127: 0 | BO127: 0 | BP127: 0 | BQ127: 0 | BR127: 0 | BS127: 4.2557176
A128: Shared among Improved Sanitation | B128: Yes | C128: 2.698602941 | D128: 1.043058782 | E128: 1.011614479 | F128: 0.3446136191 | G128: 0.06019136967 | H128: 3.097006909 | I128: 1.120688218 | J128: 0.7059218311 | K128: 0.3018039001 | L128: 0 | M128: 1.190650707 | N128: 0.4674443642 | O128: 0.505552547 | P128: 0.6136328015 | Q128: 0.3574195608 | R128: 1.614272284 | S128: 0.623934581 | BA128: Shared among improved sanitation facilities | BB128: Yes | BC128: N/A | BD128: N/A | BE128: N/A | BF128: N/A | BG128: N/A | BH128: N/A | BI128: N/A | BJ128: N/A | BK128: N/A | BL128: N/A | BM128: N/A | BN128: N/A | BO128: N/A | BP128: N/A | BQ128: N/A | BR128: N/A | BS128: N/A
B129: No | C129: 97.30139706 | D129: 98.95694122 | E129: 98.98838552 | F129: 99.65538638 | G129: 99.93980863 | H129: 96.90299309 | I129: 98.87931178 | J129: 99.29407817 | K129: 99.6981961 | L129: 100 | M129: 98.80934929 | N129: 99.53255564 | O129: 99.49444745 | P129: 99.3863672 | Q129: 99.64258044 | R129: 98.38572772 | S129: 99.37606542 | BB129: No | BC129: N/A | BD129: N/A | BE129: N/A | BF129: N/A | BG129: N/A | BH129: N/A | BI129: N/A | BJ129: N/A | BK129: N/A | BL129: N/A | BM129: N/A | BN129: N/A | BO129: N/A | BP129: N/A | BQ129: N/A | BR129: N/A | BS129: N/A
A130: Manually calculated ratios | B130: Improved latrines
B131: Other
B132: Other
C133: NATIONAL wealth index quintile | H133: URBAN wealth index quintile | M133: RURAL wealth index quintile | R133: SUB-REGIONS: | BA133: Raw numbers of respondents: | BB133: Use of sanitation facilities | BC133: NATIONAL wealth index quintile | BH133: URBAN wealth index quintile | BM133: RURAL wealth index quintile | BR133: SUB-REGIONS:
A134: Percentage based on weighted population | C134: Poorest | D134: Poor | E134: Middle | F134: Rich | G134: Richest | H134: Poorest | I134: Poor | J134: Middle | K134: Rich | L134: Richest | M134: Poorest | N134: Poor | O134: Middle | P134: Rich | Q134: Richest | R134: Gaza Strip | S134: West Bank | BA134: Sanitation data, raw numbers (weighted) | BC134: Poorest | BD134: Poor | BE134: Middle | BF134: Rich | BG134: Richest | BH134: Poorest | BI134: Poor | BJ134: Middle | BK134: Rich | BL134: Richest | BM134: Poorest | BN134: Poor | BO134: Middle | BP134: Rich | BQ134: Richest | BR134: Gaza Strip | BS134: West Bank
A135: Sanitation type | B135: Sewer connection | C135: 62.63625015 | D135: 53.13464417 | E135: 63.2930793 | F135: 44.59645826 | G135: 54.96926407 | H135: 67.96484823 | I135: 64.3041041 | J135: 56.81078624 | K135: 56.5735508 | L135: 64.78097967 | M135: 10.14284105 | N135: 6.445034751 | O135: 6.466658381 | P135: 13.36596522 | Q135: 13.38080151 | R135: 81.85010142 | S135: 37.67139442 | BA135: Sanitation type | BB135: Sewer connection | BC135: N/A | BD135: N/A | BE135: N/A | BF135: N/A | BG135: N/A | BH135: N/A | BI135: N/A | BJ135: N/A | BK135: N/A | BL135: N/A | BM135: N/A | BN135: N/A | BO135: N/A | BP135: N/A | BQ135: N/A | BR135: N/A | BS135: N/A
B136: Septic tank connection | C136: 30.858205 | D136: 36.50395564 | E136: 27.09408499 | F136: 42.02692791 | G136: 34.05450778 | H136: 27.28657531 | I136: 28.21755172 | J136: 32.74625089 | K136: 32.08076164 | L136: 27.9969352 | M136: 67.64580045 | N136: 69.53901281 | O136: 70.77133588 | P136: 66.52274086 | Q136: 60.99967168 | R136: 16.56467763 | S136: 46.23151074 | BB136: Septic tank connection | BC136: N/A | BD136: N/A | BE136: N/A | BF136: N/A | BG136: N/A | BH136: N/A | BI136: N/A | BJ136: N/A | BK136: N/A | BL136: N/A | BM136: N/A | BN136: N/A | BO136: N/A | BP136: N/A | BQ136: N/A | BR136: N/A | BS136: N/A
B137: Improved latrines | C137: 5.899921688 | D137: 10.03938362 | E137: 9.410384548 | F137: 13.16748091 | G137: 10.69286655 | H137: 4.431966963 | I137: 7.308132696 | J137: 9.924541933 | K137: 11.19417321 | L137: 6.841869058 | M137: 20.10503808 | N137: 23.61257086 | O137: 22.62238221 | P137: 19.90956425 | Q137: 25.61952681 | R137: 1.559301015 | S137: 15.56627267 | BB137: Improved latrines | BC137: N/A | BD137: N/A | BE137: N/A | BF137: N/A | BG137: N/A | BH137: N/A | BI137: N/A | BJ137: N/A | BK137: N/A | BL137: N/A | BM137: N/A | BN137: N/A | BO137: N/A | BP137: N/A | BQ137: N/A | BR137: N/A | BS137: N/A
B138: Unimproved facilities | C138: 0.567864226 | D138: 0.3220165665 | E138: 0.2024511608 | F138: 0.2091329219 | G138: 0.283361599 | H138: 0.316609494 | I138: 0.1702114764 | J138: 0.5184209357 | K138: 0.1515143492 | L138: 0.380216074 | M138: 1.881101851 | N138: 0.403381578 | O138: 0.1396235312 | P138: 0.201729673 | Q138: 0 | R138: 0.02591993589 | S138: 0.5180547574 | BB138: Unimproved facilities | BC138: N/A | BD138: N/A | BE138: N/A | BF138: N/A | BG138: N/A | BH138: N/A | BI138: N/A | BJ138: N/A | BK138: N/A | BL138: N/A | BM138: N/A | BN138: N/A | BO138: N/A | BP138: N/A | BQ138: N/A | BR138: N/A | BS138: N/A
B139: Open defecation | C139: 0.03775893798 | D139: 0 | E139: 0 | F139: 0 | G139: 0 | H139: 0 | I139: 0 | J139: 0 | K139: 0 | L139: 0 | M139: 0.2252185795 | N139: 0 | O139: 0 | P139: 0 | Q139: 0 | R139: 0 | S139: 0.01276741235 | BB139: Open defecation | BC139: N/A | BD139: N/A | BE139: N/A | BF139: N/A | BG139: N/A | BH139: N/A | BI139: N/A | BJ139: N/A | BK139: N/A | BL139: N/A | BM139: N/A | BN139: N/A | BO139: N/A | BP139: N/A | BQ139: N/A | BR139: N/A | BS139: N/A
A140: Septic tank emptying practices | B140: Not emptied/treated and disposed in situ | C140: N/A | D140: N/A | E140: N/A | F140: N/A | G140: N/A | H140: N/A | I140: N/A | J140: N/A | K140: N/A | L140: N/A | M140: N/A | N140: N/A | O140: N/A | P140: N/A | Q140: N/A | R140: N/A | S140: N/A | BA140: Septic tank emptying practices | BB140: Not emptied/treated and disposed in situ | BC140: N/A | BD140: N/A | BE140: N/A | BF140: N/A | BG140: N/A | BH140: N/A | BI140: N/A | BJ140: N/A | BK140: N/A | BL140: N/A | BM140: N/A | BN140: N/A | BO140: N/A | BP140: N/A | BQ140: N/A | BR140: N/A | BS140: N/A
B141: Emptied and buried on site | C141: N/A | D141: N/A | E141: N/A | F141: N/A | G141: N/A | H141: N/A | I141: N/A | J141: N/A | K141: N/A | L141: N/A | M141: N/A | N141: N/A | O141: N/A | P141: N/A | Q141: N/A | R141: N/A | S141: N/A | BB141: Emptied and buried on site | BC141: N/A | BD141: N/A | BE141: N/A | BF141: N/A | BG141: N/A | BH141: N/A | BI141: N/A | BJ141: N/A | BK141: N/A | BL141: N/A | BM141: N/A | BN141: N/A | BO141: N/A | BP141: N/A | BQ141: N/A | BR141: N/A | BS141: N/A
B142: Emptied and discharged locally | C142: N/A | D142: N/A | E142: N/A | F142: N/A | G142: N/A | H142: N/A | I142: N/A | J142: N/A | K142: N/A | L142: N/A | M142: N/A | N142: N/A | O142: N/A | P142: N/A | Q142: N/A | R142: N/A | S142: N/A | BB142: Emptied and discharged locally | BC142: N/A | BD142: N/A | BE142: N/A | BF142: N/A | BG142: N/A | BH142: N/A | BI142: N/A | BJ142: N/A | BK142: N/A | BL142: N/A | BM142: N/A | BN142: N/A | BO142: N/A | BP142: N/A | BQ142: N/A | BR142: N/A | BS142: N/A
B143: Emptied and removed offsite | C143: N/A | D143: N/A | E143: N/A | F143: N/A | G143: N/A | H143: N/A | I143: N/A | J143: N/A | K143: N/A | L143: N/A | M143: N/A | N143: N/A | O143: N/A | P143: N/A | Q143: N/A | R143: N/A | S143: N/A | BB143: Emptied and removed offsite | BC143: N/A | BD143: N/A | BE143: N/A | BF143: N/A | BG143: N/A | BH143: N/A | BI143: N/A | BJ143: N/A | BK143: N/A | BL143: N/A | BM143: N/A | BN143: N/A | BO143: N/A | BP143: N/A | BQ143: N/A | BR143: N/A | BS143: N/A
A144: Latrine emptying practices | B144: Not emptied/treated and disposed in situ | C144: N/A | D144: N/A | E144: N/A | F144: N/A | G144: N/A | H144: N/A | I144: N/A | J144: N/A | K144: N/A | L144: N/A | M144: N/A | N144: N/A | O144: N/A | P144: N/A | Q144: N/A | R144: N/A | S144: N/A | BA144: Latrine emptying practices | BB144: Not emptied/treated and disposed in situ | BC144: N/A | BD144: N/A | BE144: N/A | BF144: N/A | BG144: N/A | BH144: N/A | BI144: N/A | BJ144: N/A | BK144: N/A | BL144: N/A | BM144: N/A | BN144: N/A | BO144: N/A | BP144: N/A | BQ144: N/A | BR144: N/A | BS144: N/A
B145: Emptied and buried on site | C145: N/A | D145: N/A | E145: N/A | F145: N/A | G145: N/A | H145: N/A | I145: N/A | J145: N/A | K145: N/A | L145: N/A | M145: N/A | N145: N/A | O145: N/A | P145: N/A | Q145: N/A | R145: N/A | S145: N/A | BB145: Emptied and buried on site | BC145: N/A | BD145: N/A | BE145: N/A | BF145: N/A | BG145: N/A | BH145: N/A | BI145: N/A | BJ145: N/A | BK145: N/A | BL145: N/A | BM145: N/A | BN145: N/A | BO145: N/A | BP145: N/A | BQ145: N/A | BR145: N/A | BS145: N/A
B146: Emptied and discharged locally | C146: N/A | D146: N/A | E146: N/A | F146: N/A | G146: N/A | H146: N/A | I146: N/A | J146: N/A | K146: N/A | L146: N/A | M146: N/A | N146: N/A | O146: N/A | P146: N/A | Q146: N/A | R146: N/A | S146: N/A | BB146: Emptied and discharged locally | BC146: N/A | BD146: N/A | BE146: N/A | BF146: N/A | BG146: N/A | BH146: N/A | BI146: N/A | BJ146: N/A | BK146: N/A | BL146: N/A | BM146: N/A | BN146: N/A | BO146: N/A | BP146: N/A | BQ146: N/A | BR146: N/A | BS146: N/A
B147: Emptied and removed offsite | C147: N/A | D147: N/A | E147: N/A | F147: N/A | G147: N/A | H147: N/A | I147: N/A | J147: N/A | K147: N/A | L147: N/A | M147: N/A | N147: N/A | O147: N/A | P147: N/A | Q147: N/A | R147: N/A | S147: N/A | BB147: Emptied and removed offsite | BC147: N/A | BD147: N/A | BE147: N/A | BF147: N/A | BG147: N/A | BH147: N/A | BI147: N/A | BJ147: N/A | BK147: N/A | BL147: N/A | BM147: N/A | BN147: N/A | BO147: N/A | BP147: N/A | BQ147: N/A | BR147: N/A | BS147: N/A
A148: Shared among improved sanitation facilities | B148: Yes | C148: 2.678380528 | D148: 1.038553573 | E148: 1.009229209 | F148: 0.3436576139 | G148: 0.05992183217 | H148: 3.081226532 | I148: 1.118780678 | J148: 0.7015758318 | K148: 0.301069829 | L148: 0 | M148: 1.162905985 | N148: 0.4655587798 | O148: 0.5048466767 | P148: 0.612394922 | Q148: 0.3574195608 | R148: 1.613853865 | S148: 0.6195259877 | BA148: Shared among improved sanitation facilities | BB148: Yes | BC148: N/A | BD148: N/A | BE148: N/A | BF148: N/A | BG148: N/A | BH148: N/A | BI148: N/A | BJ148: N/A | BK148: N/A | BL148: N/A | BM148: N/A | BN148: N/A | BO148: N/A | BP148: N/A | BQ148: N/A | BR148: N/A | BS148: N/A
B149: No | C149: 96.57225347 | D149: 98.52952359 | E149: 98.75498234 | F149: 99.37892873 | G149: 99.49227727 | H149: 96.40923709 | I149: 98.71100785 | J149: 98.68277536 | K149: 99.4557023 | L149: 99.39913842 | M149: 96.50687901 | N149: 99.13105964 | O149: 99.35552979 | P149: 99.1858754 | Q149: 99.64258044 | R149: 98.3602262 | S149: 98.67389459 | BB149: No | BC149: N/A | BD149: N/A | BE149: N/A | BF149: N/A | BG149: N/A | BH149: N/A | BI149: N/A | BJ149: N/A | BK149: N/A | BL149: N/A | BM149: N/A | BN149: N/A | BO149: N/A | BP149: N/A | BQ149: N/A | BR149: N/A | BS149: N/A
B150: DK/missing | C150: 0.7493660025 | D150: 0.4319228348 | E150: 0.2357884555 | F150: 0.2774136514 | G150: 0.4478008955 | H150: 0.5095363734 | I150: 0.1702114764 | J150: 0.6156488112 | K150: 0.2432278695 | L150: 0.6008615813 | M150: 2.330215001 | N150: 0.403381578 | O150: 0.1396235312 | P150: 0.201729673 | Q150: 0 | R150: 0.02591993589 | S150: 0.706579427 | BB150: DK/missing | BC150: N/A | BD150: N/A | BE150: N/A | BF150: N/A | BG150: N/A | BH150: N/A | BI150: N/A | BJ150: N/A | BK150: N/A | BL150: N/A | BM150: N/A | BN150: N/A | BO150: N/A | BP150: N/A | BQ150: N/A | BR150: N/A | BS150: N/A
A151: Shared among all sanitation facilities | B151: Yes | C151: 2.773426305 | D151: 1.038553573 | E151: 1.009229209 | F151: 0.3436576139 | G151: 0.05992183217 | H151: 3.108269618 | I151: 1.118780678 | J151: 0.7015758318 | K151: 0.301069829 | L151: 0 | M151: 1.607012575 | N151: 0.4655587798 | O151: 0.5048466767 | P151: 0.612394922 | Q151: 0.3574195608 | R151: 1.623713004 | S151: 0.644579061 | BA151: Shared among all sanitation facilities | BB151: Yes | BC151: N/A | BD151: N/A | BE151: N/A | BF151: N/A | BG151: N/A | BH151: N/A | BI151: N/A | BJ151: N/A | BK151: N/A | BL151: N/A | BM151: N/A | BN151: N/A | BO151: N/A | BP151: N/A | BQ151: N/A | BR151: N/A | BS151: N/A
B152: No | C152: 97.03862114 | D152: 98.81623771 | E152: 98.92212906 | F152: 99.58806166 | G152: 99.77563887 | H152: 96.63956194 | I152: 98.88121932 | J152: 99.10635082 | K152: 99.60721665 | L152: 99.77935449 | M152: 98.16858746 | N152: 99.53444122 | O152: 99.49515332 | P152: 99.38760508 | Q152: 99.64258044 | R152: 98.376287 | S152: 99.14083229 | BB152: No | BC152: N/A | BD152: N/A | BE152: N/A | BF152: N/A | BG152: N/A | BH152: N/A | BI152: N/A | BJ152: N/A | BK152: N/A | BL152: N/A | BM152: N/A | BN152: N/A | BO152: N/A | BP152: N/A | BQ152: N/A | BR152: N/A | BS152: N/A
A153: Type of toilet facility | B153: Flush to piped sewer system | C153: 62.63625015 | D153: 53.13464417 | E153: 63.2930793 | F153: 44.59645826 | G153: 54.96926407 | H153: 67.96484823 | I153: 64.3041041 | J153: 56.81078624 | K153: 56.5735508 | L153: 64.78097967 | M153: 10.14284105 | N153: 6.445034751 | O153: 6.466658381 | P153: 13.36596522 | Q153: 13.38080151 | R153: 81.85010142 | S153: 37.67139442 | BA153: Type of toilet facility | BB153: Flush to piped sewer system | BC153: 7059.578643 | BD153: 5990.126466 | BE153: 7134.933083 | BF153: 5029.480812 | BG153: 6195.866045 | BH153: 5707.302072 | BI153: 5401.82601 | BJ153: 4767.680867 | BK153: 4750.080974 | BL153: 5441.769346 | BM153: 191.6585535 | BN153: 121.682791 | BO153: 121.9567448 | BP153: 252.0528852 | BQ153: 252.8546779 | BR153: 18853.10885 | BS153: 12556.8762
B154: Flush to septic tank | C154: 30.858205 | D154: 36.50395564 | E154: 27.09408499 | F154: 42.02692791 | G154: 34.05450778 | H154: 27.28657531 | I154: 28.21755172 | J154: 32.74625089 | K154: 32.08076164 | L154: 27.9969352 | M154: 67.64580045 | N154: 69.53901281 | O154: 70.77133588 | P154: 66.52274086 | Q154: 60.99967168 | R154: 16.56467763 | S154: 46.23151074 | BB154: Flush to septic tank | BC154: 3477.952854 | BD154: 4115.268188 | BE154: 3054.275214 | BF154: 4739.695387 | BG154: 3838.457219 | BH154: 2291.37167 | BI154: 2370.397768 | BJ154: 2748.134363 | BK154: 2693.594681 | BL154: 2351.814754 | BM154: 1278.231238 | BN154: 1312.902333 | BO154: 1334.698888 | BP154: 1254.47347 | BQ154: 1152.700182 | BR154: 3815.458564 | BS154: 15410.1903
B155: Flush to pit (latrine) | C155: 5.899921688 | D155: 9.949781547 | E155: 9.329041442 | F155: 13.04111046 | G155: 10.48668521 | H155: 4.431966963 | I155: 7.187885666 | J155: 9.886460616 | K155: 11.05475869 | L155: 6.702609101 | M155: 20.10503808 | N155: 23.29616225 | O155: 22.14860382 | P155: 19.90956425 | Q155: 25.34686076 | R155: 1.559301015 | S155: 15.3959818 | BB155: Flush to pit (latrine) | BC155: 664.9657514 | BD155: 1121.687191 | BE155: 1051.648729 | BF155: 1470.744928 | BG155: 1182.007762 | BH155: 372.1714223 | BI155: 603.8138356 | BJ155: 829.6926031 | BK155: 928.1899082 | BL155: 563.0364488 | BM155: 379.9036678 | BN155: 439.8334767 | BO155: 417.7074874 | BP155: 375.4508584 | BQ155: 478.9752175 | BR155: 359.1647567 | BS155: 5131.889605
B156: Flush to somewhere else | C156: 0.5035766566 | D156: 0.177798247 | E156: 0.1671467218 | F156: 0.1402537516 | G156: 0.1075017731 | H156: 0.2303248465 | I156: 0.1702114764 | J156: 0.2772657945 | K156: 0.05899701352 | L156: 0.1442464408 | M156: 1.881101851 | N156: 0.403381578 | O156: 0.1396235312 | P156: 0.201729673 | Q156: 0 | R156: 0.01606079666 | S156: 0.3596422322 | BB156: Flush to somewhere else | BC156: 56.756894 | BD156: 20.04405979 | BE156: 18.8421971 | BF156: 15.81747924 | BG156: 12.117073 | BH156: 19.3413729 | BI156: 14.29850852 | BJ156: 23.2687296 | BK156: 4.953562 | BL156: 12.117073 | BM156: 35.5451947 | BN156: 7.61587767 | BO156: 2.6332041 | BP156: 3.80418064 | BQ156: 0 | BR156: 3.69939612 | BS156: 119.878307
B157: Flush to unknown place / Not sure / DK where | C157: 0 | D157: 0.08960207026 | E157: 0.08134310523 | F157: 0.1263704595 | G157: 0.2061813412 | H157: 0 | I157: 0.1202470303 | J157: 0.0380813176 | K157: 0.1394145223 | L157: 0.139259957 | M157: 0 | N157: 0.3164086091 | O157: 0.4737783843 | P157: 0 | Q157: 0.2726660446 | R157: 0 | S157: 0.1702908632 | BB157: Flush to unknown place / Not sure / DK where | BC157: 0 | BD157: 10.1012765 | BE157: 9.1696852 | BF157: 14.2517551 | BG157: 23.2397503 | BH157: 0 | BI157: 10.1012765 | BJ157: 3.1958644 | BK157: 11.7056515 | BL157: 11.6981955 | BM157: 0 | BN157: 5.9738208 | BO157: 8.9351356 | BP157: 0 | BQ157: 5.1525228 | BR157: 0 | BS157: 56.7624671
B158: No facility, Bush, Field | C158: 0.03775893798 | D158: 0 | E158: 0 | F158: 0 | G158: 0 | H158: 0 | I158: 0 | J158: 0 | K158: 0 | L158: 0 | M158: 0.2252185795 | N158: 0 | O158: 0 | P158: 0 | Q158: 0 | R158: 0 | S158: 0.01276741235 | BB158: No facility, Bush, Field | BC158: 4.2557176 | BD158: 0 | BE158: 0 | BF158: 0 | BG158: 0 | BH158: 0 | BI158: 0 | BJ158: 0 | BK158: 0 | BL158: 0 | BM158: 4.2557176 | BN158: 0 | BO158: 0 | BP158: 0 | BQ158: 0 | BR158: 0 | BS158: 4.2557176
B159: Other | C159: 0.02014882489 | D159: 0 | E159: 0 | F159: 0 | G159: 0 | H159: 0.02704308576 | I159: 0 | J159: 0 | K159: 0 | L159: 0 | M159: 0 | N159: 0 | O159: 0 | P159: 0 | Q159: 0 | R159: 0.009859139237 | S159: 0 | BB159: Other | BC159: 2.2709248 | BD159: 0 | BE159: 0 | BF159: 0 | BG159: 0 | BH159: 2.2709248 | BI159: 0 | BJ159: 0 | BK159: 0 | BL159: 0 | BM159: 0 | BN159: 0 | BO159: 0 | BP159: 0 | BQ159: 0 | BR159: 2.2709248 | BS159: 0
B160: Missing | C160: 0.04413874452 | D160: 0.1442183195 | E160: 0.03530443899 | F160: 0.06887917024 | G160: 0.1758598259 | H160: 0.05924156174 | I160: 0 | J160: 0.2411551412 | K160: 0.09251733571 | L160: 0.2359696333 | M160: 0 | N160: 0 | O160: 0 | P160: 0 | Q160: 0 | R160: 0 | S160: 0.1584125252 | BB160: Missing | BC160: 4.97477 | BD160: 16.2584315 | BE160: 3.979816 | BF160: 7.7680264 | BG160: 19.8220577 | BH160: 4.97477 | BI160: 0 | BJ160: 20.2382475 | BK160: 7.7680264 | BL160: 19.8220577 | BM160: 0 | BN160: 0 | BO160: 0 | BP160: 0 | BQ160: 0 | BR160: 0 | BS160: 52.8031016
BB161: Total | BC161: 11270.75555 | BD161: 11273.48561 | BE161: 11272.84872 | BF161: 11277.75839 | BG161: 11271.50991 | BH161: 8397.432232 | BI161: 8400.437399 | BJ161: 8392.210674 | BK161: 8396.292803 | BL161: 8400.257874 | BM161: 1889.594371 | BN161: 1888.008299 | BO161: 1885.93146 | BP161: 1885.781394 | BQ161: 1889.6826 | BR161: 23033.70249 | BS161: 33332.6557
A208: =A1026 -> State of Palestine
A209: =A1034 -> 2014
A210: Access to hygiene facilities
A211: by wealth quintile and sub-national region
A212: Notes:
A213: WHO/UNICEF JMP customised wealth index excludes water,
A214: sanitation and hygiene assets.
A215: Survey used for analysis: | B215: =A1025 -> MICS14
A220: Access to handwashing | C220: NATIONAL wealth index quintile | H220: URBAN wealth index quintile | M220: RURAL wealth index quintile | R220: SUB-REGIONS: | BA220: Raw numbers of respondents: | BB220: Access to handwashing | BC220: NATIONAL wealth index quintile | BH220: URBAN wealth index quintile | BM220: RURAL wealth index quintile | BR220: SUB-REGIONS:
A221: Weighted percentage (used in graphs) | C221: Poorest | D221: Poor | E221: Middle | F221: Rich | G221: Richest | H221: Poorest | I221: Poor | J221: Middle | K221: Rich | L221: Richest | M221: Poorest | N221: Poor | O221: Middle | P221: Rich | Q221: Richest | R221: Gaza Strip | S221: West Bank | BA221: Hygiene data, raw numbers (weighted) | BC221: Poorest | BD221: Poor | BE221: Middle | BF221: Rich | BG221: Richest | BH221: Poorest | BI221: Poor | BJ221: Middle | BK221: Rich | BL221: Richest | BM221: Poorest | BN221: Poor | BO221: Middle | BP221: Rich | BQ221: Richest | BR221: Gaza Strip | BS221: West Bank
A222: Hygiene ladder | B222: Basic | C222: N/A | D222: N/A | E222: N/A | F222: N/A | G222: N/A | H222: N/A | I222: N/A | J222: N/A | K222: N/A | L222: N/A | M222: N/A | N222: N/A | O222: N/A | P222: N/A | Q222: N/A | R222: N/A | S222: N/A | BA222: Hygiene ladder | BB222: Basic | BC222: N/A | BD222: N/A | BE222: N/A | BF222: N/A | BG222: N/A | BH222: N/A | BI222: N/A | BJ222: N/A | BK222: N/A | BL222: N/A | BM222: N/A | BN222: N/A | BO222: N/A | BP222: N/A | BQ222: N/A | BR222: N/A | BS222: N/A
B223: Limited | C223: N/A | D223: N/A | E223: N/A | F223: N/A | G223: N/A | H223: N/A | I223: N/A | J223: N/A | K223: N/A | L223: N/A | M223: N/A | N223: N/A | O223: N/A | P223: N/A | Q223: N/A | R223: N/A | S223: N/A | BB223: Limited | BC223: N/A | BD223: N/A | BE223: N/A | BF223: N/A | BG223: N/A | BH223: N/A | BI223: N/A | BJ223: N/A | BK223: N/A | BL223: N/A | BM223: N/A | BN223: N/A | BO223: N/A | BP223: N/A | BQ223: N/A | BR223: N/A | BS223: N/A
B224: No facility | C224: N/A | D224: N/A | E224: N/A | F224: N/A | G224: N/A | H224: N/A | I224: N/A | J224: N/A | K224: N/A | L224: N/A | M224: N/A | N224: N/A | O224: N/A | P224: N/A | Q224: N/A | R224: N/A | S224: N/A | BB224: No facility | BC224: N/A | BD224: N/A | BE224: N/A | BF224: N/A | BG224: N/A | BH224: N/A | BI224: N/A | BJ224: N/A | BK224: N/A | BL224: N/A | BM224: N/A | BN224: N/A | BO224: N/A | BP224: N/A | BQ224: N/A | BR224: N/A | BS224: N/A
BA225: Observed handwashing place | BB225: Fixed | BC225: N/A | BD225: N/A | BE225: N/A | BF225: N/A | BG225: N/A | BH225: N/A | BI225: N/A | BJ225: N/A | BK225: N/A | BL225: N/A | BM225: N/A | BN225: N/A | BO225: N/A | BP225: N/A | BQ225: N/A | BR225: N/A | BS225: N/A
BB226: Mobile | BC226: N/A | BD226: N/A | BE226: N/A | BF226: N/A | BG226: N/A | BH226: N/A | BI226: N/A | BJ226: N/A | BK226: N/A | BL226: N/A | BM226: N/A | BN226: N/A | BO226: N/A | BP226: N/A | BQ226: N/A | BR226: N/A | BS226: N/A
BA227: Water / Soap | BB227: Water and soap | BC227: N/A | BD227: N/A | BE227: N/A | BF227: N/A | BG227: N/A | BH227: N/A | BI227: N/A | BJ227: N/A | BK227: N/A | BL227: N/A | BM227: N/A | BN227: N/A | BO227: N/A | BP227: N/A | BQ227: N/A | BR227: N/A | BS227: N/A
BB228: Water only | BC228: N/A | BD228: N/A | BE228: N/A | BF228: N/A | BG228: N/A | BH228: N/A | BI228: N/A | BJ228: N/A | BK228: N/A | BL228: N/A | BM228: N/A | BN228: N/A | BO228: N/A | BP228: N/A | BQ228: N/A | BR228: N/A | BS228: N/A
BB229: Soap only | BC229: N/A | BD229: N/A | BE229: N/A | BF229: N/A | BG229: N/A | BH229: N/A | BI229: N/A | BJ229: N/A | BK229: N/A | BL229: N/A | BM229: N/A | BN229: N/A | BO229: N/A | BP229: N/A | BQ229: N/A | BR229: N/A | BS229: N/A
BB230: Neither | BC230: N/A | BD230: N/A | BE230: N/A | BF230: N/A | BG230: N/A | BH230: N/A | BI230: N/A | BJ230: N/A | BK230: N/A | BL230: N/A | BM230: N/A | BN230: N/A | BO230: N/A | BP230: N/A | BQ230: N/A | BR230: N/A | BS230: N/A
BA259: Raw numbers of respondents: | BB259: Menstrual health and hygiene | BC259: NATIONAL wealth index quintile | BH259: URBAN wealth index quintile | BM259: RURAL wealth index quintile | BR259: SUB-REGIONS:
BA260: MHH data, raw numbers (weighted) | BC260: Poorest | BD260: Poor | BE260: Middle | BF260: Rich | BG260: Richest | BH260: Poorest | BI260: Poor | BJ260: Middle | BK260: Rich | BL260: Richest | BM260: Poorest | BN260: Poor | BO260: Middle | BP260: Rich | BQ260: Richest | BR260: Gaza Strip | BS260: West Bank
BA261: Private place to wash and change | BB261: Yes | BC261: N/A | BD261: N/A | BE261: N/A | BF261: N/A | BG261: N/A | BH261: N/A | BI261: N/A | BJ261: N/A | BK261: N/A | BL261: N/A | BM261: N/A | BN261: N/A | BO261: N/A | BP261: N/A | BQ261: N/A | BR261: N/A | BS261: N/A
BB262: No | BC262: N/A | BD262: N/A | BE262: N/A | BF262: N/A | BG262: N/A | BH262: N/A | BI262: N/A | BJ262: N/A | BK262: N/A | BL262: N/A | BM262: N/A | BN262: N/A | BO262: N/A | BP262: N/A | BQ262: N/A | BR262: N/A | BS262: N/A
BB263: DK/not sure/missing | BC263: N/A | BD263: N/A | BE263: N/A | BF263: N/A | BG263: N/A | BH263: N/A | BI263: N/A | BJ263: N/A | BK263: N/A | BL263: N/A | BM263: N/A | BN263: N/A | BO263: N/A | BP263: N/A | BQ263: N/A | BR263: N/A | BS263: N/A
BA264: Use of menstrual materials | BB264: Materials reusable | BC264: N/A | BD264: N/A | BE264: N/A | BF264: N/A | BG264: N/A | BH264: N/A | BI264: N/A | BJ264: N/A | BK264: N/A | BL264: N/A | BM264: N/A | BN264: N/A | BO264: N/A | BP264: N/A | BQ264: N/A | BR264: N/A | BS264: N/A
BB265: Materials not reusable | BC265: N/A | BD265: N/A | BE265: N/A | BF265: N/A | BG265: N/A | BH265: N/A | BI265: N/A | BJ265: N/A | BK265: N/A | BL265: N/A | BM265: N/A | BN265: N/A | BO265: N/A | BP265: N/A | BQ265: N/A | BR265: N/A | BS265: N/A
BB266: No materials used | BC266: N/A | BD266: N/A | BE266: N/A | BF266: N/A | BG266: N/A | BH266: N/A | BI266: N/A | BJ266: N/A | BK266: N/A | BL266: N/A | BM266: N/A | BN266: N/A | BO266: N/A | BP266: N/A | BQ266: N/A | BR266: N/A | BS266: N/A
BB267: DK/not sure/missing | BC267: N/A | BD267: N/A | BE267: N/A | BF267: N/A | BG267: N/A | BH267: N/A | BI267: N/A | BJ267: N/A | BK267: N/A | BL267: N/A | BM267: N/A | BN267: N/A | BO267: N/A | BP267: N/A | BQ267: N/A | BR267: N/A | BS267: N/A
BA268: Use of menstrual materials with private place to wash and change | BB268: Materials reusable | BC268: N/A | BD268: N/A | BE268: N/A | BF268: N/A | BG268: N/A | BH268: N/A | BI268: N/A | BJ268: N/A | BK268: N/A | BL268: N/A | BM268: N/A | BN268: N/A | BO268: N/A | BP268: N/A | BQ268: N/A | BR268: N/A | BS268: N/A
BB269: Materials not reusable | BC269: N/A | BD269: N/A | BE269: N/A | BF269: N/A | BG269: N/A | BH269: N/A | BI269: N/A | BJ269: N/A | BK269: N/A | BL269: N/A | BM269: N/A | BN269: N/A | BO269: N/A | BP269: N/A | BQ269: N/A | BR269: N/A | BS269: N/A
BB270: No materials used | BC270: N/A | BD270: N/A | BE270: N/A | BF270: N/A | BG270: N/A | BH270: N/A | BI270: N/A | BJ270: N/A | BK270: N/A | BL270: N/A | BM270: N/A | BN270: N/A | BO270: N/A | BP270: N/A | BQ270: N/A | BR270: N/A | BS270: N/A
BA271: Awareness of menstruation before menarche | BB271: Yes | BC271: N/A | BD271: N/A | BE271: N/A | BF271: N/A | BG271: N/A | BH271: N/A | BI271: N/A | BJ271: N/A | BK271: N/A | BL271: N/A | BM271: N/A | BN271: N/A | BO271: N/A | BP271: N/A | BQ271: N/A | BR271: N/A | BS271: N/A
BB272: No | BC272: N/A | BD272: N/A | BE272: N/A | BF272: N/A | BG272: N/A | BH272: N/A | BI272: N/A | BJ272: N/A | BK272: N/A | BL272: N/A | BM272: N/A | BN272: N/A | BO272: N/A | BP272: N/A | BQ272: N/A | BR272: N/A | BS272: N/A
BB273: DK/not sure/missing | BC273: N/A | BD273: N/A | BE273: N/A | BF273: N/A | BG273: N/A | BH273: N/A | BI273: N/A | BJ273: N/A | BK273: N/A | BL273: N/A | BM273: N/A | BN273: N/A | BO273: N/A | BP273: N/A | BQ273: N/A | BR273: N/A | BS273: N/A
BA274: Participation in (all) activities during menstruation | BB274: Yes | BC274: N/A | BD274: N/A | BE274: N/A | BF274: N/A | BG274: N/A | BH274: N/A | BI274: N/A | BJ274: N/A | BK274: N/A | BL274: N/A | BM274: N/A | BN274: N/A | BO274: N/A | BP274: N/A | BQ274: N/A | BR274: N/A | BS274: N/A
BB275: No | BC275: N/A | BD275: N/A | BE275: N/A | BF275: N/A | BG275: N/A | BH275: N/A | BI275: N/A | BJ275: N/A | BK275: N/A | BL275: N/A | BM275: N/A | BN275: N/A | BO275: N/A | BP275: N/A | BQ275: N/A | BR275: N/A | BS275: N/A
BB276: DK/not sure/missing/no such activity | BC276: N/A | BD276: N/A | BE276: N/A | BF276: N/A | BG276: N/A | BH276: N/A | BI276: N/A | BJ276: N/A | BK276: N/A | BL276: N/A | BM276: N/A | BN276: N/A | BO276: N/A | BP276: N/A | BQ276: N/A | BR276: N/A | BS276: N/A
BA277: Participation in specific activities during menstruation | BB277: Did not go to school (amongst those usually attending school) | BC277: N/A | BD277: N/A | BE277: N/A | BF277: N/A | BG277: N/A | BH277: N/A | BI277: N/A | BJ277: N/A | BK277: N/A | BL277: N/A | BM277: N/A | BN277: N/A | BO277: N/A | BP277: N/A | BQ277: N/A | BR277: N/A | BS277: N/A
BB278: Did not go to work (amongst those who usually work) | BC278: N/A | BD278: N/A | BE278: N/A | BF278: N/A | BG278: N/A | BH278: N/A | BI278: N/A | BJ278: N/A | BK278: N/A | BL278: N/A | BM278: N/A | BN278: N/A | BO278: N/A | BP278: N/A | BQ278: N/A | BR278: N/A | BS278: N/A
BB279: Did not participate in social activities | BC279: N/A | BD279: N/A | BE279: N/A | BF279: N/A | BG279: N/A | BH279: N/A | BI279: N/A | BJ279: N/A | BK279: N/A | BL279: N/A | BM279: N/A | BN279: N/A | BO279: N/A | BP279: N/A | BQ279: N/A | BR279: N/A | BS279: N/A
BB280: Did not cook food | BC280: N/A | BD280: N/A | BE280: N/A | BF280: N/A | BG280: N/A | BH280: N/A | BI280: N/A | BJ280: N/A | BK280: N/A | BL280: N/A | BM280: N/A | BN280: N/A | BO280: N/A | BP280: N/A | BQ280: N/A | BR280: N/A | BS280: N/A
BB281: Did not eat with others | BC281: N/A | BD281: N/A | BE281: N/A | BF281: N/A | BG281: N/A | BH281: N/A | BI281: N/A | BJ281: N/A | BK281: N/A | BL281: N/A | BM281: N/A | BN281: N/A | BO281: N/A | BP281: N/A | BQ281: N/A | BR281: N/A | BS281: N/A
BB282: Did not bathe in regular place | BC282: N/A | BD282: N/A | BE282: N/A | BF282: N/A | BG282: N/A | BH282: N/A | BI282: N/A | BJ282: N/A | BK282: N/A | BL282: N/A | BM282: N/A | BN282: N/A | BO282: N/A | BP282: N/A | BQ282: N/A | BR282: N/A | BS282: N/A
BB283: Did not participate in other activities | BC283: N/A | BD283: N/A | BE283: N/A | BF283: N/A | BG283: N/A | BH283: N/A | BI283: N/A | BJ283: N/A | BK283: N/A | BL283: N/A | BM283: N/A | BN283: N/A | BO283: N/A | BP283: N/A | BQ283: N/A | BR283: N/A | BS283: N/A
BB284: DK/not sure/missing/no such activity | BC284: N/A | BD284: N/A | BE284: N/A | BF284: N/A | BG284: N/A | BH284: N/A | BI284: N/A | BJ284: N/A | BK284: N/A | BL284: N/A | BM284: N/A | BN284: N/A | BO284: N/A | BP284: N/A | BQ284: N/A | BR284: N/A | BS284: N/A
BA339: Raw numbers of respondents: | BB339: Basic water, sanitation and hygiene | BC339: NATIONAL wealth index quintile | BH339: URBAN wealth index quintile | BM339: RURAL wealth index quintile | BR339: SUB-REGIONS:
BA340: WatSan data, raw numbers (weighted) | BC340: Poorest | BD340: Poor | BE340: Middle | BF340: Rich | BG340: Richest | BH340: Poorest | BI340: Poor | BJ340: Middle | BK340: Rich | BL340: Richest | BM340: Poorest | BN340: Poor | BO340: Middle | BP340: Rich | BQ340: Richest | BR340: Gaza Strip | BS340: West Bank
BA341: Use of Basic Water Sanitation and Hygiene | BB341: Yes | BC341: N/A | BD341: N/A | BE341: N/A | BF341: N/A | BG341: N/A | BH341: N/A | BI341: N/A | BJ341: N/A | BK341: N/A | BL341: N/A | BM341: N/A | BN341: N/A | BO341: N/A | BP341: N/A | BQ341: N/A | BR341: N/A | BS341: N/A
BB342: No | BC342: N/A | BD342: N/A | BE342: N/A | BF342: N/A | BG342: N/A | BH342: N/A | BI342: N/A | BJ342: N/A | BK342: N/A | BL342: N/A | BM342: N/A | BN342: N/A | BO342: N/A | BP342: N/A | BQ342: N/A | BR342: N/A | BS342: N/A
BA343: Use of Basic Water and Sanitation | BB343: Yes | BC343: N/A | BD343: N/A | BE343: N/A | BF343: N/A | BG343: N/A | BH343: N/A | BI343: N/A | BJ343: N/A | BK343: N/A | BL343: N/A | BM343: N/A | BN343: N/A | BO343: N/A | BP343: N/A | BQ343: N/A | BR343: N/A | BS343: N/A
BB344: No | BC344: N/A | BD344: N/A | BE344: N/A | BF344: N/A | BG344: N/A | BH344: N/A | BI344: N/A | BJ344: N/A | BK344: N/A | BL344: N/A | BM344: N/A | BN344: N/A | BO344: N/A | BP344: N/A | BQ344: N/A | BR344: N/A | BS344: N/A
BA345: Use of Basic Water and Hygiene | BB345: Yes | BC345: N/A | BD345: N/A | BE345: N/A | BF345: N/A | BG345: N/A | BH345: N/A | BI345: N/A | BJ345: N/A | BK345: N/A | BL345: N/A | BM345: N/A | BN345: N/A | BO345: N/A | BP345: N/A | BQ345: N/A | BR345: N/A | BS345: N/A
BB346: No | BC346: N/A | BD346: N/A | BE346: N/A | BF346: N/A | BG346: N/A | BH346: N/A | BI346: N/A | BJ346: N/A | BK346: N/A | BL346: N/A | BM346: N/A | BN346: N/A | BO346: N/A | BP346: N/A | BQ346: N/A | BR346: N/A | BS346: N/A
BA347: Use of Basic Sanitation and Hygiene | BB347: Yes | BC347: N/A | BD347: N/A | BE347: N/A | BF347: N/A | BG347: N/A | BH347: N/A | BI347: N/A | BJ347: N/A | BK347: N/A | BL347: N/A | BM347: N/A | BN347: N/A | BO347: N/A | BP347: N/A | BQ347: N/A | BR347: N/A | BS347: N/A
BB348: No | BC348: N/A | BD348: N/A | BE348: N/A | BF348: N/A | BG348: N/A | BH348: N/A | BI348: N/A | BJ348: N/A | BK348: N/A | BL348: N/A | BM348: N/A | BN348: N/A | BO348: N/A | BP348: N/A | BQ348: N/A | BR348: N/A | BS348: N/A
BA349: Use of Basic Water | BB349: Yes | BC349: N/A | BD349: N/A | BE349: N/A | BF349: N/A | BG349: N/A | BH349: N/A | BI349: N/A | BJ349: N/A | BK349: N/A | BL349: N/A | BM349: N/A | BN349: N/A | BO349: N/A | BP349: N/A | BQ349: N/A | BR349: N/A | BS349: N/A
BB350: No | BC350: N/A | BD350: N/A | BE350: N/A | BF350: N/A | BG350: N/A | BH350: N/A | BI350: N/A | BJ350: N/A | BK350: N/A | BL350: N/A | BM350: N/A | BN350: N/A | BO350: N/A | BP350: N/A | BQ350: N/A | BR350: N/A | BS350: N/A
BA351: Use of Basic Sanitation | BB351: Yes | BC351: N/A | BD351: N/A | BE351: N/A | BF351: N/A | BG351: N/A | BH351: N/A | BI351: N/A | BJ351: N/A | BK351: N/A | BL351: N/A | BM351: N/A | BN351: N/A | BO351: N/A | BP351: N/A | BQ351: N/A | BR351: N/A | BS351: N/A
BB352: No | BC352: N/A | BD352: N/A | BE352: N/A | BF352: N/A | BG352: N/A | BH352: N/A | BI352: N/A | BJ352: N/A | BK352: N/A | BL352: N/A | BM352: N/A | BN352: N/A | BO352: N/A | BP352: N/A | BQ352: N/A | BR352: N/A | BS352: N/A
BA353: Access to Basic Hygiene | BB353: Yes | BC353: N/A | BD353: N/A | BE353: N/A | BF353: N/A | BG353: N/A | BH353: N/A | BI353: N/A | BJ353: N/A | BK353: N/A | BL353: N/A | BM353: N/A | BN353: N/A | BO353: N/A | BP353: N/A | BQ353: N/A | BR353: N/A | BS353: N/A
BB354: No | BC354: N/A | BD354: N/A | BE354: N/A | BF354: N/A | BG354: N/A | BH354: N/A | BI354: N/A | BJ354: N/A | BK354: N/A | BL354: N/A | BM354: N/A | BN354: N/A | BO354: N/A | BP354: N/A | BQ354: N/A | BR354: N/A | BS354: N/A
C399: INITIAL (national) Wealth Index | H399: URBAN Wealth Index | M399: RURAL Wealth Index
C400: Component Matrix | H400: Component Matrix | M400: Component Matrix
E401: Component | J401: Component | O401: Component
B402: Note: The INITIAL (national) Wealth Index is based on the first component of the Principal Component Analysis (PCA) which has been obtained at national level. The final national-level (NATIONAL) Wealth Index is based on the URBAN and RURAL specific wealth indexes. Regression procedures are used to establish the relationships between the two sets of scores (urban and rural) and the initial (national) wealth factors. This allows best use of the available information for each area and a better precision of the FINAL (NATIONAL) Wealth Index. For dependency reasons, all WASH variables (contained in the generic MICS and DHS scripts) have been excluded from the sets of asset variables used in the PCAs. The PCA can extracts as many components as there are asset variables in the input. Only the first of the components is used to represent the Wealth Index. The scores represent the weights of the asset variables on the Wealth Index (correlations between the variables and the component). The communalities are the proportion of each variable's variance that can be explained by the component. Proportion of explained variance is the part of the model's total variance that is explained by the component. For more information on the procedure used: The DHS Wealth Index, DHS Comparative Reports No. 6, Shea Oscar Rutstein, Kiersten Johnson, ORC Macro International Inc., 2004. The DHS Wealth Index: Approaches for Rural and Urban Areas, Shea O. Rutstein, ORC Macro International Inc., 2008. MICS Methodological Paper No. 4, Review of options for reporting water, sanitation and hygiene coverage by wealth quintile, UNICEF, 2016. | E402: 1 | J402: 1 | O402: 1
C403: Vacuum Cleaner | E403: 0.6571173352 | H403: Vacuum Cleaner | J403: 0.6649205514 | M403: Vacuum Cleaner | O403: 0.573909519
C404: A Smart Mobile telephone | E404: 0.5923335463 | H404: A Smart Mobile telephone | J404: 0.6041016947 | M404: A Smart Mobile telephone | O404: 0.5415488902
C405: Car/truck | E405: 0.572719919 | H405: Car/truck | J405: 0.5861969105 | M405: Laptop | O405: 0.5093206946
C406: Laptop | E406: 0.5511274164 | H406: Laptop | J406: 0.552469443 | M406: Non-mobile telephone | O406: 0.4986518655
C407: Ipad/Tablet | E407: 0.522779759 | H407: Stone with lime/cement walls | J407: 0.5459673809 | M407: Cement floor | O407: -0.4941353028
C408: Stone with lime/cement walls | E408: 0.5112971121 | H408: Ipad/Tablet | J408: 0.5309224621 | M408: Household owns bank account | O408: 0.4531749206
C409: Household owns bank account | E409: 0.4936246342 | H409: Household owns bank account | J409: 0.502711713 | M409: Ipad/Tablet | O409: 0.4526805965
C410: Non-mobile telephone | E410: 0.4933961208 | H410: Non-mobile telephone | J410: 0.496620728 | M410: Car/truck | O410: 0.4475755731
C411: Air Condition | E411: 0.4667502175 | H411: Air Condition | J411: 0.4778792781 | M411: Satellite Dish | O411: 0.4401075995
C412: Solar Heater | E412: 0.4033667158 | H412: Frezer | J412: 0.4080899896 | M412: Washing Machine | O412: 0.4376002473
C413: Frezer | E413: 0.4019813676 | H413: Solar Heater | J413: 0.3960382795 | M413: Television or LCD | O413: 0.40553452
C414: Ceramic tiles floor | E414: 0.3787305213 | H414: Dishwasher | J414: 0.3909736486 | M414: Solar Heater | O414: 0.3973177801
C415: Dishwasher | E415: 0.3632868471 | H415: Brick walls | J415: -0.3760340643 | M415: Air Condition | O415: 0.3912723018
C416: Brick walls | E416: -0.3583465995 | H416: Ceramic tiles floor | J416: 0.3725092115 | M416: LPG fuel | O416: 0.378593448
C417: Cement roof | E417: 0.3539784323 | H417: Play Station / Inbox | J417: 0.3562762863 | M417: Refrigetaror | O417: 0.3679000857
... 198 more rows

Sheet MICS20
A2: =A1026 -> State of Palestine
A3: =A1034 -> 2020
A4: Use of drinking water sources
A5: by wealth quintile and sub-national region
A6: Notes:
A7: WHO/UNICEF JMP customised wealth index excludes water,
A8: sanitation and hygiene assets.
A9: Survey used for analysis: | B9: =A1025 -> MICS20
A10: =B1028 -> 
A11: =B1027 -> 
A14: Use of drinking water sources | C14: NATIONAL wealth index quintile | H14: URBAN wealth index quintile | M14: RURAL wealth index quintile | R14: SUB-REGIONS: | BA14: Raw numbers of respondents: | BB14: Use of drinking water sources | BC14: NATIONAL wealth index quintile | BH14: URBAN wealth index quintile | BM14: RURAL wealth index quintile | BR14: SUB-REGIONS:
A15: Weighted percentage (used in graphs) | C15: Poorest | D15: Poor | E15: Middle | F15: Rich | G15: Richest | H15: Poorest | I15: Poor | J15: Middle | K15: Rich | L15: Richest | M15: Poorest | N15: Poor | O15: Middle | P15: Rich | Q15: Richest | R15: Ariha & Al Aghwar | S15: Bethlehem | T15: Deir Al-balah | U15: Gaza | V15: Hebron | W15: Jenin | X15: Jerusalem | Y15: Khan Yunis | Z15: Nablus | AA15: North Gaza | AB15: Qalqilia | AC15: Rafah | AD15: Ramallah & Al bireh | AE15: Salfit | AF15: Tubas & Northen Valley | AG15: Tulkarm | BA15: Water data, raw numbers (weighted) | BC15: Poorest | BD15: Poor | BE15: Middle | BF15: Rich | BG15: Richest | BH15: Poorest | BI15: Poor | BJ15: Middle | BK15: Rich | BL15: Richest | BM15: Poorest | BN15: Poor | BO15: Middle | BP15: Rich | BQ15: Richest | BR15: Ariha & Al Aghwar | BS15: Bethlehem | BT15: Deir Al-balah | BU15: Gaza | BV15: Hebron | BW15: Jenin | BX15: Jerusalem | BY15: Khan Yunis | BZ15: Nablus | CA15: North Gaza | CB15: Qalqilia | CC15: Rafah | CD15: Ramallah & Al bireh | CE15: Salfit | CF15: Tubas & Northen Valley | CG15: Tulkarm
A16: Water | B16: Improved | C16: 99.41047358 | D16: 99.90019316 | E16: 100 | F16: 99.94135907 | G16: 99.61374706 | H16: 99.52784826 | I16: 99.81779652 | J16: 99.98457081 | K16: 100 | L16: 99.59043214 | M16: 100 | N16: 100 | O16: 100 | P16: 99.59768716 | Q16: 99.52246663 | R16: 100 | S16: 100 | T16: 99.60725752 | U16: 99.0056972 | V16: 100 | W16: 99.60882215 | X16: 99.66822543 | Y16: 100 | Z16: 100 | AA16: 100 | AB16: 100 | AC16: 99.95044041 | AD16: 99.83868583 | AE16: 100 | AF16: 100 | AG16: 100 | BA16: Water | BB16: Improved | BC16: 9390.18279 | BD16: 9412.968463 | BE16: 9408.898241 | BF16: 9420.412591 | BG16: 9407.443032 | BH16: 7248.860471 | BI16: 7262.643813 | BJ16: 7258.349219 | BK16: 7283.758932 | BL16: 7256.975 | BM16: 1383.926703 | BN16: 1381.105222 | BO16: 1387.050521 | BP16: 1368.393001 | BQ16: 1382.369503 | BR16: 466.6270592 | BS16: 2041.557846 | BT16: 2774.510291 | BU16: 6383.914697 | BV16: 6972.033993 | BW16: 3096.50455 | BX16: 4035.847847 | BY16: 3634.056718 | BZ16: 3753.452529 | CA16: 4039.068468 | CB16: 1143.893896 | CC16: 2258.942528 | CD16: 3297.174866 | CE16: 708.8454845 | CF16: 566.8189558 | CG16: 1866.65539
B17: Not Improved | C17: 0.5895264212 | D17: 0.09980684286 | E17: 0 | F17: 0.05864092552 | G17: 0.3862529441 | H17: 0.4721517405 | I17: 0.1822034778 | J17: 0.01542919472 | K17: 0 | L17: 0.4095678605 | M17: 0 | N17: 0 | O17: 0 | P17: 0.4023128446 | Q17: 0.4775333669 | R17: 0 | S17: 0 | T17: 0.3927424815 | U17: 0.9943027968 | V17: 0 | W17: 0.3911778473 | X17: 0.3317745669 | Y17: 0 | Z17: 0 | AA17: 0 | AB17: 0 | AC17: 0.04955958523 | AD17: 0.1613141703 | AE17: 0 | AF17: 0 | AG17: 0 | BB17: Not Improved | BC17: 55.68589159 | BD17: 9.404172651 | BE17: 0 | BF17: 5.527458484 | BG17: 36.47742078 | BH17: 34.38798434 | BI17: 13.25694422 | BJ17: 1.120077653 | BK17: 0 | BL17: 29.8444706 | BM17: 0 | BN17: 0 | BO17: 0 | BP17: 5.527458484 | BQ17: 6.632950181 | BR17: 0 | BS17: 0 | BT17: 10.9396452 | BU17: 64.11291892 | BV17: 0 | BW17: 12.16040866 | BX17: 13.43448893 | BY17: 0 | BZ17: 0 | CA17: 0 | CB17: 0 | CC17: 1.120077653 | CD17: 5.327404136 | CE17: 0 | CF17: 0 | CG17: 0
A18: Water ladder | B18: Basic | C18: 98.47975695 | D18: 98.56237641 | E18: 99.964645 | F18: 99.73589355 | G18: 99.49234247 | H18: 98.78464936 | I18: 98.6589296 | J18: 99.48646769 | K18: 99.79402373 | L18: 99.4817009 | M18: 99.33638242 | N18: 100 | O18: 100 | P18: 99.2800383 | Q18: 99.30103844 | R18: 99.43965242 | S18: 100 | T18: 97.50955689 | U18: 99.0056972 | V18: 98.82048294 | W18: 99.60882215 | X18: 99.66822543 | Y18: 99.04949287 | Z18: 100 | AA18: 98.93295295 | AB18: 99.71091738 | AC18: 99.29711788 | AD18: 99.56325934 | AE18: 100 | AF18: 100 | AG18: 100 | BA18: Water ladder | BB18: Basic | BC18: 9296.290114 | BD18: 9284.310451 | BE18: 9405.571726 | BF18: 9401.045533 | BG18: 9395.977679 | BH18: 7194.731448 | BI18: 7178.325805 | BJ18: 7222.189576 | BK18: 7268.756117 | BL18: 7249.05195 | BM18: 1366.087933 | BN18: 1381.105222 | BO18: 1387.050521 | BP18: 1364.028758 | BQ18: 1379.29386 | BR18: 462.5162861 | BS18: 2041.557846 | BT18: 2716.07989 | BU18: 6383.914697 | BV18: 6882.674545 | BW18: 3096.50455 | BX18: 4035.847847 | BY18: 3599.51475 | BZ18: 3753.452529 | CA18: 3995.969707 | CB18: 1140.587097 | CC18: 2244.17703 | CD18: 3288.0789 | CE18: 708.8454845 | CF18: 566.8189558 | CG18: 1866.65539
B19: Limited | C19: 0.9303375114 | D19: 1.337788753 | E19: 0.0353549956 | F19: 0.2054655263 | G19: 0.1214045903 | H19: 0.7431988993 | I19: 1.158866927 | J19: 0.4981031184 | K19: 0.2059762668 | L19: 0.108731239 | M19: 0.6636175761 | N19: 0 | O19: 0 | P19: 0.3176488543 | Q19: 0.2214281949 | R19: 0.5603475833 | S19: 0 | T19: 2.097700629 | U19: 0 | V19: 1.179517063 | W19: 0 | X19: 0 | Y19: 0.9505071343 | Z19: 0 | AA19: 1.067047055 | AB19: 0.289082617 | AC19: 0.6533225319 | AD19: 0.275426491 | AE19: 0 | AF19: 0 | AG19: 0 | BB19: Limited | BC19: 87.82198168 | BD19: 126.0160982 | BE19: 3.326515559 | BF19: 19.36705733 | BG19: 11.46535294 | BH19: 54.12902235 | BI19: 84.31800749 | BJ19: 36.15964294 | BK19: 15.00281473 | BL19: 7.923049096 | BM19: 9.126162446 | BN19: 0 | BO19: 0 | BP19: 4.364242598 | BQ19: 3.075643059 | BR19: 2.606303188 | BS19: 0 | BT19: 58.43040085 | BU19: 0 | BV19: 82.15130937 | BW19: 0 | BX19: 0 | BY19: 34.54196837 | BZ19: 0 | CA19: 43.09876112 | CB19: 3.30679841 | CC19: 14.76549824 | CD19: 9.095966121 | CE19: 0 | CF19: 0 | CG19: 0
B20: Unimproved | C20: 0.5899055431 | D20: 0.09983483529 | E20: 0 | F20: 0.05864092552 | G20: 0.3862529441 | H20: 0.4721517405 | I20: 0.1822034778 | J20: 0.01542919472 | K20: 0 | L20: 0.4095678605 | M20: 0 | N20: 0 | O20: 0 | P20: 0.4023128446 | Q20: 0.4775333669 | R20: 0 | S20: 0 | T20: 0.3927424815 | U20: 0.9943027968 | V20: 0 | W20: 0.3911778473 | X20: 0.3317745669 | Y20: 0 | Z20: 0 | AA20: 0 | AB20: 0 | AC20: 0.04955958523 | AD20: 0.1613141703 | AE20: 0 | AF20: 0 | AG20: 0 | BB20: Unimproved | BC20: 55.68589159 | BD20: 9.404172651 | BE20: 0 | BF20: 5.527458484 | BG20: 36.47742078 | BH20: 34.38798434 | BI20: 13.25694422 | BJ20: 1.120077653 | BK20: 0 | BL20: 29.8444706 | BM20: 0 | BN20: 0 | BO20: 0 | BP20: 5.527458484 | BQ20: 6.632950181 | BR20: 0 | BS20: 0 | BT20: 10.9396452 | BU20: 64.11291892 | BV20: 0 | BW20: 12.16040866 | BX20: 13.43448893 | BY20: 0 | BZ20: 0 | CA20: 0 | CB20: 0 | CC20: 1.120077653 | CD20: 5.327404136 | CE20: 0 | CF20: 0 | CG20: 0
B21: Surface water | C21: N/A | D21: N/A | E21: N/A | F21: N/A | G21: N/A | H21: N/A | I21: N/A | J21: N/A | K21: N/A | L21: N/A | M21: N/A | N21: N/A | O21: N/A | P21: N/A | Q21: N/A | R21: N/A | S21: N/A | T21: N/A | U21: N/A | V21: N/A | W21: N/A | X21: N/A | Y21: N/A | Z21: N/A | AA21: N/A | AB21: N/A | AC21: N/A | AD21: N/A | AE21: N/A | AF21: N/A | AG21: N/A | BB21: Surface water | BC21: N/A | BD21: N/A | BE21: N/A | BF21: N/A | BG21: N/A | BH21: N/A | BI21: N/A | BJ21: N/A | BK21: N/A | BL21: N/A | BM21: N/A | BN21: N/A | BO21: N/A | BP21: N/A | BQ21: N/A | BR21: N/A | BS21: N/A | BT21: N/A | BU21: N/A | BV21: N/A | BW21: N/A | BX21: N/A | BY21: N/A | BZ21: N/A | CA21: N/A | CB21: N/A | CC21: N/A | CD21: N/A | CE21: N/A | CF21: N/A | CG21: N/A
A22: Improved water point at more than 30 minutes | B22: Yes | C22: 0.9358581908 | D22: 1.339125667 | E22: 0.0353549956 | F22: 0.2055860839 | G22: 0.1218753374 | H22: 0.7467245723 | I22: 1.160982277 | J22: 0.4981799835 | K22: 0.2059762668 | L22: 0.1091783987 | M22: 0.6636175761 | N22: 0 | O22: 0 | P22: 0.3189319585 | Q22: 0.222490662 | R22: 0.5603475833 | S22: 0 | T22: 2.105971675 | U22: 0 | V22: 1.179517063 | W22: 0 | X22: 0 | Y22: 0.9505071343 | Z22: 0 | AA22: 1.067047055 | AB22: 0.289082617 | AC22: 0.6536464764 | AD22: 0.2758715109 | AE22: 0 | AF22: 0 | AG22: 0 | BA22: Improved water point at more than 30 minutes | BB22: Yes | BC22: 87.82198168 | BD22: 126.0160982 | BE22: 3.326515559 | BF22: 19.36705733 | BG22: 11.46535294 | BH22: 54.12902235 | BI22: 84.31800749 | BJ22: 36.15964294 | BK22: 15.00281473 | BL22: 7.923049096 | BM22: 9.126162446 | BN22: 0 | BO22: 0 | BP22: 4.364242598 | BQ22: 3.075643059 | BR22: 2.606303188 | BS22: 0 | BT22: 58.43040085 | BU22: 0 | BV22: 82.15130937 | BW22: 0 | BX22: 0 | BY22: 34.54196837 | BZ22: 0 | CA22: 43.09876112 | CB22: 3.30679841 | CC22: 14.76549824 | CD22: 9.095966121 | CE22: 0 | CF22: 0 | CG22: 0
B23: No | C23: 99.06414181 | D23: 98.66087433 | E23: 99.964645 | F23: 99.79441392 | G23: 99.87812466 | H23: 99.25327543 | I23: 98.83901772 | J23: 99.50182002 | K23: 99.79402373 | L23: 99.8908216 | M23: 99.33638242 | N23: 100 | O23: 100 | P23: 99.68106804 | Q23: 99.77750934 | R23: 99.43965242 | S23: 100 | T23: 97.89402833 | U23: 100 | V23: 98.82048294 | W23: 100 | X23: 100 | Y23: 99.04949287 | Z23: 100 | AA23: 98.93295295 | AB23: 99.71091738 | AC23: 99.34635352 | AD23: 99.72412849 | AE23: 100 | AF23: 100 | AG23: 100 | BB23: No | BC23: 9296.290114 | BD23: 9284.310451 | BE23: 9405.571726 | BF23: 9401.045533 | BG23: 9395.977679 | BH23: 7194.731448 | BI23: 7178.325805 | BJ23: 7222.189576 | BK23: 7268.756117 | BL23: 7249.05195 | BM23: 1366.087933 | BN23: 1381.105222 | BO23: 1387.050521 | BP23: 1364.028758 | BQ23: 1379.29386 | BR23: 462.5162861 | BS23: 2041.557846 | BT23: 2716.07989 | BU23: 6383.914697 | BV23: 6882.674545 | BW23: 3096.50455 | BX23: 4035.847847 | BY23: 3599.51475 | BZ23: 3753.452529 | CA23: 3995.969707 | CB23: 1140.587097 | CC23: 2244.17703 | CD23: 3288.0789 | CE23: 708.8454845 | CF23: 566.8189558 | CG23: 1866.65539
A24: Manually calculated ratios | B24: Improved wells
B25: Improved springs
B26: Other
C27: NATIONAL wealth index quintile | H27: URBAN wealth index quintile | M27: RURAL wealth index quintile | R27: SUB-REGIONS: | BA27: Raw numbers of respondents: | BB27: Use of drinking water sources | BC27: NATIONAL wealth index quintile | BH27: URBAN wealth index quintile | BM27: RURAL wealth index quintile | BR27: SUB-REGIONS:
A28: Percentage based on weighted population | C28: Poorest | D28: Poor | E28: Middle | F28: Rich | G28: Richest | H28: Poorest | I28: Poor | J28: Middle | K28: Rich | L28: Richest | M28: Poorest | N28: Poor | O28: Middle | P28: Rich | Q28: Richest | R28: Ariha & Al Aghwar | S28: Bethlehem | T28: Deir Al-balah | U28: Gaza | V28: Hebron | W28: Jenin | X28: Jerusalem | Y28: Khan Yunis | Z28: Nablus | AA28: North Gaza | AB28: Qalqilia | AC28: Rafah | AD28: Ramallah & Al bireh | AE28: Salfit | AF28: Tubas & Northen Valley | AG28: Tulkarm | BA28: Water data, raw numbers (weighted) | BC28: Poorest | BD28: Poor | BE28: Middle | BF28: Rich | BG28: Richest | BH28: Poorest | BI28: Poor | BJ28: Middle | BK28: Rich | BL28: Richest | BM28: Poorest | BN28: Poor | BO28: Middle | BP28: Rich | BQ28: Richest | BR28: Ariha & Al Aghwar | BS28: Bethlehem | BT28: Deir Al-balah | BU28: Gaza | BV28: Hebron | BW28: Jenin | BX28: Jerusalem | BY28: Khan Yunis | BZ28: Nablus | CA28: North Gaza | CB28: Qalqilia | CC28: Rafah | CD28: Ramallah & Al bireh | CE28: Salfit | CF28: Tubas & Northen Valley | CG28: Tulkarm
A29: Piped water | B29: Yes | C29: 23.35940607 | D29: 37.54480401 | E29: 68.54192181 | F29: 86.04509622 | G29: 90.32016111 | H29: 19.81676694 | I29: 31.50203739 | J29: 60.23304687 | K29: 83.11445862 | L29: 89.40800842 | M29: 85.17851027 | N29: 90.0062998 | O29: 93.26788517 | P29: 94.17885164 | Q29: 93.07807737 | R29: 90.77513681 | S29: 99.29434498 | T29: 16.28043175 | U29: 5.805208258 | V29: 83.02576798 | W29: 85.3014666 | X29: 98.28853982 | Y29: 28.62216907 | Z29: 95.81135514 | AA29: 16.02654994 | AB29: 96.112716 | AC29: 17.35366933 | AD29: 98.62705195 | AE29: 99.51077137 | AF29: 95.9329174 | AG29: 99.26819941 | BA29: Piped water | BB29: Yes | BC29: 2206.498823 | BD29: 3537.611339 | BE29: 6449.039676 | BF29: 8110.559185 | BG29: 8529.764168 | BH29: 1443.304372 | BI29: 2292.056977 | BJ29: 4372.599544 | BK29: 6053.856804 | BL29: 6515.000166 | BM29: 1178.808149 | BN29: 1243.081706 | BO29: 1293.672687 | BP29: 1293.942511 | BQ29: 1292.856778 | BR29: 423.5813513 | BS29: 2027.15149 | BT29: 453.4832758 | BU29: 374.3214316 | BV29: 5788.584766 | BW29: 2651.736801 | BX29: 3979.980481 | BY29: 1040.145858 | BZ29: 3596.233733 | CA29: 647.3233252 | CB29: 1099.427491 | CC29: 392.2037912 | CD29: 3257.16063 | CE29: 705.3776095 | CF29: 543.7659607 | CG29: 1852.995195
B30: No | C30: 76.64059393 | D30: 62.45519599 | E30: 31.45807819 | F30: 13.95490378 | G30: 9.679838889 | H30: 80.18323306 | I30: 68.49796261 | J30: 39.76695313 | K30: 16.88554138 | L30: 10.59199158 | M30: 14.82148973 | N30: 9.993700197 | O30: 6.732114831 | P30: 5.821148357 | Q30: 6.921922635 | R30: 9.22486319 | S30: 0.7056550235 | T30: 83.71956825 | U30: 94.19479174 | V30: 16.97423202 | W30: 14.6985334 | X30: 1.711460185 | Y30: 71.37783093 | Z30: 4.188644864 | AA30: 83.97345006 | AB30: 3.887283997 | AC30: 82.64633067 | AD30: 1.372948054 | AE30: 0.4892286268 | AF30: 4.067082597 | AG30: 0.7318005894 | BB30: No | BC30: 7239.369859 | BD30: 5884.761297 | BE30: 2959.858565 | BF30: 1315.380864 | BG30: 914.1562846 | BH30: 5839.944083 | BI30: 4983.84378 | BJ30: 2886.869753 | BK30: 1229.902128 | BL30: 771.8193046 | BM30: 205.1185543 | BN30: 138.0235153 | BO30: 93.37783386 | BP30: 79.97794826 | BQ30: 96.1456752 | BR30: 43.04570782 | BS30: 14.4063555 | BT30: 2331.966661 | BU30: 6073.706184 | BV30: 1183.449226 | BW30: 456.9281573 | BX30: 69.30185494 | BY30: 2593.91086 | BZ30: 157.2187966 | CA30: 3391.745143 | CB30: 44.46640435 | CC30: 1867.858814 | CD30: 45.34164066 | CE30: 3.46787503 | CF30: 23.05299511 | CG30: 13.66019515
A31: Piped water on premises | B31: Yes | C31: 9.555133037 | D31: 30.70043303 | E31: 67.35244563 | F31: 84.47772496 | G31: 87.86064607 | H31: 7.625892089 | I31: 23.13495476 | J31: 58.57886248 | K31: 81.57107994 | L31: 87.23134698 | M31: 84.69348979 | N31: 90.0062998 | O31: 91.13457636 | P31: 92.57711127 | Q31: 89.82138761 | R31: 88.6117465 | S31: 98.37769173 | T31: 0.4435215449 | U31: 3.752385346 | V31: 82.29091415 | W31: 84.27067286 | X31: 97.38310123 | Y31: 1.788758491 | Z31: 94.66340262 | AA31: 9.549683305 | AB31: 95.4829588 | AC31: 4.821336462 | AD31: 95.15103182 | AE31: 98.30404249 | AF31: 94.7714006 | AG31: 98.28730838 | BA31: Piped water on premises | BB31: Yes | BC31: 902.5653191 | BD31: 2892.709201 | BE31: 6337.123072 | BF31: 7962.81971 | BG31: 8297.489525 | BH31: 555.4126677 | BI31: 1683.276348 | BJ31: 4252.514536 | BK31: 5941.440821 | BL31: 6356.390776 | BM31: 1172.095821 | BN31: 1243.081706 | BO31: 1264.082616 | BP31: 1271.935873 | BQ31: 1247.621277 | BR31: 413.4863868 | BS31: 2008.437484 | BT31: 12.35407059 | BU31: 241.9548433 | BV31: 5737.350508 | BW31: 2619.692877 | BX31: 3943.316716 | BY31: 65.00449811 | BZ31: 3553.14588 | CA31: 385.7182471 | CB31: 1092.223737 | CC31: 108.9652225 | CD31: 3142.364986 | CE31: 696.8237663 | CF31: 537.1822634 | CG31: 1834.68534
B32: No | C32: 90.44486696 | D32: 69.29956697 | E32: 32.64755437 | F32: 15.52227504 | G32: 12.13935393 | H32: 92.37410791 | I32: 76.86504524 | J32: 41.42113752 | K32: 18.42892006 | L32: 12.76865302 | M32: 15.30651021 | N32: 9.993700197 | O32: 8.86542364 | P32: 7.422888732 | Q32: 10.17861239 | R32: 11.3882535 | S32: 1.622308275 | T32: 99.55647846 | U32: 96.24761465 | V32: 17.70908585 | W32: 15.72932714 | X32: 2.616898767 | Y32: 98.21124151 | Z32: 5.336597376 | AA32: 90.4503167 | AB32: 4.517041201 | AC32: 95.17866354 | AD32: 4.848968185 | AE32: 1.695957508 | AF32: 5.228599395 | AG32: 1.712691621 | BB32: No | BC32: 8543.303363 | BD32: 6529.663435 | BE32: 3071.775169 | BF32: 1463.120339 | BG32: 1146.430928 | BH32: 6727.835787 | BI32: 5592.624409 | BJ32: 3006.954761 | BK32: 1342.318111 | BL32: 930.4286944 | BM32: 211.8308822 | BN32: 138.0235153 | BO32: 122.9679048 | BP32: 101.984587 | BQ32: 141.3811758 | BR32: 53.1406724 | BS32: 33.12036187 | BT32: 2773.095866 | BU32: 6206.072772 | BV32: 1234.683485 | BW32: 488.972081 | BX32: 105.9656195 | BY32: 3569.05222 | BZ32: 200.3066492 | CA32: 3653.350221 | CB32: 51.67015857 | CC32: 2151.097383 | CD32: 160.1372844 | CE32: 12.02171822 | CF32: 29.6366925 | CG32: 31.97005046
A33: Piped water into dwelling | B33: Yes | C33: 8.833325808 | D33: 29.99522452 | E33: 65.62886213 | F33: 84.33932829 | G33: 89.3889156 | H33: 7.385494243 | I33: 22.67401278 | J33: 56.89404102 | K33: 81.25124251 | L33: 88.27030648 | M33: 78.19963422 | N33: 88.51330704 | O33: 92.08190907 | P33: 92.96726859 | Q33: 92.71495355 | R33: 89.37037753 | S33: 99.1295913 | T33: 0.4435215449 | U33: 3.523218057 | V33: 77.04410957 | W33: 84.49597741 | X33: 97.93092179 | Y33: 1.773219307 | Z33: 95.21274245 | AA33: 9.549683305 | AB33: 96.112716 | AC33: 4.821336462 | AD33: 98.46453394 | AE33: 99.06769036 | AF33: 95.9329174 | AG33: 99.26819941 | BA33: Piped water into dwelling | BB33: Yes | BC33: 834.3843561 | BD33: 2826.261827 | BE33: 6174.952855 | BF33: 7949.774523 | BG33: 8441.818083 | BH33: 537.9038954 | BI33: 1649.738668 | BJ33: 4130.205439 | BK33: 5918.144634 | BL33: 6432.097879 | BM33: 1082.22562 | BN33: 1222.461905 | BO33: 1277.2226 | BP33: 1277.296324 | BQ33: 1287.812979 | BR33: 417.0263644 | BS33: 2023.787949 | BT33: 12.35407059 | BU33: 227.1780733 | BV33: 5371.541509 | BW33: 2626.696841 | BX33: 3965.499517 | BY33: 64.43979533 | BZ33: 3573.76509 | CA33: 385.7182471 | CB33: 1099.427491 | CC33: 108.9652225 | CD33: 3251.793469 | CE33: 702.2368497 | CF33: 543.7659607 | CG33: 1852.995195
B34: No | C34: 91.16667419 | D34: 70.00477548 | E34: 34.37113787 | F34: 15.66067171 | G34: 10.6110844 | H34: 92.61450576 | I34: 77.32598722 | J34: 43.10595898 | K34: 18.74875749 | L34: 11.72969352 | M34: 21.80036578 | N34: 11.48669296 | O34: 7.918090926 | P34: 7.03273141 | Q34: 7.285046448 | R34: 10.62962247 | S34: 0.8704086973 | T34: 99.55647846 | U34: 96.47678194 | V34: 22.95589043 | W34: 15.50402259 | X34: 2.069078211 | Y34: 98.22678069 | Z34: 4.787257552 | AA34: 90.4503167 | AB34: 3.887283997 | AC34: 95.17866354 | AD34: 1.535466062 | AE34: 0.9323096367 | AF34: 4.067082597 | AG34: 0.7318005894 | BB34: No | BC34: 8611.484326 | BD34: 6596.110809 | BE34: 3233.945386 | BF34: 1476.165526 | BG34: 1002.10237 | BH34: 6745.344559 | BI34: 5626.16209 | BJ34: 3129.263858 | BK34: 1365.614299 | BL34: 854.7215912 | BM34: 301.7010835 | BN34: 158.6433162 | BO34: 109.8279215 | BP34: 96.62413571 | BQ34: 101.1894739 | BR34: 49.60069473 | BS34: 17.76989705 | BT34: 2773.095866 | BU34: 6220.849542 | BV34: 1600.492484 | BW34: 481.9681173 | BX34: 83.78281853 | BY34: 3569.616923 | BZ34: 179.6874397 | CA34: 3653.350221 | CB34: 44.46640435 | CC34: 2151.097383 | CD34: 50.70880155 | CE34: 6.608634761 | CF34: 23.05299511 | CG34: 13.66019515
A35: Water source on premises | B35: Yes | C35: 77.21286064 | D35: 88.77239145 | E35: 98.1759083 | F35: 98.78952474 | G35: 99.15111682 | H35: 79.22983669 | I35: 87.3613271 | J35: 97.48130518 | K35: 98.6552055 | L35: 99.2744149 | M35: 96.5618785 | N35: 99.22107513 | O35: 100 | P35: 98.94437523 | Q35: 98.18679392 | R35: 92.87076822 | S35: 100 | T35: 78.53321116 | U35: 89.31240668 | V35: 98.02197499 | W35: 98.54636219 | X35: 99.60066271 | Y35: 70.28684452 | Z35: 99.70314511 | AA35: 85.13373477 | AB35: 99.25003114 | AC35: 85.00702902 | AD35: 99.46100135 | AE35: 100 | AF35: 100 | AG35: 100 | BA35: Water source on premises | BB35: Yes | BC35: 7293.425421 | BD35: 8364.465521 | BE35: 9237.271309 | BF35: 9311.841377 | BG35: 9363.752601 | BH35: 5770.505857 | BI35: 6356.32346 | BJ35: 7076.62542 | BK35: 7185.807343 | BL35: 7233.947394 | BM35: 1336.345622 | BN35: 1370.34745 | BO35: 1387.050521 | BP35: 1359.417015 | BQ35: 1363.816976 | BR35: 433.3601345 | BS35: 2041.557846 | BT35: 2187.50328 | BU35: 5758.888647 | BV35: 6834.125417 | BW35: 3063.476229 | BX35: 4033.112041 | BY35: 2554.263795 | BZ35: 3742.310222 | CA35: 3438.609836 | CB35: 1135.315048 | CC35: 1921.212075 | CD35: 3284.701828 | CE35: 708.8454845 | CF35: 566.8189558 | CG35: 1866.65539
B36: No | C36: 22.78713936 | D36: 11.22760855 | E36: 1.824091697 | F36: 1.210475256 | G36: 0.8488831787 | H36: 20.77016331 | I36: 12.6386729 | J36: 2.518694824 | K36: 1.3447945 | L36: 0.7255851026 | M36: 3.438121503 | N36: 0.7789248686 | O36: 0 | P36: 1.055624765 | Q36: 1.813206084 | R36: 7.129231783 | S36: 0 | T36: 21.46678884 | U36: 10.68759332 | V36: 1.97802501 | W36: 1.453637806 | X36: 0.3993372923 | Y36: 29.71315548 | Z36: 0.2968548876 | AA36: 14.86626523 | AB36: 0.7499688647 | AC36: 14.99297098 | AD36: 0.5389986469 | AE36: 0 | AF36: 0 | AG36: 0 | BB36: No | BC36: 2152.443261 | BD36: 1057.907115 | BE36: 171.6269316 | BF36: 114.098672 | BG36: 80.16785214 | BH36: 1512.742598 | BI36: 919.5772969 | BJ36: 182.8438774 | BK36: 97.9515895 | BL36: 52.87207653 | BM36: 47.58108157 | BN36: 10.75777203 | BO36: 0 | BP36: 14.50344462 | BQ36: 25.18547699 | BR36: 33.26692461 | BS36: 0 | BT36: 597.946656 | BU36: 689.1389685 | BV36: 137.9085761 | BW36: 45.18872908 | BX36: 16.17029444 | BY36: 1079.792923 | BZ36: 11.14230729 | CA36: 600.4586314 | CB36: 8.578848064 | CC36: 338.8505307 | CD36: 17.80044255 | CE36: 0 | CF36: 0 | CG36: 0
